Workbook

Sheet BSC Master
B2: Document Owner | D2: E. Berghmans | F2: Subject | I2: Status Overview Actionlog
F3: SRM LH/RH | I3: Date: | J3: =TODAY() -> 2018-10-02
B4: Revision | D4: 1.1
J5: Status | K5: Count
J6: Ready | K6: =COUNTIF($M$21:$M$50,"=Ready") -> 0
B7: Revision date | D7: 2014-10-23 | J7: Late | K7: =COUNTIF($M$21:$M$50,"=Late") -> 0
J8: Pending | K8: =COUNTIF($M$21:$M$50,"=Pending") -> 1
B20: Nr. | C20: Type | D20: Station | E20: Probleem | F20: TAF | G20: Oorzaak | H20: Actie | I20: Resp. | J20: Date Assigned | K20: Target Completion Date | L20: Actual Completion Date | M20: Status | N20: Beheerder | O20: Prio
A21: 1 | C21: All | D21: 10 | E21: Veel onterechte afkeur door IFM camera | H21: Zorgen voor constante lichtcondities door plaatstsen LED armatuur.. | L21: 2018-01-15 | M21: Installed | N21: Sides
H22: Vision offerte ter beoordeling PD | I22: PD | J22: 2018-08-13 | K22: 2019-01-01 | M22: Offerte | N22: PD
C25: F48 | D25: SG5 | E25: F48 deel wordt geraakt door onbekende oorzaak | G25: Camera geplaatst om oorzaak te achterhalen | J25: 2018-04-30 | K25: 2018-09-10 | L25: 2018-09-10 | M25: Done | N25: Sides
G26: 6-09-2018, oorzaak gevonden
G27: 41R01 gaat afdokken en als 42R1 een F48 deel gaat picken raakt de onderzijde | H27: Positie 41R01 is aangepast. Iets teruggezet richting hekwerk en meer gekanteld.
G28: van het Leonipakket van 41R01 het F48 deel van 42R01 | H28: Er is geen extra collisionzone gemaakt door EMB.
A31: 2 | C31: F48 | D31: 6 | E31: 06R01 Mitte LH/RH verkeerde sensoren. B03PP en B04PP F48 | G31: 06R01 Mitte LH/RH verkeerde sensoren. B03PP en B04PP F48 | H31: Zijn nieuwe sensoren voor besteld, zouden aanwezig zijn. Werk is van FFT overgedragen naar Will Kroonen. Planning zondag 24-9-2017 op dagdienst pennen plaatsen door EMB. Update: pensensoren niet ingebouwd, FFT heeft te weinig tooling geleverd. Onduidelijk wanneer inbouw en levering plaatsvinden. Thema ligt bij FFT Update 5-10-2017: 6 oktober wordt termijn afgegeven door FFT. Update 19-10-2017: tooling wordt waarschijnlijk weekend van KW43 of 44 ingebouwd. Nieuwe tooling aan te laten maken door B. Benders, tekeningen aan te leveren door F. van Dijck. Update 20-10-2017: tekeningen worden opgesteld adhv Catia door T. Jacobs. IW bespreken met M. Hamers dd 23-10-2017. Update 7-11-2017: nog steeds niets ingebouwd. Nieuwe leverdatum 8-12-2017 Gepland in kerststop . Nw plandatum 28/1/2018 FvD. | I31: FFT/Will Kroonen | J31: 2017-09-21 | K31: 2018-01-28 | M31: pending | O31: 1
A41: 3
A51: 4
A61: 5

Sheet TA SRM LH
X1: =DATA!$C$15 -> SRM LH | AC1: TA Target | AE1: =DATA!$C$9 -> 0.89 | AP1: TA | AQ1: = | AR1: [ A ]
AC2: Cycle Time | AE2: =DATA!$C$10 -> 64 | AG2: =AE2/60 -> 1.066666667
AC3: Enter Data | AR3: [ T ] - [ BS ] - [ PS ]
A4: ID | B4: Shift Start Time | C4: Shift End Time | D4: Break Time | E4: Total Shift time [Hour] | F4: Available Production Time [Hour] | G4: Target [%] | H4: Cycle time [s] | I4: Target Ouput [56/H] | J4: Parts Target [56/H] | K4: Parts Target [100% Availability] | L4: Blocked / Starved [Hour] | M4: Loss Blocked/ Starved [Parts] | N4: Loss Blocked/ Starved [%] | O4: Planned Stop/ Early Finish [Hour] | P4: Loss Planned Stop/ Early Finish [Parts] | Q4: Loss Planned Stop/ Early Finish [%] | R4: Rekenkolom Benodigde tijd | S4: Produced Parts Actual | T4: Produced Parts Shift D1 | U4: Produced Parts Shift D2 | V4: Produced Parts Shift D3 | X4: Week | Y4: Date | Z4: Day | AA4: Shift | AB4: Shift | AC4: Blocked / Starved [Min] | AD4: Planned Stop / Early Finish [Min] | AE4: Parts during break | AF4: Produced Parts Total | AG4: Downtime Technical SAP[min] | AH4: Delta [Parts] | AI4: Availability (Total Time) [%] | AJ4: Technical Availabilty SRI LH [%] | AK4: Parts Target [100% Availability] | AL4: Parts Actual | AM4: Availability (Total Time) [%] | AN4: Loss Blocked/ Starved [Parts] | AO4: Loss Blocked/ Starved [%] | AP4: Loss Planned Stop/ Early Finish [Parts] | AQ4: Loss Planned Stop/ Early Finish [%] | AR4: Technical Availability Total LH [%] | AS4: Technical Availability Shift D1 [%] | AT4: Technical Availability Shift D2 [%] | AU4: Technical Availability Shift D3 [%] | AV4: Total Downtime [Parts] | AW4: Total Downtime [%] | AX4: Total Downtime [Min] | AY4: Geregistreerd SAP Technical Downtime [Min] | AZ4: Major Items Downtime
AK5: [T] | AL5: [A] | AN5: [BS] | AP5: [PS] | AS5: D1 | AT5: D2 | AU5: D3
A6: =X6&Z6&AA6 -> 1maDD | B6: =VLOOKUP($AA6,DATA!$B$3:$E6,2,0) -> 06:30:00 | C6: =VLOOKUP($AA6,DATA!$B$3:$E6,3,0) -> 14:30:00 | D6: =VLOOKUP($AA6,DATA!$B$3:$E6,4,0) -> 0.03125 | E6: =(C6-B6+(B6>C6))-D6 -> 0.3020833333 | F6: =E6-O6-L6 -> 0.3020833333 | G6: =DATA!$C$9 -> 0.89 | H6: =DATA!$C$10 -> 64 | I6: 1 | J6: =F6*86400/H6*I6 -> 407.8125 | K6: =E6*86400/H6 -> 407.8125 | L6: =TIME(INT($AC6/60),INT(MOD($AC6,60)/1),0) -> 0 | M6: =IF($L6*86400/$H6=0,"",$L6*86400/$H6) ->  | N6: =IFERROR($M6/$K6,"") ->  | O6: =TIME(INT($AD6/60),INT(MOD($AD6,60)/1),0) -> 0 | P6: =IF($O6*86400/$H6=0,"",$O6*86400/$H6) ->  | Q6: =IFERROR($P6/$K6,"") ->  | R6: =AF6*AG$2 -> 0 | S6: =IF(AF6-AE6=0,"",AF6-AE6) ->  | T6: =IF(IF($AB6="D1",$S6,"")=0,"",IF($AB6="D1",$S6,"")) ->  | U6: =IF(IF($AB6="D2",$S6,"")=0,"",IF($AB6="D2",$S6,"")) ->  | V6: =IF(IF($AB6="D3",$S6,"")=0,"",IF($AB6="D3",$S6,"")) ->  | X6: =X16 -> 1 | Y6: 2018-01-01 | Z6: =TEXT(Y6,"ddd") -> ma | AA6: DD | AB6: =IFERROR(HLOOKUP(Y6,[1]DATA!$A$1:$NB$5,3,0),"") -> D1 | AG6: 0 | AK6: 3487.5 | AL6: 2340 | AM6: 0.6709677419 | AN6: 614.0625 | AO6: 0.1760752688 | AP6: 328.125 | AQ6: 0.09408602151 | AR6: 0.9200835286 | AS6: 0.9286518774 | AU6: 0.9115151798 | AV6: 205.3125 | AW6: 0.05887096774 | AX6: 219 | AY6: 244
A7: 1maMD | B7: =VLOOKUP($AA7,DATA!$B$3:$E7,2,0) -> 14:30:00 | C7: =VLOOKUP($AA7,DATA!$B$3:$E7,3,0) -> 22:30:00 | D7: =VLOOKUP($AA7,DATA!$B$3:$E7,4,0) -> 0.03125 | E7: =(C7-B7+(B7>C7))-D7 -> 0.3020833333 | F7: =E7-O7-L7 -> 0.3020833333 | G7: =DATA!$C$9 -> 0.89 | H7: =DATA!$C$10 -> 64 | I7: 1 | J7: =F7*86400/H7*I7 -> 407.8125 | K7: =E7*86400/H7 -> 407.8125 | L7: =TIME(INT($AC7/60),INT(MOD($AC7,60)/1),0) -> 0 | M7: =IF($L7*86400/$H7=0,"",$L7*86400/$H7) ->  | N7: =IFERROR($M7/$K7,"") ->  | O7: =TIME(INT(AD7/60),INT(MOD(AD7,60)/1),0) -> 0 | Q7: =IFERROR($P7/$K7,"") ->  | R7: =AF7*AG$2 -> 0 | S7: =IF(AF7-AE7=0,"",AF7-AE7) ->  | T7: =IF(IF($AB7="D1",$S7,"")=0,"",IF($AB7="D1",$S7,"")) ->  | U7: =IF(IF($AB7="D2",$S7,"")=0,"",IF($AB7="D2",$S7,"")) ->  | V7: =IF(IF($AB7="D3",$S7,"")=0,"",IF($AB7="D3",$S7,"")) ->  | X7: =X16 -> 1 | Z7: =TEXT(Y6,"ddd") -> ma | AA7: MD | AB7: =IFERROR(HLOOKUP(Y6,[1]DATA!$A$1:$NB$5,4,0),"") -> D3 | AG7: 0
A8: 1maND | B8: =VLOOKUP($AA8,DATA!$B$3:$E8,2,0) -> 22:30:00 | C8: =VLOOKUP($AA8,DATA!$B$3:$E8,3,0) -> 06:30:00 | D8: =VLOOKUP($AA8,DATA!$B$3:$E8,4,0) -> 0.03125 | E8: 0.3020833333 | F8: 0.3020833333 | G8: =DATA!$C$9 -> 0.89 | H8: =DATA!$C$10 -> 64 | I8: 1 | J8: 407.8125 | K8: 407.8125 | L8: 0 | O8: 0 | R8: 0 | X8: =X16 -> 1 | Z8: =TEXT(Y6,"ddd") -> ma | AA8: ND | AB8: =IFERROR(HLOOKUP(Y6,[1]DATA!$A$1:$NB$5,5,0),"") -> D2 | AG8: 0
A9: 1diDD | B9: =VLOOKUP($AA9,DATA!$B$3:$E9,2,0) -> 06:30:00 | C9: =VLOOKUP($AA9,DATA!$B$3:$E9,3,0) -> 14:30:00 | D9: =VLOOKUP($AA9,DATA!$B$3:$E9,4,0) -> 0.03125 | E9: 0.3020833333 | F9: 0.2076388889 | G9: =DATA!$C$9 -> 0.89 | H9: =DATA!$C$10 -> 64 | I9: 1 | J9: 280.3125 | K9: 407.8125 | L9: 0.01111111111 | M9: 15 | N9: 0.0367816092 | O9: 0.08333333333 | P9: 112.5 | Q9: 0.275862069 | R9: 307.2 | S9: 276 | T9: 276 | X9: =X16 -> 1 | Y9: =Y6+1 -> 2018-01-02 | Z9: =TEXT(Y9,"ddd") -> di | AA9: DD | AB9: =IFERROR(HLOOKUP(Y9,[1]DATA!$A$1:$NB$5,3,0),"") -> D1 | AC9: 16 | AD9: 120 | AE9: 12 | AF9: 288 | AG9: 70 | AH9: -32.4375 | AI9: 0.6331182796 | AJ9: 0.8144220573
A10: 1diMD | B10: =VLOOKUP($AA10,DATA!$B$3:$E10,2,0) -> 14:30:00 | C10: =VLOOKUP($AA10,DATA!$B$3:$E10,3,0) -> 22:30:00 | D10: =VLOOKUP($AA10,DATA!$B$3:$E10,4,0) -> 0.03125 | E10: 0.3020833333 | F10: 0.2111111111 | G10: =DATA!$C$9 -> 0.89 | H10: =DATA!$C$10 -> 64 | I10: 1 | J10: 285 | K10: 407.8125 | L10: 0.007638888889 | M10: 10.3125 | N10: 0.02528735632 | O10: 0.08333333333 | P10: 112.5 | Q10: 0.275862069 | R10: 341.3333333 | S10: 288 | V10: 288 | X10: =X16 -> 1 | Z10: =TEXT(Y9,"ddd") -> di | AA10: MD | AB10: =IFERROR(HLOOKUP(Y9,[1]DATA!$A$1:$NB$5,4,0),"") -> D3 | AC10: 11 | AD10: 120 | AE10: 32 | AF10: 320 | AG10: 76 | AH10: -25.125 | AI10: 0.6606451613 | AJ10: 0.8178913738
A11: 1diND | B11: =VLOOKUP($AA11,DATA!$B$3:$E11,2,0) -> 22:30:00 | C11: =VLOOKUP($AA11,DATA!$B$3:$E11,3,0) -> 06:30:00 | D11: =VLOOKUP($AA11,DATA!$B$3:$E11,4,0) -> 0.03125 | E11: 0.3020833333 | F11: 0.3020833333 | G11: =DATA!$C$9 -> 0.89 | H11: =DATA!$C$10 -> 64 | I11: 1 | J11: 407.8125 | K11: 407.8125 | L11: 0 | O11: 0 | R11: 0 | X11: =X16 -> 1 | Z11: =TEXT(Y9,"ddd") -> di | AA11: ND | AB11: =IFERROR(HLOOKUP(Y9,[1]DATA!$A$1:$NB$5,5,0),"") -> D2 | AG11: 0
A12: 1woDD | B12: =VLOOKUP($AA12,DATA!$B$3:$E12,2,0) -> 06:30:00 | C12: =VLOOKUP($AA12,DATA!$B$3:$E12,3,0) -> 14:30:00 | D12: =VLOOKUP($AA12,DATA!$B$3:$E12,4,0) -> 0.03125 | E12: 0.3020833333 | F12: 0.2534722222 | G12: =DATA!$C$9 -> 0.89 | H12: =DATA!$C$10 -> 64 | I12: 1 | J12: 342.1875 | K12: 407.8125 | L12: 0 | O12: 0.04861111111 | P12: 65.625 | Q12: 0.1609195402 | R12: 346.6666667 | S12: 312 | T12: 312 | X12: =X16 -> 1 | Y12: =Y9+1 -> 2018-01-03 | Z12: =TEXT(Y12,"ddd") -> wo | AA12: DD | AB12: =IFERROR(HLOOKUP(Y12,[1]DATA!$A$1:$NB$5,3,0),"") -> D1 | AC12: 0 | AD12: 70 | AE12: 13 | AF12: 325 | AG12: 20 | AH12: -58.3125 | AI12: 0.7156989247 | AJ12: 0.9454545455
A13: 1woMD | B13: =VLOOKUP($AA13,DATA!$B$3:$E13,2,0) -> 14:30:00 | C13: =VLOOKUP($AA13,DATA!$B$3:$E13,3,0) -> 22:30:00 | D13: =VLOOKUP($AA13,DATA!$B$3:$E13,4,0) -> 0.03125 | E13: 0.3020833333 | F13: 0.2444444444 | G13: =DATA!$C$9 -> 0.89 | H13: =DATA!$C$10 -> 64 | I13: 1 | J13: 330 | K13: 407.8125 | L13: 0.03680555556 | M13: 49.6875 | N13: 0.1218390805 | O13: 0.02083333333 | P13: 28.125 | Q13: 0.06896551724 | R13: 386.1333333 | S13: 331 | V13: 331 | X13: =X16 -> 1 | Z13: =TEXT(Y12,"ddd") -> wo | AA13: MD | AB13: =IFERROR(HLOOKUP(Y12,[1]DATA!$A$1:$NB$5,4,0),"") -> D3 | AC13: 53 | AD13: 30 | AE13: 31 | AF13: 362 | AG13: 5 | AH13: -27.125 | AI13: 0.7592831541 | AJ13: 0.9872166354
A14: 1woND | B14: =VLOOKUP($AA14,DATA!$B$3:$E14,2,0) -> 22:30:00 | C14: =VLOOKUP($AA14,DATA!$B$3:$E14,3,0) -> 06:30:00 | D14: =VLOOKUP($AA14,DATA!$B$3:$E14,4,0) -> 0.03125 | E14: 0.3020833333 | F14: 0.3020833333 | G14: =DATA!$C$9 -> 0.89 | H14: =DATA!$C$10 -> 64 | I14: 1 | J14: 407.8125 | K14: 407.8125 | L14: 0 | O14: 0 | R14: 0 | X14: =X16 -> 1 | Z14: =TEXT(Y12,"ddd") -> wo | AA14: ND | AB14: =IFERROR(HLOOKUP(Y12,[1]DATA!$A$1:$NB$5,5,0),"") -> D2 | AG14: 0
A15: 1doDD | B15: =VLOOKUP($AA15,DATA!$B$3:$E15,2,0) -> 06:30:00 | C15: =VLOOKUP($AA15,DATA!$B$3:$E15,3,0) -> 14:30:00 | D15: =VLOOKUP($AA15,DATA!$B$3:$E15,4,0) -> 0.03125 | E15: 0.3020833333 | F15: 0.16875 | G15: =DATA!$C$9 -> 0.89 | H15: =DATA!$C$10 -> 64 | I15: 1 | J15: 227.8125 | K15: 407.8125 | L15: 0.1333333333 | M15: 180 | N15: 0.4413793103 | O15: 0 | R15: 280.5333333 | S15: 253 | T15: 253 | X15: =X16 -> 1 | Y15: =Y12+1 -> 2018-01-04 | Z15: =TEXT(Y15,"ddd") -> do | AA15: DD | AB15: =IFERROR(HLOOKUP(Y15,[1]DATA!$A$1:$NB$5,3,0),"") -> D1 | AC15: 192 | AE15: 10 | AF15: 263 | AG15: 4 | AH15: -2.9375 | AI15: 0.5803584229 | AJ15: 0.9859418932
A16: 1doMD | B16: =VLOOKUP($AA16,DATA!$B$3:$E16,2,0) -> 14:30:00 | C16: =VLOOKUP($AA16,DATA!$B$3:$E16,3,0) -> 22:30:00 | D16: =VLOOKUP($AA16,DATA!$B$3:$E16,4,0) -> 0.03125 | E16: 0.3020833333 | F16: 0.2444444444 | G16: =DATA!$C$9 -> 0.89 | H16: =DATA!$C$10 -> 64 | I16: 1 | J16: 330 | K16: 407.8125 | L16: 0.05763888889 | M16: 77.8125 | N16: 0.1908045977 | O16: 0 | R16: 376.5333333 | S16: 330 | V16: 330 | X16: =WEEKNUM($Y6) -> 1 | Z16: =TEXT(Y15,"ddd") -> do | AA16: MD | AB16: =IFERROR(HLOOKUP(Y15,[1]DATA!$A$1:$NB$5,4,0),"") -> D3 | AC16: 83 | AE16: 23 | AF16: 353 | AG16: 10 | AH16: -28.125 | AI16: 0.7569892473 | AJ16: 0.97412901
A17: 1doND | B17: =VLOOKUP($AA17,DATA!$B$3:$E17,2,0) -> 22:30:00 | C17: =VLOOKUP($AA17,DATA!$B$3:$E17,3,0) -> 06:30:00 | D17: =VLOOKUP($AA17,DATA!$B$3:$E17,4,0) -> 0.03125 | E17: 0.3020833333 | F17: 0.3020833333 | G17: =DATA!$C$9 -> 0.89 | H17: =DATA!$C$10 -> 64 | I17: 1 | J17: 407.8125 | K17: 407.8125 | L17: 0 | O17: 0 | R17: 0 | X17: =X16 -> 1 | Z17: =TEXT(Y15,"ddd") -> do | AA17: ND | AB17: =IFERROR(HLOOKUP(Y15,[1]DATA!$A$1:$NB$5,5,0),"") -> D2 | AG17: 0
A18: 1vrDD | B18: =VLOOKUP($AA18,DATA!$B$3:$E18,2,0) -> 06:30:00 | C18: =VLOOKUP($AA18,DATA!$B$3:$E18,3,0) -> 14:30:00 | D18: =VLOOKUP($AA18,DATA!$B$3:$E18,4,0) -> 0.03125 | E18: 0.3020833333 | F18: 0.1729166667 | G18: =DATA!$C$9 -> 0.89 | H18: =DATA!$C$10 -> 64 | I18: 1 | J18: 233.4375 | K18: 407.8125 | L18: 0.1222222222 | M18: 165 | N18: 0.4045977011 | O18: 0.006944444444 | P18: 9.375 | Q18: 0.02298850575 | R18: 310.4 | S18: 259 | T18: 259 | X18: =X16 -> 1 | Y18: =Y15+1 -> 2018-01-05 | Z18: =TEXT(Y18,"ddd") -> vr | AA18: DD | AB18: =IFERROR(HLOOKUP(Y18,[1]DATA!$A$1:$NB$5,3,0),"") -> D1 | AC18: 176 | AD18: 10 | AE18: 32 | AF18: 291 | AG18: 10 | AH18: -2.5625 | AI18: 0.5941218638 | AJ18: 0.9687890137
A19: 1vrMD | B19: =VLOOKUP($AA19,DATA!$B$3:$E19,2,0) -> 14:30:00 | C19: =VLOOKUP($AA19,DATA!$B$3:$E19,3,0) -> 22:30:00 | D19: =VLOOKUP($AA19,DATA!$B$3:$E19,4,0) -> 0.03125 | E19: 0.3020833333 | F19: 0.2159722222 | G19: =DATA!$C$9 -> 0.89 | H19: =DATA!$C$10 -> 64 | I19: 1 | J19: 291.5625 | K19: 407.8125 | L19: 0.08611111111 | M19: 116.25 | N19: 0.2850574713 | O19: 0 | R19: 318.9333333 | S19: 291 | V19: 291 | X19: =X16 -> 1 | Z19: =TEXT(Y18,"ddd") -> vr | AA19: MD | AB19: =IFERROR(HLOOKUP(Y18,[1]DATA!$A$1:$NB$5,4,0),"") -> D3 | AC19: 124 | AE19: 8 | AF19: 299 | AG19: 49 | AH19: -28.6875 | AI19: 0.6675268817 | AJ19: 0.8668236999
A20: 1vrND | B20: =VLOOKUP($AA20,DATA!$B$3:$E20,2,0) -> 22:30:00 | C20: =VLOOKUP($AA20,DATA!$B$3:$E20,3,0) -> 06:30:00 | D20: =VLOOKUP($AA20,DATA!$B$3:$E20,4,0) -> 0.03125 | E20: 0.3020833333 | F20: 0.3020833333 | G20: =DATA!$C$9 -> 0.89 | H20: =DATA!$C$10 -> 64 | I20: 1 | J20: 407.8125 | K20: 407.8125 | L20: 0 | O20: 0 | R20: 0 | X20: =X16 -> 1 | Z20: =TEXT(Y18,"ddd") -> vr | AA20: ND | AB20: =IFERROR(HLOOKUP(Y18,[1]DATA!$A$1:$NB$5,5,0),"") -> - | AG20: 0
A21: 1zaDD | B21: =VLOOKUP($AA21,DATA!$B$3:$E21,2,0) -> 06:30:00 | C21: =VLOOKUP($AA21,DATA!$B$3:$E21,3,0) -> 14:30:00 | D21: =VLOOKUP($AA21,DATA!$B$3:$E21,4,0) -> 0.03125 | E21: 0.3020833333 | F21: 0.3020833333 | G21: =DATA!$C$9 -> 0.89 | H21: =DATA!$C$10 -> 64 | I21: 1 | J21: 407.8125 | K21: 407.8125 | L21: 0 | O21: 0 | R21: 0 | X21: =X16 -> 1 | Y21: =Y18+1 -> 2018-01-06 | Z21: =TEXT(Y21,"ddd") -> za | AA21: DD | AB21: =IFERROR(HLOOKUP(Y21,[1]DATA!$A$1:$NB$5,3,0),"") -> - | AG21: 0
A22: 1zaMD | B22: =VLOOKUP($AA22,DATA!$B$3:$E22,2,0) -> 14:30:00 | C22: =VLOOKUP($AA22,DATA!$B$3:$E22,3,0) -> 22:30:00 | D22: =VLOOKUP($AA22,DATA!$B$3:$E22,4,0) -> 0.03125 | E22: 0.3020833333 | F22: 0.3020833333 | G22: =DATA!$C$9 -> 0.89 | H22: =DATA!$C$10 -> 64 | I22: 1 | J22: 407.8125 | K22: 407.8125 | L22: 0 | O22: 0 | R22: 0 | X22: =X16 -> 1 | Z22: =TEXT(Y21,"ddd") -> za | AA22: MD | AB22: =IFERROR(HLOOKUP(Y21,[1]DATA!$A$1:$NB$5,4,0),"") -> - | AG22: 0
A23: 1zaND | B23: =VLOOKUP($AA23,DATA!$B$3:$E23,2,0) -> 22:30:00 | C23: =VLOOKUP($AA23,DATA!$B$3:$E23,3,0) -> 06:30:00 | D23: =VLOOKUP($AA23,DATA!$B$3:$E23,4,0) -> 0.03125 | E23: 0.3020833333 | F23: 0.3020833333 | G23: =DATA!$C$9 -> 0.89 | H23: =DATA!$C$10 -> 64 | I23: 1 | J23: 407.8125 | K23: 407.8125 | L23: 0 | O23: 0 | R23: 0 | X23: =X16 -> 1 | Z23: =TEXT(Y21,"ddd") -> za | AA23: ND | AB23: =IFERROR(HLOOKUP(Y21,[1]DATA!$A$1:$NB$5,5,0),"") -> - | AG23: 0
A24: 1zoDD | B24: =VLOOKUP($AA24,DATA!$B$3:$E24,2,0) -> 06:30:00 | C24: =VLOOKUP($AA24,DATA!$B$3:$E24,3,0) -> 14:30:00 | D24: =VLOOKUP($AA24,DATA!$B$3:$E24,4,0) -> 0.03125 | E24: 0.3020833333 | F24: 0.3020833333 | G24: =DATA!$C$9 -> 0.89 | H24: =DATA!$C$10 -> 64 | I24: 1 | J24: 407.8125 | K24: 407.8125 | L24: 0 | O24: 0 | R24: 0 | X24: =X16 -> 1 | Y24: =Y21+1 -> 2018-01-07 | Z24: =TEXT(Y24,"ddd") -> zo | AA24: DD | AB24: =IFERROR(HLOOKUP(Y24,[1]DATA!$A$1:$NB$5,3,0),"") -> - | AG24: 0
A25: 1zoMD | B25: =VLOOKUP($AA25,DATA!$B$3:$E25,2,0) -> 14:30:00 | C25: =VLOOKUP($AA25,DATA!$B$3:$E25,3,0) -> 22:30:00 | D25: =VLOOKUP($AA25,DATA!$B$3:$E25,4,0) -> 0.03125 | E25: 0.3020833333 | F25: 0.3020833333 | G25: =DATA!$C$9 -> 0.89 | H25: =DATA!$C$10 -> 64 | I25: 1 | J25: 407.8125 | K25: 407.8125 | L25: 0 | O25: 0 | R25: 0 | X25: =X16 -> 1 | Z25: =TEXT(Y24,"ddd") -> zo | AA25: MD | AB25: =IFERROR(HLOOKUP(Y24,[1]DATA!$A$1:$NB$5,4,0),"") -> - | AG25: 0
A26: 1zoZND | B26: =VLOOKUP($AA26,DATA!$B$3:$E26,2,0) -> 00:00:00 | C26: =VLOOKUP($AA26,DATA!$B$3:$E26,3,0) -> 00:00:00 | D26: =VLOOKUP($AA26,DATA!$B$3:$E26,4,0) -> 0 | E26: 0 | F26: 0 | G26: =DATA!$C$9 -> 0.89 | H26: =DATA!$C$10 -> 64 | I26: 1 | J26: 0 | K26: 0 | L26: 0 | O26: 0 | R26: 0 | X26: =X16 -> 1 | Z26: =TEXT(Y24,"ddd") -> zo | AA26: ZND | AB26: =IFERROR(HLOOKUP(Y24,[1]DATA!$A$1:$NB$5,5,0),"") -> D1 | AG26: 0
A27: 2maDD | B27: =VLOOKUP($AA27,DATA!$B$3:$E27,2,0) -> 06:30:00 | C27: =VLOOKUP($AA27,DATA!$B$3:$E27,3,0) -> 14:30:00 | D27: =VLOOKUP($AA27,DATA!$B$3:$E27,4,0) -> 0.03125 | E27: 0.3020833333 | F27: 0.10625 | G27: =DATA!$C$9 -> 0.89 | H27: =DATA!$C$10 -> 64 | I27: 1 | J27: =F27*86400/H27*I27 -> 143.4375 | K27: =E27*86400/H27 -> 407.8125 | L27: =TIME(INT($AC27/60),INT(MOD($AC27,60)/1),0) -> 0.1958333333 | M27: =IF($L27*86400/$H27=0,"",$L27*86400/$H27) -> 264.375 | N27: =IFERROR($M27/$K27,"") -> 0.6482758621 | O27: =TIME(INT($AD27/60),INT(MOD($AD27,60)/1),0) -> 0 | Q27: =IFERROR($P27/$K27,"") ->  | R27: =AF27*AG$2 -> 208 | S27: =IF(AF27-AE27=0,"",AF27-AE27) -> 178 | T27: =IF(IF($AB27="D1",$S27,"")=0,"",IF($AB27="D1",$S27,"")) ->  | U27: =IF(IF($AB27="D2",$S27,"")=0,"",IF($AB27="D2",$S27,"")) ->  | V27: =IF(IF($AB27="D3",$S27,"")=0,"",IF($AB27="D3",$S27,"")) -> 178 | X27: =X37 -> 2 | Y27: =Y24+1 -> 2018-01-08 | Z27: =TEXT(Y27,"ddd") -> ma | AA27: DD | AB27: =IFERROR(HLOOKUP(Y27,[1]DATA!$A$1:$NB$5,3,0),"") -> D3 | AC27: 282 | AE27: 17 | AF27: 195 | AG27: 12 | AH27: 6.4375 | AI27: 0.4083154122 | AJ27: 0.9454545455 | AK27: 4359.375 | AL27: 3004 | AM27: 0.6890896057 | AN27: 1195.3125 | AO27: 0.2741935484 | AP27: 0 | AQ27: 0 | AR27: 0.9342723228 | AT27: 0.9186301512 | AU27: 0.9499144944 | AV27: 160.0625 | AW27: 0.03671684588 | AX27: 170.7333333 | AY27: 252
A28: 2maMD | B28: =VLOOKUP($AA28,DATA!$B$3:$E28,2,0) -> 14:30:00 | C28: =VLOOKUP($AA28,DATA!$B$3:$E28,3,0) -> 22:30:00 | D28: =VLOOKUP($AA28,DATA!$B$3:$E28,4,0) -> 0.03125 | E28: =(C28-B28+(B28>C28))-D28 -> 0.3020833333 | F28: =E28-O28-L28 -> 0.1854166667 | G28: =DATA!$C$9 -> 0.89 | H28: =DATA!$C$10 -> 64 | I28: 1 | J28: =F28*86400/H28*I28 -> 250.3125 | K28: =E28*86400/H28 -> 407.8125 | L28: 0.1166666667 | M28: 157.5 | N28: 0.3862068966 | O28: =TIME(INT(AD28/60),INT(MOD(AD28,60)/1),0) -> 0 | R28: =AF28*AG$2 -> 349.8666667 | S28: =IF(AF28-AE28=0,"",AF28-AE28) -> 296 | U28: 296 | X28: =X37 -> 2 | Z28: =TEXT(Y27,"ddd") -> ma | AA28: MD | AB28: =IFERROR(HLOOKUP(Y27,[1]DATA!$A$1:$NB$5,4,0),"") -> D2 | AC28: 168 | AE28: 32 | AF28: 328 | AG28: 10 | AH28: 17.5625 | AI28: 0.6789964158 | AJ28: 0.9722119303
A29: 2maND | B29: =VLOOKUP($AA29,DATA!$B$3:$E29,2,0) -> 22:30:00 | C29: =VLOOKUP($AA29,DATA!$B$3:$E29,3,0) -> 06:30:00 | D29: =VLOOKUP($AA29,DATA!$B$3:$E29,4,0) -> 0.03125 | E29: 0.3020833333 | F29: 0.3020833333 | G29: =DATA!$C$9 -> 0.89 | H29: =DATA!$C$10 -> 64 | I29: 1 | J29: 407.8125 | K29: 407.8125 | L29: 0 | O29: 0 | R29: 0 | X29: =X37 -> 2 | Z29: =TEXT(Y27,"ddd") -> ma | AA29: ND | AB29: =IFERROR(HLOOKUP(Y27,[1]DATA!$A$1:$NB$5,5,0),"") -> D1 | AG29: 0
A30: 2diDD | B30: =VLOOKUP($AA30,DATA!$B$3:$E30,2,0) -> 06:30:00 | C30: =VLOOKUP($AA30,DATA!$B$3:$E30,3,0) -> 14:30:00 | D30: =VLOOKUP($AA30,DATA!$B$3:$E30,4,0) -> 0.03125 | E30: 0.3020833333 | F30: 0.2090277778 | G30: =DATA!$C$9 -> 0.89 | H30: =DATA!$C$10 -> 64 | I30: 1 | J30: 282.1875 | K30: 407.8125 | L30: 0.09305555556 | M30: 125.625 | N30: 0.308045977 | O30: 0 | R30: 306.1333333 | S30: 264 | V30: 264 | X30: =X37 -> 2 | Y30: =Y27+1 -> 2018-01-09 | Z30: =TEXT(Y30,"ddd") -> di | AA30: DD | AB30: =IFERROR(HLOOKUP(Y30,[1]DATA!$A$1:$NB$5,3,0),"") -> D3 | AC30: 134 | AE30: 23 | AF30: 287 | AG30: 17 | AH30: -46.3125 | AI30: 0.6055913978 | AJ30: 0.9473901382
A31: 2diMD | B31: =VLOOKUP($AA31,DATA!$B$3:$E31,2,0) -> 14:30:00 | C31: =VLOOKUP($AA31,DATA!$B$3:$E31,3,0) -> 22:30:00 | D31: =VLOOKUP($AA31,DATA!$B$3:$E31,4,0) -> 0.03125 | E31: 0.3020833333 | F31: 0.2347222222 | G31: =DATA!$C$9 -> 0.89 | H31: =DATA!$C$10 -> 64 | I31: 1 | J31: 316.875 | K31: 407.8125 | L31: 0.06736111111 | M31: 90.9375 | N31: 0.2229885057 | O31: 0 | R31: 356.2666667 | S31: 306 | U31: 306 | X31: =X37 -> 2 | Z31: =TEXT(Y30,"ddd") -> di | AA31: MD | AB31: =IFERROR(HLOOKUP(Y30,[1]DATA!$A$1:$NB$5,4,0),"") -> D2 | AC31: 97 | AE31: 28 | AF31: 334 | AG31: 24 | AH31: -39 | AI31: 0.7019354839 | AJ31: 0.9368863955
A32: 2diND | B32: =VLOOKUP($AA32,DATA!$B$3:$E32,2,0) -> 22:30:00 | C32: =VLOOKUP($AA32,DATA!$B$3:$E32,3,0) -> 06:30:00 | D32: =VLOOKUP($AA32,DATA!$B$3:$E32,4,0) -> 0.03125 | E32: 0.3020833333 | F32: 0.3020833333 | G32: =DATA!$C$9 -> 0.89 | H32: =DATA!$C$10 -> 64 | I32: 1 | J32: 407.8125 | K32: 407.8125 | L32: 0 | O32: 0 | R32: 0 | X32: =X37 -> 2 | Z32: =TEXT(Y30,"ddd") -> di | AA32: ND | AB32: =IFERROR(HLOOKUP(Y30,[1]DATA!$A$1:$NB$5,5,0),"") -> D1 | AG32: 0
A33: 2woDD | B33: =VLOOKUP($AA33,DATA!$B$3:$E33,2,0) -> 06:30:00 | C33: =VLOOKUP($AA33,DATA!$B$3:$E33,3,0) -> 14:30:00 | D33: =VLOOKUP($AA33,DATA!$B$3:$E33,4,0) -> 0.03125 | E33: 0.3020833333 | F33: 0.2534722222 | G33: =DATA!$C$9 -> 0.89 | H33: =DATA!$C$10 -> 64 | I33: 1 | J33: 342.1875 | K33: 407.8125 | L33: 0.04861111111 | M33: 65.625 | N33: 0.1609195402 | O33: 0 | R33: 400 | S33: 350 | V33: 350 | X33: =X37 -> 2 | Y33: =Y30+1 -> 2018-01-10 | Z33: =TEXT(Y33,"ddd") -> wo | AA33: DD | AB33: =IFERROR(HLOOKUP(Y33,[1]DATA!$A$1:$NB$5,3,0),"") -> D3 | AC33: 70 | AE33: 25 | AF33: 375 | AG33: 55 | AH33: -20.3125 | AI33: 0.8028673835 | AJ33: 0.8791208791
A34: 2woMD | B34: =VLOOKUP($AA34,DATA!$B$3:$E34,2,0) -> 14:30:00 | C34: =VLOOKUP($AA34,DATA!$B$3:$E34,3,0) -> 22:30:00 | D34: =VLOOKUP($AA34,DATA!$B$3:$E34,4,0) -> 0.03125 | E34: 0.3020833333 | F34: 0.1833333333 | G34: =DATA!$C$9 -> 0.89 | H34: =DATA!$C$10 -> 64 | I34: 1 | J34: 247.5 | K34: 407.8125 | L34: 0.11875 | M34: 160.3125 | N34: 0.3931034483 | O34: 0 | R34: 307.2 | S34: 282 | U34: 282 | X34: =X37 -> 2 | Z34: =TEXT(Y33,"ddd") -> wo | AA34: MD | AB34: =IFERROR(HLOOKUP(Y33,[1]DATA!$A$1:$NB$5,4,0),"") -> D2 | AC34: 171 | AE34: 6 | AF34: 288 | AG34: 37 | AH34: 6.375 | AI34: 0.6468817204 | AJ34: 0.8925043579
A35: 2woND | B35: =VLOOKUP($AA35,DATA!$B$3:$E35,2,0) -> 22:30:00 | C35: =VLOOKUP($AA35,DATA!$B$3:$E35,3,0) -> 06:30:00 | D35: =VLOOKUP($AA35,DATA!$B$3:$E35,4,0) -> 0.03125 | E35: 0.3020833333 | F35: 0.3020833333 | G35: =DATA!$C$9 -> 0.89 | H35: =DATA!$C$10 -> 64 | I35: 1 | J35: 407.8125 | K35: 407.8125 | L35: 0 | O35: 0 | R35: 0 | X35: =X37 -> 2 | Z35: =TEXT(Y33,"ddd") -> wo | AA35: ND | AB35: =IFERROR(HLOOKUP(Y33,[1]DATA!$A$1:$NB$5,5,0),"") -> D1 | AG35: 0
A36: 2doDD | B36: =VLOOKUP($AA36,DATA!$B$3:$E36,2,0) -> 06:30:00 | C36: =VLOOKUP($AA36,DATA!$B$3:$E36,3,0) -> 14:30:00 | D36: =VLOOKUP($AA36,DATA!$B$3:$E36,4,0) -> 0.03125 | E36: 0.3020833333 | F36: 0.2381944444 | G36: =DATA!$C$9 -> 0.89 | H36: =DATA!$C$10 -> 64 | I36: 1 | J36: 321.5625 | K36: 407.8125 | L36: 0.06388888889 | M36: 86.25 | N36: 0.2114942529 | O36: 0 | R36: 411.7333333 | S36: 351 | V36: 351 | X36: =X37 -> 2 | Y36: =Y33+1 -> 2018-01-11 | Z36: =TEXT(Y36,"ddd") -> do | AA36: DD | AB36: =IFERROR(HLOOKUP(Y36,[1]DATA!$A$1:$NB$5,3,0),"") -> D3 | AC36: 92 | AE36: 35 | AF36: 386 | AG36: 5 | AH36: 1.3125 | AI36: 0.8051612903 | AJ36: 0.9880019197
A37: 2doMD | B37: =VLOOKUP($AA37,DATA!$B$3:$E37,2,0) -> 14:30:00 | C37: =VLOOKUP($AA37,DATA!$B$3:$E37,3,0) -> 22:30:00 | D37: =VLOOKUP($AA37,DATA!$B$3:$E37,4,0) -> 0.03125 | E37: 0.3020833333 | F37: 0.2673611111 | G37: =DATA!$C$9 -> 0.89 | H37: =DATA!$C$10 -> 64 | I37: 1 | J37: 360.9375 | K37: 407.8125 | L37: 0.03472222222 | M37: 46.875 | N37: 0.1149425287 | O37: 0 | R37: 381.8666667 | S37: 336 | U37: 336 | X37: =WEEKNUM($Y27) -> 2 | Z37: =TEXT(Y36,"ddd") -> do | AA37: MD | AB37: =IFERROR(HLOOKUP(Y36,[1]DATA!$A$1:$NB$5,4,0),"") -> D2 | AC37: 50 | AE37: 22 | AF37: 358 | AG37: 60 | AH37: -53.0625 | AI37: 0.7707526882 | AJ37: 0.8642124321
A38: 2doND | B38: =VLOOKUP($AA38,DATA!$B$3:$E38,2,0) -> 22:30:00 | C38: =VLOOKUP($AA38,DATA!$B$3:$E38,3,0) -> 06:30:00 | D38: =VLOOKUP($AA38,DATA!$B$3:$E38,4,0) -> 0.03125 | E38: 0.3020833333 | F38: 0.3020833333 | G38: =DATA!$C$9 -> 0.89 | H38: =DATA!$C$10 -> 64 | I38: 1 | J38: 407.8125 | K38: 407.8125 | L38: 0 | O38: 0 | R38: 0 | X38: =X37 -> 2 | Z38: =TEXT(Y36,"ddd") -> do | AA38: ND | AB38: =IFERROR(HLOOKUP(Y36,[1]DATA!$A$1:$NB$5,5,0),"") -> D1 | AG38: 0
A39: 2vrDD | B39: =VLOOKUP($AA39,DATA!$B$3:$E39,2,0) -> 06:30:00 | C39: =VLOOKUP($AA39,DATA!$B$3:$E39,3,0) -> 14:30:00 | D39: =VLOOKUP($AA39,DATA!$B$3:$E39,4,0) -> 0.03125 | E39: 0.3020833333 | F39: 0.2097222222 | G39: =DATA!$C$9 -> 0.89 | H39: =DATA!$C$10 -> 64 | I39: 1 | J39: 283.125 | K39: 407.8125 | L39: 0.09236111111 | M39: 124.6875 | N39: 0.3057471264 | O39: 0 | R39: 380.8 | S39: 324 | V39: 324 | X39: =X37 -> 2 | Y39: =Y36+1 -> 2018-01-12 | Z39: =TEXT(Y39,"ddd") -> vr | AA39: DD | AB39: =IFERROR(HLOOKUP(Y39,[1]DATA!$A$1:$NB$5,3,0),"") -> D3 | AC39: 133 | AE39: 33 | AF39: 357 | AG39: 4 | AH39: 12.75 | AI39: 0.7432258065 | AJ39: 0.9896049896
A40: 2vrMD | B40: =VLOOKUP($AA40,DATA!$B$3:$E40,2,0) -> 14:30:00 | C40: =VLOOKUP($AA40,DATA!$B$3:$E40,3,0) -> 22:30:00 | D40: =VLOOKUP($AA40,DATA!$B$3:$E40,4,0) -> 0.03125 | E40: 0.3020833333 | F40: 0.2479166667 | G40: =DATA!$C$9 -> 0.89 | H40: =DATA!$C$10 -> 64 | I40: 1 | J40: 334.6875 | K40: 407.8125 | L40: 0.05416666667 | M40: 73.125 | N40: 0.1793103448 | O40: 0 | R40: 357.3333333 | S40: 317 | U40: 317 | X40: =X37 -> 2 | Z40: =TEXT(Y39,"ddd") -> vr | AA40: MD | AB40: =IFERROR(HLOOKUP(Y39,[1]DATA!$A$1:$NB$5,4,0),"") -> D2 | AC40: 78 | AE40: 18 | AF40: 335 | AG40: 28 | AH40: -45.8125 | AI40: 0.7271684588 | AJ40: 0.9273356401
A41: 2vrND | B41: =VLOOKUP($AA41,DATA!$B$3:$E41,2,0) -> 22:30:00 | C41: =VLOOKUP($AA41,DATA!$B$3:$E41,3,0) -> 06:30:00 | D41: =VLOOKUP($AA41,DATA!$B$3:$E41,4,0) -> 0.03125 | E41: 0.3020833333 | F41: 0.3020833333 | G41: =DATA!$C$9 -> 0.89 | H41: =DATA!$C$10 -> 64 | I41: 1 | J41: 407.8125 | K41: 407.8125 | L41: 0 | O41: 0 | R41: 0 | X41: =X37 -> 2 | Z41: =TEXT(Y39,"ddd") -> vr | AA41: ND | AB41: =IFERROR(HLOOKUP(Y39,[1]DATA!$A$1:$NB$5,5,0),"") -> - | AG41: 0
A42: 2zaDD | B42: =VLOOKUP($AA42,DATA!$B$3:$E42,2,0) -> 06:30:00 | C42: =VLOOKUP($AA42,DATA!$B$3:$E42,3,0) -> 14:30:00 | D42: =VLOOKUP($AA42,DATA!$B$3:$E42,4,0) -> 0.03125 | E42: 0.3020833333 | F42: 0.3020833333 | G42: =DATA!$C$9 -> 0.89 | H42: =DATA!$C$10 -> 64 | I42: 1 | J42: 407.8125 | K42: 407.8125 | L42: 0 | O42: 0 | R42: 0 | X42: =X37 -> 2 | Y42: =Y39+1 -> 2018-01-13 | Z42: =TEXT(Y42,"ddd") -> za | AA42: DD | AB42: =IFERROR(HLOOKUP(Y42,[1]DATA!$A$1:$NB$5,3,0),"") -> - | AG42: 0
A43: 2zaMD | B43: =VLOOKUP($AA43,DATA!$B$3:$E43,2,0) -> 14:30:00 | C43: =VLOOKUP($AA43,DATA!$B$3:$E43,3,0) -> 22:30:00 | D43: =VLOOKUP($AA43,DATA!$B$3:$E43,4,0) -> 0.03125 | E43: 0.3020833333 | F43: 0.3020833333 | G43: =DATA!$C$9 -> 0.89 | H43: =DATA!$C$10 -> 64 | I43: 1 | J43: 407.8125 | K43: 407.8125 | L43: 0 | O43: 0 | R43: 0 | X43: =X37 -> 2 | Z43: =TEXT(Y42,"ddd") -> za | AA43: MD | AB43: =IFERROR(HLOOKUP(Y42,[1]DATA!$A$1:$NB$5,4,0),"") -> - | AG43: 0
A44: 2zaND | B44: =VLOOKUP($AA44,DATA!$B$3:$E44,2,0) -> 22:30:00 | C44: =VLOOKUP($AA44,DATA!$B$3:$E44,3,0) -> 06:30:00 | D44: =VLOOKUP($AA44,DATA!$B$3:$E44,4,0) -> 0.03125 | E44: 0.3020833333 | F44: 0.3020833333 | G44: =DATA!$C$9 -> 0.89 | H44: =DATA!$C$10 -> 64 | I44: 1 | J44: 407.8125 | K44: 407.8125 | L44: 0 | O44: 0 | R44: 0 | X44: =X37 -> 2 | Z44: =TEXT(Y42,"ddd") -> za | AA44: ND | AB44: =IFERROR(HLOOKUP(Y42,[1]DATA!$A$1:$NB$5,5,0),"") -> - | AG44: 0
A45: 2zoDD | B45: =VLOOKUP($AA45,DATA!$B$3:$E45,2,0) -> 06:30:00 | C45: =VLOOKUP($AA45,DATA!$B$3:$E45,3,0) -> 14:30:00 | D45: =VLOOKUP($AA45,DATA!$B$3:$E45,4,0) -> 0.03125 | E45: 0.3020833333 | F45: 0.3020833333 | G45: =DATA!$C$9 -> 0.89 | H45: =DATA!$C$10 -> 64 | I45: 1 | J45: 407.8125 | K45: 407.8125 | L45: 0 | O45: 0 | R45: 0 | X45: =X37 -> 2 | Y45: =Y42+1 -> 2018-01-14 | Z45: =TEXT(Y45,"ddd") -> zo | AA45: DD | AB45: =IFERROR(HLOOKUP(Y45,[1]DATA!$A$1:$NB$5,3,0),"") -> - | AG45: 0
A46: 2zoMD | B46: =VLOOKUP($AA46,DATA!$B$3:$E46,2,0) -> 14:30:00 | C46: =VLOOKUP($AA46,DATA!$B$3:$E46,3,0) -> 22:30:00 | D46: =VLOOKUP($AA46,DATA!$B$3:$E46,4,0) -> 0.03125 | E46: 0.3020833333 | F46: 0.3020833333 | G46: =DATA!$C$9 -> 0.89 | H46: =DATA!$C$10 -> 64 | I46: 1 | J46: 407.8125 | K46: 407.8125 | L46: 0 | O46: 0 | R46: 0 | X46: =X37 -> 2 | Z46: =TEXT(Y45,"ddd") -> zo | AA46: MD | AB46: =IFERROR(HLOOKUP(Y45,[1]DATA!$A$1:$NB$5,4,0),"") -> - | AG46: 0
A47: 2zoZND | B47: =VLOOKUP($AA47,DATA!$B$3:$E47,2,0) -> 00:00:00 | C47: =VLOOKUP($AA47,DATA!$B$3:$E47,3,0) -> 00:00:00 | D47: =VLOOKUP($AA47,DATA!$B$3:$E47,4,0) -> 0 | E47: 0 | F47: 0 | G47: =DATA!$C$9 -> 0.89 | H47: =DATA!$C$10 -> 64 | I47: 1 | J47: 0 | K47: 0 | L47: 0 | O47: 0 | R47: 0 | X47: =X37 -> 2 | Z47: =TEXT(Y45,"ddd") -> zo | AA47: ZND | AB47: =IFERROR(HLOOKUP(Y45,[1]DATA!$A$1:$NB$5,5,0),"") -> D3 | AG47: 0
A48: =X48&Z48&AA48 -> 3maDD | B48: =VLOOKUP($AA48,DATA!$B$3:$E48,2,0) -> 06:30:00 | C48: =VLOOKUP($AA48,DATA!$B$3:$E48,3,0) -> 14:30:00 | D48: =VLOOKUP($AA48,DATA!$B$3:$E48,4,0) -> 0.03125 | E48: 0.3020833333 | F48: 0.2048611111 | G48: =DATA!$C$9 -> 0.89 | H48: =DATA!$C$10 -> 64 | I48: 1 | J48: 276.5625 | K48: 407.8125 | L48: 0.09722222222 | M48: 131.25 | N48: 0.3218390805 | O48: =TIME(INT($AD48/60),INT(MOD($AD48,60)/1),0) -> 0 | P48: =IF($O48*86400/$H48=0,"",$O48*86400/$H48) ->  | R48: 331.7333333 | S48: 280 | U48: 280 | X48: =X58 -> 3 | Y48: =Y45+1 -> 2018-01-15 | Z48: =TEXT(Y48,"ddd") -> ma | AA48: DD | AB48: =IFERROR(HLOOKUP(Y48,[1]DATA!$A$1:$NB$5,3,0),"") -> D2 | AC48: 140 | AE48: 31 | AF48: 311 | AG48: 54 | AH48: -24.6875 | AI48: 0.6422939068 | AJ48: 0.8600069132 | AK48: 4359.375 | AL48: 2892 | AM48: 0.6633978495 | AN48: 734.0625 | AO48: 0.1683870968 | AP48: 112.5 | AQ48: 0.02580645161 | AR48: 0.9082581868 | AS48: 0.9404912316 | AT48: 0.8760251421 | AV48: 620.8125 | AW48: 0.1424086022 | AX48: 662.2 | AY48: 332
A49: 3maMD | B49: =VLOOKUP($AA49,DATA!$B$3:$E49,2,0) -> 14:30:00 | C49: =VLOOKUP($AA49,DATA!$B$3:$E49,3,0) -> 22:30:00 | D49: =VLOOKUP($AA49,DATA!$B$3:$E49,4,0) -> 0.03125 | E49: 0.3020833333 | F49: 0.2069444444 | G49: =DATA!$C$9 -> 0.89 | H49: =DATA!$C$10 -> 64 | I49: 1 | J49: 279.375 | K49: 407.8125 | L49: 0.09513888889 | M49: 128.4375 | N49: 0.3149425287 | O49: =TIME(INT(AD49/60),INT(MOD(AD49,60)/1),0) -> 0 | R49: 330.6666667 | S49: 286 | T49: 286 | X49: =X58 -> 3 | Z49: =TEXT(Y48,"ddd") -> ma | AA49: MD | AB49: =IFERROR(HLOOKUP(Y48,[1]DATA!$A$1:$NB$5,4,0),"") -> D1 | AC49: 137 | AE49: 24 | AF49: 310 | AG49: 0 | AH49: -21.5 | AI49: 0.6560573477 | AJ49: 1
A50: 3maND | B50: =VLOOKUP($AA50,DATA!$B$3:$E50,2,0) -> 22:30:00 | C50: =VLOOKUP($AA50,DATA!$B$3:$E50,3,0) -> 06:30:00 | D50: =VLOOKUP($AA50,DATA!$B$3:$E50,4,0) -> 0.03125 | E50: 0.3020833333 | F50: 0.3020833333 | G50: =DATA!$C$9 -> 0.89 | H50: =DATA!$C$10 -> 64 | I50: 1 | J50: 407.8125 | K50: 407.8125 | L50: 0 | O50: 0 | R50: 0 | X50: =X58 -> 3 | Z50: =TEXT(Y48,"ddd") -> ma | AA50: ND | AB50: =IFERROR(HLOOKUP(Y48,[1]DATA!$A$1:$NB$5,5,0),"") -> D3 | AG50: 0
A51: 3diDD | B51: =VLOOKUP($AA51,DATA!$B$3:$E51,2,0) -> 06:30:00 | C51: =VLOOKUP($AA51,DATA!$B$3:$E51,3,0) -> 14:30:00 | D51: =VLOOKUP($AA51,DATA!$B$3:$E51,4,0) -> 0.03125 | E51: 0.3020833333 | F51: 0.2319444444 | G51: =DATA!$C$9 -> 0.89 | H51: =DATA!$C$10 -> 64 | I51: 1 | J51: 313.125 | K51: 407.8125 | L51: 0.07013888889 | M51: 94.6875 | N51: 0.232183908 | O51: 0 | R51: 360.5333333 | S51: 319 | U51: 319 | X51: =X58 -> 3 | Y51: =Y48+1 -> 2018-01-16 | Z51: =TEXT(Y51,"ddd") -> di | AA51: DD | AB51: =IFERROR(HLOOKUP(Y51,[1]DATA!$A$1:$NB$5,3,0),"") -> D2 | AC51: 101 | AE51: 19 | AF51: 338 | AG51: 13 | AH51: -22.25 | AI51: 0.7317562724 | AJ51: 0.9651972158
A52: 3diMD | B52: =VLOOKUP($AA52,DATA!$B$3:$E52,2,0) -> 14:30:00 | C52: =VLOOKUP($AA52,DATA!$B$3:$E52,3,0) -> 22:30:00 | D52: =VLOOKUP($AA52,DATA!$B$3:$E52,4,0) -> 0.03125 | E52: 0.3020833333 | F52: 0.2375 | G52: =DATA!$C$9 -> 0.89 | H52: =DATA!$C$10 -> 64 | I52: 1 | J52: 320.625 | K52: 407.8125 | L52: 0.06458333333 | M52: 87.1875 | N52: 0.2137931034 | O52: 0 | R52: 411.7333333 | S52: 364 | T52: 364 | X52: =X58 -> 3 | Z52: =TEXT(Y51,"ddd") -> di | AA52: MD | AB52: =IFERROR(HLOOKUP(Y51,[1]DATA!$A$1:$NB$5,4,0),"") -> D1 | AC52: 93 | AE52: 22 | AF52: 386 | AG52: 0 | AH52: 15.25 | AI52: 0.8349820789 | AJ52: 1
A53: 3diND | B53: =VLOOKUP($AA53,DATA!$B$3:$E53,2,0) -> 22:30:00 | C53: =VLOOKUP($AA53,DATA!$B$3:$E53,3,0) -> 06:30:00 | D53: =VLOOKUP($AA53,DATA!$B$3:$E53,4,0) -> 0.03125 | E53: 0.3020833333 | F53: 0.3020833333 | G53: =DATA!$C$9 -> 0.89 | H53: =DATA!$C$10 -> 64 | I53: 1 | J53: 407.8125 | K53: 407.8125 | L53: 0 | O53: 0 | R53: 0 | X53: =X58 -> 3 | Z53: =TEXT(Y51,"ddd") -> di | AA53: ND | AB53: =IFERROR(HLOOKUP(Y51,[1]DATA!$A$1:$NB$5,5,0),"") -> D3 | AG53: 0
A54: 3woDD | B54: =VLOOKUP($AA54,DATA!$B$3:$E54,2,0) -> 06:30:00 | C54: =VLOOKUP($AA54,DATA!$B$3:$E54,3,0) -> 14:30:00 | D54: =VLOOKUP($AA54,DATA!$B$3:$E54,4,0) -> 0.03125 | E54: 0.3020833333 | F54: 0.2541666667 | G54: =DATA!$C$9 -> 0.89 | H54: =DATA!$C$10 -> 64 | I54: 1 | J54: 343.125 | K54: 407.8125 | L54: 0.04791666667 | M54: 64.6875 | N54: 0.1586206897 | O54: 0 | R54: 211.2 | S54: 188 | U54: 188 | X54: =X58 -> 3 | Y54: =Y51+1 -> 2018-01-17 | Z54: =TEXT(Y54,"ddd") -> wo | AA54: DD | AB54: =IFERROR(HLOOKUP(Y54,[1]DATA!$A$1:$NB$5,3,0),"") -> D2 | AC54: 69 | AE54: 10 | AF54: 198 | AG54: 55 | AH54: -183.25 | AI54: 0.4312544803 | AJ54: 0.7933884298
A55: 3woMD | B55: =VLOOKUP($AA55,DATA!$B$3:$E55,2,0) -> 14:30:00 | C55: =VLOOKUP($AA55,DATA!$B$3:$E55,3,0) -> 22:30:00 | D55: =VLOOKUP($AA55,DATA!$B$3:$E55,4,0) -> 0.03125 | E55: 0.3020833333 | F55: 0.2513888889 | G55: =DATA!$C$9 -> 0.89 | H55: =DATA!$C$10 -> 64 | I55: 1 | J55: 339.375 | K55: 407.8125 | L55: 0.05069444444 | M55: 68.4375 | N55: 0.167816092 | O55: 0 | R55: 359.4666667 | S55: 305 | T55: 305 | X55: =X58 -> 3 | Z55: =TEXT(Y54,"ddd") -> wo | AA55: MD | AB55: =IFERROR(HLOOKUP(Y54,[1]DATA!$A$1:$NB$5,4,0),"") -> D1 | AC55: 73 | AE55: 32 | AF55: 337 | AG55: 20 | AH55: -62.5 | AI55: 0.6996415771 | AJ55: 0.9472944483
A56: 3woND | B56: =VLOOKUP($AA56,DATA!$B$3:$E56,2,0) -> 22:30:00 | C56: =VLOOKUP($AA56,DATA!$B$3:$E56,3,0) -> 06:30:00 | D56: =VLOOKUP($AA56,DATA!$B$3:$E56,4,0) -> 0.03125 | E56: 0.3020833333 | F56: 0.3020833333 | G56: =DATA!$C$9 -> 0.89 | H56: =DATA!$C$10 -> 64 | I56: 1 | J56: 407.8125 | K56: 407.8125 | L56: 0 | O56: 0 | R56: 0 | X56: =X58 -> 3 | Z56: =TEXT(Y54,"ddd") -> wo | AA56: ND | AB56: =IFERROR(HLOOKUP(Y54,[1]DATA!$A$1:$NB$5,5,0),"") -> D3 | AG56: 0
A57: 3doDD | B57: =VLOOKUP($AA57,DATA!$B$3:$E57,2,0) -> 06:30:00 | C57: =VLOOKUP($AA57,DATA!$B$3:$E57,3,0) -> 14:30:00 | D57: =VLOOKUP($AA57,DATA!$B$3:$E57,4,0) -> 0.03125 | E57: 0.3020833333 | F57: 0.1736111111 | G57: =DATA!$C$9 -> 0.89 | H57: =DATA!$C$10 -> 64 | I57: 1 | J57: 234.375 | K57: 407.8125 | L57: 0.04513888889 | M57: 60.9375 | N57: 0.1494252874 | O57: 0.08333333333 | P57: 112.5 | Q57: 0.275862069 | R57: 246.4 | S57: 219 | U57: 219 | X57: =X58 -> 3 | Y57: =Y54+1 -> 2018-01-18 | Z57: =TEXT(Y57,"ddd") -> do | AA57: DD | AB57: =IFERROR(HLOOKUP(Y57,[1]DATA!$A$1:$NB$5,3,0),"") -> D2 | AC57: 65 | AD57: 120 | AE57: 12 | AF57: 231 | AG57: 33 | AH57: -43.5 | AI57: 0.5023655914 | AJ57: 0.8818897638
A58: 3doMD | B58: =VLOOKUP($AA58,DATA!$B$3:$E58,2,0) -> 14:30:00 | C58: =VLOOKUP($AA58,DATA!$B$3:$E58,3,0) -> 22:30:00 | D58: =VLOOKUP($AA58,DATA!$B$3:$E58,4,0) -> 0.03125 | E58: 0.3020833333 | F58: 0.2347222222 | G58: =DATA!$C$9 -> 0.89 | H58: =DATA!$C$10 -> 64 | I58: 1 | J58: 316.875 | K58: 407.8125 | L58: 0.06736111111 | M58: 90.9375 | N58: 0.2229885057 | O58: 0 | R58: 350.9333333 | S58: 299 | T58: 299 | X58: =WEEKNUM($Y48) -> 3 | Z58: =TEXT(Y57,"ddd") -> do | AA58: MD | AB58: =IFERROR(HLOOKUP(Y57,[1]DATA!$A$1:$NB$5,4,0),"") -> D1 | AC58: 97 | AE58: 30 | AF58: 329 | AG58: 28 | AH58: -46 | AI58: 0.6858781362 | AJ58: 0.9261083744
A59: 3doND | B59: =VLOOKUP($AA59,DATA!$B$3:$E59,2,0) -> 22:30:00 | C59: =VLOOKUP($AA59,DATA!$B$3:$E59,3,0) -> 06:30:00 | D59: =VLOOKUP($AA59,DATA!$B$3:$E59,4,0) -> 0.03125 | E59: 0.3020833333 | F59: 0.3020833333 | G59: =DATA!$C$9 -> 0.89 | H59: =DATA!$C$10 -> 64 | I59: 1 | J59: 407.8125 | K59: 407.8125 | L59: 0 | O59: 0 | R59: 0 | X59: =X58 -> 3 | Z59: =TEXT(Y57,"ddd") -> do | AA59: ND | AB59: =IFERROR(HLOOKUP(Y57,[1]DATA!$A$1:$NB$5,5,0),"") -> D3 | AG59: 0
A60: 3vrDD | B60: =VLOOKUP($AA60,DATA!$B$3:$E60,2,0) -> 06:30:00 | C60: =VLOOKUP($AA60,DATA!$B$3:$E60,3,0) -> 14:30:00 | D60: =VLOOKUP($AA60,DATA!$B$3:$E60,4,0) -> 0.03125 | E60: 0.3020833333 | F60: 0.3020833333 | G60: =DATA!$C$9 -> 0.89 | H60: =DATA!$C$10 -> 64 | I60: 1 | J60: 407.8125 | K60: 407.8125 | L60: 0 | O60: 0 | R60: 394.6666667 | S60: 335 | U60: 335 | X60: =X58 -> 3 | Y60: =Y57+1 -> 2018-01-19 | Z60: =TEXT(Y60,"ddd") -> vr | AA60: DD | AB60: =IFERROR(HLOOKUP(Y60,[1]DATA!$A$1:$NB$5,3,0),"") -> D2 | AC60: 0 | AE60: 35 | AF60: 370 | AG60: 54 | AH60: -100.9375 | AI60: 0.7684587814 | AJ60: 0.8796433878
A61: 3vrMD | B61: =VLOOKUP($AA61,DATA!$B$3:$E61,2,0) -> 14:30:00 | C61: =VLOOKUP($AA61,DATA!$B$3:$E61,3,0) -> 22:30:00 | D61: =VLOOKUP($AA61,DATA!$B$3:$E61,4,0) -> 0.03125 | E61: 0.3020833333 | F61: 0.2965277778 | G61: =DATA!$C$9 -> 0.89 | H61: =DATA!$C$10 -> 64 | I61: 1 | J61: 400.3125 | K61: 407.8125 | L61: 0.005555555556 | M61: 7.5 | N61: 0.0183908046 | O61: 0 | R61: 363.7333333 | S61: 297 | T61: 297 | X61: =X58 -> 3 | Z61: =TEXT(Y60,"ddd") -> vr | AA61: MD | AB61: =IFERROR(HLOOKUP(Y60,[1]DATA!$A$1:$NB$5,4,0),"") -> D1 | AC61: 8 | AE61: 44 | AF61: 341 | AG61: 75 | AH61: -131.4375 | AI61: 0.6812903226 | AJ61: 0.8290533354
A62: 3vrND | B62: =VLOOKUP($AA62,DATA!$B$3:$E62,2,0) -> 22:30:00 | C62: =VLOOKUP($AA62,DATA!$B$3:$E62,3,0) -> 06:30:00 | D62: =VLOOKUP($AA62,DATA!$B$3:$E62,4,0) -> 0.03125 | E62: 0.3020833333 | F62: 0.3020833333 | G62: =DATA!$C$9 -> 0.89 | H62: =DATA!$C$10 -> 64 | I62: 1 | J62: 407.8125 | K62: 407.8125 | L62: 0 | O62: 0 | R62: 0 | X62: =X58 -> 3 | Z62: =TEXT(Y60,"ddd") -> vr | AA62: ND | AB62: =IFERROR(HLOOKUP(Y60,[1]DATA!$A$1:$NB$5,5,0),"") -> - | AG62: 0
A63: 3zaDD | B63: =VLOOKUP($AA63,DATA!$B$3:$E63,2,0) -> 06:30:00 | C63: =VLOOKUP($AA63,DATA!$B$3:$E63,3,0) -> 14:30:00 | D63: =VLOOKUP($AA63,DATA!$B$3:$E63,4,0) -> 0.03125 | E63: 0.3020833333 | F63: 0.3020833333 | G63: =DATA!$C$9 -> 0.89 | H63: =DATA!$C$10 -> 64 | I63: 1 | J63: 407.8125 | K63: 407.8125 | L63: 0 | O63: 0 | R63: 0 | X63: =X58 -> 3 | Y63: =Y60+1 -> 2018-01-20 | Z63: =TEXT(Y63,"ddd") -> za | AA63: DD | AB63: =IFERROR(HLOOKUP(Y63,[1]DATA!$A$1:$NB$5,3,0),"") -> - | AG63: 0
A64: 3zaMD | B64: =VLOOKUP($AA64,DATA!$B$3:$E64,2,0) -> 14:30:00 | C64: =VLOOKUP($AA64,DATA!$B$3:$E64,3,0) -> 22:30:00 | D64: =VLOOKUP($AA64,DATA!$B$3:$E64,4,0) -> 0.03125 | E64: 0.3020833333 | F64: 0.3020833333 | G64: =DATA!$C$9 -> 0.89 | H64: =DATA!$C$10 -> 64 | I64: 1 | J64: 407.8125 | K64: 407.8125 | L64: 0 | O64: 0 | R64: 0 | X64: =X58 -> 3 | Z64: =TEXT(Y63,"ddd") -> za | AA64: MD | AB64: =IFERROR(HLOOKUP(Y63,[1]DATA!$A$1:$NB$5,4,0),"") -> - | AG64: 0
A65: 3zaND | B65: =VLOOKUP($AA65,DATA!$B$3:$E65,2,0) -> 22:30:00 | C65: =VLOOKUP($AA65,DATA!$B$3:$E65,3,0) -> 06:30:00 | D65: =VLOOKUP($AA65,DATA!$B$3:$E65,4,0) -> 0.03125 | E65: 0.3020833333 | F65: 0.3020833333 | G65: =DATA!$C$9 -> 0.89 | H65: =DATA!$C$10 -> 64 | I65: 1 | J65: 407.8125 | K65: 407.8125 | L65: 0 | O65: 0 | R65: 0 | X65: =X58 -> 3 | Z65: =TEXT(Y63,"ddd") -> za | AA65: ND | AB65: =IFERROR(HLOOKUP(Y63,[1]DATA!$A$1:$NB$5,5,0),"") -> - | AG65: 0
A66: 3zoDD | B66: =VLOOKUP($AA66,DATA!$B$3:$E66,2,0) -> 06:30:00 | C66: =VLOOKUP($AA66,DATA!$B$3:$E66,3,0) -> 14:30:00 | D66: =VLOOKUP($AA66,DATA!$B$3:$E66,4,0) -> 0.03125 | E66: 0.3020833333 | F66: 0.3020833333 | G66: =DATA!$C$9 -> 0.89 | H66: =DATA!$C$10 -> 64 | I66: 1 | J66: 407.8125 | K66: 407.8125 | L66: 0 | O66: 0 | R66: 0 | X66: =X58 -> 3 | Y66: =Y63+1 -> 2018-01-21 | Z66: =TEXT(Y66,"ddd") -> zo | AA66: DD | AB66: =IFERROR(HLOOKUP(Y66,[1]DATA!$A$1:$NB$5,3,0),"") -> - | AG66: 0
A67: 3zoMD | B67: =VLOOKUP($AA67,DATA!$B$3:$E67,2,0) -> 14:30:00 | C67: =VLOOKUP($AA67,DATA!$B$3:$E67,3,0) -> 22:30:00 | D67: =VLOOKUP($AA67,DATA!$B$3:$E67,4,0) -> 0.03125 | E67: 0.3020833333 | F67: 0.3020833333 | G67: =DATA!$C$9 -> 0.89 | H67: =DATA!$C$10 -> 64 | I67: 1 | J67: 407.8125 | K67: 407.8125 | L67: 0 | O67: 0 | R67: 0 | X67: =X58 -> 3 | Z67: =TEXT(Y66,"ddd") -> zo | AA67: MD | AB67: =IFERROR(HLOOKUP(Y66,[1]DATA!$A$1:$NB$5,4,0),"") -> - | AG67: 0
A68: 3zoZND | B68: =VLOOKUP($AA68,DATA!$B$3:$E68,2,0) -> 00:00:00 | C68: =VLOOKUP($AA68,DATA!$B$3:$E68,3,0) -> 00:00:00 | D68: =VLOOKUP($AA68,DATA!$B$3:$E68,4,0) -> 0 | E68: 0 | F68: 0 | G68: =DATA!$C$9 -> 0.89 | H68: =DATA!$C$10 -> 64 | I68: 1 | J68: 0 | K68: 0 | L68: 0 | O68: 0 | R68: 0 | X68: =X58 -> 3 | Z68: =TEXT(Y66,"ddd") -> zo | AA68: ZND | AB68: =IFERROR(HLOOKUP(Y66,[1]DATA!$A$1:$NB$5,5,0),"") -> D2 | AG68: 0
A69: 4maDD | B69: =VLOOKUP($AA69,DATA!$B$3:$E69,2,0) -> 06:30:00 | C69: =VLOOKUP($AA69,DATA!$B$3:$E69,3,0) -> 14:30:00 | D69: =VLOOKUP($AA69,DATA!$B$3:$E69,4,0) -> 0.03125 | E69: 0.3020833333 | F69: 0.2513888889 | G69: =DATA!$C$9 -> 0.89 | H69: =DATA!$C$10 -> 64 | I69: 1 | J69: 339.375 | K69: 407.8125 | L69: 0.05069444444 | M69: 68.4375 | N69: 0.167816092 | O69: =TIME(INT($AD69/60),INT(MOD($AD69,60)/1),0) -> 0 | R69: 397.8666667 | S69: 330 | T69: 330 | X69: =X79 -> 4 | Y69: =Y66+1 -> 2018-01-22 | Z69: =TEXT(Y69,"ddd") -> ma | AA69: DD | AB69: =IFERROR(HLOOKUP(Y69,[1]DATA!$A$1:$NB$5,3,0),"") -> D1 | AC69: 73 | AE69: 43 | AF69: 373 | AG69: 39 | AH69: -37.5 | AI69: 0.7569892473 | AJ69: 0.9107279109 | AK69: 4359.375 | AL69: 3127 | AM69: 0.7173046595 | AN69: 624.375 | AO69: 0.1432258065 | AP69: 0 | AQ69: 0 | AR69: 0.9080038088 | AS69: 0.9082609207 | AU69: 0.9077466969 | AV69: 608 | AW69: 0.1394695341 | AX69: 648.5333333 | AY69: 384
A70: 4maMD | B70: =VLOOKUP($AA70,DATA!$B$3:$E70,2,0) -> 14:30:00 | C70: =VLOOKUP($AA70,DATA!$B$3:$E70,3,0) -> 22:30:00 | D70: =VLOOKUP($AA70,DATA!$B$3:$E70,4,0) -> 0.03125 | E70: 0.3020833333 | F70: 0.2965277778 | G70: =DATA!$C$9 -> 0.89 | H70: =DATA!$C$10 -> 64 | I70: 1 | J70: =F70*86400/H70*I70 -> 400.3125 | K70: =E70*86400/H70 -> 407.8125 | L70: 0.005555555556 | M70: 7.5 | N70: 0.0183908046 | O70: =TIME(INT(AD70/60),INT(MOD(AD70,60)/1),0) -> 0 | R70: =AF70*AG$2 -> 385.0666667 | S70: =IF(AF70-AE70=0,"",AF70-AE70) -> 336 | V70: 336 | X70: =X79 -> 4 | Z70: =TEXT(Y69,"ddd") -> ma | AA70: MD | AB70: =IFERROR(HLOOKUP(Y69,[1]DATA!$A$1:$NB$5,4,0),"") -> D3 | AC70: 8 | AE70: 25 | AF70: 361 | AG70: 41 | AH70: -92.4375 | AI70: 0.7707526882 | AJ70: 0.9037709279
A71: 4maND | B71: =VLOOKUP($AA71,DATA!$B$3:$E71,2,0) -> 22:30:00 | C71: =VLOOKUP($AA71,DATA!$B$3:$E71,3,0) -> 06:30:00 | D71: =VLOOKUP($AA71,DATA!$B$3:$E71,4,0) -> 0.03125 | E71: 0.3020833333 | F71: 0.3020833333 | G71: =DATA!$C$9 -> 0.89 | H71: =DATA!$C$10 -> 64 | I71: 1 | J71: 407.8125 | K71: 407.8125 | L71: =TIME(INT($AC71/60),INT(MOD($AC71,60)/1),0) -> 0 | M71: =IF($L71*86400/$H71=0,"",$L71*86400/$H71) ->  | N71: =IFERROR($M71/$K71,"") ->  | O71: 0 | Q71: =IFERROR($P71/$K71,"") ->  | R71: 0 | T71: =IF(IF($AB71="D1",$S71,"")=0,"",IF($AB71="D1",$S71,"")) ->  | U71: =IF(IF($AB71="D2",$S71,"")=0,"",IF($AB71="D2",$S71,"")) ->  | V71: =IF(IF($AB71="D3",$S71,"")=0,"",IF($AB71="D3",$S71,"")) ->  | X71: =X79 -> 4 | Z71: =TEXT(Y69,"ddd") -> ma | AA71: ND | AB71: =IFERROR(HLOOKUP(Y69,[1]DATA!$A$1:$NB$5,5,0),"") -> D2 | AG71: 0
A72: 4diDD | B72: =VLOOKUP($AA72,DATA!$B$3:$E72,2,0) -> 06:30:00 | C72: =VLOOKUP($AA72,DATA!$B$3:$E72,3,0) -> 14:30:00 | D72: =VLOOKUP($AA72,DATA!$B$3:$E72,4,0) -> 0.03125 | E72: 0.3020833333 | F72: 0.2194444444 | G72: =DATA!$C$9 -> 0.89 | H72: =DATA!$C$10 -> 64 | I72: 1 | J72: 296.25 | K72: 407.8125 | L72: 0.08263888889 | M72: 111.5625 | N72: 0.2735632184 | O72: 0 | R72: 368 | S72: 333 | T72: 333 | X72: =X79 -> 4 | Y72: =Y69+1 -> 2018-01-23 | Z72: =TEXT(Y72,"ddd") -> di | AA72: DD | AB72: =IFERROR(HLOOKUP(Y72,[1]DATA!$A$1:$NB$5,3,0),"") -> D1 | AC72: 119 | AE72: 12 | AF72: 345 | AG72: 15 | AH72: 8.625 | AI72: 0.7638709677 | AJ72: 0.9608355091
A73: 4diMD | B73: =VLOOKUP($AA73,DATA!$B$3:$E73,2,0) -> 14:30:00 | C73: =VLOOKUP($AA73,DATA!$B$3:$E73,3,0) -> 22:30:00 | D73: =VLOOKUP($AA73,DATA!$B$3:$E73,4,0) -> 0.03125 | E73: 0.3020833333 | F73: 0.1888888889 | G73: =DATA!$C$9 -> 0.89 | H73: =DATA!$C$10 -> 64 | I73: 1 | J73: 255 | K73: 407.8125 | L73: 0.1131944444 | M73: 152.8125 | N73: 0.3747126437 | O73: 0 | R73: 356.2666667 | S73: 305 | V73: 305 | X73: =X79 -> 4 | Z73: =TEXT(Y72,"ddd") -> di | AA73: MD | AB73: =IFERROR(HLOOKUP(Y72,[1]DATA!$A$1:$NB$5,4,0),"") -> D3 | AC73: 163 | AE73: 29 | AF73: 334 | AG73: 55 | AH73: 21.875 | AI73: 0.6996415771 | AJ73: 0.866266818
A74: 4diND | B74: =VLOOKUP($AA74,DATA!$B$3:$E74,2,0) -> 22:30:00 | C74: =VLOOKUP($AA74,DATA!$B$3:$E74,3,0) -> 06:30:00 | D74: =VLOOKUP($AA74,DATA!$B$3:$E74,4,0) -> 0.03125 | E74: 0.3020833333 | F74: 0.3020833333 | G74: =DATA!$C$9 -> 0.89 | H74: =DATA!$C$10 -> 64 | I74: 1 | J74: 407.8125 | K74: 407.8125 | L74: 0 | O74: 0 | R74: 0 | X74: =X79 -> 4 | Z74: =TEXT(Y72,"ddd") -> di | AA74: ND | AB74: =IFERROR(HLOOKUP(Y72,[1]DATA!$A$1:$NB$5,5,0),"") -> D2 | AG74: 0
A75: 4woDD | B75: =VLOOKUP($AA75,DATA!$B$3:$E75,2,0) -> 06:30:00 | C75: =VLOOKUP($AA75,DATA!$B$3:$E75,3,0) -> 14:30:00 | D75: =VLOOKUP($AA75,DATA!$B$3:$E75,4,0) -> 0.03125 | E75: 0.3020833333 | F75: 0.2444444444 | G75: =DATA!$C$9 -> 0.89 | H75: =DATA!$C$10 -> 64 | I75: 1 | J75: 330 | K75: 407.8125 | L75: 0.05763888889 | M75: 77.8125 | N75: 0.1908045977 | O75: 0 | R75: 332.8 | S75: 279 | T75: 279 | X75: =X79 -> 4 | Y75: =Y72+1 -> 2018-01-24 | Z75: =TEXT(Y75,"ddd") -> wo | AA75: DD | AB75: =IFERROR(HLOOKUP(Y75,[1]DATA!$A$1:$NB$5,3,0),"") -> D1 | AC75: 83 | AE75: 33 | AF75: 312 | AG75: 110 | AH75: -79.125 | AI75: 0.64 | AJ75: 0.7515808491
A76: 4woMD | B76: =VLOOKUP($AA76,DATA!$B$3:$E76,2,0) -> 14:30:00 | C76: =VLOOKUP($AA76,DATA!$B$3:$E76,3,0) -> 22:30:00 | D76: =VLOOKUP($AA76,DATA!$B$3:$E76,4,0) -> 0.03125 | E76: 0.3020833333 | F76: 0.2631944444 | G76: =DATA!$C$9 -> 0.89 | H76: =DATA!$C$10 -> 64 | I76: 1 | J76: 355.3125 | K76: 407.8125 | L76: 0.03888888889 | M76: 52.5 | N76: 0.1287356322 | O76: 0 | R76: 421.3333333 | S76: 365 | V76: 365 | X76: =X79 -> 4 | Z76: =TEXT(Y75,"ddd") -> wo | AA76: MD | AB76: =IFERROR(HLOOKUP(Y75,[1]DATA!$A$1:$NB$5,4,0),"") -> D3 | AC76: 56 | AE76: 30 | AF76: 395 | AG76: 19 | AH76: -18.4375 | AI76: 0.8372759857 | AJ76: 0.9568508706
A77: 4woND | B77: =VLOOKUP($AA77,DATA!$B$3:$E77,2,0) -> 22:30:00 | C77: =VLOOKUP($AA77,DATA!$B$3:$E77,3,0) -> 06:30:00 | D77: =VLOOKUP($AA77,DATA!$B$3:$E77,4,0) -> 0.03125 | E77: 0.3020833333 | F77: 0.3020833333 | G77: =DATA!$C$9 -> 0.89 | H77: =DATA!$C$10 -> 64 | I77: 1 | J77: 407.8125 | K77: 407.8125 | L77: 0 | O77: 0 | R77: 0 | X77: =X79 -> 4 | Z77: =TEXT(Y75,"ddd") -> wo | AA77: ND | AB77: =IFERROR(HLOOKUP(Y75,[1]DATA!$A$1:$NB$5,5,0),"") -> D2 | AG77: 0
A78: 4doDD | B78: =VLOOKUP($AA78,DATA!$B$3:$E78,2,0) -> 06:30:00 | C78: =VLOOKUP($AA78,DATA!$B$3:$E78,3,0) -> 14:30:00 | D78: =VLOOKUP($AA78,DATA!$B$3:$E78,4,0) -> 0.03125 | E78: 0.3020833333 | F78: 0.2291666667 | G78: =DATA!$C$9 -> 0.89 | H78: =DATA!$C$10 -> 64 | I78: 1 | J78: 309.375 | K78: 407.8125 | L78: 0.07291666667 | M78: 98.4375 | N78: 0.2413793103 | O78: 0 | R78: 257.0666667 | S78: 221 | T78: 221 | X78: =X79 -> 4 | Y78: =Y75+1 -> 2018-01-25 | Z78: =TEXT(Y78,"ddd") -> do | AA78: DD | AB78: =IFERROR(HLOOKUP(Y78,[1]DATA!$A$1:$NB$5,3,0),"") -> D1 | AC78: 105 | AE78: 20 | AF78: 241 | AG78: 9 | AH78: -116.5 | AI78: 0.506953405 | AJ78: 0.9661738913
A79: 4doMD | B79: =VLOOKUP($AA79,DATA!$B$3:$E79,2,0) -> 14:30:00 | C79: =VLOOKUP($AA79,DATA!$B$3:$E79,3,0) -> 22:30:00 | D79: =VLOOKUP($AA79,DATA!$B$3:$E79,4,0) -> 0.03125 | E79: 0.3020833333 | F79: 0.2784722222 | G79: =DATA!$C$9 -> 0.89 | H79: =DATA!$C$10 -> 64 | I79: 1 | J79: 375.9375 | K79: 407.8125 | L79: 0.02361111111 | M79: 31.875 | N79: 0.07816091954 | O79: 0 | R79: 402.1333333 | S79: 345 | V79: 345 | X79: =WEEKNUM($Y69) -> 4 | Z79: =TEXT(Y78,"ddd") -> do | AA79: MD | AB79: =IFERROR(HLOOKUP(Y78,[1]DATA!$A$1:$NB$5,4,0),"") -> D3 | AC79: 34 | AE79: 32 | AF79: 377 | AG79: 19 | AH79: -59.0625 | AI79: 0.7913978495 | AJ79: 0.9548836473
A80: 4doND | B80: =VLOOKUP($AA80,DATA!$B$3:$E80,2,0) -> 22:30:00 | C80: =VLOOKUP($AA80,DATA!$B$3:$E80,3,0) -> 06:30:00 | D80: =VLOOKUP($AA80,DATA!$B$3:$E80,4,0) -> 0.03125 | E80: 0.3020833333 | F80: 0.3020833333 | G80: =DATA!$C$9 -> 0.89 | H80: =DATA!$C$10 -> 64 | I80: 1 | J80: 407.8125 | K80: 407.8125 | L80: 0 | O80: 0 | R80: 0 | X80: =X79 -> 4 | Z80: =TEXT(Y78,"ddd") -> do | AA80: ND | AB80: =IFERROR(HLOOKUP(Y78,[1]DATA!$A$1:$NB$5,5,0),"") -> D2 | AG80: 0
A81: 4vrDD | B81: =VLOOKUP($AA81,DATA!$B$3:$E81,2,0) -> 06:30:00 | C81: =VLOOKUP($AA81,DATA!$B$3:$E81,3,0) -> 14:30:00 | D81: =VLOOKUP($AA81,DATA!$B$3:$E81,4,0) -> 0.03125 | E81: 0.3020833333 | F81: 0.3 | G81: =DATA!$C$9 -> 0.89 | H81: =DATA!$C$10 -> 64 | I81: 1 | J81: 405 | K81: 407.8125 | L81: 0.002083333333 | M81: 2.8125 | N81: 0.006896551724 | O81: 0 | R81: 337.0666667 | S81: 287 | T81: 287 | X81: =X79 -> 4 | Y81: =Y78+1 -> 2018-01-26 | Z81: =TEXT(Y81,"ddd") -> vr | AA81: DD | AB81: =IFERROR(HLOOKUP(Y81,[1]DATA!$A$1:$NB$5,3,0),"") -> D1 | AC81: 3 | AE81: 29 | AF81: 316 | AG81: 17 | AH81: -146.125 | AI81: 0.6583512545 | AJ81: 0.9519864432
A82: 4vrMD | B82: =VLOOKUP($AA82,DATA!$B$3:$E82,2,0) -> 14:30:00 | C82: =VLOOKUP($AA82,DATA!$B$3:$E82,3,0) -> 22:30:00 | D82: =VLOOKUP($AA82,DATA!$B$3:$E82,4,0) -> 0.03125 | E82: 0.3020833333 | F82: 0.2868055556 | G82: =DATA!$C$9 -> 0.89 | H82: =DATA!$C$10 -> 64 | I82: 1 | J82: 387.1875 | K82: 407.8125 | L82: 0.01527777778 | M82: 20.625 | N82: 0.05057471264 | O82: 0 | R82: 359.4666667 | S82: 326 | V82: 326 | X82: =X79 -> 4 | Z82: =TEXT(Y81,"ddd") -> vr | AA82: MD | AB82: =IFERROR(HLOOKUP(Y81,[1]DATA!$A$1:$NB$5,4,0),"") -> D3 | AC82: 22 | AE82: 11 | AF82: 337 | AG82: 60 | AH82: -89.3125 | AI82: 0.7478136201 | AJ82: 0.8569612206
A83: 4vrND | B83: =VLOOKUP($AA83,DATA!$B$3:$E83,2,0) -> 22:30:00 | C83: =VLOOKUP($AA83,DATA!$B$3:$E83,3,0) -> 06:30:00 | D83: =VLOOKUP($AA83,DATA!$B$3:$E83,4,0) -> 0.03125 | E83: 0.3020833333 | F83: 0.3020833333 | G83: =DATA!$C$9 -> 0.89 | H83: =DATA!$C$10 -> 64 | I83: 1 | J83: 407.8125 | K83: 407.8125 | L83: 0 | O83: 0 | R83: 0 | X83: =X79 -> 4 | Z83: =TEXT(Y81,"ddd") -> vr | AA83: ND | AB83: =IFERROR(HLOOKUP(Y81,[1]DATA!$A$1:$NB$5,5,0),"") -> - | AG83: 0
A84: 4zaDD | B84: =VLOOKUP($AA84,DATA!$B$3:$E84,2,0) -> 06:30:00 | C84: =VLOOKUP($AA84,DATA!$B$3:$E84,3,0) -> 14:30:00 | D84: =VLOOKUP($AA84,DATA!$B$3:$E84,4,0) -> 0.03125 | E84: 0.3020833333 | F84: 0.3020833333 | G84: =DATA!$C$9 -> 0.89 | H84: =DATA!$C$10 -> 64 | I84: 1 | J84: 407.8125 | K84: 407.8125 | L84: 0 | O84: 0 | R84: 0 | X84: =X79 -> 4 | Y84: =Y81+1 -> 2018-01-27 | Z84: =TEXT(Y84,"ddd") -> za | AA84: DD | AB84: =IFERROR(HLOOKUP(Y84,[1]DATA!$A$1:$NB$5,3,0),"") -> - | AG84: 0
A85: 4zaMD | B85: =VLOOKUP($AA85,DATA!$B$3:$E85,2,0) -> 14:30:00 | C85: =VLOOKUP($AA85,DATA!$B$3:$E85,3,0) -> 22:30:00 | D85: =VLOOKUP($AA85,DATA!$B$3:$E85,4,0) -> 0.03125 | E85: 0.3020833333 | F85: 0.3020833333 | G85: =DATA!$C$9 -> 0.89 | H85: =DATA!$C$10 -> 64 | I85: 1 | J85: 407.8125 | K85: 407.8125 | L85: 0 | O85: 0 | R85: 0 | X85: =X79 -> 4 | Z85: =TEXT(Y84,"ddd") -> za | AA85: MD | AB85: =IFERROR(HLOOKUP(Y84,[1]DATA!$A$1:$NB$5,4,0),"") -> - | AG85: 0
A86: 4zaND | B86: =VLOOKUP($AA86,DATA!$B$3:$E86,2,0) -> 22:30:00 | C86: =VLOOKUP($AA86,DATA!$B$3:$E86,3,0) -> 06:30:00 | D86: =VLOOKUP($AA86,DATA!$B$3:$E86,4,0) -> 0.03125 | E86: 0.3020833333 | F86: 0.3020833333 | G86: =DATA!$C$9 -> 0.89 | H86: =DATA!$C$10 -> 64 | I86: 1 | J86: 407.8125 | K86: 407.8125 | L86: 0 | O86: 0 | R86: 0 | X86: =X79 -> 4 | Z86: =TEXT(Y84,"ddd") -> za | AA86: ND | AB86: =IFERROR(HLOOKUP(Y84,[1]DATA!$A$1:$NB$5,5,0),"") -> - | AG86: 0
A87: 4zoDD | B87: =VLOOKUP($AA87,DATA!$B$3:$E87,2,0) -> 06:30:00 | C87: =VLOOKUP($AA87,DATA!$B$3:$E87,3,0) -> 14:30:00 | D87: =VLOOKUP($AA87,DATA!$B$3:$E87,4,0) -> 0.03125 | E87: 0.3020833333 | F87: 0.3020833333 | G87: =DATA!$C$9 -> 0.89 | H87: =DATA!$C$10 -> 64 | I87: 1 | J87: 407.8125 | K87: 407.8125 | L87: 0 | O87: 0 | R87: 0 | X87: =X79 -> 4 | Y87: =Y84+1 -> 2018-01-28 | Z87: =TEXT(Y87,"ddd") -> zo | AA87: DD | AB87: =IFERROR(HLOOKUP(Y87,[1]DATA!$A$1:$NB$5,3,0),"") -> - | AG87: 0
A88: 4zoMD | B88: =VLOOKUP($AA88,DATA!$B$3:$E88,2,0) -> 14:30:00 | C88: =VLOOKUP($AA88,DATA!$B$3:$E88,3,0) -> 22:30:00 | D88: =VLOOKUP($AA88,DATA!$B$3:$E88,4,0) -> 0.03125 | E88: 0.3020833333 | F88: 0.3020833333 | G88: =DATA!$C$9 -> 0.89 | H88: =DATA!$C$10 -> 64 | I88: 1 | J88: 407.8125 | K88: 407.8125 | L88: 0 | O88: 0 | R88: 0 | X88: =X79 -> 4 | Z88: =TEXT(Y87,"ddd") -> zo | AA88: MD | AB88: =IFERROR(HLOOKUP(Y87,[1]DATA!$A$1:$NB$5,4,0),"") -> - | AG88: 0
A89: 4zoZND | B89: =VLOOKUP($AA89,DATA!$B$3:$E89,2,0) -> 00:00:00 | C89: =VLOOKUP($AA89,DATA!$B$3:$E89,3,0) -> 00:00:00 | D89: =VLOOKUP($AA89,DATA!$B$3:$E89,4,0) -> 0 | E89: 0 | F89: 0 | G89: =DATA!$C$9 -> 0.89 | H89: =DATA!$C$10 -> 64 | I89: 1 | J89: 0 | K89: 0 | L89: 0 | O89: 0 | R89: 0 | X89: =X79 -> 4 | Z89: =TEXT(Y87,"ddd") -> zo | AA89: ZND | AB89: =IFERROR(HLOOKUP(Y87,[1]DATA!$A$1:$NB$5,5,0),"") -> D1 | AG89: 0
A90: 5maDD | B90: =VLOOKUP($AA90,DATA!$B$3:$E90,2,0) -> 06:30:00 | C90: =VLOOKUP($AA90,DATA!$B$3:$E90,3,0) -> 14:30:00 | D90: =VLOOKUP($AA90,DATA!$B$3:$E90,4,0) -> 0.03125 | E90: 0.3020833333 | F90: 0.2006944444 | G90: =DATA!$C$9 -> 0.89 | H90: =DATA!$C$10 -> 64 | I90: 1 | J90: 270.9375 | K90: 407.8125 | L90: 0.1013888889 | M90: 136.875 | N90: 0.3356321839 | O90: =TIME(INT($AD90/60),INT(MOD($AD90,60)/1),0) -> 0 | R90: 312.5333333 | S90: 266 | V90: 266 | X90: =X100 -> 5 | Y90: =Y87+1 -> 2018-01-29 | Z90: =TEXT(Y90,"ddd") -> ma | AA90: DD | AB90: =IFERROR(HLOOKUP(Y90,[1]DATA!$A$1:$NB$5,3,0),"") -> D3 | AC90: 146 | AE90: 27 | AF90: 293 | AG90: 22 | AH90: -33.0625 | AI90: 0.6101792115 | AJ90: 0.9342367477 | AK90: 4359.375 | AL90: 2796 | AM90: 0.6413763441 | AN90: 1116.5625 | AO90: 0.2561290323 | AP90: 220.3125 | AQ90: 0.05053763441 | AR90: 0.9330538381 | AT90: 0.9400419517 | AU90: 0.9260657245 | AV90: 226.5 | AW90: 0.05195698925 | AX90: 241.6 | AY90: 236
A91: 5maMD | B91: =VLOOKUP($AA91,DATA!$B$3:$E91,2,0) -> 14:30:00 | C91: =VLOOKUP($AA91,DATA!$B$3:$E91,3,0) -> 22:30:00 | D91: =VLOOKUP($AA91,DATA!$B$3:$E91,4,0) -> 0.03125 | E91: 0.3020833333 | F91: 0.2083333333 | G91: =DATA!$C$9 -> 0.89 | H91: =DATA!$C$10 -> 64 | I91: 1 | J91: 281.25 | K91: 407.8125 | L91: 0.09375 | M91: 126.5625 | N91: 0.3103448276 | O91: =TIME(INT(AD91/60),INT(MOD(AD91,60)/1),0) -> 0 | R91: 365.8666667 | S91: 315 | U91: 315 | X91: =X100 -> 5 | Z91: =TEXT(Y90,"ddd") -> ma | AA91: MD | AB91: =IFERROR(HLOOKUP(Y90,[1]DATA!$A$1:$NB$5,4,0),"") -> D2 | AC91: 135 | AE91: 28 | AF91: 343 | AG91: 30 | AH91: 5.625 | AI91: 0.7225806452 | AJ91: 0.924216908
A92: 5maND | B92: =VLOOKUP($AA92,DATA!$B$3:$E92,2,0) -> 22:30:00 | C92: =VLOOKUP($AA92,DATA!$B$3:$E92,3,0) -> 06:30:00 | D92: =VLOOKUP($AA92,DATA!$B$3:$E92,4,0) -> 0.03125 | E92: =(C92-B92+(B92>C92))-D92 -> 0.3020833333 | F92: =E92-O92-L92 -> 0.3020833333 | G92: =DATA!$C$9 -> 0.89 | H92: =DATA!$C$10 -> 64 | I92: 1 | J92: 407.8125 | K92: 407.8125 | L92: 0 | O92: 0 | R92: 0 | X92: =X100 -> 5 | Z92: =TEXT(Y90,"ddd") -> ma | AA92: ND | AB92: =IFERROR(HLOOKUP(Y90,[1]DATA!$A$1:$NB$5,5,0),"") -> D1 | AG92: 0
A93: 5diDD | B93: =VLOOKUP($AA93,DATA!$B$3:$E93,2,0) -> 06:30:00 | C93: =VLOOKUP($AA93,DATA!$B$3:$E93,3,0) -> 14:30:00 | D93: =VLOOKUP($AA93,DATA!$B$3:$E93,4,0) -> 0.03125 | E93: 0.3020833333 | F93: 0.21875 | G93: =DATA!$C$9 -> 0.89 | H93: =DATA!$C$10 -> 64 | I93: 1 | J93: 295.3125 | K93: 407.8125 | L93: 0.08333333333 | M93: 112.5 | N93: 0.275862069 | O93: 0 | R93: 382.9333333 | S93: 330 | V93: 330 | X93: =X100 -> 5 | Y93: =Y90+1 -> 2018-01-30 | Z93: =TEXT(Y93,"ddd") -> di | AA93: DD | AB93: =IFERROR(HLOOKUP(Y93,[1]DATA!$A$1:$NB$5,3,0),"") -> D3 | AC93: 120 | AE93: 29 | AF93: 359 | AG93: 11 | AH93: 6.5625 | AI93: 0.7569892473 | AJ93: 0.9720764935
A94: 5diMD | B94: =VLOOKUP($AA94,DATA!$B$3:$E94,2,0) -> 14:30:00 | C94: =VLOOKUP($AA94,DATA!$B$3:$E94,3,0) -> 22:30:00 | D94: =VLOOKUP($AA94,DATA!$B$3:$E94,4,0) -> 0.03125 | E94: 0.3020833333 | F94: 0.2326388889 | G94: =DATA!$C$9 -> 0.89 | H94: =DATA!$C$10 -> 64 | I94: 1 | J94: 314.0625 | K94: 407.8125 | L94: 0.06944444444 | M94: 93.75 | N94: 0.2298850575 | O94: 0 | R94: 368 | S94: 323 | U94: 323 | X94: =X100 -> 5 | Z94: =TEXT(Y93,"ddd") -> di | AA94: MD | AB94: =IFERROR(HLOOKUP(Y93,[1]DATA!$A$1:$NB$5,4,0),"") -> D2 | AC94: 100 | AE94: 22 | AF94: 345 | AG94: 38 | AH94: -19.1875 | AI94: 0.7409318996 | AJ94: 0.9064039409
A95: 5diND | B95: =VLOOKUP($AA95,DATA!$B$3:$E95,2,0) -> 22:30:00 | C95: =VLOOKUP($AA95,DATA!$B$3:$E95,3,0) -> 06:30:00 | D95: =VLOOKUP($AA95,DATA!$B$3:$E95,4,0) -> 0.03125 | E95: 0.3020833333 | F95: 0.3020833333 | G95: =DATA!$C$9 -> 0.89 | H95: =DATA!$C$10 -> 64 | I95: 1 | J95: 407.8125 | K95: 407.8125 | L95: 0 | O95: 0 | R95: 0 | X95: =X100 -> 5 | Z95: =TEXT(Y93,"ddd") -> di | AA95: ND | AB95: =IFERROR(HLOOKUP(Y93,[1]DATA!$A$1:$NB$5,5,0),"") -> D1 | AG95: 0
A96: 5woDD | B96: =VLOOKUP($AA96,DATA!$B$3:$E96,2,0) -> 06:30:00 | C96: =VLOOKUP($AA96,DATA!$B$3:$E96,3,0) -> 14:30:00 | D96: =VLOOKUP($AA96,DATA!$B$3:$E96,4,0) -> 0.03125 | E96: 0.3020833333 | F96: 0.1590277778 | G96: =DATA!$C$9 -> 0.89 | H96: =DATA!$C$10 -> 64 | I96: 1 | J96: 214.6875 | K96: 407.8125 | L96: 0.09097222222 | M96: 122.8125 | N96: 0.3011494253 | O96: 0.05208333333 | P96: 70.3125 | Q96: 0.1724137931 | R96: 231.4666667 | S96: 212 | V96: 212 | X96: =X100 -> 5 | Y96: =Y93+1 -> 2018-01-31 | Z96: =TEXT(Y96,"ddd") -> wo | AA96: DD | AB96: =IFERROR(HLOOKUP(Y96,[1]DATA!$A$1:$NB$5,3,0),"") -> D3 | AC96: 131 | AD96: 75 | AE96: 5 | AF96: 217 | AG96: 15 | AH96: -30.8125 | AI96: 0.4863082437 | AJ96: 0.9391398431
A97: 5woMD | B97: =VLOOKUP($AA97,DATA!$B$3:$E97,2,0) -> 14:30:00 | C97: =VLOOKUP($AA97,DATA!$B$3:$E97,3,0) -> 22:30:00 | D97: =VLOOKUP($AA97,DATA!$B$3:$E97,4,0) -> 0.03125 | E97: 0.3020833333 | F97: 0.1430555556 | G97: =DATA!$C$9 -> 0.89 | H97: =DATA!$C$10 -> 64 | I97: 1 | J97: 193.125 | K97: 407.8125 | L97: 0.04791666667 | M97: 64.6875 | N97: 0.1586206897 | O97: 0.1111111111 | P97: 150 | Q97: 0.367816092 | R97: 261.3333333 | S97: 220 | U97: 220 | X97: =X100 -> 5 | Z97: =TEXT(Y96,"ddd") -> wo | AA97: MD | AB97: =IFERROR(HLOOKUP(Y96,[1]DATA!$A$1:$NB$5,4,0),"") -> D2 | AC97: 69 | AD97: 160 | AE97: 25 | AF97: 245 | AG97: 10 | AH97: -1.25 | AI97: 0.5046594982 | AJ97: 0.9631449631
A98: 5woND | B98: =VLOOKUP($AA98,DATA!$B$3:$E98,2,0) -> 22:30:00 | C98: =VLOOKUP($AA98,DATA!$B$3:$E98,3,0) -> 06:30:00 | D98: =VLOOKUP($AA98,DATA!$B$3:$E98,4,0) -> 0.03125 | E98: 0.3020833333 | F98: 0.3020833333 | G98: =DATA!$C$9 -> 0.89 | H98: =DATA!$C$10 -> 64 | I98: 1 | J98: 407.8125 | K98: 407.8125 | L98: 0 | O98: 0 | R98: 0 | X98: =X100 -> 5 | Z98: =TEXT(Y96,"ddd") -> wo | AA98: ND | AB98: =IFERROR(HLOOKUP(Y96,[1]DATA!$A$1:$NB$5,5,0),"") -> D1 | AG98: 0
A99: 5doDD | B99: =VLOOKUP($AA99,DATA!$B$3:$E99,2,0) -> 06:30:00 | C99: =VLOOKUP($AA99,DATA!$B$3:$E99,3,0) -> 14:30:00 | D99: =VLOOKUP($AA99,DATA!$B$3:$E99,4,0) -> 0.03125 | E99: 0.3020833333 | F99: 0.2416666667 | G99: =DATA!$C$9 -> 0.89 | H99: =DATA!$C$10 -> 64 | I99: 1 | J99: 326.25 | K99: 407.8125 | L99: 0.06041666667 | M99: 81.5625 | N99: 0.2 | O99: 0 | R99: 327.4666667 | S99: 270 | V99: 270 | X99: =X100 -> 5 | Y99: =Y96+1 -> 2018-02-01 | Z99: =TEXT(Y99,"ddd") -> do | AA99: DD | AB99: =IFERROR(HLOOKUP(Y99,[1]DATA!$A$1:$NB$5,3,0),"") -> D3 | AC99: 87 | AE99: 37 | AF99: 307 | AG99: 51 | AH99: -84.375 | AI99: 0.6193548387 | AJ99: 0.8652457284
A100: 5doMD | B100: =VLOOKUP($AA100,DATA!$B$3:$E100,2,0) -> 14:30:00 | C100: =VLOOKUP($AA100,DATA!$B$3:$E100,3,0) -> 22:30:00 | D100: =VLOOKUP($AA100,DATA!$B$3:$E100,4,0) -> 0.03125 | E100: 0.3020833333 | F100: 0.2173611111 | G100: =DATA!$C$9 -> 0.89 | H100: =DATA!$C$10 -> 64 | I100: 1 | J100: 293.4375 | K100: 407.8125 | L100: 0.08472222222 | M100: 114.375 | N100: 0.2804597701 | O100: 0 | R100: 373.3333333 | S100: 324 | U100: 324 | X100: =WEEKNUM($Y90) -> 5 | Z100: =TEXT(Y99,"ddd") -> do | AA100: MD | AB100: =IFERROR(HLOOKUP(Y99,[1]DATA!$A$1:$NB$5,4,0),"") -> D2 | AC100: 122 | AE100: 26 | AF100: 350 | AG100: 11 | AH100: 2.4375 | AI100: 0.7432258065 | AJ100: 0.9713790113
A101: 5doND | B101: =VLOOKUP($AA101,DATA!$B$3:$E101,2,0) -> 22:30:00 | C101: =VLOOKUP($AA101,DATA!$B$3:$E101,3,0) -> 06:30:00 | D101: =VLOOKUP($AA101,DATA!$B$3:$E101,4,0) -> 0.03125 | E101: 0.3020833333 | F101: 0.3020833333 | G101: =DATA!$C$9 -> 0.89 | H101: =DATA!$C$10 -> 64 | I101: 1 | J101: 407.8125 | K101: 407.8125 | L101: 0 | O101: 0 | R101: 0 | X101: =X100 -> 5 | Z101: =TEXT(Y99,"ddd") -> do | AA101: ND | AB101: =IFERROR(HLOOKUP(Y99,[1]DATA!$A$1:$NB$5,5,0),"") -> D1 | AG101: 0
A102: 5vrDD | B102: =VLOOKUP($AA102,DATA!$B$3:$E102,2,0) -> 06:30:00 | C102: =VLOOKUP($AA102,DATA!$B$3:$E102,3,0) -> 14:30:00 | D102: =VLOOKUP($AA102,DATA!$B$3:$E102,4,0) -> 0.03125 | E102: 0.3020833333 | F102: 0.2027777778 | G102: =DATA!$C$9 -> 0.89 | H102: =DATA!$C$10 -> 64 | I102: 1 | J102: 273.75 | K102: 407.8125 | L102: 0.09930555556 | M102: 134.0625 | N102: 0.3287356322 | O102: 0 | R102: 251.7333333 | S102: 218 | V102: 218 | X102: =X100 -> 5 | Y102: =Y99+1 -> 2018-02-02 | Z102: =TEXT(Y102,"ddd") -> vr | AA102: DD | AB102: =IFERROR(HLOOKUP(Y102,[1]DATA!$A$1:$NB$5,3,0),"") -> D3 | AC102: 143 | AE102: 18 | AF102: 236 | AG102: 22 | AH102: -83.875 | AI102: 0.5000716846 | AJ102: 0.91962981
A103: 5vrMD | B103: =VLOOKUP($AA103,DATA!$B$3:$E103,2,0) -> 14:30:00 | C103: =VLOOKUP($AA103,DATA!$B$3:$E103,3,0) -> 22:30:00 | D103: =VLOOKUP($AA103,DATA!$B$3:$E103,4,0) -> 0.03125 | E103: 0.3020833333 | F103: 0.20625 | G103: =DATA!$C$9 -> 0.89 | H103: =DATA!$C$10 -> 64 | I103: 1 | J103: 278.4375 | K103: 407.8125 | L103: 0.09583333333 | M103: 129.375 | N103: 0.3172413793 | O103: 0 | R103: 374.4 | S103: 318 | U103: 318 | X103: =X100 -> 5 | Z103: =TEXT(Y102,"ddd") -> vr | AA103: MD | AB103: =IFERROR(HLOOKUP(Y102,[1]DATA!$A$1:$NB$5,4,0),"") -> D2 | AC103: 138 | AE103: 33 | AF103: 351 | AG103: 26 | AH103: 11.4375 | AI103: 0.7294623656 | AJ103: 0.9350649351
A104: 5vrND | B104: =VLOOKUP($AA104,DATA!$B$3:$E104,2,0) -> 22:30:00 | C104: =VLOOKUP($AA104,DATA!$B$3:$E104,3,0) -> 06:30:00 | D104: =VLOOKUP($AA104,DATA!$B$3:$E104,4,0) -> 0.03125 | E104: 0.3020833333 | F104: 0.3020833333 | G104: =DATA!$C$9 -> 0.89 | H104: =DATA!$C$10 -> 64 | I104: 1 | J104: 407.8125 | K104: 407.8125 | L104: 0 | O104: 0 | R104: 0 | X104: =X100 -> 5 | Z104: =TEXT(Y102,"ddd") -> vr | AA104: ND | AB104: =IFERROR(HLOOKUP(Y102,[1]DATA!$A$1:$NB$5,5,0),"") -> - | AG104: 0
A105: 5zaDD | B105: =VLOOKUP($AA105,DATA!$B$3:$E105,2,0) -> 06:30:00 | C105: =VLOOKUP($AA105,DATA!$B$3:$E105,3,0) -> 14:30:00 | D105: =VLOOKUP($AA105,DATA!$B$3:$E105,4,0) -> 0.03125 | E105: 0.3020833333 | F105: 0.3020833333 | G105: =DATA!$C$9 -> 0.89 | H105: =DATA!$C$10 -> 64 | I105: 1 | J105: 407.8125 | K105: 407.8125 | L105: 0 | O105: 0 | R105: 0 | X105: =X100 -> 5 | Y105: =Y102+1 -> 2018-02-03 | Z105: =TEXT(Y105,"ddd") -> za | AA105: DD | AB105: =IFERROR(HLOOKUP(Y105,[1]DATA!$A$1:$NB$5,3,0),"") -> - | AG105: 0
A106: 5zaMD | B106: =VLOOKUP($AA106,DATA!$B$3:$E106,2,0) -> 14:30:00 | C106: =VLOOKUP($AA106,DATA!$B$3:$E106,3,0) -> 22:30:00 | D106: =VLOOKUP($AA106,DATA!$B$3:$E106,4,0) -> 0.03125 | E106: 0.3020833333 | F106: 0.3020833333 | G106: =DATA!$C$9 -> 0.89 | H106: =DATA!$C$10 -> 64 | I106: 1 | J106: 407.8125 | K106: 407.8125 | L106: 0 | O106: 0 | R106: 0 | X106: =X100 -> 5 | Z106: =TEXT(Y105,"ddd") -> za | AA106: MD | AB106: =IFERROR(HLOOKUP(Y105,[1]DATA!$A$1:$NB$5,4,0),"") -> - | AG106: 0
A107: 5zaND | B107: =VLOOKUP($AA107,DATA!$B$3:$E107,2,0) -> 22:30:00 | C107: =VLOOKUP($AA107,DATA!$B$3:$E107,3,0) -> 06:30:00 | D107: =VLOOKUP($AA107,DATA!$B$3:$E107,4,0) -> 0.03125 | E107: 0.3020833333 | F107: 0.3020833333 | G107: =DATA!$C$9 -> 0.89 | H107: =DATA!$C$10 -> 64 | I107: 1 | J107: 407.8125 | K107: 407.8125 | L107: 0 | O107: 0 | R107: 0 | X107: =X100 -> 5 | Z107: =TEXT(Y105,"ddd") -> za | AA107: ND | AB107: =IFERROR(HLOOKUP(Y105,[1]DATA!$A$1:$NB$5,5,0),"") -> - | AG107: 0
A108: 5zoDD | B108: =VLOOKUP($AA108,DATA!$B$3:$E108,2,0) -> 06:30:00 | C108: =VLOOKUP($AA108,DATA!$B$3:$E108,3,0) -> 14:30:00 | D108: =VLOOKUP($AA108,DATA!$B$3:$E108,4,0) -> 0.03125 | E108: 0.3020833333 | F108: 0.3020833333 | G108: =DATA!$C$9 -> 0.89 | H108: =DATA!$C$10 -> 64 | I108: 1 | J108: 407.8125 | K108: 407.8125 | L108: 0 | O108: 0 | R108: 0 | X108: =X100 -> 5 | Y108: =Y105+1 -> 2018-02-04 | Z108: =TEXT(Y108,"ddd") -> zo | AA108: DD | AB108: =IFERROR(HLOOKUP(Y108,[1]DATA!$A$1:$NB$5,3,0),"") -> - | AG108: 0
A109: 5zoMD | B109: =VLOOKUP($AA109,DATA!$B$3:$E109,2,0) -> 14:30:00 | C109: =VLOOKUP($AA109,DATA!$B$3:$E109,3,0) -> 22:30:00 | D109: =VLOOKUP($AA109,DATA!$B$3:$E109,4,0) -> 0.03125 | E109: 0.3020833333 | F109: 0.3020833333 | G109: =DATA!$C$9 -> 0.89 | H109: =DATA!$C$10 -> 64 | I109: 1 | J109: 407.8125 | K109: 407.8125 | L109: 0 | O109: 0 | R109: 0 | X109: =X100 -> 5 | Z109: =TEXT(Y108,"ddd") -> zo | AA109: MD | AB109: =IFERROR(HLOOKUP(Y108,[1]DATA!$A$1:$NB$5,4,0),"") -> - | AG109: 0
A110: 5zoZND | B110: =VLOOKUP($AA110,DATA!$B$3:$E110,2,0) -> 00:00:00 | C110: =VLOOKUP($AA110,DATA!$B$3:$E110,3,0) -> 00:00:00 | D110: =VLOOKUP($AA110,DATA!$B$3:$E110,4,0) -> 0 | E110: 0 | F110: 0 | G110: =DATA!$C$9 -> 0.89 | H110: =DATA!$C$10 -> 64 | I110: 1 | J110: 0 | K110: 0 | L110: 0 | O110: 0 | R110: 0 | X110: =X100 -> 5 | Z110: =TEXT(Y108,"ddd") -> zo | AA110: ZND | AB110: =IFERROR(HLOOKUP(Y108,[1]DATA!$A$1:$NB$5,5,0),"") -> D3 | AG110: 0
A111: 6maDD | B111: =VLOOKUP($AA111,DATA!$B$3:$E111,2,0) -> 06:30:00 | C111: =VLOOKUP($AA111,DATA!$B$3:$E111,3,0) -> 14:30:00 | D111: =VLOOKUP($AA111,DATA!$B$3:$E111,4,0) -> 0.03125 | E111: 0.3020833333 | F111: 0.2013888889 | G111: =DATA!$C$9 -> 0.89 | H111: =DATA!$C$10 -> 64 | I111: 1 | J111: 271.875 | K111: 407.8125 | L111: 0.1006944444 | M111: 135.9375 | N111: 0.3333333333 | O111: =TIME(INT($AD111/60),INT(MOD($AD111,60)/1),0) -> 0 | R111: 309.3333333 | S111: 284 | U111: 284 | X111: =X121 -> 6 | Y111: =Y108+1 -> 2018-02-05 | Z111: =TEXT(Y111,"ddd") -> ma | AA111: DD | AB111: =IFERROR(HLOOKUP(Y111,[1]DATA!$A$1:$NB$5,3,0),"") -> D2 | AC111: 145 | AE111: 6 | AF111: 290 | AG111: 23 | AH111: -16 | AI111: 0.6514695341 | AJ111: 0.9307923771 | AK111: 4359.375 | AL111: 3084 | AM111: 0.7074408602 | AN111: 984.375 | AO111: 0.2258064516 | AP111: 0 | AQ111: 0 | AR111: 0.9434208824 | AS111: 0.9671939447 | AT111: 0.91964782 | AV111: 291 | AW111: 0.06675268817 | AX111: 310.4 | AY111: 221
A112: =X112&Z112&AA112 -> 6maMD | B112: =VLOOKUP($AA112,DATA!$B$3:$E112,2,0) -> 14:30:00 | C112: =VLOOKUP($AA112,DATA!$B$3:$E112,3,0) -> 22:30:00 | D112: =VLOOKUP($AA112,DATA!$B$3:$E112,4,0) -> 0.03125 | E112: 0.3020833333 | F112: 0.2326388889 | G112: =DATA!$C$9 -> 0.89 | H112: =DATA!$C$10 -> 64 | I112: 1 | J112: 314.0625 | K112: 407.8125 | L112: 0.06944444444 | M112: 93.75 | N112: 0.2298850575 | O112: =TIME(INT(AD112/60),INT(MOD(AD112,60)/1),0) -> 0 | P112: =IF($O112*86400/$H112=0,"",$O112*86400/$H112) ->  | R112: 358.4 | S112: 308 | T112: 308 | X112: =X121 -> 6 | Z112: =TEXT(Y111,"ddd") -> ma | AA112: MD | AB112: =IFERROR(HLOOKUP(Y111,[1]DATA!$A$1:$NB$5,4,0),"") -> D1 | AC112: 100 | AE112: 28 | AF112: 336 | AG112: 20 | AH112: -34.1875 | AI112: 0.7065232975 | AJ112: 0.9471458774
A113: 6maND | B113: =VLOOKUP($AA113,DATA!$B$3:$E113,2,0) -> 22:30:00 | C113: =VLOOKUP($AA113,DATA!$B$3:$E113,3,0) -> 06:30:00 | D113: =VLOOKUP($AA113,DATA!$B$3:$E113,4,0) -> 0.03125 | E113: 0.3020833333 | F113: 0.3020833333 | G113: =DATA!$C$9 -> 0.89 | H113: =DATA!$C$10 -> 64 | I113: 1 | J113: 407.8125 | K113: 407.8125 | L113: 0 | O113: 0 | R113: 0 | X113: =X121 -> 6 | Z113: =TEXT(Y111,"ddd") -> ma | AA113: ND | AB113: =IFERROR(HLOOKUP(Y111,[1]DATA!$A$1:$NB$5,5,0),"") -> D3 | AG113: 0
A114: 6diDD | B114: =VLOOKUP($AA114,DATA!$B$3:$E114,2,0) -> 06:30:00 | C114: =VLOOKUP($AA114,DATA!$B$3:$E114,3,0) -> 14:30:00 | D114: =VLOOKUP($AA114,DATA!$B$3:$E114,4,0) -> 0.03125 | E114: 0.3020833333 | F114: 0.2402777778 | G114: =DATA!$C$9 -> 0.89 | H114: =DATA!$C$10 -> 64 | I114: 1 | J114: 324.375 | K114: 407.8125 | L114: 0.06180555556 | M114: 83.4375 | N114: 0.2045977011 | O114: 0 | R114: 366.9333333 | S114: 322 | U114: 322 | X114: =X121 -> 6 | Y114: =Y111+1 -> 2018-02-06 | Z114: =TEXT(Y114,"ddd") -> di | AA114: DD | AB114: =IFERROR(HLOOKUP(Y114,[1]DATA!$A$1:$NB$5,3,0),"") -> D2 | AC114: 89 | AE114: 22 | AF114: 344 | AG114: 37 | AH114: -30.5 | AI114: 0.7386379928 | AJ114: 0.9084007262
A115: 6diMD | B115: =VLOOKUP($AA115,DATA!$B$3:$E115,2,0) -> 14:30:00 | C115: =VLOOKUP($AA115,DATA!$B$3:$E115,3,0) -> 22:30:00 | D115: =VLOOKUP($AA115,DATA!$B$3:$E115,4,0) -> 0.03125 | E115: 0.3020833333 | F115: 0.2680555556 | G115: =DATA!$C$9 -> 0.89 | H115: =DATA!$C$10 -> 64 | I115: 1 | J115: 361.875 | K115: 407.8125 | L115: 0.03402777778 | M115: 45.9375 | N115: 0.1126436782 | O115: 0 | R115: 254.9333333 | S115: 212 | T115: 212 | X115: =X121 -> 6 | Z115: =TEXT(Y114,"ddd") -> di | AA115: MD | AB115: =IFERROR(HLOOKUP(Y114,[1]DATA!$A$1:$NB$5,4,0),"") -> D1 | AC115: 49 | AE115: 27 | AF115: 239 | AG115: 23 | AH115: -178 | AI115: 0.4863082437 | AJ115: 0.917246342
A116: 6diND | B116: =VLOOKUP($AA116,DATA!$B$3:$E116,2,0) -> 22:30:00 | C116: =VLOOKUP($AA116,DATA!$B$3:$E116,3,0) -> 06:30:00 | D116: =VLOOKUP($AA116,DATA!$B$3:$E116,4,0) -> 0.03125 | E116: 0.3020833333 | F116: 0.3020833333 | G116: =DATA!$C$9 -> 0.89 | H116: =DATA!$C$10 -> 64 | I116: 1 | J116: 407.8125 | K116: 407.8125 | L116: 0 | O116: 0 | R116: 0 | X116: =X121 -> 6 | Z116: =TEXT(Y114,"ddd") -> di | AA116: ND | AB116: =IFERROR(HLOOKUP(Y114,[1]DATA!$A$1:$NB$5,5,0),"") -> D3 | AG116: 0
A117: 6woDD | B117: =VLOOKUP($AA117,DATA!$B$3:$E117,2,0) -> 06:30:00 | C117: =VLOOKUP($AA117,DATA!$B$3:$E117,3,0) -> 14:30:00 | D117: =VLOOKUP($AA117,DATA!$B$3:$E117,4,0) -> 0.03125 | E117: 0.3020833333 | F117: 0.25 | G117: =DATA!$C$9 -> 0.89 | H117: =DATA!$C$10 -> 64 | I117: 1 | J117: 337.5 | K117: 407.8125 | L117: 0.05208333333 | M117: 70.3125 | N117: 0.1724137931 | O117: 0 | R117: 423.4666667 | S117: 364 | U117: 364 | X117: =X121 -> 6 | Y117: =Y114+1 -> 2018-02-07 | Z117: =TEXT(Y117,"ddd") -> wo | AA117: DD | AB117: =IFERROR(HLOOKUP(Y117,[1]DATA!$A$1:$NB$5,3,0),"") -> D2 | AC117: 75 | AE117: 33 | AF117: 397 | AG117: 60 | AH117: -1.625 | AI117: 0.8349820789 | AJ117: 0.8758963045
A118: 6woMD | B118: =VLOOKUP($AA118,DATA!$B$3:$E118,2,0) -> 14:30:00 | C118: =VLOOKUP($AA118,DATA!$B$3:$E118,3,0) -> 22:30:00 | D118: =VLOOKUP($AA118,DATA!$B$3:$E118,4,0) -> 0.03125 | E118: 0.3020833333 | F118: 0.1861111111 | G118: =DATA!$C$9 -> 0.89 | H118: =DATA!$C$10 -> 64 | I118: 1 | J118: 251.25 | K118: 407.8125 | L118: 0.1159722222 | M118: 156.5625 | N118: 0.383908046 | O118: 0 | R118: 302.9333333 | S118: 268 | T118: 268 | X118: =X121 -> 6 | Z118: =TEXT(Y117,"ddd") -> wo | AA118: MD | AB118: =IFERROR(HLOOKUP(Y117,[1]DATA!$A$1:$NB$5,4,0),"") -> D1 | AC118: 167 | AE118: 16 | AF118: 284 | AG118: 5 | AH118: -11.375 | AI118: 0.6147670251 | AJ118: 0.9837627192
A119: 6woND | B119: =VLOOKUP($AA119,DATA!$B$3:$E119,2,0) -> 22:30:00 | C119: =VLOOKUP($AA119,DATA!$B$3:$E119,3,0) -> 06:30:00 | D119: =VLOOKUP($AA119,DATA!$B$3:$E119,4,0) -> 0.03125 | E119: 0.3020833333 | F119: 0.3020833333 | G119: =DATA!$C$9 -> 0.89 | H119: =DATA!$C$10 -> 64 | I119: 1 | J119: 407.8125 | K119: 407.8125 | L119: 0 | O119: 0 | R119: 0 | X119: =X121 -> 6 | Z119: =TEXT(Y117,"ddd") -> wo | AA119: ND | AB119: =IFERROR(HLOOKUP(Y117,[1]DATA!$A$1:$NB$5,5,0),"") -> D3 | AG119: 0
A120: 6doDD | B120: =VLOOKUP($AA120,DATA!$B$3:$E120,2,0) -> 06:30:00 | C120: =VLOOKUP($AA120,DATA!$B$3:$E120,3,0) -> 14:30:00 | D120: =VLOOKUP($AA120,DATA!$B$3:$E120,4,0) -> 0.03125 | E120: 0.3020833333 | F120: 0.2013888889 | G120: =DATA!$C$9 -> 0.89 | H120: =DATA!$C$10 -> 64 | I120: 1 | J120: 271.875 | K120: 407.8125 | L120: 0.1006944444 | M120: 135.9375 | N120: 0.3333333333 | O120: 0 | R120: 364.8 | S120: 325 | U120: 325 | X120: =X121 -> 6 | Y120: =Y117+1 -> 2018-02-08 | Z120: =TEXT(Y120,"ddd") -> do | AA120: DD | AB120: =IFERROR(HLOOKUP(Y120,[1]DATA!$A$1:$NB$5,3,0),"") -> D2 | AC120: 145 | AE120: 17 | AF120: 342 | AG120: 15 | AH120: 25 | AI120: 0.7455197133 | AJ120: 0.9605055292
A121: 6doMD | B121: =VLOOKUP($AA121,DATA!$B$3:$E121,2,0) -> 14:30:00 | C121: =VLOOKUP($AA121,DATA!$B$3:$E121,3,0) -> 22:30:00 | D121: =VLOOKUP($AA121,DATA!$B$3:$E121,4,0) -> 0.03125 | E121: 0.3020833333 | F121: 0.2270833333 | G121: =DATA!$C$9 -> 0.89 | H121: =DATA!$C$10 -> 64 | I121: 1 | J121: 306.5625 | K121: 407.8125 | L121: 0.075 | M121: 101.25 | N121: 0.2482758621 | O121: 0 | R121: 405.3333333 | S121: 355 | T121: 355 | X121: =WEEKNUM($Y111) -> 6 | Z121: =TEXT(Y120,"ddd") -> do | AA121: MD | AB121: =IFERROR(HLOOKUP(Y120,[1]DATA!$A$1:$NB$5,4,0),"") -> D1 | AC121: 108 | AE121: 25 | AF121: 380 | AG121: 5 | AH121: 20.3125 | AI121: 0.8143369176 | AJ121: 0.9878147847
A122: 6doND | B122: =VLOOKUP($AA122,DATA!$B$3:$E122,2,0) -> 22:30:00 | C122: =VLOOKUP($AA122,DATA!$B$3:$E122,3,0) -> 06:30:00 | D122: =VLOOKUP($AA122,DATA!$B$3:$E122,4,0) -> 0.03125 | E122: 0.3020833333 | F122: 0.3020833333 | G122: =DATA!$C$9 -> 0.89 | H122: =DATA!$C$10 -> 64 | I122: 1 | J122: 407.8125 | K122: 407.8125 | L122: 0 | O122: 0 | R122: 0 | X122: =X121 -> 6 | Z122: =TEXT(Y120,"ddd") -> do | AA122: ND | AB122: =IFERROR(HLOOKUP(Y120,[1]DATA!$A$1:$NB$5,5,0),"") -> D3 | AG122: 0
A123: 6vrDD | B123: =VLOOKUP($AA123,DATA!$B$3:$E123,2,0) -> 06:30:00 | C123: =VLOOKUP($AA123,DATA!$B$3:$E123,3,0) -> 14:30:00 | D123: =VLOOKUP($AA123,DATA!$B$3:$E123,4,0) -> 0.03125 | E123: 0.3020833333 | F123: 0.2402777778 | G123: =DATA!$C$9 -> 0.89 | H123: =DATA!$C$10 -> 64 | I123: 1 | J123: 324.375 | K123: 407.8125 | L123: 0.06180555556 | M123: 83.4375 | N123: 0.2045977011 | O123: 0 | R123: 393.6 | S123: 336 | U123: 336 | X123: =X121 -> 6 | Y123: =Y120+1 -> 2018-02-09 | Z123: =TEXT(Y123,"ddd") -> vr | AA123: DD | AB123: =IFERROR(HLOOKUP(Y123,[1]DATA!$A$1:$NB$5,3,0),"") -> D2 | AC123: 89 | AE123: 33 | AF123: 369 | AG123: 33 | AH123: -16.5 | AI123: 0.7707526882 | AJ123: 0.9226441632
A124: 6vrMD | B124: =VLOOKUP($AA124,DATA!$B$3:$E124,2,0) -> 14:30:00 | C124: =VLOOKUP($AA124,DATA!$B$3:$E124,3,0) -> 22:30:00 | D124: =VLOOKUP($AA124,DATA!$B$3:$E124,4,0) -> 0.03125 | E124: 0.3020833333 | F124: 0.2444444444 | G124: =DATA!$C$9 -> 0.89 | H124: =DATA!$C$10 -> 64 | I124: 1 | J124: 330 | K124: 407.8125 | L124: 0.05763888889 | M124: 77.8125 | N124: 0.1908045977 | O124: 0 | R124: 363.7333333 | S124: 310 | T124: 310 | X124: =X121 -> 6 | Z124: =TEXT(Y123,"ddd") -> vr | AA124: MD | AB124: =IFERROR(HLOOKUP(Y123,[1]DATA!$A$1:$NB$5,4,0),"") -> D1 | AC124: 83 | AE124: 31 | AF124: 341 | AG124: 0 | AH124: -48.125 | AI124: 0.7111111111 | AJ124: 1
A125: 6vrND | B125: =VLOOKUP($AA125,DATA!$B$3:$E125,2,0) -> 22:30:00 | C125: =VLOOKUP($AA125,DATA!$B$3:$E125,3,0) -> 06:30:00 | D125: =VLOOKUP($AA125,DATA!$B$3:$E125,4,0) -> 0.03125 | E125: 0.3020833333 | F125: 0.3020833333 | G125: =DATA!$C$9 -> 0.89 | H125: =DATA!$C$10 -> 64 | I125: 1 | J125: 407.8125 | K125: 407.8125 | L125: 0 | O125: 0 | R125: 0 | X125: =X121 -> 6 | Z125: =TEXT(Y123,"ddd") -> vr | AA125: ND | AB125: =IFERROR(HLOOKUP(Y123,[1]DATA!$A$1:$NB$5,5,0),"") -> - | AG125: 0
A126: 6zaDD | B126: =VLOOKUP($AA126,DATA!$B$3:$E126,2,0) -> 06:30:00 | C126: =VLOOKUP($AA126,DATA!$B$3:$E126,3,0) -> 14:30:00 | D126: =VLOOKUP($AA126,DATA!$B$3:$E126,4,0) -> 0.03125 | E126: 0.3020833333 | F126: 0.3020833333 | G126: =DATA!$C$9 -> 0.89 | H126: =DATA!$C$10 -> 64 | I126: 1 | J126: 407.8125 | K126: 407.8125 | L126: 0 | O126: 0 | R126: 0 | X126: =X121 -> 6 | Y126: =Y123+1 -> 2018-02-10 | Z126: =TEXT(Y126,"ddd") -> za | AA126: DD | AB126: =IFERROR(HLOOKUP(Y126,[1]DATA!$A$1:$NB$5,3,0),"") -> - | AG126: 0
A127: 6zaMD | B127: =VLOOKUP($AA127,DATA!$B$3:$E127,2,0) -> 14:30:00 | C127: =VLOOKUP($AA127,DATA!$B$3:$E127,3,0) -> 22:30:00 | D127: =VLOOKUP($AA127,DATA!$B$3:$E127,4,0) -> 0.03125 | E127: 0.3020833333 | F127: 0.3020833333 | G127: =DATA!$C$9 -> 0.89 | H127: =DATA!$C$10 -> 64 | I127: 1 | J127: 407.8125 | K127: 407.8125 | L127: 0 | O127: 0 | R127: 0 | X127: =X121 -> 6 | Z127: =TEXT(Y126,"ddd") -> za | AA127: MD | AB127: =IFERROR(HLOOKUP(Y126,[1]DATA!$A$1:$NB$5,4,0),"") -> - | AG127: 0
A128: 6zaND | B128: =VLOOKUP($AA128,DATA!$B$3:$E128,2,0) -> 22:30:00 | C128: =VLOOKUP($AA128,DATA!$B$3:$E128,3,0) -> 06:30:00 | D128: =VLOOKUP($AA128,DATA!$B$3:$E128,4,0) -> 0.03125 | E128: 0.3020833333 | F128: 0.3020833333 | G128: =DATA!$C$9 -> 0.89 | H128: =DATA!$C$10 -> 64 | I128: 1 | J128: 407.8125 | K128: 407.8125 | L128: 0 | O128: 0 | R128: 0 | X128: =X121 -> 6 | Z128: =TEXT(Y126,"ddd") -> za | AA128: ND | AB128: =IFERROR(HLOOKUP(Y126,[1]DATA!$A$1:$NB$5,5,0),"") -> - | AG128: 0
A129: 6zoDD | B129: =VLOOKUP($AA129,DATA!$B$3:$E129,2,0) -> 06:30:00 | C129: =VLOOKUP($AA129,DATA!$B$3:$E129,3,0) -> 14:30:00 | D129: =VLOOKUP($AA129,DATA!$B$3:$E129,4,0) -> 0.03125 | E129: 0.3020833333 | F129: 0.3020833333 | G129: =DATA!$C$9 -> 0.89 | H129: =DATA!$C$10 -> 64 | I129: 1 | J129: 407.8125 | K129: 407.8125 | L129: 0 | O129: 0 | R129: 0 | X129: =X121 -> 6 | Y129: =Y126+1 -> 2018-02-11 | Z129: =TEXT(Y129,"ddd") -> zo | AA129: DD | AB129: =IFERROR(HLOOKUP(Y129,[1]DATA!$A$1:$NB$5,3,0),"") -> - | AG129: 0
A130: 6zoMD | B130: =VLOOKUP($AA130,DATA!$B$3:$E130,2,0) -> 14:30:00 | C130: =VLOOKUP($AA130,DATA!$B$3:$E130,3,0) -> 22:30:00 | D130: =VLOOKUP($AA130,DATA!$B$3:$E130,4,0) -> 0.03125 | E130: 0.3020833333 | F130: 0.3020833333 | G130: =DATA!$C$9 -> 0.89 | H130: =DATA!$C$10 -> 64 | I130: 1 | J130: 407.8125 | K130: 407.8125 | L130: 0 | O130: 0 | R130: 0 | X130: =X121 -> 6 | Z130: =TEXT(Y129,"ddd") -> zo | AA130: MD | AB130: =IFERROR(HLOOKUP(Y129,[1]DATA!$A$1:$NB$5,4,0),"") -> - | AG130: 0
A131: 6zoZND | B131: =VLOOKUP($AA131,DATA!$B$3:$E131,2,0) -> 00:00:00 | C131: =VLOOKUP($AA131,DATA!$B$3:$E131,3,0) -> 00:00:00 | D131: =VLOOKUP($AA131,DATA!$B$3:$E131,4,0) -> 0 | E131: 0 | F131: 0 | G131: =DATA!$C$9 -> 0.89 | H131: =DATA!$C$10 -> 64 | I131: 1 | J131: 0 | K131: 0 | L131: 0 | O131: 0 | R131: 0 | X131: =X121 -> 6 | Z131: =TEXT(Y129,"ddd") -> zo | AA131: ZND | AB131: =IFERROR(HLOOKUP(Y129,[1]DATA!$A$1:$NB$5,5,0),"") -> D2 | AG131: 0
A132: 7maDD | B132: =VLOOKUP($AA132,DATA!$B$3:$E132,2,0) -> 06:30:00 | C132: =VLOOKUP($AA132,DATA!$B$3:$E132,3,0) -> 14:30:00 | D132: =VLOOKUP($AA132,DATA!$B$3:$E132,4,0) -> 0.03125 | E132: 0.3020833333 | F132: 0.3020833333 | G132: =DATA!$C$9 -> 0.89 | H132: =DATA!$C$10 -> 64 | I132: 1 | J132: 407.8125 | K132: 407.8125 | L132: 0 | O132: =TIME(INT($AD132/60),INT(MOD($AD132,60)/1),0) -> 0 | R132: 0 | X132: =X142 -> 7 | Y132: =Y129+1 -> 2018-02-12 | Z132: =TEXT(Y132,"ddd") -> ma | AA132: DD | AB132: =IFERROR(HLOOKUP(Y132,[1]DATA!$A$1:$NB$5,3,0),"") -> D1 | AG132: 0 | AK132: 3487.5 | AL132: 2398 | AM132: 0.6875985663 | AN132: 937.5 | AO132: 0.2688172043 | AP132: 32.8125 | AQ132: 0.009408602151 | AR132: 0.9491132326 | AS132: 0.9834563214 | AU132: 0.9147701438 | AV132: 119.1875 | AW132: 0.03417562724 | AX132: 127.1333333 | AY132: 148
A133: 7maMD | B133: =VLOOKUP($AA133,DATA!$B$3:$E133,2,0) -> 14:30:00 | C133: =VLOOKUP($AA133,DATA!$B$3:$E133,3,0) -> 22:30:00 | D133: =VLOOKUP($AA133,DATA!$B$3:$E133,4,0) -> 0.03125 | E133: 0.3020833333 | F133: 0.3020833333 | G133: =DATA!$C$9 -> 0.89 | H133: =DATA!$C$10 -> 64 | I133: 1 | J133: 407.8125 | K133: 407.8125 | L133: 0 | O133: =TIME(INT(AD133/60),INT(MOD(AD133,60)/1),0) -> 0 | R133: 0 | X133: =X142 -> 7 | Z133: =TEXT(Y132,"ddd") -> ma | AA133: MD | AB133: =IFERROR(HLOOKUP(Y132,[1]DATA!$A$1:$NB$5,4,0),"") -> D3 | AG133: 0
A134: 7maND | B134: =VLOOKUP($AA134,DATA!$B$3:$E134,2,0) -> 22:30:00 | C134: =VLOOKUP($AA134,DATA!$B$3:$E134,3,0) -> 06:30:00 | D134: =VLOOKUP($AA134,DATA!$B$3:$E134,4,0) -> 0.03125 | E134: 0.3020833333 | F134: 0.3020833333 | G134: =DATA!$C$9 -> 0.89 | H134: =DATA!$C$10 -> 64 | I134: 1 | J134: =F134*86400/H134*I134 -> 407.8125 | K134: =E134*86400/H134 -> 407.8125 | L134: 0 | O134: 0 | R134: =AF134*AG$2 -> 0 | S134: =IF(AF134-AE134=0,"",AF134-AE134) ->  | X134: =X142 -> 7 | Z134: =TEXT(Y132,"ddd") -> ma | AA134: ND | AB134: =IFERROR(HLOOKUP(Y132,[1]DATA!$A$1:$NB$5,5,0),"") -> D2 | AG134: 0
A135: 7diDD | B135: =VLOOKUP($AA135,DATA!$B$3:$E135,2,0) -> 06:30:00 | C135: =VLOOKUP($AA135,DATA!$B$3:$E135,3,0) -> 14:30:00 | D135: =VLOOKUP($AA135,DATA!$B$3:$E135,4,0) -> 0.03125 | E135: 0.3020833333 | F135: 0.1916666667 | G135: =DATA!$C$9 -> 0.89 | H135: =DATA!$C$10 -> 64 | I135: 1 | J135: 258.75 | K135: 407.8125 | L135: =TIME(INT($AC135/60),INT(MOD($AC135,60)/1),0) -> 0.1104166667 | M135: =IF($L135*86400/$H135=0,"",$L135*86400/$H135) -> 149.0625 | N135: =IFERROR($M135/$K135,"") -> 0.3655172414 | O135: 0 | Q135: =IFERROR($P135/$K135,"") ->  | R135: 344.5333333 | S135: 295 | T135: =IF(IF($AB135="D1",$S135,"")=0,"",IF($AB135="D1",$S135,"")) -> 295 | U135: =IF(IF($AB135="D2",$S135,"")=0,"",IF($AB135="D2",$S135,"")) ->  | V135: =IF(IF($AB135="D3",$S135,"")=0,"",IF($AB135="D3",$S135,"")) ->  | X135: =X142 -> 7 | Y135: =Y132+1 -> 2018-02-13 | Z135: =TEXT(Y135,"ddd") -> di | AA135: DD | AB135: =IFERROR(HLOOKUP(Y135,[1]DATA!$A$1:$NB$5,3,0),"") -> D1 | AC135: 159 | AE135: 28 | AF135: 323 | AG135: 12 | AH135: 8.125 | AI135: 0.676702509 | AJ135: 0.966342558
A136: 7diMD | B136: =VLOOKUP($AA136,DATA!$B$3:$E136,2,0) -> 14:30:00 | C136: =VLOOKUP($AA136,DATA!$B$3:$E136,3,0) -> 22:30:00 | D136: =VLOOKUP($AA136,DATA!$B$3:$E136,4,0) -> 0.03125 | E136: 0.3020833333 | F136: 0.2236111111 | G136: =DATA!$C$9 -> 0.89 | H136: =DATA!$C$10 -> 64 | I136: 1 | J136: 301.875 | K136: 407.8125 | L136: 0.07847222222 | M136: 105.9375 | N136: 0.2597701149 | O136: 0 | R136: 360.5333333 | S136: 329 | V136: 329 | X136: =X142 -> 7 | Z136: =TEXT(Y135,"ddd") -> di | AA136: MD | AB136: =IFERROR(HLOOKUP(Y135,[1]DATA!$A$1:$NB$5,4,0),"") -> D3 | AC136: 113 | AE136: 9 | AF136: 338 | AG136: 30 | AH136: -1 | AI136: 0.7546953405 | AJ136: 0.9231819734
A137: 7diND | B137: =VLOOKUP($AA137,DATA!$B$3:$E137,2,0) -> 22:30:00 | C137: =VLOOKUP($AA137,DATA!$B$3:$E137,3,0) -> 06:30:00 | D137: =VLOOKUP($AA137,DATA!$B$3:$E137,4,0) -> 0.03125 | E137: 0.3020833333 | F137: 0.3020833333 | G137: =DATA!$C$9 -> 0.89 | H137: =DATA!$C$10 -> 64 | I137: 1 | J137: 407.8125 | K137: 407.8125 | L137: 0 | O137: 0 | R137: 0 | X137: =X142 -> 7 | Z137: =TEXT(Y135,"ddd") -> di | AA137: ND | AB137: =IFERROR(HLOOKUP(Y135,[1]DATA!$A$1:$NB$5,5,0),"") -> D2 | AG137: 0
A138: 7woDD | B138: =VLOOKUP($AA138,DATA!$B$3:$E138,2,0) -> 06:30:00 | C138: =VLOOKUP($AA138,DATA!$B$3:$E138,3,0) -> 14:30:00 | D138: =VLOOKUP($AA138,DATA!$B$3:$E138,4,0) -> 0.03125 | E138: 0.3020833333 | F138: 0.2243055556 | G138: =DATA!$C$9 -> 0.89 | H138: =DATA!$C$10 -> 64 | I138: 1 | J138: 302.8125 | K138: 407.8125 | L138: 0.07777777778 | M138: 105 | N138: 0.2574712644 | O138: 0 | R138: 393.6 | S138: 338 | T138: 338 | X138: =X142 -> 7 | Y138: =Y135+1 -> 2018-02-14 | Z138: =TEXT(Y138,"ddd") -> wo | AA138: DD | AB138: =IFERROR(HLOOKUP(Y138,[1]DATA!$A$1:$NB$5,3,0),"") -> D1 | AC138: 112 | AE138: 31 | AF138: 369 | AG138: 5 | AH138: 7.0625 | AI138: 0.7753405018 | AJ138: 0.9874560963
A139: 7woMD | B139: =VLOOKUP($AA139,DATA!$B$3:$E139,2,0) -> 14:30:00 | C139: =VLOOKUP($AA139,DATA!$B$3:$E139,3,0) -> 22:30:00 | D139: =VLOOKUP($AA139,DATA!$B$3:$E139,4,0) -> 0.03125 | E139: 0.3020833333 | F139: 0.2041666667 | G139: =DATA!$C$9 -> 0.89 | H139: =DATA!$C$10 -> 64 | I139: 1 | J139: 275.625 | K139: 407.8125 | L139: 0.09791666667 | M139: 132.1875 | N139: 0.324137931 | O139: 0 | R139: 329.6 | S139: 289 | V139: 289 | X139: =X142 -> 7 | Z139: =TEXT(Y138,"ddd") -> wo | AA139: MD | AB139: =IFERROR(HLOOKUP(Y138,[1]DATA!$A$1:$NB$5,4,0),"") -> D3 | AC139: 141 | AE139: 20 | AF139: 309 | AG139: 42 | AH139: -14.75 | AI139: 0.6629390681 | AJ139: 0.8869752422
A140: 7woND | B140: =VLOOKUP($AA140,DATA!$B$3:$E140,2,0) -> 22:30:00 | C140: =VLOOKUP($AA140,DATA!$B$3:$E140,3,0) -> 06:30:00 | D140: =VLOOKUP($AA140,DATA!$B$3:$E140,4,0) -> 0.03125 | E140: 0.3020833333 | F140: 0.3020833333 | G140: =DATA!$C$9 -> 0.89 | H140: =DATA!$C$10 -> 64 | I140: 1 | J140: 407.8125 | K140: 407.8125 | L140: 0 | O140: 0 | R140: 0 | X140: =X142 -> 7 | Z140: =TEXT(Y138,"ddd") -> wo | AA140: ND | AB140: =IFERROR(HLOOKUP(Y138,[1]DATA!$A$1:$NB$5,5,0),"") -> D2 | AG140: 0
A141: 7doDD | B141: =VLOOKUP($AA141,DATA!$B$3:$E141,2,0) -> 06:30:00 | C141: =VLOOKUP($AA141,DATA!$B$3:$E141,3,0) -> 14:30:00 | D141: =VLOOKUP($AA141,DATA!$B$3:$E141,4,0) -> 0.03125 | E141: 0.3020833333 | F141: 0.2069444444 | G141: =DATA!$C$9 -> 0.89 | H141: =DATA!$C$10 -> 64 | I141: 1 | J141: 279.375 | K141: 407.8125 | L141: 0.09513888889 | M141: 128.4375 | N141: 0.3149425287 | O141: 0 | R141: 363.7333333 | S141: 317 | T141: 317 | X141: =X142 -> 7 | Y141: =Y138+1 -> 2018-02-15 | Z141: =TEXT(Y141,"ddd") -> do | AA141: DD | AB141: =IFERROR(HLOOKUP(Y141,[1]DATA!$A$1:$NB$5,3,0),"") -> D1 | AC141: 137 | AE141: 24 | AF141: 341 | AG141: 0 | AH141: 9.5 | AI141: 0.7271684588 | AJ141: 1
A142: 7doMD | B142: =VLOOKUP($AA142,DATA!$B$3:$E142,2,0) -> 14:30:00 | C142: =VLOOKUP($AA142,DATA!$B$3:$E142,3,0) -> 22:30:00 | D142: =VLOOKUP($AA142,DATA!$B$3:$E142,4,0) -> 0.03125 | E142: 0.3020833333 | F142: 0.1958333333 | G142: =DATA!$C$9 -> 0.89 | H142: =DATA!$C$10 -> 64 | I142: 1 | J142: 264.375 | K142: 407.8125 | L142: 0.10625 | M142: 143.4375 | N142: 0.3517241379 | O142: 0 | R142: 356.2666667 | S142: 305 | V142: 305 | X142: =WEEKNUM($Y132) -> 7 | Z142: =TEXT(Y141,"ddd") -> do | AA142: MD | AB142: =IFERROR(HLOOKUP(Y141,[1]DATA!$A$1:$NB$5,4,0),"") -> D3 | AC142: 153 | AE142: 29 | AF142: 334 | AG142: 20 | AH142: 12.5 | AI142: 0.6996415771 | AJ142: 0.9468462084
A143: 7doND | B143: =VLOOKUP($AA143,DATA!$B$3:$E143,2,0) -> 22:30:00 | C143: =VLOOKUP($AA143,DATA!$B$3:$E143,3,0) -> 06:30:00 | D143: =VLOOKUP($AA143,DATA!$B$3:$E143,4,0) -> 0.03125 | E143: 0.3020833333 | F143: 0.3020833333 | G143: =DATA!$C$9 -> 0.89 | H143: =DATA!$C$10 -> 64 | I143: 1 | J143: 407.8125 | K143: 407.8125 | L143: 0 | O143: 0 | R143: 0 | X143: =X142 -> 7 | Z143: =TEXT(Y141,"ddd") -> do | AA143: ND | AB143: =IFERROR(HLOOKUP(Y141,[1]DATA!$A$1:$NB$5,5,0),"") -> D2 | AG143: 0
A144: 7vrDD | B144: =VLOOKUP($AA144,DATA!$B$3:$E144,2,0) -> 06:30:00 | C144: =VLOOKUP($AA144,DATA!$B$3:$E144,3,0) -> 14:30:00 | D144: =VLOOKUP($AA144,DATA!$B$3:$E144,4,0) -> 0.03125 | E144: 0.3020833333 | F144: 0.1930555556 | G144: =DATA!$C$9 -> 0.89 | H144: =DATA!$C$10 -> 64 | I144: 1 | J144: 260.625 | K144: 407.8125 | L144: 0.08472222222 | M144: 114.375 | N144: 0.2804597701 | O144: 0.02430555556 | P144: 32.8125 | Q144: 0.08045977011 | R144: 294.4 | S144: 265 | T144: 265 | X144: =X142 -> 7 | Y144: =Y141+1 -> 2018-02-16 | Z144: =TEXT(Y144,"ddd") -> vr | AA144: DD | AB144: =IFERROR(HLOOKUP(Y144,[1]DATA!$A$1:$NB$5,3,0),"") -> D1 | AC144: 122 | AD144: 35 | AE144: 11 | AF144: 276 | AG144: 6 | AH144: -23.75 | AI144: 0.6078853047 | AJ144: 0.9800266312
A145: 7vrMD | B145: =VLOOKUP($AA145,DATA!$B$3:$E145,2,0) -> 14:30:00 | C145: =VLOOKUP($AA145,DATA!$B$3:$E145,3,0) -> 22:30:00 | D145: =VLOOKUP($AA145,DATA!$B$3:$E145,4,0) -> 0.03125 | E145: 0.3020833333 | F145: 0.2583333333 | G145: =DATA!$C$9 -> 0.89 | H145: =DATA!$C$10 -> 64 | I145: 1 | J145: 348.75 | K145: 407.8125 | L145: 0.04375 | M145: 59.0625 | N145: 0.1448275862 | O145: 0 | R145: 304 | S145: 260 | V145: 260 | X145: =X142 -> 7 | Z145: =TEXT(Y144,"ddd") -> vr | AA145: MD | AB145: =IFERROR(HLOOKUP(Y144,[1]DATA!$A$1:$NB$5,4,0),"") -> D3 | AC145: 63 | AE145: 25 | AF145: 285 | AG145: 33 | AH145: -116.875 | AI145: 0.5964157706 | AJ145: 0.9020771513
A146: 7vrND | B146: =VLOOKUP($AA146,DATA!$B$3:$E146,2,0) -> 22:30:00 | C146: =VLOOKUP($AA146,DATA!$B$3:$E146,3,0) -> 06:30:00 | D146: =VLOOKUP($AA146,DATA!$B$3:$E146,4,0) -> 0.03125 | E146: 0.3020833333 | F146: 0.3020833333 | G146: =DATA!$C$9 -> 0.89 | H146: =DATA!$C$10 -> 64 | I146: 1 | J146: 407.8125 | K146: 407.8125 | L146: 0 | O146: 0 | R146: 0 | X146: =X142 -> 7 | Z146: =TEXT(Y144,"ddd") -> vr | AA146: ND | AB146: =IFERROR(HLOOKUP(Y144,[1]DATA!$A$1:$NB$5,5,0),"") -> - | AG146: 0
A147: 7zaDD | B147: =VLOOKUP($AA147,DATA!$B$3:$E147,2,0) -> 06:30:00 | C147: =VLOOKUP($AA147,DATA!$B$3:$E147,3,0) -> 14:30:00 | D147: =VLOOKUP($AA147,DATA!$B$3:$E147,4,0) -> 0.03125 | E147: 0.3020833333 | F147: 0.3020833333 | G147: =DATA!$C$9 -> 0.89 | H147: =DATA!$C$10 -> 64 | I147: 1 | J147: 407.8125 | K147: 407.8125 | L147: 0 | O147: 0 | R147: 0 | X147: =X142 -> 7 | Y147: =Y144+1 -> 2018-02-17 | Z147: =TEXT(Y147,"ddd") -> za | AA147: DD | AB147: =IFERROR(HLOOKUP(Y147,[1]DATA!$A$1:$NB$5,3,0),"") -> - | AG147: 0
A148: 7zaMD | B148: =VLOOKUP($AA148,DATA!$B$3:$E148,2,0) -> 14:30:00 | C148: =VLOOKUP($AA148,DATA!$B$3:$E148,3,0) -> 22:30:00 | D148: =VLOOKUP($AA148,DATA!$B$3:$E148,4,0) -> 0.03125 | E148: 0.3020833333 | F148: 0.3020833333 | G148: =DATA!$C$9 -> 0.89 | H148: =DATA!$C$10 -> 64 | I148: 1 | J148: 407.8125 | K148: 407.8125 | L148: 0 | O148: 0 | R148: 0 | X148: =X142 -> 7 | Z148: =TEXT(Y147,"ddd") -> za | AA148: MD | AB148: =IFERROR(HLOOKUP(Y147,[1]DATA!$A$1:$NB$5,4,0),"") -> - | AG148: 0
A149: 7zaND | B149: =VLOOKUP($AA149,DATA!$B$3:$E149,2,0) -> 22:30:00 | C149: =VLOOKUP($AA149,DATA!$B$3:$E149,3,0) -> 06:30:00 | D149: =VLOOKUP($AA149,DATA!$B$3:$E149,4,0) -> 0.03125 | E149: 0.3020833333 | F149: 0.3020833333 | G149: =DATA!$C$9 -> 0.89 | H149: =DATA!$C$10 -> 64 | I149: 1 | J149: 407.8125 | K149: 407.8125 | L149: 0 | O149: 0 | R149: 0 | X149: =X142 -> 7 | Z149: =TEXT(Y147,"ddd") -> za | AA149: ND | AB149: =IFERROR(HLOOKUP(Y147,[1]DATA!$A$1:$NB$5,5,0),"") -> - | AG149: 0
A150: 7zoDD | B150: =VLOOKUP($AA150,DATA!$B$3:$E150,2,0) -> 06:30:00 | C150: =VLOOKUP($AA150,DATA!$B$3:$E150,3,0) -> 14:30:00 | D150: =VLOOKUP($AA150,DATA!$B$3:$E150,4,0) -> 0.03125 | E150: 0.3020833333 | F150: 0.3020833333 | G150: =DATA!$C$9 -> 0.89 | H150: =DATA!$C$10 -> 64 | I150: 1 | J150: 407.8125 | K150: 407.8125 | L150: 0 | O150: 0 | R150: 0 | X150: =X142 -> 7 | Y150: =Y147+1 -> 2018-02-18 | Z150: =TEXT(Y150,"ddd") -> zo | AA150: DD | AB150: =IFERROR(HLOOKUP(Y150,[1]DATA!$A$1:$NB$5,3,0),"") -> - | AG150: 0
A151: 7zoMD | B151: =VLOOKUP($AA151,DATA!$B$3:$E151,2,0) -> 14:30:00 | C151: =VLOOKUP($AA151,DATA!$B$3:$E151,3,0) -> 22:30:00 | D151: =VLOOKUP($AA151,DATA!$B$3:$E151,4,0) -> 0.03125 | E151: 0.3020833333 | F151: 0.3020833333 | G151: =DATA!$C$9 -> 0.89 | H151: =DATA!$C$10 -> 64 | I151: 1 | J151: 407.8125 | K151: 407.8125 | L151: 0 | O151: 0 | R151: 0 | X151: =X142 -> 7 | Z151: =TEXT(Y150,"ddd") -> zo | AA151: MD | AB151: =IFERROR(HLOOKUP(Y150,[1]DATA!$A$1:$NB$5,4,0),"") -> - | AG151: 0
A152: 7zoZND | B152: =VLOOKUP($AA152,DATA!$B$3:$E152,2,0) -> 00:00:00 | C152: =VLOOKUP($AA152,DATA!$B$3:$E152,3,0) -> 00:00:00 | D152: =VLOOKUP($AA152,DATA!$B$3:$E152,4,0) -> 0 | E152: 0 | F152: 0 | G152: =DATA!$C$9 -> 0.89 | H152: =DATA!$C$10 -> 64 | I152: 1 | J152: 0 | K152: 0 | L152: 0 | O152: 0 | R152: 0 | X152: =X142 -> 7 | Z152: =TEXT(Y150,"ddd") -> zo | AA152: ZND | AB152: =IFERROR(HLOOKUP(Y150,[1]DATA!$A$1:$NB$5,5,0),"") -> D1 | AG152: 0
A153: 8maDD | B153: =VLOOKUP($AA153,DATA!$B$3:$E153,2,0) -> 06:30:00 | C153: =VLOOKUP($AA153,DATA!$B$3:$E153,3,0) -> 14:30:00 | D153: =VLOOKUP($AA153,DATA!$B$3:$E153,4,0) -> 0.03125 | E153: 0.3020833333 | F153: 0.2333333333 | G153: =DATA!$C$9 -> 0.89 | H153: =DATA!$C$10 -> 64 | I153: 1 | J153: 315 | K153: 407.8125 | L153: 0.06875 | M153: 92.8125 | N153: 0.2275862069 | O153: =TIME(INT($AD153/60),INT(MOD($AD153,60)/1),0) -> 0 | R153: 392.5333333 | S153: 343 | V153: 343 | X153: =X163 -> 8 | Y153: =Y150+1 -> 2018-02-19 | Z153: =TEXT(Y153,"ddd") -> ma | AA153: DD | AB153: =IFERROR(HLOOKUP(Y153,[1]DATA!$A$1:$NB$5,3,0),"") -> D3 | AC153: 99 | AE153: 25 | AF153: 368 | AG153: 50 | AH153: -0.125 | AI153: 0.7868100358 | AJ153: 0.8870141609 | AK153: 3923.4375 | AL153: 2881 | AM153: 0.7343050577 | AN153: 908.4375 | AO153: 0.2315412186 | AP153: 0 | AQ153: 0 | AR153: 0.9367030457 | AT153: 0.9390852911 | AU153: 0.933725239 | AV153: 134 | AW153: 0.03415372362 | AX153: 142.9333333 | AY153: 228
A154: 8maMD | B154: =VLOOKUP($AA154,DATA!$B$3:$E154,2,0) -> 14:30:00 | C154: =VLOOKUP($AA154,DATA!$B$3:$E154,3,0) -> 22:30:00 | D154: =VLOOKUP($AA154,DATA!$B$3:$E154,4,0) -> 0.03125 | E154: 0.3020833333 | F154: 0.2493055556 | G154: =DATA!$C$9 -> 0.89 | H154: =DATA!$C$10 -> 64 | I154: 1 | J154: 336.5625 | K154: 407.8125 | L154: 0.05277777778 | M154: 71.25 | N154: 0.1747126437 | O154: =TIME(INT(AD154/60),INT(MOD(AD154,60)/1),0) -> 0 | R154: 409.6 | S154: 356 | U154: 356 | X154: =X163 -> 8 | Z154: =TEXT(Y153,"ddd") -> ma | AA154: MD | AB154: =IFERROR(HLOOKUP(Y153,[1]DATA!$A$1:$NB$5,4,0),"") -> D2 | AC154: 76 | AE154: 28 | AF154: 384 | AG154: 50 | AH154: -8.6875 | AI154: 0.8166308244 | AJ154: 0.8912097476
A155: 8maND | B155: =VLOOKUP($AA155,DATA!$B$3:$E155,2,0) -> 22:30:00 | C155: =VLOOKUP($AA155,DATA!$B$3:$E155,3,0) -> 06:30:00 | D155: =VLOOKUP($AA155,DATA!$B$3:$E155,4,0) -> 0.03125 | E155: 0.3020833333 | F155: 0.3020833333 | G155: =DATA!$C$9 -> 0.89 | H155: =DATA!$C$10 -> 64 | I155: 1 | J155: 407.8125 | K155: 407.8125 | L155: 0 | O155: 0 | R155: 0 | X155: =X163 -> 8 | Z155: =TEXT(Y153,"ddd") -> ma | AA155: ND | AB155: =IFERROR(HLOOKUP(Y153,[1]DATA!$A$1:$NB$5,5,0),"") -> D1 | AG155: 0
A156: 8diDD | B156: =VLOOKUP($AA156,DATA!$B$3:$E156,2,0) -> 06:30:00 | C156: =VLOOKUP($AA156,DATA!$B$3:$E156,3,0) -> 14:30:00 | D156: =VLOOKUP($AA156,DATA!$B$3:$E156,4,0) -> 0.03125 | E156: =(C156-B156+(B156>C156))-D156 -> 0.3020833333 | F156: =E156-O156-L156 -> 0.1743055556 | G156: =DATA!$C$9 -> 0.89 | H156: =DATA!$C$10 -> 64 | I156: 1 | J156: 235.3125 | K156: 407.8125 | L156: 0.1277777778 | M156: 172.5 | N156: 0.4229885057 | O156: 0 | R156: 221.8666667 | S156: 199 | V156: 199 | X156: =X163 -> 8 | Y156: =Y153+1 -> 2018-02-20 | Z156: =TEXT(Y156,"ddd") -> di | AA156: DD | AB156: =IFERROR(HLOOKUP(Y156,[1]DATA!$A$1:$NB$5,3,0),"") -> D3 | AC156: 184 | AE156: 9 | AF156: 208 | AG156: 20 | AH156: -64.4375 | AI156: 0.4564874552 | AJ156: 0.9173098126
A157: 8diMD | B157: =VLOOKUP($AA157,DATA!$B$3:$E157,2,0) -> 14:30:00 | C157: =VLOOKUP($AA157,DATA!$B$3:$E157,3,0) -> 22:30:00 | D157: =VLOOKUP($AA157,DATA!$B$3:$E157,4,0) -> 0.03125 | E157: 0.3020833333 | F157: 0.2347222222 | G157: =DATA!$C$9 -> 0.89 | H157: =DATA!$C$10 -> 64 | I157: 1 | J157: 316.875 | K157: 407.8125 | L157: 0.06736111111 | M157: 90.9375 | N157: 0.2229885057 | O157: 0 | R157: 418.1333333 | S157: 354 | U157: 354 | X157: =X163 -> 8 | Z157: =TEXT(Y156,"ddd") -> di | AA157: MD | AB157: =IFERROR(HLOOKUP(Y156,[1]DATA!$A$1:$NB$5,4,0),"") -> D2 | AC157: 97 | AE157: 38 | AF157: 392 | AG157: 17 | AH157: 9 | AI157: 0.8120430108 | AJ157: 0.9609315152
A158: 8diND | B158: =VLOOKUP($AA158,DATA!$B$3:$E158,2,0) -> 22:30:00 | C158: =VLOOKUP($AA158,DATA!$B$3:$E158,3,0) -> 06:30:00 | D158: =VLOOKUP($AA158,DATA!$B$3:$E158,4,0) -> 0.03125 | E158: 0.3020833333 | F158: 0.3020833333 | G158: =DATA!$C$9 -> 0.89 | H158: =DATA!$C$10 -> 64 | I158: 1 | J158: 407.8125 | K158: 407.8125 | L158: 0 | O158: 0 | R158: 0 | X158: =X163 -> 8 | Z158: =TEXT(Y156,"ddd") -> di | AA158: ND | AB158: =IFERROR(HLOOKUP(Y156,[1]DATA!$A$1:$NB$5,5,0),"") -> D1 | AG158: 0
A159: 8woDD | B159: =VLOOKUP($AA159,DATA!$B$3:$E159,2,0) -> 06:30:00 | C159: =VLOOKUP($AA159,DATA!$B$3:$E159,3,0) -> 14:30:00 | D159: =VLOOKUP($AA159,DATA!$B$3:$E159,4,0) -> 0.03125 | E159: 0.3020833333 | F159: 0.1840277778 | G159: =DATA!$C$9 -> 0.89 | H159: =DATA!$C$10 -> 64 | I159: 1 | J159: 248.4375 | K159: 407.8125 | L159: 0.1180555556 | M159: 159.375 | N159: 0.3908045977 | O159: 0 | R159: 358.4 | S159: 298 | V159: 298 | X159: =X163 -> 8 | Y159: =Y156+1 -> 2018-02-21 | Z159: =TEXT(Y159,"ddd") -> wo | AA159: DD | AB159: =IFERROR(HLOOKUP(Y159,[1]DATA!$A$1:$NB$5,3,0),"") -> D3 | AC159: 170 | AE159: 38 | AF159: 336 | AG159: 0 | AH159: 21.4375 | AI159: 0.6835842294 | AJ159: 1
A160: 8woMD | B160: =VLOOKUP($AA160,DATA!$B$3:$E160,2,0) -> 14:30:00 | C160: =VLOOKUP($AA160,DATA!$B$3:$E160,3,0) -> 22:30:00 | D160: =VLOOKUP($AA160,DATA!$B$3:$E160,4,0) -> 0.03125 | E160: 0.3020833333 | F160: 0.2395833333 | G160: =DATA!$C$9 -> 0.89 | H160: =DATA!$C$10 -> 64 | I160: 1 | J160: 323.4375 | K160: 407.8125 | L160: 0.0625 | M160: 84.375 | N160: 0.2068965517 | O160: 0 | R160: 410.6666667 | S160: 362 | U160: 362 | X160: =X163 -> 8 | Z160: =TEXT(Y159,"ddd") -> wo | AA160: MD | AB160: =IFERROR(HLOOKUP(Y159,[1]DATA!$A$1:$NB$5,4,0),"") -> D2 | AC160: 90 | AE160: 23 | AF160: 385 | AG160: 22 | AH160: 10.4375 | AI160: 0.8303942652 | AJ160: 0.9491525424
A161: 8woND | B161: =VLOOKUP($AA161,DATA!$B$3:$E161,2,0) -> 22:30:00 | C161: =VLOOKUP($AA161,DATA!$B$3:$E161,3,0) -> 06:30:00 | D161: =VLOOKUP($AA161,DATA!$B$3:$E161,4,0) -> 0.03125 | E161: 0.3020833333 | F161: 0.3020833333 | G161: =DATA!$C$9 -> 0.89 | H161: =DATA!$C$10 -> 64 | I161: 1 | J161: 407.8125 | K161: 407.8125 | L161: 0 | O161: 0 | R161: 0 | X161: =X163 -> 8 | Z161: =TEXT(Y159,"ddd") -> wo | AA161: ND | AB161: =IFERROR(HLOOKUP(Y159,[1]DATA!$A$1:$NB$5,5,0),"") -> D1 | AG161: 0
A162: 8doDD | B162: =VLOOKUP($AA162,DATA!$B$3:$E162,2,0) -> 06:30:00 | C162: =VLOOKUP($AA162,DATA!$B$3:$E162,3,0) -> 14:30:00 | D162: =VLOOKUP($AA162,DATA!$B$3:$E162,4,0) -> 0.03125 | E162: 0.3020833333 | F162: 0.2458333333 | G162: =DATA!$C$9 -> 0.89 | H162: =DATA!$C$10 -> 64 | I162: 1 | J162: 331.875 | K162: 407.8125 | L162: 0.05625 | M162: 75.9375 | N162: 0.1862068966 | O162: 0 | R162: 402.1333333 | S162: 348 | V162: 348 | X162: =X163 -> 8 | Y162: =Y159+1 -> 2018-02-22 | Z162: =TEXT(Y162,"ddd") -> do | AA162: DD | AB162: =IFERROR(HLOOKUP(Y162,[1]DATA!$A$1:$NB$5,3,0),"") -> D3 | AC162: 81 | AE162: 29 | AF162: 377 | AG162: 30 | AH162: -12 | AI162: 0.7982795699 | AJ162: 0.9305769824
A163: 8doMD | B163: =VLOOKUP($AA163,DATA!$B$3:$E163,2,0) -> 14:30:00 | C163: =VLOOKUP($AA163,DATA!$B$3:$E163,3,0) -> 22:30:00 | D163: =VLOOKUP($AA163,DATA!$B$3:$E163,4,0) -> 0.03125 | E163: 0.3020833333 | F163: 0.2729166667 | G163: =DATA!$C$9 -> 0.89 | H163: =DATA!$C$10 -> 64 | I163: 1 | J163: 368.4375 | K163: 407.8125 | L163: 0.02916666667 | M163: 39.375 | N163: 0.09655172414 | O163: 0 | R163: 423.4666667 | S163: 357 | U163: 357 | X163: =WEEKNUM($Y153) -> 8 | Z163: =TEXT(Y162,"ddd") -> do | AA163: MD | AB163: =IFERROR(HLOOKUP(Y162,[1]DATA!$A$1:$NB$5,4,0),"") -> D2 | AC163: 42 | AE163: 40 | AF163: 397 | AG163: 13 | AH163: -39.5625 | AI163: 0.8189247312 | AJ163: 0.9702153658
A164: 8doND | B164: =VLOOKUP($AA164,DATA!$B$3:$E164,2,0) -> 22:30:00 | C164: =VLOOKUP($AA164,DATA!$B$3:$E164,3,0) -> 06:30:00 | D164: =VLOOKUP($AA164,DATA!$B$3:$E164,4,0) -> 0.03125 | E164: 0.3020833333 | F164: 0.3020833333 | G164: =DATA!$C$9 -> 0.89 | H164: =DATA!$C$10 -> 64 | I164: 1 | J164: 407.8125 | K164: 407.8125 | L164: 0 | O164: 0 | R164: 0 | X164: =X163 -> 8 | Z164: =TEXT(Y162,"ddd") -> do | AA164: ND | AB164: =IFERROR(HLOOKUP(Y162,[1]DATA!$A$1:$NB$5,5,0),"") -> D1 | AG164: 0
A165: 8vrDD | B165: =VLOOKUP($AA165,DATA!$B$3:$E165,2,0) -> 06:30:00 | C165: =VLOOKUP($AA165,DATA!$B$3:$E165,3,0) -> 14:30:00 | D165: =VLOOKUP($AA165,DATA!$B$3:$E165,4,0) -> 0.03125 | E165: 0.3020833333 | F165: 0.3020833333 | G165: =DATA!$C$9 -> 0.89 | H165: =DATA!$C$10 -> 64 | I165: 1 | J165: 407.8125 | K165: 407.8125 | L165: 0 | O165: 0 | R165: 0 | X165: =X163 -> 8 | Y165: =Y162+1 -> 2018-02-23 | Z165: =TEXT(Y165,"ddd") -> vr | AA165: DD | AB165: D3 | AC165: 0 | AE165: 0 | AF165: 0 | AG165: 0
A166: 8vrMD | B166: =VLOOKUP($AA166,DATA!$B$3:$E166,2,0) -> 14:30:00 | C166: =VLOOKUP($AA166,DATA!$B$3:$E166,3,0) -> 22:30:00 | D166: =VLOOKUP($AA166,DATA!$B$3:$E166,4,0) -> 0.03125 | E166: 0.3020833333 | F166: 0.2118055556 | G166: =DATA!$C$9 -> 0.89 | H166: =DATA!$C$10 -> 64 | I166: 1 | J166: 285.9375 | K166: 407.8125 | L166: 0.09027777778 | M166: 121.875 | N166: 0.2988505747 | O166: 0 | R166: 315.7333333 | S166: 264 | U166: 264 | X166: =X163 -> 8 | Z166: =TEXT(Y165,"ddd") -> vr | AA166: MD | AB166: =IFERROR(HLOOKUP(Y165,[1]DATA!$A$1:$NB$5,4,0),"") -> D2 | AC166: 130 | AE166: 32 | AF166: 296 | AG166: 26 | AH166: -50.0625 | AI166: 0.6055913978 | AJ166: 0.9239172844
A167: 8vrND | B167: =VLOOKUP($AA167,DATA!$B$3:$E167,2,0) -> 22:30:00 | C167: =VLOOKUP($AA167,DATA!$B$3:$E167,3,0) -> 06:30:00 | D167: =VLOOKUP($AA167,DATA!$B$3:$E167,4,0) -> 0.03125 | E167: 0.3020833333 | F167: 0.3020833333 | G167: =DATA!$C$9 -> 0.89 | H167: =DATA!$C$10 -> 64 | I167: 1 | J167: 407.8125 | K167: 407.8125 | L167: 0 | O167: 0 | R167: 0 | X167: =X163 -> 8 | Z167: =TEXT(Y165,"ddd") -> vr | AA167: ND | AB167: =IFERROR(HLOOKUP(Y165,[1]DATA!$A$1:$NB$5,5,0),"") -> - | AG167: 0
A168: 8zaDD | B168: =VLOOKUP($AA168,DATA!$B$3:$E168,2,0) -> 06:30:00 | C168: =VLOOKUP($AA168,DATA!$B$3:$E168,3,0) -> 14:30:00 | D168: =VLOOKUP($AA168,DATA!$B$3:$E168,4,0) -> 0.03125 | E168: 0.3020833333 | F168: 0.3020833333 | G168: =DATA!$C$9 -> 0.89 | H168: =DATA!$C$10 -> 64 | I168: 1 | J168: 407.8125 | K168: 407.8125 | L168: 0 | O168: 0 | R168: 0 | X168: =X163 -> 8 | Y168: =Y165+1 -> 2018-02-24 | Z168: =TEXT(Y168,"ddd") -> za | AA168: DD | AB168: =IFERROR(HLOOKUP(Y168,[1]DATA!$A$1:$NB$5,3,0),"") -> - | AG168: 0
A169: 8zaMD | B169: =VLOOKUP($AA169,DATA!$B$3:$E169,2,0) -> 14:30:00 | C169: =VLOOKUP($AA169,DATA!$B$3:$E169,3,0) -> 22:30:00 | D169: =VLOOKUP($AA169,DATA!$B$3:$E169,4,0) -> 0.03125 | E169: 0.3020833333 | F169: 0.3020833333 | G169: =DATA!$C$9 -> 0.89 | H169: =DATA!$C$10 -> 64 | I169: 1 | J169: 407.8125 | K169: 407.8125 | L169: 0 | O169: 0 | R169: 0 | X169: =X163 -> 8 | Z169: =TEXT(Y168,"ddd") -> za | AA169: MD | AB169: =IFERROR(HLOOKUP(Y168,[1]DATA!$A$1:$NB$5,4,0),"") -> - | AG169: 0
A170: 8zaND | B170: =VLOOKUP($AA170,DATA!$B$3:$E170,2,0) -> 22:30:00 | C170: =VLOOKUP($AA170,DATA!$B$3:$E170,3,0) -> 06:30:00 | D170: =VLOOKUP($AA170,DATA!$B$3:$E170,4,0) -> 0.03125 | E170: 0.3020833333 | F170: 0.3020833333 | G170: =DATA!$C$9 -> 0.89 | H170: =DATA!$C$10 -> 64 | I170: 1 | J170: 407.8125 | K170: 407.8125 | L170: 0 | O170: 0 | R170: 0 | X170: =X163 -> 8 | Z170: =TEXT(Y168,"ddd") -> za | AA170: ND | AB170: =IFERROR(HLOOKUP(Y168,[1]DATA!$A$1:$NB$5,5,0),"") -> - | AG170: 0
A171: 8zoDD | B171: =VLOOKUP($AA171,DATA!$B$3:$E171,2,0) -> 06:30:00 | C171: =VLOOKUP($AA171,DATA!$B$3:$E171,3,0) -> 14:30:00 | D171: =VLOOKUP($AA171,DATA!$B$3:$E171,4,0) -> 0.03125 | E171: 0.3020833333 | F171: 0.3020833333 | G171: =DATA!$C$9 -> 0.89 | H171: =DATA!$C$10 -> 64 | I171: 1 | J171: 407.8125 | K171: 407.8125 | L171: 0 | O171: 0 | R171: 0 | X171: =X163 -> 8 | Y171: =Y168+1 -> 2018-02-25 | Z171: =TEXT(Y171,"ddd") -> zo | AA171: DD | AB171: =IFERROR(HLOOKUP(Y171,[1]DATA!$A$1:$NB$5,3,0),"") -> - | AG171: 0
A172: 8zoMD | B172: =VLOOKUP($AA172,DATA!$B$3:$E172,2,0) -> 14:30:00 | C172: =VLOOKUP($AA172,DATA!$B$3:$E172,3,0) -> 22:30:00 | D172: =VLOOKUP($AA172,DATA!$B$3:$E172,4,0) -> 0.03125 | E172: 0.3020833333 | F172: 0.3020833333 | G172: =DATA!$C$9 -> 0.89 | H172: =DATA!$C$10 -> 64 | I172: 1 | J172: 407.8125 | K172: 407.8125 | L172: 0 | O172: 0 | R172: 0 | X172: =X163 -> 8 | Z172: =TEXT(Y171,"ddd") -> zo | AA172: MD | AB172: =IFERROR(HLOOKUP(Y171,[1]DATA!$A$1:$NB$5,4,0),"") -> - | AG172: 0
A173: 8zoZND | B173: =VLOOKUP($AA173,DATA!$B$3:$E173,2,0) -> 00:00:00 | C173: =VLOOKUP($AA173,DATA!$B$3:$E173,3,0) -> 00:00:00 | D173: =VLOOKUP($AA173,DATA!$B$3:$E173,4,0) -> 0 | E173: 0 | F173: 0 | G173: =DATA!$C$9 -> 0.89 | H173: =DATA!$C$10 -> 64 | I173: 1 | J173: 0 | K173: 0 | L173: 0 | O173: 0 | R173: 0 | X173: =X163 -> 8 | Z173: =TEXT(Y171,"ddd") -> zo | AA173: ZND | AB173: =IFERROR(HLOOKUP(Y171,[1]DATA!$A$1:$NB$5,5,0),"") -> D3 | AG173: 0
A174: 9maDD | B174: =VLOOKUP($AA174,DATA!$B$3:$E174,2,0) -> 06:30:00 | C174: =VLOOKUP($AA174,DATA!$B$3:$E174,3,0) -> 14:30:00 | D174: =VLOOKUP($AA174,DATA!$B$3:$E174,4,0) -> 0.03125 | E174: 0.3020833333 | F174: 0.3020833333 | G174: =DATA!$C$9 -> 0.89 | H174: =DATA!$C$10 -> 64 | I174: 1 | J174: 407.8125 | K174: 407.8125 | L174: 0 | O174: =TIME(INT($AD174/60),INT(MOD($AD174,60)/1),0) -> 0 | R174: 142.9333333 | S174: 120 | U174: 120 | X174: =X184 -> 9 | Y174: =Y171+1 -> 2018-02-26 | Z174: =TEXT(Y174,"ddd") -> ma | AA174: DD | AB174: =IFERROR(HLOOKUP(Y174,[1]DATA!$A$1:$NB$5,3,0),"") -> D2 | AE174: 14 | AF174: 134 | AG174: 0 | AH174: -315.9375 | AI174: 0.2752688172 | AJ174: 1 | AK174: 4359.375 | AL174: 3117 | AM174: 0.7150107527 | AN174: 263.4375 | AO174: 0.06043010753 | AP174: 0 | AQ174: 0 | AR174: 0.9500234467 | AS174: 0.9557654976 | AT174: 0.9442813957 | AV174: 978.9375 | AW174: 0.2245591398 | AX174: 1044.2 | AY174: 213
A175: 9maMD | B175: =VLOOKUP($AA175,DATA!$B$3:$E175,2,0) -> 14:30:00 | C175: =VLOOKUP($AA175,DATA!$B$3:$E175,3,0) -> 22:30:00 | D175: =VLOOKUP($AA175,DATA!$B$3:$E175,4,0) -> 0.03125 | E175: 0.3020833333 | F175: 0.3020833333 | G175: =DATA!$C$9 -> 0.89 | H175: =DATA!$C$10 -> 64 | I175: 1 | J175: 407.8125 | K175: 407.8125 | L175: 0 | O175: =TIME(INT(AD175/60),INT(MOD(AD175,60)/1),0) -> 0 | R175: 366.9333333 | S175: 314 | T175: 314 | X175: =X184 -> 9 | Z175: =TEXT(Y174,"ddd") -> ma | AA175: MD | AB175: =IFERROR(HLOOKUP(Y174,[1]DATA!$A$1:$NB$5,4,0),"") -> D1 | AE175: 30 | AF175: 344 | AG175: 5 | AH175: -121.9375 | AI175: 0.7202867384 | AJ175: 0.9865567306
A176: =X176&Z176&AA176 -> 9maND | B176: =VLOOKUP($AA176,DATA!$B$3:$E176,2,0) -> 22:30:00 | C176: =VLOOKUP($AA176,DATA!$B$3:$E176,3,0) -> 06:30:00 | D176: =VLOOKUP($AA176,DATA!$B$3:$E176,4,0) -> 0.03125 | E176: 0.3020833333 | F176: 0.3020833333 | G176: =DATA!$C$9 -> 0.89 | H176: =DATA!$C$10 -> 64 | I176: 1 | J176: 407.8125 | K176: 407.8125 | L176: 0 | O176: 0 | P176: =IF($O176*86400/$H176=0,"",$O176*86400/$H176) ->  | R176: 0 | X176: =X184 -> 9 | Z176: =TEXT(Y174,"ddd") -> ma | AA176: ND | AB176: =IFERROR(HLOOKUP(Y174,[1]DATA!$A$1:$NB$5,5,0),"") -> D3 | AG176: 0
A177: 9diDD | B177: =VLOOKUP($AA177,DATA!$B$3:$E177,2,0) -> 06:30:00 | C177: =VLOOKUP($AA177,DATA!$B$3:$E177,3,0) -> 14:30:00 | D177: =VLOOKUP($AA177,DATA!$B$3:$E177,4,0) -> 0.03125 | E177: 0.3020833333 | F177: 0.3020833333 | G177: =DATA!$C$9 -> 0.89 | H177: =DATA!$C$10 -> 64 | I177: 1 | J177: 407.8125 | K177: 407.8125 | L177: 0 | O177: 0 | R177: 403.2 | S177: 344 | U177: 344 | X177: =X184 -> 9 | Y177: =Y174+1 -> 2018-02-27 | Z177: =TEXT(Y177,"ddd") -> di | AA177: DD | AB177: =IFERROR(HLOOKUP(Y177,[1]DATA!$A$1:$NB$5,3,0),"") -> D2 | AE177: 34 | AF177: 378 | AG177: 19 | AH177: -91.9375 | AI177: 0.7891039427 | AJ177: 0.9549976315
A178: 9diMD | B178: =VLOOKUP($AA178,DATA!$B$3:$E178,2,0) -> 14:30:00 | C178: =VLOOKUP($AA178,DATA!$B$3:$E178,3,0) -> 22:30:00 | D178: =VLOOKUP($AA178,DATA!$B$3:$E178,4,0) -> 0.03125 | E178: 0.3020833333 | F178: 0.3020833333 | G178: =DATA!$C$9 -> 0.89 | H178: =DATA!$C$10 -> 64 | I178: 1 | J178: 407.8125 | K178: 407.8125 | L178: 0 | O178: 0 | R178: 406.4 | S178: 340 | T178: 340 | X178: =X184 -> 9 | Z178: =TEXT(Y177,"ddd") -> di | AA178: MD | AB178: =IFERROR(HLOOKUP(Y177,[1]DATA!$A$1:$NB$5,4,0),"") -> D1 | AE178: 41 | AF178: 381 | AG178: 20 | AH178: -95.9375 | AI178: 0.7799283154 | AJ178: 0.9530956848
A179: 9diND | B179: =VLOOKUP($AA179,DATA!$B$3:$E179,2,0) -> 22:30:00 | C179: =VLOOKUP($AA179,DATA!$B$3:$E179,3,0) -> 06:30:00 | D179: =VLOOKUP($AA179,DATA!$B$3:$E179,4,0) -> 0.03125 | E179: 0.3020833333 | F179: 0.3020833333 | G179: =DATA!$C$9 -> 0.89 | H179: =DATA!$C$10 -> 64 | I179: 1 | J179: 407.8125 | K179: 407.8125 | L179: 0 | O179: 0 | R179: 0 | X179: =X184 -> 9 | Z179: =TEXT(Y177,"ddd") -> di | AA179: ND | AB179: =IFERROR(HLOOKUP(Y177,[1]DATA!$A$1:$NB$5,5,0),"") -> D3 | AG179: 0
A180: 9woDD | B180: =VLOOKUP($AA180,DATA!$B$3:$E180,2,0) -> 06:30:00 | C180: =VLOOKUP($AA180,DATA!$B$3:$E180,3,0) -> 14:30:00 | D180: =VLOOKUP($AA180,DATA!$B$3:$E180,4,0) -> 0.03125 | E180: 0.3020833333 | F180: 0.3020833333 | G180: =DATA!$C$9 -> 0.89 | H180: =DATA!$C$10 -> 64 | I180: 1 | J180: 407.8125 | K180: 407.8125 | L180: 0 | O180: 0 | R180: 375.4666667 | S180: 317 | U180: 317 | X180: =X184 -> 9 | Y180: =Y177+1 -> 2018-02-28 | Z180: =TEXT(Y180,"ddd") -> wo | AA180: DD | AB180: =IFERROR(HLOOKUP(Y180,[1]DATA!$A$1:$NB$5,3,0),"") -> D2 | AE180: 35 | AF180: 352 | AG180: 20 | AH180: -118.9375 | AI180: 0.7271684588 | AJ180: 0.9494268375
A181: 9woMD | B181: =VLOOKUP($AA181,DATA!$B$3:$E181,2,0) -> 14:30:00 | C181: =VLOOKUP($AA181,DATA!$B$3:$E181,3,0) -> 22:30:00 | D181: =VLOOKUP($AA181,DATA!$B$3:$E181,4,0) -> 0.03125 | E181: 0.3020833333 | F181: 0.3020833333 | G181: =DATA!$C$9 -> 0.89 | H181: =DATA!$C$10 -> 64 | I181: 1 | J181: 407.8125 | K181: 407.8125 | L181: 0 | O181: 0 | R181: 421.3333333 | S181: 355 | T181: 355 | X181: =X184 -> 9 | Z181: =TEXT(Y180,"ddd") -> wo | AA181: MD | AB181: =IFERROR(HLOOKUP(Y180,[1]DATA!$A$1:$NB$5,4,0),"") -> D1 | AE181: 40 | AF181: 395 | AG181: 10 | AH181: -80.9375 | AI181: 0.8143369176 | AJ181: 0.9768160742
A182: 9woND | B182: =VLOOKUP($AA182,DATA!$B$3:$E182,2,0) -> 22:30:00 | C182: =VLOOKUP($AA182,DATA!$B$3:$E182,3,0) -> 06:30:00 | D182: =VLOOKUP($AA182,DATA!$B$3:$E182,4,0) -> 0.03125 | E182: 0.3020833333 | F182: 0.3020833333 | G182: =DATA!$C$9 -> 0.89 | H182: =DATA!$C$10 -> 64 | I182: 1 | J182: 407.8125 | K182: 407.8125 | L182: 0 | O182: 0 | R182: 0 | X182: =X184 -> 9 | Z182: =TEXT(Y180,"ddd") -> wo | AA182: ND | AB182: =IFERROR(HLOOKUP(Y180,[1]DATA!$A$1:$NB$5,5,0),"") -> D3 | AG182: 0
A183: 9doDD | B183: =VLOOKUP($AA183,DATA!$B$3:$E183,2,0) -> 06:30:00 | C183: =VLOOKUP($AA183,DATA!$B$3:$E183,3,0) -> 14:30:00 | D183: =VLOOKUP($AA183,DATA!$B$3:$E183,4,0) -> 0.03125 | E183: 0.3020833333 | F183: 0.2541666667 | G183: =DATA!$C$9 -> 0.89 | H183: =DATA!$C$10 -> 64 | I183: 1 | J183: 343.125 | K183: 407.8125 | L183: 0.04791666667 | M183: 64.6875 | N183: 0.1586206897 | O183: 0 | R183: 381.8666667 | S183: 317 | U183: 317 | X183: =X184 -> 9 | Y183: =Y180+1 -> 2018-03-01 | Z183: =TEXT(Y183,"ddd") -> do | AA183: DD | AB183: =IFERROR(HLOOKUP(Y183,[1]DATA!$A$1:$NB$5,3,0),"") -> D2 | AC183: 69 | AE183: 41 | AF183: 358 | AG183: 30 | AH183: -54.25 | AI183: 0.7271684588 | AJ183: 0.9271608935
A184: 9doMD | B184: =VLOOKUP($AA184,DATA!$B$3:$E184,2,0) -> 14:30:00 | C184: =VLOOKUP($AA184,DATA!$B$3:$E184,3,0) -> 22:30:00 | D184: =VLOOKUP($AA184,DATA!$B$3:$E184,4,0) -> 0.03125 | E184: 0.3020833333 | F184: 0.2388888889 | G184: =DATA!$C$9 -> 0.89 | H184: =DATA!$C$10 -> 64 | I184: 1 | J184: 322.5 | K184: 407.8125 | L184: 0.06319444444 | M184: 85.3125 | N184: 0.2091954023 | O184: 0 | R184: 366.9333333 | S184: 326 | T184: 326 | X184: =WEEKNUM($Y174) -> 9 | Z184: =TEXT(Y183,"ddd") -> do | AA184: MD | AB184: =IFERROR(HLOOKUP(Y183,[1]DATA!$A$1:$NB$5,4,0),"") -> D1 | AC184: 91 | AE184: 18 | AF184: 344 | AG184: 10 | AH184: -24.625 | AI184: 0.7478136201 | AJ184: 0.9734701097
A185: 9doND | B185: =VLOOKUP($AA185,DATA!$B$3:$E185,2,0) -> 22:30:00 | C185: =VLOOKUP($AA185,DATA!$B$3:$E185,3,0) -> 06:30:00 | D185: =VLOOKUP($AA185,DATA!$B$3:$E185,4,0) -> 0.03125 | E185: 0.3020833333 | F185: 0.3020833333 | G185: =DATA!$C$9 -> 0.89 | H185: =DATA!$C$10 -> 64 | I185: 1 | J185: 407.8125 | K185: 407.8125 | L185: 0 | O185: 0 | R185: 0 | X185: =X184 -> 9 | Z185: =TEXT(Y183,"ddd") -> do | AA185: ND | AB185: =IFERROR(HLOOKUP(Y183,[1]DATA!$A$1:$NB$5,5,0),"") -> D3 | AG185: 0
A186: 9vrDD | B186: =VLOOKUP($AA186,DATA!$B$3:$E186,2,0) -> 06:30:00 | C186: =VLOOKUP($AA186,DATA!$B$3:$E186,3,0) -> 14:30:00 | D186: =VLOOKUP($AA186,DATA!$B$3:$E186,4,0) -> 0.03125 | E186: 0.3020833333 | F186: 0.2590277778 | G186: =DATA!$C$9 -> 0.89 | H186: =DATA!$C$10 -> 64 | I186: 1 | J186: 349.6875 | K186: 407.8125 | L186: 0.04305555556 | M186: 58.125 | N186: 0.1425287356 | O186: 0 | R186: 395.7333333 | S186: 334 | U186: 334 | X186: =X184 -> 9 | Y186: =Y183+1 -> 2018-03-02 | Z186: =TEXT(Y186,"ddd") -> vr | AA186: DD | AB186: =IFERROR(HLOOKUP(Y186,[1]DATA!$A$1:$NB$5,3,0),"") -> D2 | AC186: 62 | AE186: 37 | AF186: 371 | AG186: 49 | AH186: -43.8125 | AI186: 0.7661648746 | AJ186: 0.8898216159
A187: 9vrMD | B187: =VLOOKUP($AA187,DATA!$B$3:$E187,2,0) -> 14:30:00 | C187: =VLOOKUP($AA187,DATA!$B$3:$E187,3,0) -> 22:30:00 | D187: =VLOOKUP($AA187,DATA!$B$3:$E187,4,0) -> 0.03125 | E187: 0.3020833333 | F187: 0.2611111111 | G187: =DATA!$C$9 -> 0.89 | H187: =DATA!$C$10 -> 64 | I187: 1 | J187: 352.5 | K187: 407.8125 | L187: 0.04097222222 | M187: 55.3125 | N187: 0.1356321839 | O187: 0 | R187: 400 | S187: 350 | T187: 350 | X187: =X184 -> 9 | Z187: =TEXT(Y186,"ddd") -> vr | AA187: MD | AB187: =IFERROR(HLOOKUP(Y186,[1]DATA!$A$1:$NB$5,4,0),"") -> D1 | AC187: 59 | AE187: 25 | AF187: 375 | AG187: 50 | AH187: -30.625 | AI187: 0.8028673835 | AJ187: 0.8888888889
A188: 9vrND | B188: =VLOOKUP($AA188,DATA!$B$3:$E188,2,0) -> 22:30:00 | C188: =VLOOKUP($AA188,DATA!$B$3:$E188,3,0) -> 06:30:00 | D188: =VLOOKUP($AA188,DATA!$B$3:$E188,4,0) -> 0.03125 | E188: 0.3020833333 | F188: 0.3020833333 | G188: =DATA!$C$9 -> 0.89 | H188: =DATA!$C$10 -> 64 | I188: 1 | J188: 407.8125 | K188: 407.8125 | L188: 0 | O188: 0 | R188: 0 | X188: =X184 -> 9 | Z188: =TEXT(Y186,"ddd") -> vr | AA188: ND | AB188: =IFERROR(HLOOKUP(Y186,[1]DATA!$A$1:$NB$5,5,0),"") -> - | AG188: 0
A189: 9zaDD | B189: =VLOOKUP($AA189,DATA!$B$3:$E189,2,0) -> 06:30:00 | C189: =VLOOKUP($AA189,DATA!$B$3:$E189,3,0) -> 14:30:00 | D189: =VLOOKUP($AA189,DATA!$B$3:$E189,4,0) -> 0.03125 | E189: 0.3020833333 | F189: 0.3020833333 | G189: =DATA!$C$9 -> 0.89 | H189: =DATA!$C$10 -> 64 | I189: 1 | J189: 407.8125 | K189: 407.8125 | L189: 0 | O189: 0 | R189: 0 | X189: =X184 -> 9 | Y189: =Y186+1 -> 2018-03-03 | Z189: =TEXT(Y189,"ddd") -> za | AA189: DD | AB189: =IFERROR(HLOOKUP(Y189,[1]DATA!$A$1:$NB$5,3,0),"") -> - | AG189: 0
A190: 9zaMD | B190: =VLOOKUP($AA190,DATA!$B$3:$E190,2,0) -> 14:30:00 | C190: =VLOOKUP($AA190,DATA!$B$3:$E190,3,0) -> 22:30:00 | D190: =VLOOKUP($AA190,DATA!$B$3:$E190,4,0) -> 0.03125 | E190: 0.3020833333 | F190: 0.3020833333 | G190: =DATA!$C$9 -> 0.89 | H190: =DATA!$C$10 -> 64 | I190: 1 | J190: 407.8125 | K190: 407.8125 | L190: 0 | O190: 0 | R190: 0 | X190: =X184 -> 9 | Z190: =TEXT(Y189,"ddd") -> za | AA190: MD | AB190: =IFERROR(HLOOKUP(Y189,[1]DATA!$A$1:$NB$5,4,0),"") -> - | AG190: 0
A191: 9zaND | B191: =VLOOKUP($AA191,DATA!$B$3:$E191,2,0) -> 22:30:00 | C191: =VLOOKUP($AA191,DATA!$B$3:$E191,3,0) -> 06:30:00 | D191: =VLOOKUP($AA191,DATA!$B$3:$E191,4,0) -> 0.03125 | E191: 0.3020833333 | F191: 0.3020833333 | G191: =DATA!$C$9 -> 0.89 | H191: =DATA!$C$10 -> 64 | I191: 1 | J191: 407.8125 | K191: 407.8125 | L191: 0 | O191: 0 | R191: 0 | X191: =X184 -> 9 | Z191: =TEXT(Y189,"ddd") -> za | AA191: ND | AB191: =IFERROR(HLOOKUP(Y189,[1]DATA!$A$1:$NB$5,5,0),"") -> - | AG191: 0
A192: 9zoDD | B192: =VLOOKUP($AA192,DATA!$B$3:$E192,2,0) -> 06:30:00 | C192: =VLOOKUP($AA192,DATA!$B$3:$E192,3,0) -> 14:30:00 | D192: =VLOOKUP($AA192,DATA!$B$3:$E192,4,0) -> 0.03125 | E192: 0.3020833333 | F192: 0.3020833333 | G192: =DATA!$C$9 -> 0.89 | H192: =DATA!$C$10 -> 64 | I192: 1 | J192: 407.8125 | K192: 407.8125 | L192: 0 | O192: 0 | R192: 0 | X192: =X184 -> 9 | Y192: =Y189+1 -> 2018-03-04 | Z192: =TEXT(Y192,"ddd") -> zo | AA192: DD | AB192: =IFERROR(HLOOKUP(Y192,[1]DATA!$A$1:$NB$5,3,0),"") -> - | AG192: 0
A193: 9zoMD | B193: =VLOOKUP($AA193,DATA!$B$3:$E193,2,0) -> 14:30:00 | C193: =VLOOKUP($AA193,DATA!$B$3:$E193,3,0) -> 22:30:00 | D193: =VLOOKUP($AA193,DATA!$B$3:$E193,4,0) -> 0.03125 | E193: 0.3020833333 | F193: 0.3020833333 | G193: =DATA!$C$9 -> 0.89 | H193: =DATA!$C$10 -> 64 | I193: 1 | J193: 407.8125 | K193: 407.8125 | L193: 0 | O193: 0 | R193: 0 | X193: =X184 -> 9 | Z193: =TEXT(Y192,"ddd") -> zo | AA193: MD | AB193: =IFERROR(HLOOKUP(Y192,[1]DATA!$A$1:$NB$5,4,0),"") -> - | AG193: 0
A194: 9zoZND | B194: =VLOOKUP($AA194,DATA!$B$3:$E194,2,0) -> 00:00:00 | C194: =VLOOKUP($AA194,DATA!$B$3:$E194,3,0) -> 00:00:00 | D194: =VLOOKUP($AA194,DATA!$B$3:$E194,4,0) -> 0 | E194: 0 | F194: 0 | G194: =DATA!$C$9 -> 0.89 | H194: =DATA!$C$10 -> 64 | I194: 1 | J194: 0 | K194: 0 | L194: 0 | O194: 0 | R194: 0 | X194: =X184 -> 9 | Z194: =TEXT(Y192,"ddd") -> zo | AA194: ZND | AB194: =IFERROR(HLOOKUP(Y192,[1]DATA!$A$1:$NB$5,5,0),"") -> D2 | AG194: 0
A195: 10maDD | B195: =VLOOKUP($AA195,DATA!$B$3:$E195,2,0) -> 06:30:00 | C195: =VLOOKUP($AA195,DATA!$B$3:$E195,3,0) -> 14:30:00 | D195: =VLOOKUP($AA195,DATA!$B$3:$E195,4,0) -> 0.03125 | E195: 0.3020833333 | F195: 0.2263888889 | G195: =DATA!$C$9 -> 0.89 | H195: =DATA!$C$10 -> 64 | I195: 1 | J195: 305.625 | K195: 407.8125 | L195: 0.07569444444 | M195: 102.1875 | N195: 0.2505747126 | O195: =TIME(INT($AD195/60),INT(MOD($AD195,60)/1),0) -> 0 | R195: 380.8 | S195: 325 | T195: 325 | X195: =X205 -> 10 | Y195: =Y192+1 -> 2018-03-05 | Z195: =TEXT(Y195,"ddd") -> ma | AA195: DD | AB195: =IFERROR(HLOOKUP(Y195,[1]DATA!$A$1:$NB$5,3,0),"") -> D1 | AC195: 109 | AE195: 32 | AF195: 357 | AG195: 0 | AH195: -8.75 | AI195: 0.7455197133 | AJ195: 1 | AK195: 4359.375 | AL195: 2971 | AM195: 0.6815197133 | AN195: 911.25 | AO195: 0.2090322581 | AP195: 0 | AQ195: 0 | AR195: 0.943570875 | AS195: 0.9839831926 | AU195: 0.9031585573 | AV195: 477.125 | AW195: 0.1094480287 | AX195: 508.9333333 | AY195: 224
A196: 10maMD | B196: =VLOOKUP($AA196,DATA!$B$3:$E196,2,0) -> 14:30:00 | C196: =VLOOKUP($AA196,DATA!$B$3:$E196,3,0) -> 22:30:00 | D196: =VLOOKUP($AA196,DATA!$B$3:$E196,4,0) -> 0.03125 | E196: 0.3020833333 | F196: 0.2076388889 | G196: =DATA!$C$9 -> 0.89 | H196: =DATA!$C$10 -> 64 | I196: 1 | J196: 280.3125 | K196: 407.8125 | L196: 0.09444444444 | M196: 127.5 | N196: 0.3126436782 | O196: =TIME(INT(AD196/60),INT(MOD(AD196,60)/1),0) -> 0 | R196: 317.8666667 | S196: 281 | V196: 281 | X196: =X205 -> 10 | Z196: =TEXT(Y195,"ddd") -> ma | AA196: MD | AB196: =IFERROR(HLOOKUP(Y195,[1]DATA!$A$1:$NB$5,4,0),"") -> D3 | AC196: 136 | AE196: 17 | AF196: 298 | AG196: 30 | AH196: -27.4375 | AI196: 0.6445878136 | AJ196: 0.9137600613
A197: 10maND | B197: =VLOOKUP($AA197,DATA!$B$3:$E197,2,0) -> 22:30:00 | C197: =VLOOKUP($AA197,DATA!$B$3:$E197,3,0) -> 06:30:00 | D197: =VLOOKUP($AA197,DATA!$B$3:$E197,4,0) -> 0.03125 | E197: 0.3020833333 | F197: 0.3020833333 | G197: =DATA!$C$9 -> 0.89 | H197: =DATA!$C$10 -> 64 | I197: 1 | J197: 407.8125 | K197: 407.8125 | L197: 0 | O197: 0 | R197: 0 | X197: =X205 -> 10 | Z197: =TEXT(Y195,"ddd") -> ma | AA197: ND | AB197: =IFERROR(HLOOKUP(Y195,[1]DATA!$A$1:$NB$5,5,0),"") -> D2 | AG197: 0
A198: 10diDD | B198: =VLOOKUP($AA198,DATA!$B$3:$E198,2,0) -> 06:30:00 | C198: =VLOOKUP($AA198,DATA!$B$3:$E198,3,0) -> 14:30:00 | D198: =VLOOKUP($AA198,DATA!$B$3:$E198,4,0) -> 0.03125 | E198: 0.3020833333 | F198: 0.2222222222 | G198: =DATA!$C$9 -> 0.89 | H198: =DATA!$C$10 -> 64 | I198: 1 | J198: =F198*86400/H198*I198 -> 300 | K198: =E198*86400/H198 -> 407.8125 | L198: 0.07986111111 | M198: 107.8125 | N198: 0.2643678161 | O198: 0 | R198: =AF198*AG$2 -> 348.8 | S198: =IF(AF198-AE198=0,"",AF198-AE198) -> 304 | T198: 304 | X198: =X205 -> 10 | Y198: =Y195+1 -> 2018-03-06 | Z198: =TEXT(Y198,"ddd") -> di | AA198: DD | AB198: =IFERROR(HLOOKUP(Y198,[1]DATA!$A$1:$NB$5,3,0),"") -> D1 | AC198: 115 | AE198: 23 | AF198: 327 | AG198: 4 | AH198: -24.125 | AI198: 0.6973476703 | AJ198: 0.9886621315
A199: 10diMD | B199: =VLOOKUP($AA199,DATA!$B$3:$E199,2,0) -> 14:30:00 | C199: =VLOOKUP($AA199,DATA!$B$3:$E199,3,0) -> 22:30:00 | D199: =VLOOKUP($AA199,DATA!$B$3:$E199,4,0) -> 0.03125 | E199: 0.3020833333 | F199: 0.2284722222 | G199: =DATA!$C$9 -> 0.89 | H199: =DATA!$C$10 -> 64 | I199: 1 | J199: 308.4375 | K199: 407.8125 | L199: =TIME(INT($AC199/60),INT(MOD($AC199,60)/1),0) -> 0.07361111111 | M199: =IF($L199*86400/$H199=0,"",$L199*86400/$H199) -> 99.375 | N199: =IFERROR($M199/$K199,"") -> 0.2436781609 | O199: 0 | Q199: =IFERROR($P199/$K199,"") ->  | R199: 337.0666667 | S199: 300 | T199: =IF(IF($AB199="D1",$S199,"")=0,"",IF($AB199="D1",$S199,"")) ->  | U199: =IF(IF($AB199="D2",$S199,"")=0,"",IF($AB199="D2",$S199,"")) ->  | V199: =IF(IF($AB199="D3",$S199,"")=0,"",IF($AB199="D3",$S199,"")) -> 300 | X199: =X205 -> 10 | Z199: =TEXT(Y198,"ddd") -> di | AA199: MD | AB199: =IFERROR(HLOOKUP(Y198,[1]DATA!$A$1:$NB$5,4,0),"") -> D3 | AC199: 106 | AE199: 16 | AF199: 316 | AG199: 50 | AH199: -36.5625 | AI199: 0.688172043 | AJ199: 0.8708232863
A200: 10diND | B200: =VLOOKUP($AA200,DATA!$B$3:$E200,2,0) -> 22:30:00 | C200: =VLOOKUP($AA200,DATA!$B$3:$E200,3,0) -> 06:30:00 | D200: =VLOOKUP($AA200,DATA!$B$3:$E200,4,0) -> 0.03125 | E200: 0.3020833333 | F200: 0.3020833333 | G200: =DATA!$C$9 -> 0.89 | H200: =DATA!$C$10 -> 64 | I200: 1 | J200: 407.8125 | K200: 407.8125 | L200: 0 | O200: 0 | R200: 0 | X200: =X205 -> 10 | Z200: =TEXT(Y198,"ddd") -> di | AA200: ND | AB200: =IFERROR(HLOOKUP(Y198,[1]DATA!$A$1:$NB$5,5,0),"") -> D2 | AG200: 0
... 918 more rows

Sheet TA SRM RH
X1: =DATA!$C$16 -> SRM RH | AC1: TA Target | AE1: =DATA!$C$9 -> 0.89 | AP1: TA | AQ1: = | AR1: [ A ]
AC2: Cycle Time | AE2: =DATA!$C$10 -> 64 | AG2: =AE2/60 -> 1.066666667
AC3: Enter Data | AR3: [ T ] - [ BS ] - [ PS ]
A4: ID | B4: Shift Start Time | C4: Shift End Time | D4: Break Time | E4: Total Shift time [Hour] | F4: Available Production Time [Hour] | G4: Target [%] | H4: Cycle time [s] | I4: Target Ouput [56/H] | J4: Parts Target [56/H] | K4: Parts Target [100% Availability] | L4: Blocked / Starved [Hour] | M4: Loss Blocked/ Starved [Parts] | N4: Loss Blocked/ Starved [%] | O4: Planned Stop/ Early Finish [Hour] | P4: Loss Planned Stop/ Early Finish [Parts] | Q4: Loss Planned Stop/ Early Finish [%] | R4: Rekenkolom Benodigde tijd | S4: Produced Parts Actual | T4: Produced Parts Shift D1 | U4: Produced Parts Shift D2 | V4: Produced Parts Shift D3 | X4: Week | Y4: Date | Z4: Day | AA4: Shift | AB4: Shift | AC4: Blocked / Starved [Min] | AD4: Planned Stop / Early Finish [Min] | AE4: Parts during break | AF4: Produced Parts Total | AG4: Downtime Technical SAP[min] | AH4: Delta [Parts] | AI4: Availability (Total Time) [%] | AJ4: Technical Availabilty SRI RH [%] | AK4: Parts Target [100% Availability] | AL4: Parts Actual | AM4: Availability (Total Time) [%] | AN4: Loss Blocked/ Starved [Parts] | AO4: Loss Blocked/ Starved [%] | AP4: Loss Planned Stop/ Early Finish [Parts] | AQ4: Loss Planned Stop/ Early Finish [%] | AR4: Technical Availability Total LH [%] | AS4: Technical Availability Shift D1 [%] | AT4: Technical Availability Shift D2 [%] | AU4: Technical Availability Shift D3 [%] | AV4: Total Downtime [Parts] | AW4: Total Downtime [%] | AX4: Total Downtime [Min] | AY4: Geregistreerd SAP Technical Downtime [Min] | AZ4: Major Items Downtime
AK5: [T] | AL5: [A] | AN5: [BS] | AP5: [PS] | AS5: D1 | AT5: D2 | AU5: D3
A6: =X6&Z6&AA6 -> 1maDD | B6: =VLOOKUP($AA6,DATA!$B$3:$E6,2,0) -> 06:30:00 | C6: =VLOOKUP($AA6,DATA!$B$3:$E6,3,0) -> 14:30:00 | D6: =VLOOKUP($AA6,DATA!$B$3:$E6,4,0) -> 0.03125 | E6: =(C6-B6+(B6>C6))-D6 -> 0.3020833333 | F6: =E6-O6-L6 -> 0.3020833333 | G6: =DATA!$C$9 -> 0.89 | H6: =DATA!$C$10 -> 64 | I6: 1 | J6: =F6*86400/H6*I6 -> 407.8125 | K6: =E6*86400/H6 -> 407.8125 | L6: =TIME(INT($AC6/60),INT(MOD($AC6,60)/1),0) -> 0 | M6: =IF($L6*86400/$H6=0,"",$L6*86400/$H6) ->  | N6: =IFERROR($M6/$K6,"") ->  | O6: =TIME(INT($AD6/60),INT(MOD($AD6,60)/1),0) -> 0 | P6: =IF($O6*86400/$H6=0,"",$O6*86400/$H6) ->  | Q6: =IFERROR($P6/$K6,"") ->  | R6: =AF6*AG$2 -> 0 | S6: =IF(AF6-AE6=0,"",AF6-AE6) ->  | T6: =IF(IF($AB6="D1",$S6,"")=0,"",IF($AB6="D1",$S6,"")) ->  | U6: =IF(IF($AB6="D2",$S6,"")=0,"",IF($AB6="D2",$S6,"")) ->  | V6: =IF(IF($AB6="D3",$S6,"")=0,"",IF($AB6="D3",$S6,"")) ->  | X6: =X16 -> 1 | Y6: 2018-01-01 | Z6: =TEXT(Y6,"ddd") -> ma | AA6: DD | AB6: =IFERROR(HLOOKUP(Y6,[1]DATA!$A$1:$NB$5,3,0),"") -> D1 | AG6: 0 | AK6: 3487.5 | AL6: 2312 | AM6: 0.6629390681 | AN6: 793.125 | AO6: 0.2274193548 | AP6: 187.5 | AQ6: 0.05376344086 | AR6: 0.9437079348 | AS6: 0.9288324776 | AU6: 0.9585833921 | AV6: 194.875 | AW6: 0.0558781362 | AX6: 207.8666667 | AY6: -
A7: 1maMD | B7: =VLOOKUP($AA7,DATA!$B$3:$E7,2,0) -> 14:30:00 | C7: =VLOOKUP($AA7,DATA!$B$3:$E7,3,0) -> 22:30:00 | D7: =VLOOKUP($AA7,DATA!$B$3:$E7,4,0) -> 0.03125 | E7: =(C7-B7+(B7>C7))-D7 -> 0.3020833333 | F7: =E7-O7-L7 -> 0.3020833333 | G7: =DATA!$C$9 -> 0.89 | H7: =DATA!$C$10 -> 64 | I7: 1 | J7: =F7*86400/H7*I7 -> 407.8125 | K7: =E7*86400/H7 -> 407.8125 | L7: =TIME(INT($AC7/60),INT(MOD($AC7,60)/1),0) -> 0 | M7: =IF($L7*86400/$H7=0,"",$L7*86400/$H7) ->  | N7: =IFERROR($M7/$K7,"") ->  | O7: =TIME(INT(AD7/60),INT(MOD(AD7,60)/1),0) -> 0 | Q7: =IFERROR($P7/$K7,"") ->  | R7: =AF7*AG$2 -> 0 | S7: =IF(AF7-AE7=0,"",AF7-AE7) ->  | T7: =IF(IF($AB7="D1",$S7,"")=0,"",IF($AB7="D1",$S7,"")) ->  | U7: =IF(IF($AB7="D2",$S7,"")=0,"",IF($AB7="D2",$S7,"")) ->  | V7: =IF(IF($AB7="D3",$S7,"")=0,"",IF($AB7="D3",$S7,"")) ->  | X7: =X16 -> 1 | Z7: =TEXT(Y6,"ddd") -> ma | AA7: MD | AB7: =IFERROR(HLOOKUP(Y6,[1]DATA!$A$1:$NB$5,4,0),"") -> D3 | AG7: 0
A8: 1maND | B8: =VLOOKUP($AA8,DATA!$B$3:$E8,2,0) -> 22:30:00 | C8: =VLOOKUP($AA8,DATA!$B$3:$E8,3,0) -> 06:30:00 | D8: =VLOOKUP($AA8,DATA!$B$3:$E8,4,0) -> 0.03125 | E8: 0.3020833333 | F8: 0.3020833333 | G8: =DATA!$C$9 -> 0.89 | H8: =DATA!$C$10 -> 64 | I8: 1 | J8: 407.8125 | K8: 407.8125 | L8: 0 | O8: 0 | R8: 0 | X8: =X16 -> 1 | Z8: =TEXT(Y6,"ddd") -> ma | AA8: ND | AB8: =IFERROR(HLOOKUP(Y6,[1]DATA!$A$1:$NB$5,5,0),"") -> D2 | AG8: 0
A9: 1diDD | B9: =VLOOKUP($AA9,DATA!$B$3:$E9,2,0) -> 06:30:00 | C9: =VLOOKUP($AA9,DATA!$B$3:$E9,3,0) -> 14:30:00 | D9: =VLOOKUP($AA9,DATA!$B$3:$E9,4,0) -> 0.03125 | E9: 0.3020833333 | F9: 0.24375 | G9: =DATA!$C$9 -> 0.89 | H9: =DATA!$C$10 -> 64 | I9: 1 | J9: 329.0625 | K9: 407.8125 | L9: 0.00625 | M9: 8.4375 | N9: 0.02068965517 | O9: 0.05208333333 | P9: 70.3125 | Q9: 0.1724137931 | R9: 326.4 | S9: 270 | T9: 270 | X9: =X16 -> 1 | Y9: =Y6+1 -> 2018-01-02 | Z9: =TEXT(Y9,"ddd") -> di | AA9: DD | AB9: =IFERROR(HLOOKUP(Y9,[1]DATA!$A$1:$NB$5,3,0),"") -> D1 | AC9: 9 | AD9: 75 | AE9: 36 | AF9: 306 | AG9: 120 | AH9: -87.1875 | AI9: 0.6193548387 | AJ9: 0.7311827957
A10: 1diMD | B10: =VLOOKUP($AA10,DATA!$B$3:$E10,2,0) -> 14:30:00 | C10: =VLOOKUP($AA10,DATA!$B$3:$E10,3,0) -> 22:30:00 | D10: =VLOOKUP($AA10,DATA!$B$3:$E10,4,0) -> 0.03125 | E10: 0.3020833333 | F10: 0.2180555556 | G10: =DATA!$C$9 -> 0.89 | H10: =DATA!$C$10 -> 64 | I10: 1 | J10: 294.375 | K10: 407.8125 | L10: 0.05625 | M10: 75.9375 | N10: 0.1862068966 | O10: 0.02777777778 | P10: 37.5 | Q10: 0.09195402299 | R10: 340.2666667 | S10: 299 | V10: 299 | X10: =X16 -> 1 | Z10: =TEXT(Y9,"ddd") -> di | AA10: MD | AB10: =IFERROR(HLOOKUP(Y9,[1]DATA!$A$1:$NB$5,4,0),"") -> D3 | AC10: 81 | AD10: 40 | AE10: 20 | AF10: 319 | AG10: 21 | AH10: -23.5 | AI10: 0.6858781362 | AJ10: 0.9418711939
A11: 1diND | B11: =VLOOKUP($AA11,DATA!$B$3:$E11,2,0) -> 22:30:00 | C11: =VLOOKUP($AA11,DATA!$B$3:$E11,3,0) -> 06:30:00 | D11: =VLOOKUP($AA11,DATA!$B$3:$E11,4,0) -> 0.03125 | E11: 0.3020833333 | F11: 0.3020833333 | G11: =DATA!$C$9 -> 0.89 | H11: =DATA!$C$10 -> 64 | I11: 1 | J11: 407.8125 | K11: 407.8125 | L11: 0 | O11: 0 | R11: 0 | X11: =X16 -> 1 | Z11: =TEXT(Y9,"ddd") -> di | AA11: ND | AB11: =IFERROR(HLOOKUP(Y9,[1]DATA!$A$1:$NB$5,5,0),"") -> D2 | AG11: 0
A12: 1woDD | B12: =VLOOKUP($AA12,DATA!$B$3:$E12,2,0) -> 06:30:00 | C12: =VLOOKUP($AA12,DATA!$B$3:$E12,3,0) -> 14:30:00 | D12: =VLOOKUP($AA12,DATA!$B$3:$E12,4,0) -> 0.03125 | E12: 0.3020833333 | F12: 0.225 | G12: =DATA!$C$9 -> 0.89 | H12: =DATA!$C$10 -> 64 | I12: 1 | J12: 303.75 | K12: 407.8125 | L12: 0.04583333333 | M12: 61.875 | N12: 0.1517241379 | O12: 0.03125 | P12: 42.1875 | Q12: 0.1034482759 | R12: 349.8666667 | S12: 313 | T12: 313 | X12: =X16 -> 1 | Y12: =Y9+1 -> 2018-01-03 | Z12: =TEXT(Y12,"ddd") -> wo | AA12: DD | AB12: =IFERROR(HLOOKUP(Y12,[1]DATA!$A$1:$NB$5,3,0),"") -> D1 | AC12: 66 | AD12: 45 | AE12: 15 | AF12: 328 | AG12: 0 | AH12: -18.875 | AI12: 0.7179928315 | AJ12: 1
A13: 1woMD | B13: =VLOOKUP($AA13,DATA!$B$3:$E13,2,0) -> 14:30:00 | C13: =VLOOKUP($AA13,DATA!$B$3:$E13,3,0) -> 22:30:00 | D13: =VLOOKUP($AA13,DATA!$B$3:$E13,4,0) -> 0.03125 | E13: 0.3020833333 | F13: 0.2333333333 | G13: =DATA!$C$9 -> 0.89 | H13: =DATA!$C$10 -> 64 | I13: 1 | J13: 315 | K13: 407.8125 | L13: 0.04791666667 | M13: 64.6875 | N13: 0.1586206897 | O13: 0.02083333333 | P13: 28.125 | Q13: 0.06896551724 | R13: 373.3333333 | S13: 322 | V13: 322 | X13: =X16 -> 1 | Z13: =TEXT(Y12,"ddd") -> wo | AA13: MD | AB13: =IFERROR(HLOOKUP(Y12,[1]DATA!$A$1:$NB$5,4,0),"") -> D3 | AC13: 69 | AD13: 30 | AE13: 28 | AF13: 350 | AG13: 25 | AH13: -21.125 | AI13: 0.7386379928 | AJ13: 0.9372384937
A14: 1woND | B14: =VLOOKUP($AA14,DATA!$B$3:$E14,2,0) -> 22:30:00 | C14: =VLOOKUP($AA14,DATA!$B$3:$E14,3,0) -> 06:30:00 | D14: =VLOOKUP($AA14,DATA!$B$3:$E14,4,0) -> 0.03125 | E14: 0.3020833333 | F14: 0.3020833333 | G14: =DATA!$C$9 -> 0.89 | H14: =DATA!$C$10 -> 64 | I14: 1 | J14: 407.8125 | K14: 407.8125 | L14: 0 | O14: 0 | R14: 0 | X14: =X16 -> 1 | Z14: =TEXT(Y12,"ddd") -> wo | AA14: ND | AB14: =IFERROR(HLOOKUP(Y12,[1]DATA!$A$1:$NB$5,5,0),"") -> D2 | AG14: 0
A15: 1doDD | B15: =VLOOKUP($AA15,DATA!$B$3:$E15,2,0) -> 06:30:00 | C15: =VLOOKUP($AA15,DATA!$B$3:$E15,3,0) -> 14:30:00 | D15: =VLOOKUP($AA15,DATA!$B$3:$E15,4,0) -> 0.03125 | E15: 0.3020833333 | F15: 0.1631944444 | G15: =DATA!$C$9 -> 0.89 | H15: =DATA!$C$10 -> 64 | I15: 1 | J15: 220.3125 | K15: 407.8125 | L15: 0.1388888889 | M15: 187.5 | N15: 0.4597701149 | O15: 0 | R15: 275.2 | S15: 244 | T15: 244 | X15: =X16 -> 1 | Y15: =Y12+1 -> 2018-01-04 | Z15: =TEXT(Y15,"ddd") -> do | AA15: DD | AB15: =IFERROR(HLOOKUP(Y15,[1]DATA!$A$1:$NB$5,3,0),"") -> D1 | AC15: 200 | AE15: 14 | AF15: 258 | AG15: 0 | AH15: -4.4375 | AI15: 0.5597132616 | AJ15: 1
A16: 1doMD | B16: =VLOOKUP($AA16,DATA!$B$3:$E16,2,0) -> 14:30:00 | C16: =VLOOKUP($AA16,DATA!$B$3:$E16,3,0) -> 22:30:00 | D16: =VLOOKUP($AA16,DATA!$B$3:$E16,4,0) -> 0.03125 | E16: 0.3020833333 | F16: 0.2298611111 | G16: =DATA!$C$9 -> 0.89 | H16: =DATA!$C$10 -> 64 | I16: 1 | J16: 310.3125 | K16: 407.8125 | L16: 0.07222222222 | M16: 97.5 | N16: 0.2390804598 | O16: 0 | R16: 384 | S16: 329 | V16: 329 | X16: =WEEKNUM($Y6) -> 1 | Z16: =TEXT(Y15,"ddd") -> do | AA16: MD | AB16: =IFERROR(HLOOKUP(Y15,[1]DATA!$A$1:$NB$5,4,0),"") -> D3 | AC16: 104 | AE16: 31 | AF16: 360 | AG16: 18 | AH16: -9.4375 | AI16: 0.7546953405 | AJ16: 0.9552238806
A17: 1doND | B17: =VLOOKUP($AA17,DATA!$B$3:$E17,2,0) -> 22:30:00 | C17: =VLOOKUP($AA17,DATA!$B$3:$E17,3,0) -> 06:30:00 | D17: =VLOOKUP($AA17,DATA!$B$3:$E17,4,0) -> 0.03125 | E17: 0.3020833333 | F17: 0.3020833333 | G17: =DATA!$C$9 -> 0.89 | H17: =DATA!$C$10 -> 64 | I17: 1 | J17: 407.8125 | K17: 407.8125 | L17: 0 | O17: 0 | R17: 0 | X17: =X16 -> 1 | Z17: =TEXT(Y15,"ddd") -> do | AA17: ND | AB17: =IFERROR(HLOOKUP(Y15,[1]DATA!$A$1:$NB$5,5,0),"") -> D2 | AG17: 0
A18: 1vrDD | B18: =VLOOKUP($AA18,DATA!$B$3:$E18,2,0) -> 06:30:00 | C18: =VLOOKUP($AA18,DATA!$B$3:$E18,3,0) -> 14:30:00 | D18: =VLOOKUP($AA18,DATA!$B$3:$E18,4,0) -> 0.03125 | E18: 0.3020833333 | F18: 0.1708333333 | G18: =DATA!$C$9 -> 0.89 | H18: =DATA!$C$10 -> 64 | I18: 1 | J18: 230.625 | K18: 407.8125 | L18: 0.1243055556 | M18: 167.8125 | N18: 0.4114942529 | O18: 0.006944444444 | P18: 9.375 | Q18: 0.02298850575 | R18: 310.4 | S18: 259 | T18: 259 | X18: =X16 -> 1 | Y18: =Y15+1 -> 2018-01-05 | Z18: =TEXT(Y18,"ddd") -> vr | AA18: DD | AB18: =IFERROR(HLOOKUP(Y18,[1]DATA!$A$1:$NB$5,3,0),"") -> D1 | AC18: 179 | AD18: 10 | AE18: 32 | AF18: 291 | AG18: 5 | AH18: 0.25 | AI18: 0.5941218638 | AJ18: 0.9841471148
A19: 1vrMD | B19: =VLOOKUP($AA19,DATA!$B$3:$E19,2,0) -> 14:30:00 | C19: =VLOOKUP($AA19,DATA!$B$3:$E19,3,0) -> 22:30:00 | D19: =VLOOKUP($AA19,DATA!$B$3:$E19,4,0) -> 0.03125 | E19: 0.3020833333 | F19: 0.20625 | G19: =DATA!$C$9 -> 0.89 | H19: =DATA!$C$10 -> 64 | I19: 1 | J19: 278.4375 | K19: 407.8125 | L19: 0.09583333333 | M19: 129.375 | N19: 0.3172413793 | O19: 0 | R19: 317.8666667 | S19: 276 | V19: 276 | X19: =X16 -> 1 | Z19: =TEXT(Y18,"ddd") -> vr | AA19: MD | AB19: =IFERROR(HLOOKUP(Y18,[1]DATA!$A$1:$NB$5,4,0),"") -> D3 | AC19: 138 | AE19: 22 | AF19: 298 | AG19: 0 | AH19: -30.5625 | AI19: 0.6331182796 | AJ19: 1
A20: 1vrND | B20: =VLOOKUP($AA20,DATA!$B$3:$E20,2,0) -> 22:30:00 | C20: =VLOOKUP($AA20,DATA!$B$3:$E20,3,0) -> 06:30:00 | D20: =VLOOKUP($AA20,DATA!$B$3:$E20,4,0) -> 0.03125 | E20: 0.3020833333 | F20: 0.3020833333 | G20: =DATA!$C$9 -> 0.89 | H20: =DATA!$C$10 -> 64 | I20: 1 | J20: 407.8125 | K20: 407.8125 | L20: 0 | O20: 0 | R20: 0 | X20: =X16 -> 1 | Z20: =TEXT(Y18,"ddd") -> vr | AA20: ND | AB20: =IFERROR(HLOOKUP(Y18,[1]DATA!$A$1:$NB$5,5,0),"") -> - | AG20: 0
A21: 1zaDD | B21: =VLOOKUP($AA21,DATA!$B$3:$E21,2,0) -> 06:30:00 | C21: =VLOOKUP($AA21,DATA!$B$3:$E21,3,0) -> 14:30:00 | D21: =VLOOKUP($AA21,DATA!$B$3:$E21,4,0) -> 0.03125 | E21: 0.3020833333 | F21: 0.3020833333 | G21: =DATA!$C$9 -> 0.89 | H21: =DATA!$C$10 -> 64 | I21: 1 | J21: 407.8125 | K21: 407.8125 | L21: 0 | O21: 0 | R21: 0 | X21: =X16 -> 1 | Y21: =Y18+1 -> 2018-01-06 | Z21: =TEXT(Y21,"ddd") -> za | AA21: DD | AB21: =IFERROR(HLOOKUP(Y21,[1]DATA!$A$1:$NB$5,3,0),"") -> - | AG21: 0
A22: 1zaMD | B22: =VLOOKUP($AA22,DATA!$B$3:$E22,2,0) -> 14:30:00 | C22: =VLOOKUP($AA22,DATA!$B$3:$E22,3,0) -> 22:30:00 | D22: =VLOOKUP($AA22,DATA!$B$3:$E22,4,0) -> 0.03125 | E22: 0.3020833333 | F22: 0.3020833333 | G22: =DATA!$C$9 -> 0.89 | H22: =DATA!$C$10 -> 64 | I22: 1 | J22: 407.8125 | K22: 407.8125 | L22: 0 | O22: 0 | R22: 0 | X22: =X16 -> 1 | Z22: =TEXT(Y21,"ddd") -> za | AA22: MD | AB22: =IFERROR(HLOOKUP(Y21,[1]DATA!$A$1:$NB$5,4,0),"") -> - | AG22: 0
A23: 1zaND | B23: =VLOOKUP($AA23,DATA!$B$3:$E23,2,0) -> 22:30:00 | C23: =VLOOKUP($AA23,DATA!$B$3:$E23,3,0) -> 06:30:00 | D23: =VLOOKUP($AA23,DATA!$B$3:$E23,4,0) -> 0.03125 | E23: 0.3020833333 | F23: 0.3020833333 | G23: =DATA!$C$9 -> 0.89 | H23: =DATA!$C$10 -> 64 | I23: 1 | J23: 407.8125 | K23: 407.8125 | L23: 0 | O23: 0 | R23: 0 | X23: =X16 -> 1 | Z23: =TEXT(Y21,"ddd") -> za | AA23: ND | AB23: =IFERROR(HLOOKUP(Y21,[1]DATA!$A$1:$NB$5,5,0),"") -> - | AG23: 0
A24: 1zoDD | B24: =VLOOKUP($AA24,DATA!$B$3:$E24,2,0) -> 06:30:00 | C24: =VLOOKUP($AA24,DATA!$B$3:$E24,3,0) -> 14:30:00 | D24: =VLOOKUP($AA24,DATA!$B$3:$E24,4,0) -> 0.03125 | E24: 0.3020833333 | F24: 0.3020833333 | G24: =DATA!$C$9 -> 0.89 | H24: =DATA!$C$10 -> 64 | I24: 1 | J24: 407.8125 | K24: 407.8125 | L24: 0 | O24: 0 | R24: 0 | X24: =X16 -> 1 | Y24: =Y21+1 -> 2018-01-07 | Z24: =TEXT(Y24,"ddd") -> zo | AA24: DD | AB24: =IFERROR(HLOOKUP(Y24,[1]DATA!$A$1:$NB$5,3,0),"") -> - | AG24: 0
A25: 1zoMD | B25: =VLOOKUP($AA25,DATA!$B$3:$E25,2,0) -> 14:30:00 | C25: =VLOOKUP($AA25,DATA!$B$3:$E25,3,0) -> 22:30:00 | D25: =VLOOKUP($AA25,DATA!$B$3:$E25,4,0) -> 0.03125 | E25: 0.3020833333 | F25: 0.3020833333 | G25: =DATA!$C$9 -> 0.89 | H25: =DATA!$C$10 -> 64 | I25: 1 | J25: 407.8125 | K25: 407.8125 | L25: 0 | O25: 0 | R25: 0 | X25: =X16 -> 1 | Z25: =TEXT(Y24,"ddd") -> zo | AA25: MD | AB25: =IFERROR(HLOOKUP(Y24,[1]DATA!$A$1:$NB$5,4,0),"") -> - | AG25: 0
A26: 1zoZND | B26: =VLOOKUP($AA26,DATA!$B$3:$E26,2,0) -> 00:00:00 | C26: =VLOOKUP($AA26,DATA!$B$3:$E26,3,0) -> 00:00:00 | D26: =VLOOKUP($AA26,DATA!$B$3:$E26,4,0) -> 0 | E26: 0 | F26: 0 | G26: =DATA!$C$9 -> 0.89 | H26: =DATA!$C$10 -> 64 | I26: 1 | J26: 0 | K26: 0 | L26: 0 | O26: 0 | R26: 0 | X26: =X16 -> 1 | Z26: =TEXT(Y24,"ddd") -> zo | AA26: ZND | AB26: =IFERROR(HLOOKUP(Y24,[1]DATA!$A$1:$NB$5,5,0),"") -> D1 | AG26: 0
A27: 2maDD | B27: =VLOOKUP($AA27,DATA!$B$3:$E27,2,0) -> 06:30:00 | C27: =VLOOKUP($AA27,DATA!$B$3:$E27,3,0) -> 14:30:00 | D27: =VLOOKUP($AA27,DATA!$B$3:$E27,4,0) -> 0.03125 | E27: 0.3020833333 | F27: 0.1111111111 | G27: =DATA!$C$9 -> 0.89 | H27: =DATA!$C$10 -> 64 | I27: 1 | J27: =F27*86400/H27*I27 -> 150 | K27: =E27*86400/H27 -> 407.8125 | L27: =TIME(INT($AC27/60),INT(MOD($AC27,60)/1),0) -> 0.1131944444 | M27: =IF($L27*86400/$H27=0,"",$L27*86400/$H27) -> 152.8125 | N27: =IFERROR($M27/$K27,"") -> 0.3747126437 | O27: =TIME(INT($AD27/60),INT(MOD($AD27,60)/1),0) -> 0.07777777778 | P27: 105 | Q27: =IFERROR($P27/$K27,"") -> 0.2574712644 | R27: =AF27*AG$2 -> 210.1333333 | S27: =IF(AF27-AE27=0,"",AF27-AE27) -> 180 | T27: =IF(IF($AB27="D1",$S27,"")=0,"",IF($AB27="D1",$S27,"")) ->  | U27: =IF(IF($AB27="D2",$S27,"")=0,"",IF($AB27="D2",$S27,"")) ->  | V27: =IF(IF($AB27="D3",$S27,"")=0,"",IF($AB27="D3",$S27,"")) -> 180 | X27: =X37 -> 2 | Y27: =Y24+1 -> 2018-01-08 | Z27: =TEXT(Y27,"ddd") -> ma | AA27: DD | AB27: =IFERROR(HLOOKUP(Y27,[1]DATA!$A$1:$NB$5,3,0),"") -> D3 | AC27: 163 | AD27: 112 | AE27: 17 | AF27: 197 | AG27: 5 | AH27: 1.875 | AI27: 0.4129032258 | AJ27: 0.9767585993 | AK27: 4359.375 | AL27: 2985 | AM27: 0.6847311828 | AN27: 1089.375 | AO27: 0.2498924731 | AP27: 165.9375 | AQ27: 0.03806451613 | AR27: 0.9310734084 | AT27: 0.9231196779 | AU27: 0.939027139 | AV27: 119.0625 | AW27: 0.02731182796 | AX27: 127 | AY27: 261
A28: 2maMD | B28: =VLOOKUP($AA28,DATA!$B$3:$E28,2,0) -> 14:30:00 | C28: =VLOOKUP($AA28,DATA!$B$3:$E28,3,0) -> 22:30:00 | D28: =VLOOKUP($AA28,DATA!$B$3:$E28,4,0) -> 0.03125 | E28: =(C28-B28+(B28>C28))-D28 -> 0.3020833333 | F28: =E28-O28-L28 -> 0.2013888889 | G28: =DATA!$C$9 -> 0.89 | H28: =DATA!$C$10 -> 64 | I28: 1 | J28: =F28*86400/H28*I28 -> 271.875 | K28: =E28*86400/H28 -> 407.8125 | L28: 0.1006944444 | M28: 135.9375 | N28: 0.3333333333 | O28: =TIME(INT(AD28/60),INT(MOD(AD28,60)/1),0) -> 0 | R28: =AF28*AG$2 -> 344.5333333 | S28: =IF(AF28-AE28=0,"",AF28-AE28) -> 292 | U28: 292 | X28: =X37 -> 2 | Z28: =TEXT(Y27,"ddd") -> ma | AA28: MD | AB28: =IFERROR(HLOOKUP(Y27,[1]DATA!$A$1:$NB$5,4,0),"") -> D2 | AC28: 145 | AE28: 31 | AF28: 323 | AG28: 43 | AH28: -8 | AI28: 0.6698207885 | AJ28: 0.8890418029
A29: 2maND | B29: =VLOOKUP($AA29,DATA!$B$3:$E29,2,0) -> 22:30:00 | C29: =VLOOKUP($AA29,DATA!$B$3:$E29,3,0) -> 06:30:00 | D29: =VLOOKUP($AA29,DATA!$B$3:$E29,4,0) -> 0.03125 | E29: 0.3020833333 | F29: 0.3020833333 | G29: =DATA!$C$9 -> 0.89 | H29: =DATA!$C$10 -> 64 | I29: 1 | J29: 407.8125 | K29: 407.8125 | L29: 0 | O29: 0 | R29: 0 | X29: =X37 -> 2 | Z29: =TEXT(Y27,"ddd") -> ma | AA29: ND | AB29: =IFERROR(HLOOKUP(Y27,[1]DATA!$A$1:$NB$5,5,0),"") -> D1 | AG29: 0
A30: 2diDD | B30: =VLOOKUP($AA30,DATA!$B$3:$E30,2,0) -> 06:30:00 | C30: =VLOOKUP($AA30,DATA!$B$3:$E30,3,0) -> 14:30:00 | D30: =VLOOKUP($AA30,DATA!$B$3:$E30,4,0) -> 0.03125 | E30: 0.3020833333 | F30: 0.2284722222 | G30: =DATA!$C$9 -> 0.89 | H30: =DATA!$C$10 -> 64 | I30: 1 | J30: 308.4375 | K30: 407.8125 | L30: 0.07361111111 | M30: 99.375 | N30: 0.2436781609 | O30: 0 | R30: 296.5333333 | S30: 261 | V30: 261 | X30: =X37 -> 2 | Y30: =Y27+1 -> 2018-01-09 | Z30: =TEXT(Y30,"ddd") -> di | AA30: DD | AB30: =IFERROR(HLOOKUP(Y30,[1]DATA!$A$1:$NB$5,3,0),"") -> D3 | AC30: 106 | AE30: 17 | AF30: 278 | AG30: 25 | AH30: -75.5625 | AI30: 0.5987096774 | AJ30: 0.9222475638
A31: 2diMD | B31: =VLOOKUP($AA31,DATA!$B$3:$E31,2,0) -> 14:30:00 | C31: =VLOOKUP($AA31,DATA!$B$3:$E31,3,0) -> 22:30:00 | D31: =VLOOKUP($AA31,DATA!$B$3:$E31,4,0) -> 0.03125 | E31: 0.3020833333 | F31: 0.2430555556 | G31: =DATA!$C$9 -> 0.89 | H31: =DATA!$C$10 -> 64 | I31: 1 | J31: 328.125 | K31: 407.8125 | L31: 0.05902777778 | M31: 79.6875 | N31: 0.1954022989 | O31: 0 | R31: 363.7333333 | S31: 310 | U31: 310 | X31: =X37 -> 2 | Z31: =TEXT(Y30,"ddd") -> di | AA31: MD | AB31: =IFERROR(HLOOKUP(Y30,[1]DATA!$A$1:$NB$5,4,0),"") -> D2 | AC31: 85 | AE31: 31 | AF31: 341 | AG31: 6 | AH31: -46.25 | AI31: 0.7111111111 | AJ31: 0.983772088
A32: 2diND | B32: =VLOOKUP($AA32,DATA!$B$3:$E32,2,0) -> 22:30:00 | C32: =VLOOKUP($AA32,DATA!$B$3:$E32,3,0) -> 06:30:00 | D32: =VLOOKUP($AA32,DATA!$B$3:$E32,4,0) -> 0.03125 | E32: 0.3020833333 | F32: 0.3020833333 | G32: =DATA!$C$9 -> 0.89 | H32: =DATA!$C$10 -> 64 | I32: 1 | J32: 407.8125 | K32: 407.8125 | L32: 0 | O32: 0 | R32: 0 | X32: =X37 -> 2 | Z32: =TEXT(Y30,"ddd") -> di | AA32: ND | AB32: =IFERROR(HLOOKUP(Y30,[1]DATA!$A$1:$NB$5,5,0),"") -> D1 | AG32: 0
A33: 2woDD | B33: =VLOOKUP($AA33,DATA!$B$3:$E33,2,0) -> 06:30:00 | C33: =VLOOKUP($AA33,DATA!$B$3:$E33,3,0) -> 14:30:00 | D33: =VLOOKUP($AA33,DATA!$B$3:$E33,4,0) -> 0.03125 | E33: 0.3020833333 | F33: 0.2333333333 | G33: =DATA!$C$9 -> 0.89 | H33: =DATA!$C$10 -> 64 | I33: 1 | J33: 315 | K33: 407.8125 | L33: 0.06875 | M33: 92.8125 | N33: 0.2275862069 | O33: 0 | R33: 402.1333333 | S33: 341 | V33: 341 | X33: =X37 -> 2 | Y33: =Y30+1 -> 2018-01-10 | Z33: =TEXT(Y33,"ddd") -> wo | AA33: DD | AB33: =IFERROR(HLOOKUP(Y33,[1]DATA!$A$1:$NB$5,3,0),"") -> D3 | AC33: 99 | AE33: 36 | AF33: 377 | AG33: 15 | AH33: -2.125 | AI33: 0.7822222222 | AJ33: 0.9640402749
A34: 2woMD | B34: =VLOOKUP($AA34,DATA!$B$3:$E34,2,0) -> 14:30:00 | C34: =VLOOKUP($AA34,DATA!$B$3:$E34,3,0) -> 22:30:00 | D34: =VLOOKUP($AA34,DATA!$B$3:$E34,4,0) -> 0.03125 | E34: 0.3020833333 | F34: 0.1680555556 | G34: =DATA!$C$9 -> 0.89 | H34: =DATA!$C$10 -> 64 | I34: 1 | J34: 226.875 | K34: 407.8125 | L34: 0.08888888889 | M34: 120 | N34: 0.2942528736 | O34: 0.04513888889 | P34: 60.9375 | Q34: 0.1494252874 | R34: 288 | S34: 259 | U34: 259 | X34: =X37 -> 2 | Z34: =TEXT(Y33,"ddd") -> wo | AA34: MD | AB34: =IFERROR(HLOOKUP(Y33,[1]DATA!$A$1:$NB$5,4,0),"") -> D2 | AC34: 128 | AD34: 65 | AE34: 11 | AF34: 270 | AG34: 43 | AH34: 4 | AI34: 0.5941218638 | AJ34: 0.8700906344
A35: 2woND | B35: =VLOOKUP($AA35,DATA!$B$3:$E35,2,0) -> 22:30:00 | C35: =VLOOKUP($AA35,DATA!$B$3:$E35,3,0) -> 06:30:00 | D35: =VLOOKUP($AA35,DATA!$B$3:$E35,4,0) -> 0.03125 | E35: 0.3020833333 | F35: 0.3020833333 | G35: =DATA!$C$9 -> 0.89 | H35: =DATA!$C$10 -> 64 | I35: 1 | J35: 407.8125 | K35: 407.8125 | L35: 0 | O35: 0 | R35: 0 | X35: =X37 -> 2 | Z35: =TEXT(Y33,"ddd") -> wo | AA35: ND | AB35: =IFERROR(HLOOKUP(Y33,[1]DATA!$A$1:$NB$5,5,0),"") -> D1 | AG35: 0
A36: 2doDD | B36: =VLOOKUP($AA36,DATA!$B$3:$E36,2,0) -> 06:30:00 | C36: =VLOOKUP($AA36,DATA!$B$3:$E36,3,0) -> 14:30:00 | D36: =VLOOKUP($AA36,DATA!$B$3:$E36,4,0) -> 0.03125 | E36: 0.3020833333 | F36: 0.2458333333 | G36: =DATA!$C$9 -> 0.89 | H36: =DATA!$C$10 -> 64 | I36: 1 | J36: 331.875 | K36: 407.8125 | L36: 0.05625 | M36: 75.9375 | N36: 0.1862068966 | O36: 0 | R36: 410.6666667 | S36: 352 | V36: 352 | X36: =X37 -> 2 | Y36: =Y33+1 -> 2018-01-11 | Z36: =TEXT(Y36,"ddd") -> do | AA36: DD | AB36: =IFERROR(HLOOKUP(Y36,[1]DATA!$A$1:$NB$5,3,0),"") -> D3 | AC36: 81 | AE36: 33 | AF36: 385 | AG36: 44 | AH36: -8 | AI36: 0.8074551971 | AJ36: 0.9032258065
A37: 2doMD | B37: =VLOOKUP($AA37,DATA!$B$3:$E37,2,0) -> 14:30:00 | C37: =VLOOKUP($AA37,DATA!$B$3:$E37,3,0) -> 22:30:00 | D37: =VLOOKUP($AA37,DATA!$B$3:$E37,4,0) -> 0.03125 | E37: 0.3020833333 | F37: 0.2993055556 | G37: =DATA!$C$9 -> 0.89 | H37: =DATA!$C$10 -> 64 | I37: 1 | J37: 404.0625 | K37: 407.8125 | L37: 0.002777777778 | M37: 3.75 | N37: 0.009195402299 | O37: 0 | R37: 379.7333333 | S37: 347 | U37: 347 | X37: =WEEKNUM($Y27) -> 2 | Z37: =TEXT(Y36,"ddd") -> do | AA37: MD | AB37: =IFERROR(HLOOKUP(Y36,[1]DATA!$A$1:$NB$5,4,0),"") -> D2 | AC37: 4 | AE37: 9 | AF37: 356 | AG37: 31 | AH37: -85.1875 | AI37: 0.7959856631 | AJ37: 0.9245252394
A38: 2doND | B38: =VLOOKUP($AA38,DATA!$B$3:$E38,2,0) -> 22:30:00 | C38: =VLOOKUP($AA38,DATA!$B$3:$E38,3,0) -> 06:30:00 | D38: =VLOOKUP($AA38,DATA!$B$3:$E38,4,0) -> 0.03125 | E38: 0.3020833333 | F38: 0.3020833333 | G38: =DATA!$C$9 -> 0.89 | H38: =DATA!$C$10 -> 64 | I38: 1 | J38: 407.8125 | K38: 407.8125 | L38: 0 | O38: 0 | R38: 0 | X38: =X37 -> 2 | Z38: =TEXT(Y36,"ddd") -> do | AA38: ND | AB38: =IFERROR(HLOOKUP(Y36,[1]DATA!$A$1:$NB$5,5,0),"") -> D1 | AG38: 0
A39: 2vrDD | B39: =VLOOKUP($AA39,DATA!$B$3:$E39,2,0) -> 06:30:00 | C39: =VLOOKUP($AA39,DATA!$B$3:$E39,3,0) -> 14:30:00 | D39: =VLOOKUP($AA39,DATA!$B$3:$E39,4,0) -> 0.03125 | E39: 0.3020833333 | F39: 0.1423611111 | G39: =DATA!$C$9 -> 0.89 | H39: =DATA!$C$10 -> 64 | I39: 1 | J39: 192.1875 | K39: 407.8125 | L39: 0.1597222222 | M39: 215.625 | N39: 0.5287356322 | O39: 0 | R39: 378.6666667 | S39: 324 | V39: 324 | X39: =X37 -> 2 | Y39: =Y36+1 -> 2018-01-12 | Z39: =TEXT(Y39,"ddd") -> vr | AA39: DD | AB39: =IFERROR(HLOOKUP(Y39,[1]DATA!$A$1:$NB$5,3,0),"") -> D3 | AC39: 230 | AE39: 31 | AF39: 355 | AG39: 29 | AH39: 103.6875 | AI39: 0.7432258065 | AJ39: 0.9288634505
A40: 2vrMD | B40: =VLOOKUP($AA40,DATA!$B$3:$E40,2,0) -> 14:30:00 | C40: =VLOOKUP($AA40,DATA!$B$3:$E40,3,0) -> 22:30:00 | D40: =VLOOKUP($AA40,DATA!$B$3:$E40,4,0) -> 0.03125 | E40: 0.3020833333 | F40: 0.2180555556 | G40: =DATA!$C$9 -> 0.89 | H40: =DATA!$C$10 -> 64 | I40: 1 | J40: 294.375 | K40: 407.8125 | L40: 0.08402777778 | M40: 113.4375 | N40: 0.2781609195 | O40: 0 | R40: 365.8666667 | S40: 319 | U40: 319 | X40: =X37 -> 2 | Z40: =TEXT(Y39,"ddd") -> vr | AA40: MD | AB40: =IFERROR(HLOOKUP(Y39,[1]DATA!$A$1:$NB$5,4,0),"") -> D2 | AC40: 121 | AE40: 24 | AF40: 343 | AG40: 20 | AH40: -3.5 | AI40: 0.7317562724 | AJ40: 0.9481686247
A41: 2vrND | B41: =VLOOKUP($AA41,DATA!$B$3:$E41,2,0) -> 22:30:00 | C41: =VLOOKUP($AA41,DATA!$B$3:$E41,3,0) -> 06:30:00 | D41: =VLOOKUP($AA41,DATA!$B$3:$E41,4,0) -> 0.03125 | E41: 0.3020833333 | F41: 0.3020833333 | G41: =DATA!$C$9 -> 0.89 | H41: =DATA!$C$10 -> 64 | I41: 1 | J41: 407.8125 | K41: 407.8125 | L41: 0 | O41: 0 | R41: 0 | X41: =X37 -> 2 | Z41: =TEXT(Y39,"ddd") -> vr | AA41: ND | AB41: =IFERROR(HLOOKUP(Y39,[1]DATA!$A$1:$NB$5,5,0),"") -> - | AG41: 0
A42: 2zaDD | B42: =VLOOKUP($AA42,DATA!$B$3:$E42,2,0) -> 06:30:00 | C42: =VLOOKUP($AA42,DATA!$B$3:$E42,3,0) -> 14:30:00 | D42: =VLOOKUP($AA42,DATA!$B$3:$E42,4,0) -> 0.03125 | E42: 0.3020833333 | F42: 0.3020833333 | G42: =DATA!$C$9 -> 0.89 | H42: =DATA!$C$10 -> 64 | I42: 1 | J42: 407.8125 | K42: 407.8125 | L42: 0 | O42: 0 | R42: 0 | X42: =X37 -> 2 | Y42: =Y39+1 -> 2018-01-13 | Z42: =TEXT(Y42,"ddd") -> za | AA42: DD | AB42: =IFERROR(HLOOKUP(Y42,[1]DATA!$A$1:$NB$5,3,0),"") -> - | AG42: 0
A43: 2zaMD | B43: =VLOOKUP($AA43,DATA!$B$3:$E43,2,0) -> 14:30:00 | C43: =VLOOKUP($AA43,DATA!$B$3:$E43,3,0) -> 22:30:00 | D43: =VLOOKUP($AA43,DATA!$B$3:$E43,4,0) -> 0.03125 | E43: 0.3020833333 | F43: 0.3020833333 | G43: =DATA!$C$9 -> 0.89 | H43: =DATA!$C$10 -> 64 | I43: 1 | J43: 407.8125 | K43: 407.8125 | L43: 0 | O43: 0 | R43: 0 | X43: =X37 -> 2 | Z43: =TEXT(Y42,"ddd") -> za | AA43: MD | AB43: =IFERROR(HLOOKUP(Y42,[1]DATA!$A$1:$NB$5,4,0),"") -> - | AG43: 0
A44: 2zaND | B44: =VLOOKUP($AA44,DATA!$B$3:$E44,2,0) -> 22:30:00 | C44: =VLOOKUP($AA44,DATA!$B$3:$E44,3,0) -> 06:30:00 | D44: =VLOOKUP($AA44,DATA!$B$3:$E44,4,0) -> 0.03125 | E44: 0.3020833333 | F44: 0.3020833333 | G44: =DATA!$C$9 -> 0.89 | H44: =DATA!$C$10 -> 64 | I44: 1 | J44: 407.8125 | K44: 407.8125 | L44: 0 | O44: 0 | R44: 0 | X44: =X37 -> 2 | Z44: =TEXT(Y42,"ddd") -> za | AA44: ND | AB44: =IFERROR(HLOOKUP(Y42,[1]DATA!$A$1:$NB$5,5,0),"") -> - | AG44: 0
A45: 2zoDD | B45: =VLOOKUP($AA45,DATA!$B$3:$E45,2,0) -> 06:30:00 | C45: =VLOOKUP($AA45,DATA!$B$3:$E45,3,0) -> 14:30:00 | D45: =VLOOKUP($AA45,DATA!$B$3:$E45,4,0) -> 0.03125 | E45: 0.3020833333 | F45: 0.3020833333 | G45: =DATA!$C$9 -> 0.89 | H45: =DATA!$C$10 -> 64 | I45: 1 | J45: 407.8125 | K45: 407.8125 | L45: 0 | O45: 0 | R45: 0 | X45: =X37 -> 2 | Y45: =Y42+1 -> 2018-01-14 | Z45: =TEXT(Y45,"ddd") -> zo | AA45: DD | AB45: =IFERROR(HLOOKUP(Y45,[1]DATA!$A$1:$NB$5,3,0),"") -> - | AG45: 0
A46: 2zoMD | B46: =VLOOKUP($AA46,DATA!$B$3:$E46,2,0) -> 14:30:00 | C46: =VLOOKUP($AA46,DATA!$B$3:$E46,3,0) -> 22:30:00 | D46: =VLOOKUP($AA46,DATA!$B$3:$E46,4,0) -> 0.03125 | E46: 0.3020833333 | F46: 0.3020833333 | G46: =DATA!$C$9 -> 0.89 | H46: =DATA!$C$10 -> 64 | I46: 1 | J46: 407.8125 | K46: 407.8125 | L46: 0 | O46: 0 | R46: 0 | X46: =X37 -> 2 | Z46: =TEXT(Y45,"ddd") -> zo | AA46: MD | AB46: =IFERROR(HLOOKUP(Y45,[1]DATA!$A$1:$NB$5,4,0),"") -> - | AG46: 0
A47: 2zoZND | B47: =VLOOKUP($AA47,DATA!$B$3:$E47,2,0) -> 00:00:00 | C47: =VLOOKUP($AA47,DATA!$B$3:$E47,3,0) -> 00:00:00 | D47: =VLOOKUP($AA47,DATA!$B$3:$E47,4,0) -> 0 | E47: 0 | F47: 0 | G47: =DATA!$C$9 -> 0.89 | H47: =DATA!$C$10 -> 64 | I47: 1 | J47: 0 | K47: 0 | L47: 0 | O47: 0 | R47: 0 | X47: =X37 -> 2 | Z47: =TEXT(Y45,"ddd") -> zo | AA47: ZND | AB47: =IFERROR(HLOOKUP(Y45,[1]DATA!$A$1:$NB$5,5,0),"") -> D3 | AG47: 0
A48: =X48&Z48&AA48 -> 3maDD | B48: =VLOOKUP($AA48,DATA!$B$3:$E48,2,0) -> 06:30:00 | C48: =VLOOKUP($AA48,DATA!$B$3:$E48,3,0) -> 14:30:00 | D48: =VLOOKUP($AA48,DATA!$B$3:$E48,4,0) -> 0.03125 | E48: 0.3020833333 | F48: 0.1972222222 | G48: =DATA!$C$9 -> 0.89 | H48: =DATA!$C$10 -> 64 | I48: 1 | J48: 266.25 | K48: 407.8125 | L48: 0.1048611111 | M48: 141.5625 | N48: 0.3471264368 | O48: =TIME(INT($AD48/60),INT(MOD($AD48,60)/1),0) -> 0 | P48: =IF($O48*86400/$H48=0,"",$O48*86400/$H48) ->  | R48: 338.1333333 | S48: 296 | U48: 296 | X48: =X58 -> 3 | Y48: =Y45+1 -> 2018-01-15 | Z48: =TEXT(Y48,"ddd") -> ma | AA48: DD | AB48: =IFERROR(HLOOKUP(Y48,[1]DATA!$A$1:$NB$5,3,0),"") -> D2 | AC48: 151 | AE48: 21 | AF48: 317 | AG48: 10 | AH48: 1.625 | AI48: 0.6789964158 | AJ48: 0.9712753734 | AK48: 4359.375 | AL48: 2887 | AM48: 0.6622508961 | AN48: 715.3125 | AO48: 0.1640860215 | AP48: 168.75 | AQ48: 0.03870967742 | AR48: 0.9497022807 | AS48: 0.9794344069 | AT48: 0.9199701545 | AV48: 588.3125 | AW48: 0.134953405 | AX48: 627.5333333 | AY48: 170
A49: 3maMD | B49: =VLOOKUP($AA49,DATA!$B$3:$E49,2,0) -> 14:30:00 | C49: =VLOOKUP($AA49,DATA!$B$3:$E49,3,0) -> 22:30:00 | D49: =VLOOKUP($AA49,DATA!$B$3:$E49,4,0) -> 0.03125 | E49: 0.3020833333 | F49: 0.21875 | G49: =DATA!$C$9 -> 0.89 | H49: =DATA!$C$10 -> 64 | I49: 1 | J49: 295.3125 | K49: 407.8125 | L49: 0.08333333333 | M49: 112.5 | N49: 0.275862069 | O49: =TIME(INT(AD49/60),INT(MOD(AD49,60)/1),0) -> 0 | R49: 327.4666667 | S49: 283 | T49: 283 | X49: =X58 -> 3 | Z49: =TEXT(Y48,"ddd") -> ma | AA49: MD | AB49: =IFERROR(HLOOKUP(Y48,[1]DATA!$A$1:$NB$5,4,0),"") -> D1 | AC49: 120 | AE49: 24 | AF49: 307 | AG49: 0 | AH49: -40.4375 | AI49: 0.6491756272 | AJ49: 1
A50: 3maND | B50: =VLOOKUP($AA50,DATA!$B$3:$E50,2,0) -> 22:30:00 | C50: =VLOOKUP($AA50,DATA!$B$3:$E50,3,0) -> 06:30:00 | D50: =VLOOKUP($AA50,DATA!$B$3:$E50,4,0) -> 0.03125 | E50: 0.3020833333 | F50: 0.3020833333 | G50: =DATA!$C$9 -> 0.89 | H50: =DATA!$C$10 -> 64 | I50: 1 | J50: 407.8125 | K50: 407.8125 | L50: 0 | O50: 0 | R50: 0 | X50: =X58 -> 3 | Z50: =TEXT(Y48,"ddd") -> ma | AA50: ND | AB50: =IFERROR(HLOOKUP(Y48,[1]DATA!$A$1:$NB$5,5,0),"") -> D3 | AG50: 0
A51: 3diDD | B51: =VLOOKUP($AA51,DATA!$B$3:$E51,2,0) -> 06:30:00 | C51: =VLOOKUP($AA51,DATA!$B$3:$E51,3,0) -> 14:30:00 | D51: =VLOOKUP($AA51,DATA!$B$3:$E51,4,0) -> 0.03125 | E51: 0.3020833333 | F51: 0.26875 | G51: =DATA!$C$9 -> 0.89 | H51: =DATA!$C$10 -> 64 | I51: 1 | J51: 362.8125 | K51: 407.8125 | L51: 0.03333333333 | M51: 45 | N51: 0.1103448276 | O51: 0 | R51: 345.6 | S51: 297 | U51: 297 | X51: =X58 -> 3 | Y51: =Y48+1 -> 2018-01-16 | Z51: =TEXT(Y51,"ddd") -> di | AA51: DD | AB51: =IFERROR(HLOOKUP(Y51,[1]DATA!$A$1:$NB$5,3,0),"") -> D2 | AC51: 48 | AE51: 27 | AF51: 324 | AG51: 55 | AH51: -93.9375 | AI51: 0.6812903226 | AJ51: 0.8627059411
A52: 3diMD | B52: =VLOOKUP($AA52,DATA!$B$3:$E52,2,0) -> 14:30:00 | C52: =VLOOKUP($AA52,DATA!$B$3:$E52,3,0) -> 22:30:00 | D52: =VLOOKUP($AA52,DATA!$B$3:$E52,4,0) -> 0.03125 | E52: 0.3020833333 | F52: 0.2541666667 | G52: =DATA!$C$9 -> 0.89 | H52: =DATA!$C$10 -> 64 | I52: 1 | J52: 343.125 | K52: 407.8125 | L52: 0.04791666667 | M52: 64.6875 | N52: 0.1586206897 | O52: 0 | R52: 420.2666667 | S52: 362 | T52: 362 | X52: =X58 -> 3 | Z52: =TEXT(Y51,"ddd") -> di | AA52: MD | AB52: =IFERROR(HLOOKUP(Y51,[1]DATA!$A$1:$NB$5,4,0),"") -> D1 | AC52: 69 | AE52: 32 | AF52: 394 | AG52: 17 | AH52: -9.25 | AI52: 0.8303942652 | AJ52: 0.9611221223
A53: 3diND | B53: =VLOOKUP($AA53,DATA!$B$3:$E53,2,0) -> 22:30:00 | C53: =VLOOKUP($AA53,DATA!$B$3:$E53,3,0) -> 06:30:00 | D53: =VLOOKUP($AA53,DATA!$B$3:$E53,4,0) -> 0.03125 | E53: 0.3020833333 | F53: 0.3020833333 | G53: =DATA!$C$9 -> 0.89 | H53: =DATA!$C$10 -> 64 | I53: 1 | J53: 407.8125 | K53: 407.8125 | L53: 0 | O53: 0 | R53: 0 | X53: =X58 -> 3 | Z53: =TEXT(Y51,"ddd") -> di | AA53: ND | AB53: =IFERROR(HLOOKUP(Y51,[1]DATA!$A$1:$NB$5,5,0),"") -> D3 | AG53: 0
A54: 3woDD | B54: =VLOOKUP($AA54,DATA!$B$3:$E54,2,0) -> 06:30:00 | C54: =VLOOKUP($AA54,DATA!$B$3:$E54,3,0) -> 14:30:00 | D54: =VLOOKUP($AA54,DATA!$B$3:$E54,4,0) -> 0.03125 | E54: 0.3020833333 | F54: 0.2708333333 | G54: =DATA!$C$9 -> 0.89 | H54: =DATA!$C$10 -> 64 | I54: 1 | J54: 365.625 | K54: 407.8125 | L54: 0.03125 | M54: 42.1875 | N54: 0.1034482759 | O54: 0 | R54: 199.4666667 | S54: 171 | U54: 171 | X54: =X58 -> 3 | Y54: =Y51+1 -> 2018-01-17 | Z54: =TEXT(Y54,"ddd") -> wo | AA54: DD | AB54: =IFERROR(HLOOKUP(Y54,[1]DATA!$A$1:$NB$5,3,0),"") -> D2 | AC54: 45 | AE54: 16 | AF54: 187 | AG54: 25 | AH54: -222.75 | AI54: 0.3922580645 | AJ54: 0.8886248886
A55: 3woMD | B55: =VLOOKUP($AA55,DATA!$B$3:$E55,2,0) -> 14:30:00 | C55: =VLOOKUP($AA55,DATA!$B$3:$E55,3,0) -> 22:30:00 | D55: =VLOOKUP($AA55,DATA!$B$3:$E55,4,0) -> 0.03125 | E55: 0.3020833333 | F55: 0.2472222222 | G55: =DATA!$C$9 -> 0.89 | H55: =DATA!$C$10 -> 64 | I55: 1 | J55: 333.75 | K55: 407.8125 | L55: 0.05486111111 | M55: 74.0625 | N55: 0.1816091954 | O55: 0 | R55: 384 | S55: 333 | T55: 333 | X55: =X58 -> 3 | Z55: =TEXT(Y54,"ddd") -> wo | AA55: MD | AB55: =IFERROR(HLOOKUP(Y54,[1]DATA!$A$1:$NB$5,4,0),"") -> D1 | AC55: 79 | AE55: 27 | AF55: 360 | AG55: 0 | AH55: -28.875 | AI55: 0.7638709677 | AJ55: 1
A56: 3woND | B56: =VLOOKUP($AA56,DATA!$B$3:$E56,2,0) -> 22:30:00 | C56: =VLOOKUP($AA56,DATA!$B$3:$E56,3,0) -> 06:30:00 | D56: =VLOOKUP($AA56,DATA!$B$3:$E56,4,0) -> 0.03125 | E56: 0.3020833333 | F56: 0.3020833333 | G56: =DATA!$C$9 -> 0.89 | H56: =DATA!$C$10 -> 64 | I56: 1 | J56: 407.8125 | K56: 407.8125 | L56: 0 | O56: 0 | R56: 0 | X56: =X58 -> 3 | Z56: =TEXT(Y54,"ddd") -> wo | AA56: ND | AB56: =IFERROR(HLOOKUP(Y54,[1]DATA!$A$1:$NB$5,5,0),"") -> D3 | AG56: 0
A57: 3doDD | B57: =VLOOKUP($AA57,DATA!$B$3:$E57,2,0) -> 06:30:00 | C57: =VLOOKUP($AA57,DATA!$B$3:$E57,3,0) -> 14:30:00 | D57: =VLOOKUP($AA57,DATA!$B$3:$E57,4,0) -> 0.03125 | E57: 0.3020833333 | F57: 0.1645833333 | G57: =DATA!$C$9 -> 0.89 | H57: =DATA!$C$10 -> 64 | I57: 1 | J57: 222.1875 | K57: 407.8125 | L57: 0.06111111111 | M57: 82.5 | N57: 0.2022988506 | O57: 0.07638888889 | P57: 103.125 | Q57: 0.2528735632 | R57: 256 | S57: 233 | U57: 233 | X57: =X58 -> 3 | Y57: =Y54+1 -> 2018-01-18 | Z57: =TEXT(Y57,"ddd") -> do | AA57: DD | AB57: =IFERROR(HLOOKUP(Y57,[1]DATA!$A$1:$NB$5,3,0),"") -> D2 | AC57: 88 | AD57: 110 | AE57: 7 | AF57: 240 | AG57: 22 | AH57: -17.3125 | AI57: 0.5344802867 | AJ57: 0.9208633094
A58: 3doMD | B58: =VLOOKUP($AA58,DATA!$B$3:$E58,2,0) -> 14:30:00 | C58: =VLOOKUP($AA58,DATA!$B$3:$E58,3,0) -> 22:30:00 | D58: =VLOOKUP($AA58,DATA!$B$3:$E58,4,0) -> 0.03125 | E58: 0.3020833333 | F58: 0.2048611111 | G58: =DATA!$C$9 -> 0.89 | H58: =DATA!$C$10 -> 64 | I58: 1 | J58: 276.5625 | K58: 407.8125 | L58: 0.09722222222 | M58: 131.25 | N58: 0.3218390805 | O58: 0 | R58: 334.9333333 | S58: 287 | T58: 287 | X58: =WEEKNUM($Y48) -> 3 | Z58: =TEXT(Y57,"ddd") -> do | AA58: MD | AB58: =IFERROR(HLOOKUP(Y57,[1]DATA!$A$1:$NB$5,4,0),"") -> D1 | AC58: 140 | AE58: 27 | AF58: 314 | AG58: 7 | AH58: -17.6875 | AI58: 0.6583512545 | AJ58: 0.9795281731
A59: 3doND | B59: =VLOOKUP($AA59,DATA!$B$3:$E59,2,0) -> 22:30:00 | C59: =VLOOKUP($AA59,DATA!$B$3:$E59,3,0) -> 06:30:00 | D59: =VLOOKUP($AA59,DATA!$B$3:$E59,4,0) -> 0.03125 | E59: 0.3020833333 | F59: 0.3020833333 | G59: =DATA!$C$9 -> 0.89 | H59: =DATA!$C$10 -> 64 | I59: 1 | J59: 407.8125 | K59: 407.8125 | L59: 0 | O59: 0 | R59: 0 | X59: =X58 -> 3 | Z59: =TEXT(Y57,"ddd") -> do | AA59: ND | AB59: =IFERROR(HLOOKUP(Y57,[1]DATA!$A$1:$NB$5,5,0),"") -> D3 | AG59: 0
A60: 3vrDD | B60: =VLOOKUP($AA60,DATA!$B$3:$E60,2,0) -> 06:30:00 | C60: =VLOOKUP($AA60,DATA!$B$3:$E60,3,0) -> 14:30:00 | D60: =VLOOKUP($AA60,DATA!$B$3:$E60,4,0) -> 0.03125 | E60: 0.3020833333 | F60: 0.3020833333 | G60: =DATA!$C$9 -> 0.89 | H60: =DATA!$C$10 -> 64 | I60: 1 | J60: 407.8125 | K60: 407.8125 | L60: 0 | O60: 0 | R60: 394.6666667 | S60: 336 | U60: 336 | X60: =X58 -> 3 | Y60: =Y57+1 -> 2018-01-19 | Z60: =TEXT(Y60,"ddd") -> vr | AA60: DD | AB60: =IFERROR(HLOOKUP(Y60,[1]DATA!$A$1:$NB$5,3,0),"") -> D2 | AC60: 0 | AE60: 34 | AF60: 370 | AG60: 18 | AH60: -99.9375 | AI60: 0.7707526882 | AJ60: 0.9563812601
A61: 3vrMD | B61: =VLOOKUP($AA61,DATA!$B$3:$E61,2,0) -> 14:30:00 | C61: =VLOOKUP($AA61,DATA!$B$3:$E61,3,0) -> 22:30:00 | D61: =VLOOKUP($AA61,DATA!$B$3:$E61,4,0) -> 0.03125 | E61: 0.3020833333 | F61: 0.2375 | G61: =DATA!$C$9 -> 0.89 | H61: =DATA!$C$10 -> 64 | I61: 1 | J61: 320.625 | K61: 407.8125 | L61: 0.01597222222 | M61: 21.5625 | N61: 0.05287356322 | O61: 0.04861111111 | P61: 65.625 | Q61: 0.1609195402 | R61: 352 | S61: 289 | T61: 289 | X61: =X58 -> 3 | Z61: =TEXT(Y60,"ddd") -> vr | AA61: MD | AB61: =IFERROR(HLOOKUP(Y60,[1]DATA!$A$1:$NB$5,4,0),"") -> D1 | AC61: 23 | AD61: 70 | AE61: 41 | AF61: 330 | AG61: 16 | AH61: -59.75 | AI61: 0.6629390681 | AJ61: 0.9565217391
A62: 3vrND | B62: =VLOOKUP($AA62,DATA!$B$3:$E62,2,0) -> 22:30:00 | C62: =VLOOKUP($AA62,DATA!$B$3:$E62,3,0) -> 06:30:00 | D62: =VLOOKUP($AA62,DATA!$B$3:$E62,4,0) -> 0.03125 | E62: 0.3020833333 | F62: 0.3020833333 | G62: =DATA!$C$9 -> 0.89 | H62: =DATA!$C$10 -> 64 | I62: 1 | J62: 407.8125 | K62: 407.8125 | L62: 0 | O62: 0 | R62: 0 | X62: =X58 -> 3 | Z62: =TEXT(Y60,"ddd") -> vr | AA62: ND | AB62: =IFERROR(HLOOKUP(Y60,[1]DATA!$A$1:$NB$5,5,0),"") -> - | AG62: 0
A63: 3zaDD | B63: =VLOOKUP($AA63,DATA!$B$3:$E63,2,0) -> 06:30:00 | C63: =VLOOKUP($AA63,DATA!$B$3:$E63,3,0) -> 14:30:00 | D63: =VLOOKUP($AA63,DATA!$B$3:$E63,4,0) -> 0.03125 | E63: 0.3020833333 | F63: 0.3020833333 | G63: =DATA!$C$9 -> 0.89 | H63: =DATA!$C$10 -> 64 | I63: 1 | J63: 407.8125 | K63: 407.8125 | L63: 0 | O63: 0 | R63: 0 | X63: =X58 -> 3 | Y63: =Y60+1 -> 2018-01-20 | Z63: =TEXT(Y63,"ddd") -> za | AA63: DD | AB63: =IFERROR(HLOOKUP(Y63,[1]DATA!$A$1:$NB$5,3,0),"") -> - | AG63: 0
A64: 3zaMD | B64: =VLOOKUP($AA64,DATA!$B$3:$E64,2,0) -> 14:30:00 | C64: =VLOOKUP($AA64,DATA!$B$3:$E64,3,0) -> 22:30:00 | D64: =VLOOKUP($AA64,DATA!$B$3:$E64,4,0) -> 0.03125 | E64: 0.3020833333 | F64: 0.3020833333 | G64: =DATA!$C$9 -> 0.89 | H64: =DATA!$C$10 -> 64 | I64: 1 | J64: 407.8125 | K64: 407.8125 | L64: 0 | O64: 0 | R64: 0 | X64: =X58 -> 3 | Z64: =TEXT(Y63,"ddd") -> za | AA64: MD | AB64: =IFERROR(HLOOKUP(Y63,[1]DATA!$A$1:$NB$5,4,0),"") -> - | AG64: 0
A65: 3zaND | B65: =VLOOKUP($AA65,DATA!$B$3:$E65,2,0) -> 22:30:00 | C65: =VLOOKUP($AA65,DATA!$B$3:$E65,3,0) -> 06:30:00 | D65: =VLOOKUP($AA65,DATA!$B$3:$E65,4,0) -> 0.03125 | E65: 0.3020833333 | F65: 0.3020833333 | G65: =DATA!$C$9 -> 0.89 | H65: =DATA!$C$10 -> 64 | I65: 1 | J65: 407.8125 | K65: 407.8125 | L65: 0 | O65: 0 | R65: 0 | X65: =X58 -> 3 | Z65: =TEXT(Y63,"ddd") -> za | AA65: ND | AB65: =IFERROR(HLOOKUP(Y63,[1]DATA!$A$1:$NB$5,5,0),"") -> - | AG65: 0
A66: 3zoDD | B66: =VLOOKUP($AA66,DATA!$B$3:$E66,2,0) -> 06:30:00 | C66: =VLOOKUP($AA66,DATA!$B$3:$E66,3,0) -> 14:30:00 | D66: =VLOOKUP($AA66,DATA!$B$3:$E66,4,0) -> 0.03125 | E66: 0.3020833333 | F66: 0.3020833333 | G66: =DATA!$C$9 -> 0.89 | H66: =DATA!$C$10 -> 64 | I66: 1 | J66: 407.8125 | K66: 407.8125 | L66: 0 | O66: 0 | R66: 0 | X66: =X58 -> 3 | Y66: =Y63+1 -> 2018-01-21 | Z66: =TEXT(Y66,"ddd") -> zo | AA66: DD | AB66: =IFERROR(HLOOKUP(Y66,[1]DATA!$A$1:$NB$5,3,0),"") -> - | AG66: 0
A67: 3zoMD | B67: =VLOOKUP($AA67,DATA!$B$3:$E67,2,0) -> 14:30:00 | C67: =VLOOKUP($AA67,DATA!$B$3:$E67,3,0) -> 22:30:00 | D67: =VLOOKUP($AA67,DATA!$B$3:$E67,4,0) -> 0.03125 | E67: 0.3020833333 | F67: 0.3020833333 | G67: =DATA!$C$9 -> 0.89 | H67: =DATA!$C$10 -> 64 | I67: 1 | J67: 407.8125 | K67: 407.8125 | L67: 0 | O67: 0 | R67: 0 | X67: =X58 -> 3 | Z67: =TEXT(Y66,"ddd") -> zo | AA67: MD | AB67: =IFERROR(HLOOKUP(Y66,[1]DATA!$A$1:$NB$5,4,0),"") -> - | AG67: 0
A68: 3zoZND | B68: =VLOOKUP($AA68,DATA!$B$3:$E68,2,0) -> 00:00:00 | C68: =VLOOKUP($AA68,DATA!$B$3:$E68,3,0) -> 00:00:00 | D68: =VLOOKUP($AA68,DATA!$B$3:$E68,4,0) -> 0 | E68: 0 | F68: 0 | G68: =DATA!$C$9 -> 0.89 | H68: =DATA!$C$10 -> 64 | I68: 1 | J68: 0 | K68: 0 | L68: 0 | O68: 0 | R68: 0 | X68: =X58 -> 3 | Z68: =TEXT(Y66,"ddd") -> zo | AA68: ZND | AB68: =IFERROR(HLOOKUP(Y66,[1]DATA!$A$1:$NB$5,5,0),"") -> D2 | AG68: 0
A69: 4maDD | B69: =VLOOKUP($AA69,DATA!$B$3:$E69,2,0) -> 06:30:00 | C69: =VLOOKUP($AA69,DATA!$B$3:$E69,3,0) -> 14:30:00 | D69: =VLOOKUP($AA69,DATA!$B$3:$E69,4,0) -> 0.03125 | E69: 0.3020833333 | F69: 0.2201388889 | G69: =DATA!$C$9 -> 0.89 | H69: =DATA!$C$10 -> 64 | I69: 1 | J69: 297.1875 | K69: 407.8125 | L69: 0.08194444444 | M69: 110.625 | N69: 0.2712643678 | O69: =TIME(INT($AD69/60),INT(MOD($AD69,60)/1),0) -> 0 | R69: 387.2 | S69: 328 | T69: 328 | X69: =X79 -> 4 | Y69: =Y66+1 -> 2018-01-22 | Z69: =TEXT(Y69,"ddd") -> ma | AA69: DD | AB69: =IFERROR(HLOOKUP(Y69,[1]DATA!$A$1:$NB$5,3,0),"") -> D1 | AC69: 118 | AE69: 35 | AF69: 363 | AG69: 0 | AH69: 2.6875 | AI69: 0.7524014337 | AJ69: 1 | AK69: 4359.375 | AL69: 3082 | AM69: 0.7069820789 | AN69: 641.25 | AO69: 0.1470967742 | AP69: 0 | AQ69: 0 | AR69: 0.9343465057 | AS69: 0.9627757223 | AU69: 0.9059172892 | AV69: 636.125 | AW69: 0.145921147 | AX69: 678.5333333 | AY69: 273
A70: 4maMD | B70: =VLOOKUP($AA70,DATA!$B$3:$E70,2,0) -> 14:30:00 | C70: =VLOOKUP($AA70,DATA!$B$3:$E70,3,0) -> 22:30:00 | D70: =VLOOKUP($AA70,DATA!$B$3:$E70,4,0) -> 0.03125 | E70: 0.3020833333 | F70: 0.2972222222 | G70: =DATA!$C$9 -> 0.89 | H70: =DATA!$C$10 -> 64 | I70: 1 | J70: 401.25 | K70: 407.8125 | L70: 0.004861111111 | M70: 6.5625 | N70: 0.01609195402 | O70: =TIME(INT(AD70/60),INT(MOD(AD70,60)/1),0) -> 0 | R70: 372.2666667 | S70: 332 | V70: 332 | X70: =X79 -> 4 | Z70: =TEXT(Y69,"ddd") -> ma | AA70: MD | AB70: =IFERROR(HLOOKUP(Y69,[1]DATA!$A$1:$NB$5,4,0),"") -> D3 | AC70: 7 | AE70: 17 | AF70: 349 | AG70: 95 | AH70: -97.375 | AI70: 0.7615770609 | AJ70: 0.79668997
A71: 4maND | B71: =VLOOKUP($AA71,DATA!$B$3:$E71,2,0) -> 22:30:00 | C71: =VLOOKUP($AA71,DATA!$B$3:$E71,3,0) -> 06:30:00 | D71: =VLOOKUP($AA71,DATA!$B$3:$E71,4,0) -> 0.03125 | E71: 0.3020833333 | F71: 0.3020833333 | G71: =DATA!$C$9 -> 0.89 | H71: =DATA!$C$10 -> 64 | I71: 1 | J71: 407.8125 | K71: 407.8125 | L71: =TIME(INT($AC71/60),INT(MOD($AC71,60)/1),0) -> 0 | M71: =IF($L71*86400/$H71=0,"",$L71*86400/$H71) ->  | N71: =IFERROR($M71/$K71,"") ->  | O71: 0 | Q71: =IFERROR($P71/$K71,"") ->  | R71: 0 | T71: =IF(IF($AB71="D1",$S71,"")=0,"",IF($AB71="D1",$S71,"")) ->  | U71: =IF(IF($AB71="D2",$S71,"")=0,"",IF($AB71="D2",$S71,"")) ->  | V71: =IF(IF($AB71="D3",$S71,"")=0,"",IF($AB71="D3",$S71,"")) ->  | X71: =X79 -> 4 | Z71: =TEXT(Y69,"ddd") -> ma | AA71: ND | AB71: =IFERROR(HLOOKUP(Y69,[1]DATA!$A$1:$NB$5,5,0),"") -> D2 | AG71: 0
A72: 4diDD | B72: =VLOOKUP($AA72,DATA!$B$3:$E72,2,0) -> 06:30:00 | C72: =VLOOKUP($AA72,DATA!$B$3:$E72,3,0) -> 14:30:00 | D72: =VLOOKUP($AA72,DATA!$B$3:$E72,4,0) -> 0.03125 | E72: 0.3020833333 | F72: 0.2347222222 | G72: =DATA!$C$9 -> 0.89 | H72: =DATA!$C$10 -> 64 | I72: 1 | J72: 316.875 | K72: 407.8125 | L72: 0.06736111111 | M72: 90.9375 | N72: 0.2229885057 | O72: 0 | R72: 364.8 | S72: 325 | T72: 325 | X72: =X79 -> 4 | Y72: =Y69+1 -> 2018-01-23 | Z72: =TEXT(Y72,"ddd") -> di | AA72: DD | AB72: =IFERROR(HLOOKUP(Y72,[1]DATA!$A$1:$NB$5,3,0),"") -> D1 | AC72: 97 | AE72: 17 | AF72: 342 | AG72: 25 | AH72: -20 | AI72: 0.7455197133 | AJ72: 0.9358645459
A73: 4diMD | B73: =VLOOKUP($AA73,DATA!$B$3:$E73,2,0) -> 14:30:00 | C73: =VLOOKUP($AA73,DATA!$B$3:$E73,3,0) -> 22:30:00 | D73: =VLOOKUP($AA73,DATA!$B$3:$E73,4,0) -> 0.03125 | E73: 0.3020833333 | F73: 0.1916666667 | G73: =DATA!$C$9 -> 0.89 | H73: =DATA!$C$10 -> 64 | I73: 1 | J73: 258.75 | K73: 407.8125 | L73: 0.1104166667 | M73: 149.0625 | N73: 0.3655172414 | O73: 0 | R73: 356.2666667 | S73: 306 | V73: 306 | X73: =X79 -> 4 | Z73: =TEXT(Y72,"ddd") -> di | AA73: MD | AB73: =IFERROR(HLOOKUP(Y72,[1]DATA!$A$1:$NB$5,4,0),"") -> D3 | AC73: 159 | AE73: 28 | AF73: 334 | AG73: 15 | AH73: 19.125 | AI73: 0.7019354839 | AJ73: 0.9595977734
A74: 4diND | B74: =VLOOKUP($AA74,DATA!$B$3:$E74,2,0) -> 22:30:00 | C74: =VLOOKUP($AA74,DATA!$B$3:$E74,3,0) -> 06:30:00 | D74: =VLOOKUP($AA74,DATA!$B$3:$E74,4,0) -> 0.03125 | E74: 0.3020833333 | F74: 0.3020833333 | G74: =DATA!$C$9 -> 0.89 | H74: =DATA!$C$10 -> 64 | I74: 1 | J74: 407.8125 | K74: 407.8125 | L74: 0 | O74: 0 | R74: 0 | X74: =X79 -> 4 | Z74: =TEXT(Y72,"ddd") -> di | AA74: ND | AB74: =IFERROR(HLOOKUP(Y72,[1]DATA!$A$1:$NB$5,5,0),"") -> D2 | AG74: 0
A75: 4woDD | B75: =VLOOKUP($AA75,DATA!$B$3:$E75,2,0) -> 06:30:00 | C75: =VLOOKUP($AA75,DATA!$B$3:$E75,3,0) -> 14:30:00 | D75: =VLOOKUP($AA75,DATA!$B$3:$E75,4,0) -> 0.03125 | E75: 0.3020833333 | F75: 0.2444444444 | G75: =DATA!$C$9 -> 0.89 | H75: =DATA!$C$10 -> 64 | I75: 1 | J75: 330 | K75: 407.8125 | L75: 0.05763888889 | M75: 77.8125 | N75: 0.1908045977 | O75: 0 | R75: 346.6666667 | S75: 297 | T75: 297 | X75: =X79 -> 4 | Y75: =Y72+1 -> 2018-01-24 | Z75: =TEXT(Y75,"ddd") -> wo | AA75: DD | AB75: =IFERROR(HLOOKUP(Y75,[1]DATA!$A$1:$NB$5,3,0),"") -> D1 | AC75: 83 | AE75: 28 | AF75: 325 | AG75: 10 | AH75: -61.125 | AI75: 0.6812903226 | AJ75: 0.9719626168
A76: 4woMD | B76: =VLOOKUP($AA76,DATA!$B$3:$E76,2,0) -> 14:30:00 | C76: =VLOOKUP($AA76,DATA!$B$3:$E76,3,0) -> 22:30:00 | D76: =VLOOKUP($AA76,DATA!$B$3:$E76,4,0) -> 0.03125 | E76: 0.3020833333 | F76: 0.2631944444 | G76: =DATA!$C$9 -> 0.89 | H76: =DATA!$C$10 -> 64 | I76: 1 | J76: 355.3125 | K76: 407.8125 | L76: 0.03888888889 | M76: 52.5 | N76: 0.1287356322 | O76: 0 | R76: 403.2 | S76: 341 | V76: 341 | X76: =X79 -> 4 | Z76: =TEXT(Y75,"ddd") -> wo | AA76: MD | AB76: =IFERROR(HLOOKUP(Y75,[1]DATA!$A$1:$NB$5,4,0),"") -> D3 | AC76: 56 | AE76: 37 | AF76: 378 | AG76: 48 | AH76: -42.4375 | AI76: 0.7822222222 | AJ76: 0.8936170213
A77: 4woND | B77: =VLOOKUP($AA77,DATA!$B$3:$E77,2,0) -> 22:30:00 | C77: =VLOOKUP($AA77,DATA!$B$3:$E77,3,0) -> 06:30:00 | D77: =VLOOKUP($AA77,DATA!$B$3:$E77,4,0) -> 0.03125 | E77: 0.3020833333 | F77: 0.3020833333 | G77: =DATA!$C$9 -> 0.89 | H77: =DATA!$C$10 -> 64 | I77: 1 | J77: 407.8125 | K77: 407.8125 | L77: 0 | O77: 0 | R77: 0 | X77: =X79 -> 4 | Z77: =TEXT(Y75,"ddd") -> wo | AA77: ND | AB77: =IFERROR(HLOOKUP(Y75,[1]DATA!$A$1:$NB$5,5,0),"") -> D2 | AG77: 0
A78: 4doDD | B78: =VLOOKUP($AA78,DATA!$B$3:$E78,2,0) -> 06:30:00 | C78: =VLOOKUP($AA78,DATA!$B$3:$E78,3,0) -> 14:30:00 | D78: =VLOOKUP($AA78,DATA!$B$3:$E78,4,0) -> 0.03125 | E78: 0.3020833333 | F78: 0.2291666667 | G78: =DATA!$C$9 -> 0.89 | H78: =DATA!$C$10 -> 64 | I78: 1 | J78: 309.375 | K78: 407.8125 | L78: 0.07291666667 | M78: 98.4375 | N78: 0.2413793103 | O78: 0 | R78: 260.2666667 | S78: 214 | T78: 214 | X78: =X79 -> 4 | Y78: =Y75+1 -> 2018-01-25 | Z78: =TEXT(Y78,"ddd") -> do | AA78: DD | AB78: =IFERROR(HLOOKUP(Y78,[1]DATA!$A$1:$NB$5,3,0),"") -> D1 | AC78: 105 | AE78: 30 | AF78: 244 | AG78: 8 | AH78: -123.5 | AI78: 0.4908960573 | AJ78: 0.9701789264
A79: 4doMD | B79: =VLOOKUP($AA79,DATA!$B$3:$E79,2,0) -> 14:30:00 | C79: =VLOOKUP($AA79,DATA!$B$3:$E79,3,0) -> 22:30:00 | D79: =VLOOKUP($AA79,DATA!$B$3:$E79,4,0) -> 0.03125 | E79: 0.3020833333 | F79: 0.2784722222 | G79: =DATA!$C$9 -> 0.89 | H79: =DATA!$C$10 -> 64 | I79: 1 | J79: 375.9375 | K79: 407.8125 | L79: 0.02361111111 | M79: 31.875 | N79: 0.07816091954 | O79: 0 | R79: 387.2 | S79: 334 | V79: 334 | X79: =WEEKNUM($Y69) -> 4 | Z79: =TEXT(Y78,"ddd") -> do | AA79: MD | AB79: =IFERROR(HLOOKUP(Y78,[1]DATA!$A$1:$NB$5,4,0),"") -> D3 | AC79: 34 | AE79: 29 | AF79: 363 | AG79: 5 | AH79: -70.0625 | AI79: 0.7661648746 | AJ79: 0.9872514023
A80: 4doND | B80: =VLOOKUP($AA80,DATA!$B$3:$E80,2,0) -> 22:30:00 | C80: =VLOOKUP($AA80,DATA!$B$3:$E80,3,0) -> 06:30:00 | D80: =VLOOKUP($AA80,DATA!$B$3:$E80,4,0) -> 0.03125 | E80: 0.3020833333 | F80: 0.3020833333 | G80: =DATA!$C$9 -> 0.89 | H80: =DATA!$C$10 -> 64 | I80: 1 | J80: 407.8125 | K80: 407.8125 | L80: 0 | O80: 0 | R80: 0 | X80: =X79 -> 4 | Z80: =TEXT(Y78,"ddd") -> do | AA80: ND | AB80: =IFERROR(HLOOKUP(Y78,[1]DATA!$A$1:$NB$5,5,0),"") -> D2 | AG80: 0
A81: 4vrDD | B81: =VLOOKUP($AA81,DATA!$B$3:$E81,2,0) -> 06:30:00 | C81: =VLOOKUP($AA81,DATA!$B$3:$E81,3,0) -> 14:30:00 | D81: =VLOOKUP($AA81,DATA!$B$3:$E81,4,0) -> 0.03125 | E81: 0.3020833333 | F81: 0.3 | G81: =DATA!$C$9 -> 0.89 | H81: =DATA!$C$10 -> 64 | I81: 1 | J81: 405 | K81: 407.8125 | L81: 0.002083333333 | M81: 2.8125 | N81: 0.006896551724 | O81: 0 | R81: 321.0666667 | S81: 268 | T81: 268 | X81: =X79 -> 4 | Y81: =Y78+1 -> 2018-01-26 | Z81: =TEXT(Y81,"ddd") -> vr | AA81: DD | AB81: =IFERROR(HLOOKUP(Y81,[1]DATA!$A$1:$NB$5,3,0),"") -> D1 | AC81: 3 | AE81: 33 | AF81: 301 | AG81: 22 | AH81: -165.125 | AI81: 0.6147670251 | AJ81: 0.9358725223
A82: 4vrMD | B82: =VLOOKUP($AA82,DATA!$B$3:$E82,2,0) -> 14:30:00 | C82: =VLOOKUP($AA82,DATA!$B$3:$E82,3,0) -> 22:30:00 | D82: =VLOOKUP($AA82,DATA!$B$3:$E82,4,0) -> 0.03125 | E82: 0.3020833333 | F82: 0.2868055556 | G82: =DATA!$C$9 -> 0.89 | H82: =DATA!$C$10 -> 64 | I82: 1 | J82: 387.1875 | K82: 407.8125 | L82: 0.01527777778 | M82: 20.625 | N82: 0.05057471264 | O82: 0 | R82: 373.3333333 | S82: 337 | V82: 337 | X82: =X79 -> 4 | Z82: =TEXT(Y81,"ddd") -> vr | AA82: MD | AB82: =IFERROR(HLOOKUP(Y81,[1]DATA!$A$1:$NB$5,4,0),"") -> D3 | AC82: 22 | AE82: 13 | AF82: 350 | AG82: 45 | AH82: -78.3125 | AI82: 0.773046595 | AJ82: 0.8924302789
A83: 4vrND | B83: =VLOOKUP($AA83,DATA!$B$3:$E83,2,0) -> 22:30:00 | C83: =VLOOKUP($AA83,DATA!$B$3:$E83,3,0) -> 06:30:00 | D83: =VLOOKUP($AA83,DATA!$B$3:$E83,4,0) -> 0.03125 | E83: 0.3020833333 | F83: 0.3020833333 | G83: =DATA!$C$9 -> 0.89 | H83: =DATA!$C$10 -> 64 | I83: 1 | J83: 407.8125 | K83: 407.8125 | L83: 0 | O83: 0 | R83: 0 | X83: =X79 -> 4 | Z83: =TEXT(Y81,"ddd") -> vr | AA83: ND | AB83: =IFERROR(HLOOKUP(Y81,[1]DATA!$A$1:$NB$5,5,0),"") -> - | AG83: 0
A84: 4zaDD | B84: =VLOOKUP($AA84,DATA!$B$3:$E84,2,0) -> 06:30:00 | C84: =VLOOKUP($AA84,DATA!$B$3:$E84,3,0) -> 14:30:00 | D84: =VLOOKUP($AA84,DATA!$B$3:$E84,4,0) -> 0.03125 | E84: 0.3020833333 | F84: 0.3020833333 | G84: =DATA!$C$9 -> 0.89 | H84: =DATA!$C$10 -> 64 | I84: 1 | J84: 407.8125 | K84: 407.8125 | L84: 0 | O84: 0 | R84: 0 | X84: =X79 -> 4 | Y84: =Y81+1 -> 2018-01-27 | Z84: =TEXT(Y84,"ddd") -> za | AA84: DD | AB84: =IFERROR(HLOOKUP(Y84,[1]DATA!$A$1:$NB$5,3,0),"") -> - | AG84: 0
A85: 4zaMD | B85: =VLOOKUP($AA85,DATA!$B$3:$E85,2,0) -> 14:30:00 | C85: =VLOOKUP($AA85,DATA!$B$3:$E85,3,0) -> 22:30:00 | D85: =VLOOKUP($AA85,DATA!$B$3:$E85,4,0) -> 0.03125 | E85: 0.3020833333 | F85: 0.3020833333 | G85: =DATA!$C$9 -> 0.89 | H85: =DATA!$C$10 -> 64 | I85: 1 | J85: 407.8125 | K85: 407.8125 | L85: 0 | O85: 0 | R85: 0 | X85: =X79 -> 4 | Z85: =TEXT(Y84,"ddd") -> za | AA85: MD | AB85: =IFERROR(HLOOKUP(Y84,[1]DATA!$A$1:$NB$5,4,0),"") -> - | AG85: 0
A86: 4zaND | B86: =VLOOKUP($AA86,DATA!$B$3:$E86,2,0) -> 22:30:00 | C86: =VLOOKUP($AA86,DATA!$B$3:$E86,3,0) -> 06:30:00 | D86: =VLOOKUP($AA86,DATA!$B$3:$E86,4,0) -> 0.03125 | E86: 0.3020833333 | F86: 0.3020833333 | G86: =DATA!$C$9 -> 0.89 | H86: =DATA!$C$10 -> 64 | I86: 1 | J86: 407.8125 | K86: 407.8125 | L86: 0 | O86: 0 | R86: 0 | X86: =X79 -> 4 | Z86: =TEXT(Y84,"ddd") -> za | AA86: ND | AB86: =IFERROR(HLOOKUP(Y84,[1]DATA!$A$1:$NB$5,5,0),"") -> - | AG86: 0
A87: 4zoDD | B87: =VLOOKUP($AA87,DATA!$B$3:$E87,2,0) -> 06:30:00 | C87: =VLOOKUP($AA87,DATA!$B$3:$E87,3,0) -> 14:30:00 | D87: =VLOOKUP($AA87,DATA!$B$3:$E87,4,0) -> 0.03125 | E87: 0.3020833333 | F87: 0.3020833333 | G87: =DATA!$C$9 -> 0.89 | H87: =DATA!$C$10 -> 64 | I87: 1 | J87: 407.8125 | K87: 407.8125 | L87: 0 | O87: 0 | R87: 0 | X87: =X79 -> 4 | Y87: =Y84+1 -> 2018-01-28 | Z87: =TEXT(Y87,"ddd") -> zo | AA87: DD | AB87: =IFERROR(HLOOKUP(Y87,[1]DATA!$A$1:$NB$5,3,0),"") -> - | AG87: 0
A88: 4zoMD | B88: =VLOOKUP($AA88,DATA!$B$3:$E88,2,0) -> 14:30:00 | C88: =VLOOKUP($AA88,DATA!$B$3:$E88,3,0) -> 22:30:00 | D88: =VLOOKUP($AA88,DATA!$B$3:$E88,4,0) -> 0.03125 | E88: 0.3020833333 | F88: 0.3020833333 | G88: =DATA!$C$9 -> 0.89 | H88: =DATA!$C$10 -> 64 | I88: 1 | J88: 407.8125 | K88: 407.8125 | L88: 0 | O88: 0 | R88: 0 | X88: =X79 -> 4 | Z88: =TEXT(Y87,"ddd") -> zo | AA88: MD | AB88: =IFERROR(HLOOKUP(Y87,[1]DATA!$A$1:$NB$5,4,0),"") -> - | AG88: 0
A89: 4zoZND | B89: =VLOOKUP($AA89,DATA!$B$3:$E89,2,0) -> 00:00:00 | C89: =VLOOKUP($AA89,DATA!$B$3:$E89,3,0) -> 00:00:00 | D89: =VLOOKUP($AA89,DATA!$B$3:$E89,4,0) -> 0 | E89: 0 | F89: 0 | G89: =DATA!$C$9 -> 0.89 | H89: =DATA!$C$10 -> 64 | I89: 1 | J89: 0 | K89: 0 | L89: 0 | O89: 0 | R89: 0 | X89: =X79 -> 4 | Z89: =TEXT(Y87,"ddd") -> zo | AA89: ZND | AB89: =IFERROR(HLOOKUP(Y87,[1]DATA!$A$1:$NB$5,5,0),"") -> D1 | AG89: 0
A90: 5maDD | B90: =VLOOKUP($AA90,DATA!$B$3:$E90,2,0) -> 06:30:00 | C90: =VLOOKUP($AA90,DATA!$B$3:$E90,3,0) -> 14:30:00 | D90: =VLOOKUP($AA90,DATA!$B$3:$E90,4,0) -> 0.03125 | E90: 0.3020833333 | F90: 0.1819444444 | G90: =DATA!$C$9 -> 0.89 | H90: =DATA!$C$10 -> 64 | I90: 1 | J90: 245.625 | K90: 407.8125 | L90: 0.1201388889 | M90: 162.1875 | N90: 0.3977011494 | O90: =TIME(INT($AD90/60),INT(MOD($AD90,60)/1),0) -> 0 | R90: 304 | S90: 258 | V90: 258 | X90: =X100 -> 5 | Y90: =Y87+1 -> 2018-01-29 | Z90: =TEXT(Y90,"ddd") -> ma | AA90: DD | AB90: =IFERROR(HLOOKUP(Y90,[1]DATA!$A$1:$NB$5,3,0),"") -> D3 | AC90: 173 | AE90: 27 | AF90: 285 | AG90: 14 | AH90: -15.75 | AI90: 0.591827957 | AJ90: 0.9559748428 | AK90: 4359.375 | AL90: 2798 | AM90: 0.6418351254 | AN90: 901.875 | AO90: 0.2068817204 | AP90: 351.5625 | AQ90: 0.08064516129 | AR90: 0.9156703156 | AT90: 0.9430423644 | AU90: 0.8882982669 | AV90: 307.9375 | AW90: 0.07063799283 | AX90: 328.4666667 | AY90: 292
A91: 5maMD | B91: =VLOOKUP($AA91,DATA!$B$3:$E91,2,0) -> 14:30:00 | C91: =VLOOKUP($AA91,DATA!$B$3:$E91,3,0) -> 22:30:00 | D91: =VLOOKUP($AA91,DATA!$B$3:$E91,4,0) -> 0.03125 | E91: 0.3020833333 | F91: 0.2208333333 | G91: =DATA!$C$9 -> 0.89 | H91: =DATA!$C$10 -> 64 | I91: 1 | J91: 298.125 | K91: 407.8125 | L91: 0.08125 | M91: 109.6875 | N91: 0.2689655172 | O91: =TIME(INT(AD91/60),INT(MOD(AD91,60)/1),0) -> 0 | R91: 374.4 | S91: 326 | U91: 326 | X91: =X100 -> 5 | Z91: =TEXT(Y90,"ddd") -> ma | AA91: MD | AB91: =IFERROR(HLOOKUP(Y90,[1]DATA!$A$1:$NB$5,4,0),"") -> D2 | AC91: 117 | AE91: 25 | AF91: 351 | AG91: 15 | AH91: -0.25 | AI91: 0.7478136201 | AJ91: 0.9614791988
A92: 5maND | B92: =VLOOKUP($AA92,DATA!$B$3:$E92,2,0) -> 22:30:00 | C92: =VLOOKUP($AA92,DATA!$B$3:$E92,3,0) -> 06:30:00 | D92: =VLOOKUP($AA92,DATA!$B$3:$E92,4,0) -> 0.03125 | E92: =(C92-B92+(B92>C92))-D92 -> 0.3020833333 | F92: =E92-O92-L92 -> 0.3020833333 | G92: =DATA!$C$9 -> 0.89 | H92: =DATA!$C$10 -> 64 | I92: 1 | J92: =F92*86400/H92*I92 -> 407.8125 | K92: =E92*86400/H92 -> 407.8125 | L92: 0 | O92: 0 | R92: =AF92*AG$2 -> 0 | S92: =IF(AF92-AE92=0,"",AF92-AE92) ->  | X92: =X100 -> 5 | Z92: =TEXT(Y90,"ddd") -> ma | AA92: ND | AB92: =IFERROR(HLOOKUP(Y90,[1]DATA!$A$1:$NB$5,5,0),"") -> D1 | AG92: 0
A93: 5diDD | B93: =VLOOKUP($AA93,DATA!$B$3:$E93,2,0) -> 06:30:00 | C93: =VLOOKUP($AA93,DATA!$B$3:$E93,3,0) -> 14:30:00 | D93: =VLOOKUP($AA93,DATA!$B$3:$E93,4,0) -> 0.03125 | E93: 0.3020833333 | F93: 0.2375 | G93: =DATA!$C$9 -> 0.89 | H93: =DATA!$C$10 -> 64 | I93: 1 | J93: 320.625 | K93: 407.8125 | L93: 0.06458333333 | M93: 87.1875 | N93: 0.2137931034 | O93: 0 | R93: 385.0666667 | S93: 336 | V93: 336 | X93: =X100 -> 5 | Y93: =Y90+1 -> 2018-01-30 | Z93: =TEXT(Y93,"ddd") -> di | AA93: DD | AB93: =IFERROR(HLOOKUP(Y93,[1]DATA!$A$1:$NB$5,3,0),"") -> D3 | AC93: 93 | AE93: 25 | AF93: 361 | AG93: 27 | AH93: -12.75 | AI93: 0.7707526882 | AJ93: 0.9344766219
A94: 5diMD | B94: =VLOOKUP($AA94,DATA!$B$3:$E94,2,0) -> 14:30:00 | C94: =VLOOKUP($AA94,DATA!$B$3:$E94,3,0) -> 22:30:00 | D94: =VLOOKUP($AA94,DATA!$B$3:$E94,4,0) -> 0.03125 | E94: 0.3020833333 | F94: 0.24375 | G94: =DATA!$C$9 -> 0.89 | H94: =DATA!$C$10 -> 64 | I94: 1 | J94: 329.0625 | K94: 407.8125 | L94: 0.05833333333 | M94: 78.75 | N94: 0.1931034483 | O94: 0 | R94: 363.7333333 | S94: 305 | U94: 305 | X94: =X100 -> 5 | Z94: =TEXT(Y93,"ddd") -> di | AA94: MD | AB94: =IFERROR(HLOOKUP(Y93,[1]DATA!$A$1:$NB$5,4,0),"") -> D2 | AC94: 84 | AE94: 36 | AF94: 341 | AG94: 12 | AH94: -52.1875 | AI94: 0.6996415771 | AJ94: 0.9680624556
A95: 5diND | B95: =VLOOKUP($AA95,DATA!$B$3:$E95,2,0) -> 22:30:00 | C95: =VLOOKUP($AA95,DATA!$B$3:$E95,3,0) -> 06:30:00 | D95: =VLOOKUP($AA95,DATA!$B$3:$E95,4,0) -> 0.03125 | E95: 0.3020833333 | F95: 0.3020833333 | G95: =DATA!$C$9 -> 0.89 | H95: =DATA!$C$10 -> 64 | I95: 1 | J95: 407.8125 | K95: 407.8125 | L95: 0 | O95: 0 | R95: 0 | X95: =X100 -> 5 | Z95: =TEXT(Y93,"ddd") -> di | AA95: ND | AB95: =IFERROR(HLOOKUP(Y93,[1]DATA!$A$1:$NB$5,5,0),"") -> D1 | AG95: 0
A96: 5woDD | B96: =VLOOKUP($AA96,DATA!$B$3:$E96,2,0) -> 06:30:00 | C96: =VLOOKUP($AA96,DATA!$B$3:$E96,3,0) -> 14:30:00 | D96: =VLOOKUP($AA96,DATA!$B$3:$E96,4,0) -> 0.03125 | E96: 0.3020833333 | F96: 0.1284722222 | G96: =DATA!$C$9 -> 0.89 | H96: =DATA!$C$10 -> 64 | I96: 1 | J96: 173.4375 | K96: 407.8125 | L96: 0.03472222222 | M96: 46.875 | N96: 0.1149425287 | O96: 0.1388888889 | P96: 187.5 | Q96: 0.4597701149 | R96: 225.0666667 | S96: 206 | V96: 206 | X96: =X100 -> 5 | Y96: =Y93+1 -> 2018-01-31 | Z96: =TEXT(Y96,"ddd") -> wo | AA96: DD | AB96: =IFERROR(HLOOKUP(Y96,[1]DATA!$A$1:$NB$5,3,0),"") -> D3 | AC96: 50 | AD96: 200 | AE96: 5 | AF96: 211 | AG96: 68 | AH96: 4.4375 | AI96: 0.4725448029 | AJ96: 0.7679708826
A97: 5woMD | B97: =VLOOKUP($AA97,DATA!$B$3:$E97,2,0) -> 14:30:00 | C97: =VLOOKUP($AA97,DATA!$B$3:$E97,3,0) -> 22:30:00 | D97: =VLOOKUP($AA97,DATA!$B$3:$E97,4,0) -> 0.03125 | E97: 0.3020833333 | F97: 0.1659722222 | G97: =DATA!$C$9 -> 0.89 | H97: =DATA!$C$10 -> 64 | I97: 1 | J97: 224.0625 | K97: 407.8125 | L97: 0.01458333333 | M97: 19.6875 | N97: 0.04827586207 | O97: 0.1215277778 | P97: 164.0625 | Q97: 0.4022988506 | R97: 268.8 | S97: 231 | U97: 231 | X97: =X100 -> 5 | Z97: =TEXT(Y96,"ddd") -> wo | AA97: MD | AB97: =IFERROR(HLOOKUP(Y96,[1]DATA!$A$1:$NB$5,4,0),"") -> D2 | AC97: 21 | AD97: 175 | AE97: 21 | AF97: 252 | AG97: 31 | AH97: -21.1875 | AI97: 0.5298924731 | AJ97: 0.8965977318
A98: 5woND | B98: =VLOOKUP($AA98,DATA!$B$3:$E98,2,0) -> 22:30:00 | C98: =VLOOKUP($AA98,DATA!$B$3:$E98,3,0) -> 06:30:00 | D98: =VLOOKUP($AA98,DATA!$B$3:$E98,4,0) -> 0.03125 | E98: 0.3020833333 | F98: 0.3020833333 | G98: =DATA!$C$9 -> 0.89 | H98: =DATA!$C$10 -> 64 | I98: 1 | J98: 407.8125 | K98: 407.8125 | L98: 0 | O98: 0 | R98: 0 | X98: =X100 -> 5 | Z98: =TEXT(Y96,"ddd") -> wo | AA98: ND | AB98: =IFERROR(HLOOKUP(Y96,[1]DATA!$A$1:$NB$5,5,0),"") -> D1 | AG98: 0
A99: 5doDD | B99: =VLOOKUP($AA99,DATA!$B$3:$E99,2,0) -> 06:30:00 | C99: =VLOOKUP($AA99,DATA!$B$3:$E99,3,0) -> 14:30:00 | D99: =VLOOKUP($AA99,DATA!$B$3:$E99,4,0) -> 0.03125 | E99: 0.3020833333 | F99: 0.2444444444 | G99: =DATA!$C$9 -> 0.89 | H99: =DATA!$C$10 -> 64 | I99: 1 | J99: 330 | K99: 407.8125 | L99: 0.05763888889 | M99: 77.8125 | N99: 0.1908045977 | O99: 0 | R99: 318.9333333 | S99: 267 | V99: 267 | X99: =X100 -> 5 | Y99: =Y96+1 -> 2018-02-01 | Z99: =TEXT(Y99,"ddd") -> do | AA99: DD | AB99: =IFERROR(HLOOKUP(Y99,[1]DATA!$A$1:$NB$5,3,0),"") -> D3 | AC99: 83 | AE99: 32 | AF99: 299 | AG99: 73 | AH99: -91.125 | AI99: 0.6124731183 | AJ99: 0.813743834
A100: 5doMD | B100: =VLOOKUP($AA100,DATA!$B$3:$E100,2,0) -> 14:30:00 | C100: =VLOOKUP($AA100,DATA!$B$3:$E100,3,0) -> 22:30:00 | D100: =VLOOKUP($AA100,DATA!$B$3:$E100,4,0) -> 0.03125 | E100: 0.3020833333 | F100: 0.2263888889 | G100: =DATA!$C$9 -> 0.89 | H100: =DATA!$C$10 -> 64 | I100: 1 | J100: 305.625 | K100: 407.8125 | L100: 0.07569444444 | M100: 102.1875 | N100: 0.2505747126 | O100: 0 | R100: 375.4666667 | S100: 325 | U100: 325 | X100: =WEEKNUM($Y90) -> 5 | Z100: =TEXT(Y99,"ddd") -> do | AA100: MD | AB100: =IFERROR(HLOOKUP(Y99,[1]DATA!$A$1:$NB$5,4,0),"") -> D2 | AC100: 109 | AE100: 27 | AF100: 352 | AG100: 24 | AH100: -8.75 | AI100: 0.7455197133 | AJ100: 0.9399198932
A101: 5doND | B101: =VLOOKUP($AA101,DATA!$B$3:$E101,2,0) -> 22:30:00 | C101: =VLOOKUP($AA101,DATA!$B$3:$E101,3,0) -> 06:30:00 | D101: =VLOOKUP($AA101,DATA!$B$3:$E101,4,0) -> 0.03125 | E101: 0.3020833333 | F101: 0.3020833333 | G101: =DATA!$C$9 -> 0.89 | H101: =DATA!$C$10 -> 64 | I101: 1 | J101: 407.8125 | K101: 407.8125 | L101: 0 | O101: 0 | R101: 0 | X101: =X100 -> 5 | Z101: =TEXT(Y99,"ddd") -> do | AA101: ND | AB101: =IFERROR(HLOOKUP(Y99,[1]DATA!$A$1:$NB$5,5,0),"") -> D1 | AG101: 0
A102: 5vrDD | B102: =VLOOKUP($AA102,DATA!$B$3:$E102,2,0) -> 06:30:00 | C102: =VLOOKUP($AA102,DATA!$B$3:$E102,3,0) -> 14:30:00 | D102: =VLOOKUP($AA102,DATA!$B$3:$E102,4,0) -> 0.03125 | E102: 0.3020833333 | F102: 0.2256944444 | G102: =DATA!$C$9 -> 0.89 | H102: =DATA!$C$10 -> 64 | I102: 1 | J102: 304.6875 | K102: 407.8125 | L102: 0.07638888889 | M102: 103.125 | N102: 0.2528735632 | O102: 0 | R102: 252.8 | S102: 220 | V102: 220 | X102: =X100 -> 5 | Y102: =Y99+1 -> 2018-02-02 | Z102: =TEXT(Y102,"ddd") -> vr | AA102: DD | AB102: =IFERROR(HLOOKUP(Y102,[1]DATA!$A$1:$NB$5,3,0),"") -> D3 | AC102: 110 | AE102: 17 | AF102: 237 | AG102: 8 | AH102: -112.8125 | AI102: 0.5046594982 | AJ102: 0.9693251534
A103: 5vrMD | B103: =VLOOKUP($AA103,DATA!$B$3:$E103,2,0) -> 14:30:00 | C103: =VLOOKUP($AA103,DATA!$B$3:$E103,3,0) -> 22:30:00 | D103: =VLOOKUP($AA103,DATA!$B$3:$E103,4,0) -> 0.03125 | E103: 0.3020833333 | F103: 0.2173611111 | G103: =DATA!$C$9 -> 0.89 | H103: =DATA!$C$10 -> 64 | I103: 1 | J103: 293.4375 | K103: 407.8125 | L103: 0.08472222222 | M103: 114.375 | N103: 0.2804597701 | O103: 0 | R103: 373.3333333 | S103: 324 | U103: 324 | X103: =X100 -> 5 | Z103: =TEXT(Y102,"ddd") -> vr | AA103: MD | AB103: =IFERROR(HLOOKUP(Y102,[1]DATA!$A$1:$NB$5,4,0),"") -> D2 | AC103: 122 | AE103: 26 | AF103: 350 | AG103: 20 | AH103: 2.4375 | AI103: 0.7432258065 | AJ103: 0.9491525424
A104: 5vrND | B104: =VLOOKUP($AA104,DATA!$B$3:$E104,2,0) -> 22:30:00 | C104: =VLOOKUP($AA104,DATA!$B$3:$E104,3,0) -> 06:30:00 | D104: =VLOOKUP($AA104,DATA!$B$3:$E104,4,0) -> 0.03125 | E104: 0.3020833333 | F104: 0.3020833333 | G104: =DATA!$C$9 -> 0.89 | H104: =DATA!$C$10 -> 64 | I104: 1 | J104: 407.8125 | K104: 407.8125 | L104: 0 | O104: 0 | R104: 0 | X104: =X100 -> 5 | Z104: =TEXT(Y102,"ddd") -> vr | AA104: ND | AB104: =IFERROR(HLOOKUP(Y102,[1]DATA!$A$1:$NB$5,5,0),"") -> - | AG104: 0
A105: 5zaDD | B105: =VLOOKUP($AA105,DATA!$B$3:$E105,2,0) -> 06:30:00 | C105: =VLOOKUP($AA105,DATA!$B$3:$E105,3,0) -> 14:30:00 | D105: =VLOOKUP($AA105,DATA!$B$3:$E105,4,0) -> 0.03125 | E105: 0.3020833333 | F105: 0.3020833333 | G105: =DATA!$C$9 -> 0.89 | H105: =DATA!$C$10 -> 64 | I105: 1 | J105: 407.8125 | K105: 407.8125 | L105: 0 | O105: 0 | R105: 0 | X105: =X100 -> 5 | Y105: =Y102+1 -> 2018-02-03 | Z105: =TEXT(Y105,"ddd") -> za | AA105: DD | AB105: =IFERROR(HLOOKUP(Y105,[1]DATA!$A$1:$NB$5,3,0),"") -> - | AG105: 0
A106: 5zaMD | B106: =VLOOKUP($AA106,DATA!$B$3:$E106,2,0) -> 14:30:00 | C106: =VLOOKUP($AA106,DATA!$B$3:$E106,3,0) -> 22:30:00 | D106: =VLOOKUP($AA106,DATA!$B$3:$E106,4,0) -> 0.03125 | E106: 0.3020833333 | F106: 0.3020833333 | G106: =DATA!$C$9 -> 0.89 | H106: =DATA!$C$10 -> 64 | I106: 1 | J106: 407.8125 | K106: 407.8125 | L106: 0 | O106: 0 | R106: 0 | X106: =X100 -> 5 | Z106: =TEXT(Y105,"ddd") -> za | AA106: MD | AB106: =IFERROR(HLOOKUP(Y105,[1]DATA!$A$1:$NB$5,4,0),"") -> - | AG106: 0
A107: 5zaND | B107: =VLOOKUP($AA107,DATA!$B$3:$E107,2,0) -> 22:30:00 | C107: =VLOOKUP($AA107,DATA!$B$3:$E107,3,0) -> 06:30:00 | D107: =VLOOKUP($AA107,DATA!$B$3:$E107,4,0) -> 0.03125 | E107: 0.3020833333 | F107: 0.3020833333 | G107: =DATA!$C$9 -> 0.89 | H107: =DATA!$C$10 -> 64 | I107: 1 | J107: 407.8125 | K107: 407.8125 | L107: 0 | O107: 0 | R107: 0 | X107: =X100 -> 5 | Z107: =TEXT(Y105,"ddd") -> za | AA107: ND | AB107: =IFERROR(HLOOKUP(Y105,[1]DATA!$A$1:$NB$5,5,0),"") -> - | AG107: 0
A108: 5zoDD | B108: =VLOOKUP($AA108,DATA!$B$3:$E108,2,0) -> 06:30:00 | C108: =VLOOKUP($AA108,DATA!$B$3:$E108,3,0) -> 14:30:00 | D108: =VLOOKUP($AA108,DATA!$B$3:$E108,4,0) -> 0.03125 | E108: 0.3020833333 | F108: 0.3020833333 | G108: =DATA!$C$9 -> 0.89 | H108: =DATA!$C$10 -> 64 | I108: 1 | J108: 407.8125 | K108: 407.8125 | L108: 0 | O108: 0 | R108: 0 | X108: =X100 -> 5 | Y108: =Y105+1 -> 2018-02-04 | Z108: =TEXT(Y108,"ddd") -> zo | AA108: DD | AB108: =IFERROR(HLOOKUP(Y108,[1]DATA!$A$1:$NB$5,3,0),"") -> - | AG108: 0
A109: 5zoMD | B109: =VLOOKUP($AA109,DATA!$B$3:$E109,2,0) -> 14:30:00 | C109: =VLOOKUP($AA109,DATA!$B$3:$E109,3,0) -> 22:30:00 | D109: =VLOOKUP($AA109,DATA!$B$3:$E109,4,0) -> 0.03125 | E109: 0.3020833333 | F109: 0.3020833333 | G109: =DATA!$C$9 -> 0.89 | H109: =DATA!$C$10 -> 64 | I109: 1 | J109: 407.8125 | K109: 407.8125 | L109: 0 | O109: 0 | R109: 0 | X109: =X100 -> 5 | Z109: =TEXT(Y108,"ddd") -> zo | AA109: MD | AB109: =IFERROR(HLOOKUP(Y108,[1]DATA!$A$1:$NB$5,4,0),"") -> - | AG109: 0
A110: 5zoZND | B110: =VLOOKUP($AA110,DATA!$B$3:$E110,2,0) -> 00:00:00 | C110: =VLOOKUP($AA110,DATA!$B$3:$E110,3,0) -> 00:00:00 | D110: =VLOOKUP($AA110,DATA!$B$3:$E110,4,0) -> 0 | E110: 0 | F110: 0 | G110: =DATA!$C$9 -> 0.89 | H110: =DATA!$C$10 -> 64 | I110: 1 | J110: 0 | K110: 0 | L110: 0 | O110: 0 | R110: 0 | X110: =X100 -> 5 | Z110: =TEXT(Y108,"ddd") -> zo | AA110: ZND | AB110: =IFERROR(HLOOKUP(Y108,[1]DATA!$A$1:$NB$5,5,0),"") -> D3 | AG110: 0
A111: 6maDD | B111: =VLOOKUP($AA111,DATA!$B$3:$E111,2,0) -> 06:30:00 | C111: =VLOOKUP($AA111,DATA!$B$3:$E111,3,0) -> 14:30:00 | D111: =VLOOKUP($AA111,DATA!$B$3:$E111,4,0) -> 0.03125 | E111: 0.3020833333 | F111: 0.2180555556 | G111: =DATA!$C$9 -> 0.89 | H111: =DATA!$C$10 -> 64 | I111: 1 | J111: 294.375 | K111: 407.8125 | L111: 0.08402777778 | M111: 113.4375 | N111: 0.2781609195 | O111: =TIME(INT($AD111/60),INT(MOD($AD111,60)/1),0) -> 0 | R111: 310.4 | S111: 278 | U111: 278 | X111: =X121 -> 6 | Y111: =Y108+1 -> 2018-02-05 | Z111: =TEXT(Y111,"ddd") -> ma | AA111: DD | AB111: =IFERROR(HLOOKUP(Y111,[1]DATA!$A$1:$NB$5,3,0),"") -> D2 | AC111: 121 | AE111: 13 | AF111: 291 | AG111: 25 | AH111: -44.5 | AI111: 0.6377060932 | AJ111: 0.9254621348 | AK111: 4359.375 | AL111: 3089 | AM111: 0.7085878136 | AN111: 795 | AO111: 0.1823655914 | AP111: 0 | AQ111: 0 | AR111: 0.9325242474 | AS111: 0.9737984205 | AT111: 0.8912500742 | AV111: 475.375 | AW111: 0.109046595 | AX111: 507.0666667 | AY111: 277
A112: =X112&Z112&AA112 -> 6maMD | B112: =VLOOKUP($AA112,DATA!$B$3:$E112,2,0) -> 14:30:00 | C112: =VLOOKUP($AA112,DATA!$B$3:$E112,3,0) -> 22:30:00 | D112: =VLOOKUP($AA112,DATA!$B$3:$E112,4,0) -> 0.03125 | E112: 0.3020833333 | F112: 0.2423611111 | G112: =DATA!$C$9 -> 0.89 | H112: =DATA!$C$10 -> 64 | I112: 1 | J112: 327.1875 | K112: 407.8125 | L112: 0.05972222222 | M112: 80.625 | N112: 0.1977011494 | O112: =TIME(INT(AD112/60),INT(MOD(AD112,60)/1),0) -> 0 | P112: =IF($O112*86400/$H112=0,"",$O112*86400/$H112) ->  | R112: 358.4 | S112: 307 | T112: 307 | X112: =X121 -> 6 | Z112: =TEXT(Y111,"ddd") -> ma | AA112: MD | AB112: =IFERROR(HLOOKUP(Y111,[1]DATA!$A$1:$NB$5,4,0),"") -> D1 | AC112: 86 | AE112: 29 | AF112: 336 | AG112: 20 | AH112: -48.3125 | AI112: 0.7042293907 | AJ112: 0.9471458774
A113: 6maND | B113: =VLOOKUP($AA113,DATA!$B$3:$E113,2,0) -> 22:30:00 | C113: =VLOOKUP($AA113,DATA!$B$3:$E113,3,0) -> 06:30:00 | D113: =VLOOKUP($AA113,DATA!$B$3:$E113,4,0) -> 0.03125 | E113: 0.3020833333 | F113: 0.3020833333 | G113: =DATA!$C$9 -> 0.89 | H113: =DATA!$C$10 -> 64 | I113: 1 | J113: 407.8125 | K113: 407.8125 | L113: 0 | O113: 0 | R113: 0 | X113: =X121 -> 6 | Z113: =TEXT(Y111,"ddd") -> ma | AA113: ND | AB113: =IFERROR(HLOOKUP(Y111,[1]DATA!$A$1:$NB$5,5,0),"") -> D3 | AG113: 0
A114: 6diDD | B114: =VLOOKUP($AA114,DATA!$B$3:$E114,2,0) -> 06:30:00 | C114: =VLOOKUP($AA114,DATA!$B$3:$E114,3,0) -> 14:30:00 | D114: =VLOOKUP($AA114,DATA!$B$3:$E114,4,0) -> 0.03125 | E114: 0.3020833333 | F114: 0.2597222222 | G114: =DATA!$C$9 -> 0.89 | H114: =DATA!$C$10 -> 64 | I114: 1 | J114: 350.625 | K114: 407.8125 | L114: 0.04236111111 | M114: 57.1875 | N114: 0.1402298851 | O114: 0 | R114: 355.2 | S114: 315 | U114: 315 | X114: =X121 -> 6 | Y114: =Y111+1 -> 2018-02-06 | Z114: =TEXT(Y114,"ddd") -> di | AA114: DD | AB114: =IFERROR(HLOOKUP(Y114,[1]DATA!$A$1:$NB$5,3,0),"") -> D2 | AC114: 61 | AE114: 18 | AF114: 333 | AG114: 35 | AH114: -63.75 | AI114: 0.7225806452 | AJ114: 0.910302409
A115: 6diMD | B115: =VLOOKUP($AA115,DATA!$B$3:$E115,2,0) -> 14:30:00 | C115: =VLOOKUP($AA115,DATA!$B$3:$E115,3,0) -> 22:30:00 | D115: =VLOOKUP($AA115,DATA!$B$3:$E115,4,0) -> 0.03125 | E115: 0.3020833333 | F115: 0.2590277778 | G115: =DATA!$C$9 -> 0.89 | H115: =DATA!$C$10 -> 64 | I115: 1 | J115: 349.6875 | K115: 407.8125 | L115: 0.04305555556 | M115: 58.125 | N115: 0.1425287356 | O115: 0 | R115: 268.8 | S115: 231 | T115: 231 | X115: =X121 -> 6 | Z115: =TEXT(Y114,"ddd") -> di | AA115: MD | AB115: =IFERROR(HLOOKUP(Y114,[1]DATA!$A$1:$NB$5,4,0),"") -> D1 | AC115: 62 | AE115: 21 | AF115: 252 | AG115: 11 | AH115: -146.8125 | AI115: 0.5298924731 | AJ115: 0.9606862044
A116: 6diND | B116: =VLOOKUP($AA116,DATA!$B$3:$E116,2,0) -> 22:30:00 | C116: =VLOOKUP($AA116,DATA!$B$3:$E116,3,0) -> 06:30:00 | D116: =VLOOKUP($AA116,DATA!$B$3:$E116,4,0) -> 0.03125 | E116: 0.3020833333 | F116: 0.3020833333 | G116: =DATA!$C$9 -> 0.89 | H116: =DATA!$C$10 -> 64 | I116: 1 | J116: 407.8125 | K116: 407.8125 | L116: 0 | O116: 0 | R116: 0 | X116: =X121 -> 6 | Z116: =TEXT(Y114,"ddd") -> di | AA116: ND | AB116: =IFERROR(HLOOKUP(Y114,[1]DATA!$A$1:$NB$5,5,0),"") -> D3 | AG116: 0
A117: 6woDD | B117: =VLOOKUP($AA117,DATA!$B$3:$E117,2,0) -> 06:30:00 | C117: =VLOOKUP($AA117,DATA!$B$3:$E117,3,0) -> 14:30:00 | D117: =VLOOKUP($AA117,DATA!$B$3:$E117,4,0) -> 0.03125 | E117: 0.3020833333 | F117: 0.2701388889 | G117: =DATA!$C$9 -> 0.89 | H117: =DATA!$C$10 -> 64 | I117: 1 | J117: 364.6875 | K117: 407.8125 | L117: 0.03194444444 | M117: 43.125 | N117: 0.1057471264 | O117: 0 | R117: 418.1333333 | S117: 361 | U117: 361 | X117: =X121 -> 6 | Y117: =Y114+1 -> 2018-02-07 | Z117: =TEXT(Y117,"ddd") -> wo | AA117: DD | AB117: =IFERROR(HLOOKUP(Y117,[1]DATA!$A$1:$NB$5,3,0),"") -> D2 | AC117: 46 | AE117: 31 | AF117: 392 | AG117: 63 | AH117: -31.8125 | AI117: 0.8281003584 | AJ117: 0.8690591659
A118: 6woMD | B118: =VLOOKUP($AA118,DATA!$B$3:$E118,2,0) -> 14:30:00 | C118: =VLOOKUP($AA118,DATA!$B$3:$E118,3,0) -> 22:30:00 | D118: =VLOOKUP($AA118,DATA!$B$3:$E118,4,0) -> 0.03125 | E118: 0.3020833333 | F118: 0.2097222222 | G118: =DATA!$C$9 -> 0.89 | H118: =DATA!$C$10 -> 64 | I118: 1 | J118: 283.125 | K118: 407.8125 | L118: 0.09236111111 | M118: 124.6875 | N118: 0.3057471264 | O118: 0 | R118: 302.9333333 | S118: 268 | T118: 268 | X118: =X121 -> 6 | Z118: =TEXT(Y117,"ddd") -> wo | AA118: MD | AB118: =IFERROR(HLOOKUP(Y117,[1]DATA!$A$1:$NB$5,4,0),"") -> D1 | AC118: 133 | AE118: 16 | AF118: 284 | AG118: 0 | AH118: -43.25 | AI118: 0.6147670251 | AJ118: 1
A119: 6woND | B119: =VLOOKUP($AA119,DATA!$B$3:$E119,2,0) -> 22:30:00 | C119: =VLOOKUP($AA119,DATA!$B$3:$E119,3,0) -> 06:30:00 | D119: =VLOOKUP($AA119,DATA!$B$3:$E119,4,0) -> 0.03125 | E119: 0.3020833333 | F119: 0.3020833333 | G119: =DATA!$C$9 -> 0.89 | H119: =DATA!$C$10 -> 64 | I119: 1 | J119: 407.8125 | K119: 407.8125 | L119: 0 | O119: 0 | R119: 0 | X119: =X121 -> 6 | Z119: =TEXT(Y117,"ddd") -> wo | AA119: ND | AB119: =IFERROR(HLOOKUP(Y117,[1]DATA!$A$1:$NB$5,5,0),"") -> D3 | AG119: 0
A120: 6doDD | B120: =VLOOKUP($AA120,DATA!$B$3:$E120,2,0) -> 06:30:00 | C120: =VLOOKUP($AA120,DATA!$B$3:$E120,3,0) -> 14:30:00 | D120: =VLOOKUP($AA120,DATA!$B$3:$E120,4,0) -> 0.03125 | E120: 0.3020833333 | F120: 0.2194444444 | G120: =DATA!$C$9 -> 0.89 | H120: =DATA!$C$10 -> 64 | I120: 1 | J120: 296.25 | K120: 407.8125 | L120: 0.08263888889 | M120: 111.5625 | N120: 0.2735632184 | O120: 0 | R120: 368 | S120: 319 | U120: 319 | X120: =X121 -> 6 | Y120: =Y117+1 -> 2018-02-08 | Z120: =TEXT(Y120,"ddd") -> do | AA120: DD | AB120: =IFERROR(HLOOKUP(Y120,[1]DATA!$A$1:$NB$5,3,0),"") -> D2 | AC120: 119 | AE120: 26 | AF120: 345 | AG120: 62 | AH120: -5.375 | AI120: 0.7317562724 | AJ120: 0.8558139535
A121: 6doMD | B121: =VLOOKUP($AA121,DATA!$B$3:$E121,2,0) -> 14:30:00 | C121: =VLOOKUP($AA121,DATA!$B$3:$E121,3,0) -> 22:30:00 | D121: =VLOOKUP($AA121,DATA!$B$3:$E121,4,0) -> 0.03125 | E121: 0.3020833333 | F121: 0.2555555556 | G121: =DATA!$C$9 -> 0.89 | H121: =DATA!$C$10 -> 64 | I121: 1 | J121: 345 | K121: 407.8125 | L121: 0.04652777778 | M121: 62.8125 | N121: 0.1540229885 | O121: 0 | R121: 408.5333333 | S121: 358 | T121: 358 | X121: =WEEKNUM($Y111) -> 6 | Z121: =TEXT(Y120,"ddd") -> do | AA121: MD | AB121: =IFERROR(HLOOKUP(Y120,[1]DATA!$A$1:$NB$5,4,0),"") -> D1 | AC121: 67 | AE121: 25 | AF121: 383 | AG121: 0 | AH121: -15.125 | AI121: 0.821218638 | AJ121: 1
A122: 6doND | B122: =VLOOKUP($AA122,DATA!$B$3:$E122,2,0) -> 22:30:00 | C122: =VLOOKUP($AA122,DATA!$B$3:$E122,3,0) -> 06:30:00 | D122: =VLOOKUP($AA122,DATA!$B$3:$E122,4,0) -> 0.03125 | E122: 0.3020833333 | F122: 0.3020833333 | G122: =DATA!$C$9 -> 0.89 | H122: =DATA!$C$10 -> 64 | I122: 1 | J122: 407.8125 | K122: 407.8125 | L122: 0 | O122: 0 | R122: 0 | X122: =X121 -> 6 | Z122: =TEXT(Y120,"ddd") -> do | AA122: ND | AB122: =IFERROR(HLOOKUP(Y120,[1]DATA!$A$1:$NB$5,5,0),"") -> D3 | AG122: 0
A123: 6vrDD | B123: =VLOOKUP($AA123,DATA!$B$3:$E123,2,0) -> 06:30:00 | C123: =VLOOKUP($AA123,DATA!$B$3:$E123,3,0) -> 14:30:00 | D123: =VLOOKUP($AA123,DATA!$B$3:$E123,4,0) -> 0.03125 | E123: 0.3020833333 | F123: 0.2416666667 | G123: =DATA!$C$9 -> 0.89 | H123: =DATA!$C$10 -> 64 | I123: 1 | J123: 326.25 | K123: 407.8125 | L123: 0.06041666667 | M123: 81.5625 | N123: 0.2 | O123: 0 | R123: 394.6666667 | S123: 340 | U123: 340 | X123: =X121 -> 6 | Y123: =Y120+1 -> 2018-02-09 | Z123: =TEXT(Y123,"ddd") -> vr | AA123: DD | AB123: =IFERROR(HLOOKUP(Y123,[1]DATA!$A$1:$NB$5,3,0),"") -> D2 | AC123: 87 | AE123: 30 | AF123: 370 | AG123: 46 | AH123: -14.375 | AI123: 0.7799283154 | AJ123: 0.895612708
A124: 6vrMD | B124: =VLOOKUP($AA124,DATA!$B$3:$E124,2,0) -> 14:30:00 | C124: =VLOOKUP($AA124,DATA!$B$3:$E124,3,0) -> 22:30:00 | D124: =VLOOKUP($AA124,DATA!$B$3:$E124,4,0) -> 0.03125 | E124: 0.3020833333 | F124: 0.25625 | G124: =DATA!$C$9 -> 0.89 | H124: =DATA!$C$10 -> 64 | I124: 1 | J124: 345.9375 | K124: 407.8125 | L124: 0.04583333333 | M124: 61.875 | N124: 0.1517241379 | O124: 0 | R124: 371.2 | S124: 312 | T124: 312 | X124: =X121 -> 6 | Z124: =TEXT(Y123,"ddd") -> vr | AA124: MD | AB124: =IFERROR(HLOOKUP(Y123,[1]DATA!$A$1:$NB$5,4,0),"") -> D1 | AC124: 66 | AE124: 36 | AF124: 348 | AG124: 15 | AH124: -62.0625 | AI124: 0.7156989247 | AJ124: 0.9611600207
A125: 6vrND | B125: =VLOOKUP($AA125,DATA!$B$3:$E125,2,0) -> 22:30:00 | C125: =VLOOKUP($AA125,DATA!$B$3:$E125,3,0) -> 06:30:00 | D125: =VLOOKUP($AA125,DATA!$B$3:$E125,4,0) -> 0.03125 | E125: 0.3020833333 | F125: 0.3020833333 | G125: =DATA!$C$9 -> 0.89 | H125: =DATA!$C$10 -> 64 | I125: 1 | J125: 407.8125 | K125: 407.8125 | L125: 0 | O125: 0 | R125: 0 | X125: =X121 -> 6 | Z125: =TEXT(Y123,"ddd") -> vr | AA125: ND | AB125: =IFERROR(HLOOKUP(Y123,[1]DATA!$A$1:$NB$5,5,0),"") -> - | AG125: 0
A126: 6zaDD | B126: =VLOOKUP($AA126,DATA!$B$3:$E126,2,0) -> 06:30:00 | C126: =VLOOKUP($AA126,DATA!$B$3:$E126,3,0) -> 14:30:00 | D126: =VLOOKUP($AA126,DATA!$B$3:$E126,4,0) -> 0.03125 | E126: 0.3020833333 | F126: 0.3020833333 | G126: =DATA!$C$9 -> 0.89 | H126: =DATA!$C$10 -> 64 | I126: 1 | J126: 407.8125 | K126: 407.8125 | L126: 0 | O126: 0 | R126: 0 | X126: =X121 -> 6 | Y126: =Y123+1 -> 2018-02-10 | Z126: =TEXT(Y126,"ddd") -> za | AA126: DD | AB126: =IFERROR(HLOOKUP(Y126,[1]DATA!$A$1:$NB$5,3,0),"") -> - | AG126: 0
A127: 6zaMD | B127: =VLOOKUP($AA127,DATA!$B$3:$E127,2,0) -> 14:30:00 | C127: =VLOOKUP($AA127,DATA!$B$3:$E127,3,0) -> 22:30:00 | D127: =VLOOKUP($AA127,DATA!$B$3:$E127,4,0) -> 0.03125 | E127: 0.3020833333 | F127: 0.3020833333 | G127: =DATA!$C$9 -> 0.89 | H127: =DATA!$C$10 -> 64 | I127: 1 | J127: 407.8125 | K127: 407.8125 | L127: 0 | O127: 0 | R127: 0 | X127: =X121 -> 6 | Z127: =TEXT(Y126,"ddd") -> za | AA127: MD | AB127: =IFERROR(HLOOKUP(Y126,[1]DATA!$A$1:$NB$5,4,0),"") -> - | AG127: 0
A128: 6zaND | B128: =VLOOKUP($AA128,DATA!$B$3:$E128,2,0) -> 22:30:00 | C128: =VLOOKUP($AA128,DATA!$B$3:$E128,3,0) -> 06:30:00 | D128: =VLOOKUP($AA128,DATA!$B$3:$E128,4,0) -> 0.03125 | E128: 0.3020833333 | F128: 0.3020833333 | G128: =DATA!$C$9 -> 0.89 | H128: =DATA!$C$10 -> 64 | I128: 1 | J128: 407.8125 | K128: 407.8125 | L128: 0 | O128: 0 | R128: 0 | X128: =X121 -> 6 | Z128: =TEXT(Y126,"ddd") -> za | AA128: ND | AB128: =IFERROR(HLOOKUP(Y126,[1]DATA!$A$1:$NB$5,5,0),"") -> - | AG128: 0
A129: 6zoDD | B129: =VLOOKUP($AA129,DATA!$B$3:$E129,2,0) -> 06:30:00 | C129: =VLOOKUP($AA129,DATA!$B$3:$E129,3,0) -> 14:30:00 | D129: =VLOOKUP($AA129,DATA!$B$3:$E129,4,0) -> 0.03125 | E129: 0.3020833333 | F129: 0.3020833333 | G129: =DATA!$C$9 -> 0.89 | H129: =DATA!$C$10 -> 64 | I129: 1 | J129: 407.8125 | K129: 407.8125 | L129: 0 | O129: 0 | R129: 0 | X129: =X121 -> 6 | Y129: =Y126+1 -> 2018-02-11 | Z129: =TEXT(Y129,"ddd") -> zo | AA129: DD | AB129: =IFERROR(HLOOKUP(Y129,[1]DATA!$A$1:$NB$5,3,0),"") -> - | AG129: 0
A130: 6zoMD | B130: =VLOOKUP($AA130,DATA!$B$3:$E130,2,0) -> 14:30:00 | C130: =VLOOKUP($AA130,DATA!$B$3:$E130,3,0) -> 22:30:00 | D130: =VLOOKUP($AA130,DATA!$B$3:$E130,4,0) -> 0.03125 | E130: 0.3020833333 | F130: 0.3020833333 | G130: =DATA!$C$9 -> 0.89 | H130: =DATA!$C$10 -> 64 | I130: 1 | J130: 407.8125 | K130: 407.8125 | L130: 0 | O130: 0 | R130: 0 | X130: =X121 -> 6 | Z130: =TEXT(Y129,"ddd") -> zo | AA130: MD | AB130: =IFERROR(HLOOKUP(Y129,[1]DATA!$A$1:$NB$5,4,0),"") -> - | AG130: 0
A131: 6zoZND | B131: =VLOOKUP($AA131,DATA!$B$3:$E131,2,0) -> 00:00:00 | C131: =VLOOKUP($AA131,DATA!$B$3:$E131,3,0) -> 00:00:00 | D131: =VLOOKUP($AA131,DATA!$B$3:$E131,4,0) -> 0 | E131: 0 | F131: 0 | G131: =DATA!$C$9 -> 0.89 | H131: =DATA!$C$10 -> 64 | I131: 1 | J131: 0 | K131: 0 | L131: 0 | O131: 0 | R131: 0 | X131: =X121 -> 6 | Z131: =TEXT(Y129,"ddd") -> zo | AA131: ZND | AB131: =IFERROR(HLOOKUP(Y129,[1]DATA!$A$1:$NB$5,5,0),"") -> D2 | AG131: 0
A132: 7maDD | B132: =VLOOKUP($AA132,DATA!$B$3:$E132,2,0) -> 06:30:00 | C132: =VLOOKUP($AA132,DATA!$B$3:$E132,3,0) -> 14:30:00 | D132: =VLOOKUP($AA132,DATA!$B$3:$E132,4,0) -> 0.03125 | E132: 0.3020833333 | F132: 0.3020833333 | G132: =DATA!$C$9 -> 0.89 | H132: =DATA!$C$10 -> 64 | I132: 1 | J132: 407.8125 | K132: 407.8125 | L132: 0 | O132: =TIME(INT($AD132/60),INT(MOD($AD132,60)/1),0) -> 0 | R132: 0 | X132: =X142 -> 7 | Y132: =Y129+1 -> 2018-02-12 | Z132: =TEXT(Y132,"ddd") -> ma | AA132: DD | AB132: =IFERROR(HLOOKUP(Y132,[1]DATA!$A$1:$NB$5,3,0),"") -> D1 | AG132: 0 | AK132: 3487.5 | AL132: 2409 | AM132: 0.6907526882 | AN132: 880.3125 | AO132: 0.2524193548 | AP132: 32.8125 | AQ132: 0.009408602151 | AR132: 0.9443613118 | AS132: 0.9844414842 | AU132: 0.9042811395 | AV132: 165.375 | AW132: 0.04741935484 | AX132: 176.4 | AY132: 167
A133: 7maMD | B133: =VLOOKUP($AA133,DATA!$B$3:$E133,2,0) -> 14:30:00 | C133: =VLOOKUP($AA133,DATA!$B$3:$E133,3,0) -> 22:30:00 | D133: =VLOOKUP($AA133,DATA!$B$3:$E133,4,0) -> 0.03125 | E133: 0.3020833333 | F133: 0.3020833333 | G133: =DATA!$C$9 -> 0.89 | H133: =DATA!$C$10 -> 64 | I133: 1 | J133: 407.8125 | K133: 407.8125 | L133: 0 | O133: =TIME(INT(AD133/60),INT(MOD(AD133,60)/1),0) -> 0 | R133: 0 | X133: =X142 -> 7 | Z133: =TEXT(Y132,"ddd") -> ma | AA133: MD | AB133: =IFERROR(HLOOKUP(Y132,[1]DATA!$A$1:$NB$5,4,0),"") -> D3 | AG133: 0
A134: 7maND | B134: =VLOOKUP($AA134,DATA!$B$3:$E134,2,0) -> 22:30:00 | C134: =VLOOKUP($AA134,DATA!$B$3:$E134,3,0) -> 06:30:00 | D134: =VLOOKUP($AA134,DATA!$B$3:$E134,4,0) -> 0.03125 | E134: 0.3020833333 | F134: 0.3020833333 | G134: =DATA!$C$9 -> 0.89 | H134: =DATA!$C$10 -> 64 | I134: 1 | J134: 407.8125 | K134: 407.8125 | L134: 0 | O134: 0 | R134: 0 | X134: =X142 -> 7 | Z134: =TEXT(Y132,"ddd") -> ma | AA134: ND | AB134: =IFERROR(HLOOKUP(Y132,[1]DATA!$A$1:$NB$5,5,0),"") -> D2 | AG134: 0
A135: 7diDD | B135: =VLOOKUP($AA135,DATA!$B$3:$E135,2,0) -> 06:30:00 | C135: =VLOOKUP($AA135,DATA!$B$3:$E135,3,0) -> 14:30:00 | D135: =VLOOKUP($AA135,DATA!$B$3:$E135,4,0) -> 0.03125 | E135: 0.3020833333 | F135: 0.2090277778 | G135: =DATA!$C$9 -> 0.89 | H135: =DATA!$C$10 -> 64 | I135: 1 | J135: 282.1875 | K135: 407.8125 | L135: =TIME(INT($AC135/60),INT(MOD($AC135,60)/1),0) -> 0.09305555556 | M135: =IF($L135*86400/$H135=0,"",$L135*86400/$H135) -> 125.625 | N135: =IFERROR($M135/$K135,"") -> 0.308045977 | O135: 0 | Q135: =IFERROR($P135/$K135,"") ->  | R135: 350.9333333 | S135: 298 | T135: =IF(IF($AB135="D1",$S135,"")=0,"",IF($AB135="D1",$S135,"")) -> 298 | U135: =IF(IF($AB135="D2",$S135,"")=0,"",IF($AB135="D2",$S135,"")) ->  | V135: =IF(IF($AB135="D3",$S135,"")=0,"",IF($AB135="D3",$S135,"")) ->  | X135: =X142 -> 7 | Y135: =Y132+1 -> 2018-02-13 | Z135: =TEXT(Y135,"ddd") -> di | AA135: DD | AB135: =IFERROR(HLOOKUP(Y135,[1]DATA!$A$1:$NB$5,3,0),"") -> D1 | AC135: 134 | AE135: 31 | AF135: 329 | AG135: 10 | AH135: -12.3125 | AI135: 0.6835842294 | AJ135: 0.9722940525
A136: 7diMD | B136: =VLOOKUP($AA136,DATA!$B$3:$E136,2,0) -> 14:30:00 | C136: =VLOOKUP($AA136,DATA!$B$3:$E136,3,0) -> 22:30:00 | D136: =VLOOKUP($AA136,DATA!$B$3:$E136,4,0) -> 0.03125 | E136: 0.3020833333 | F136: 0.2326388889 | G136: =DATA!$C$9 -> 0.89 | H136: =DATA!$C$10 -> 64 | I136: 1 | J136: 314.0625 | K136: 407.8125 | L136: 0.06944444444 | M136: 93.75 | N136: 0.2298850575 | O136: 0 | R136: 358.4 | S136: 324 | V136: 324 | X136: =X142 -> 7 | Z136: =TEXT(Y135,"ddd") -> di | AA136: MD | AB136: =IFERROR(HLOOKUP(Y135,[1]DATA!$A$1:$NB$5,4,0),"") -> D3 | AC136: 100 | AE136: 12 | AF136: 336 | AG136: 41 | AH136: -18.1875 | AI136: 0.7432258065 | AJ136: 0.897346019
A137: 7diND | B137: =VLOOKUP($AA137,DATA!$B$3:$E137,2,0) -> 22:30:00 | C137: =VLOOKUP($AA137,DATA!$B$3:$E137,3,0) -> 06:30:00 | D137: =VLOOKUP($AA137,DATA!$B$3:$E137,4,0) -> 0.03125 | E137: 0.3020833333 | F137: 0.3020833333 | G137: =DATA!$C$9 -> 0.89 | H137: =DATA!$C$10 -> 64 | I137: 1 | J137: 407.8125 | K137: 407.8125 | L137: 0 | O137: 0 | R137: 0 | X137: =X142 -> 7 | Z137: =TEXT(Y135,"ddd") -> di | AA137: ND | AB137: =IFERROR(HLOOKUP(Y135,[1]DATA!$A$1:$NB$5,5,0),"") -> D2 | AG137: 0
A138: 7woDD | B138: =VLOOKUP($AA138,DATA!$B$3:$E138,2,0) -> 06:30:00 | C138: =VLOOKUP($AA138,DATA!$B$3:$E138,3,0) -> 14:30:00 | D138: =VLOOKUP($AA138,DATA!$B$3:$E138,4,0) -> 0.03125 | E138: 0.3020833333 | F138: 0.2284722222 | G138: =DATA!$C$9 -> 0.89 | H138: =DATA!$C$10 -> 64 | I138: 1 | J138: 308.4375 | K138: 407.8125 | L138: 0.07361111111 | M138: 99.375 | N138: 0.2436781609 | O138: 0 | R138: 391.4666667 | S138: 334 | T138: 334 | X138: =X142 -> 7 | Y138: =Y135+1 -> 2018-02-14 | Z138: =TEXT(Y138,"ddd") -> wo | AA138: DD | AB138: =IFERROR(HLOOKUP(Y138,[1]DATA!$A$1:$NB$5,3,0),"") -> D1 | AC138: 106 | AE138: 33 | AF138: 367 | AG138: 14 | AH138: -2.5625 | AI138: 0.7661648746 | AJ138: 0.9654718842
A139: 7woMD | B139: =VLOOKUP($AA139,DATA!$B$3:$E139,2,0) -> 14:30:00 | C139: =VLOOKUP($AA139,DATA!$B$3:$E139,3,0) -> 22:30:00 | D139: =VLOOKUP($AA139,DATA!$B$3:$E139,4,0) -> 0.03125 | E139: 0.3020833333 | F139: 0.2145833333 | G139: =DATA!$C$9 -> 0.89 | H139: =DATA!$C$10 -> 64 | I139: 1 | J139: 289.6875 | K139: 407.8125 | L139: 0.0875 | M139: 118.125 | N139: 0.2896551724 | O139: 0 | R139: 333.8666667 | S139: 300 | V139: 300 | X139: =X142 -> 7 | Z139: =TEXT(Y138,"ddd") -> wo | AA139: MD | AB139: =IFERROR(HLOOKUP(Y138,[1]DATA!$A$1:$NB$5,4,0),"") -> D3 | AC139: 126 | AE139: 13 | AF139: 313 | AG139: 29 | AH139: -17.8125 | AI139: 0.688172043 | AJ139: 0.9200808378
A140: 7woND | B140: =VLOOKUP($AA140,DATA!$B$3:$E140,2,0) -> 22:30:00 | C140: =VLOOKUP($AA140,DATA!$B$3:$E140,3,0) -> 06:30:00 | D140: =VLOOKUP($AA140,DATA!$B$3:$E140,4,0) -> 0.03125 | E140: 0.3020833333 | F140: 0.3020833333 | G140: =DATA!$C$9 -> 0.89 | H140: =DATA!$C$10 -> 64 | I140: 1 | J140: 407.8125 | K140: 407.8125 | L140: 0 | O140: 0 | R140: 0 | X140: =X142 -> 7 | Z140: =TEXT(Y138,"ddd") -> wo | AA140: ND | AB140: =IFERROR(HLOOKUP(Y138,[1]DATA!$A$1:$NB$5,5,0),"") -> D2 | AG140: 0
A141: 7doDD | B141: =VLOOKUP($AA141,DATA!$B$3:$E141,2,0) -> 06:30:00 | C141: =VLOOKUP($AA141,DATA!$B$3:$E141,3,0) -> 14:30:00 | D141: =VLOOKUP($AA141,DATA!$B$3:$E141,4,0) -> 0.03125 | E141: 0.3020833333 | F141: 0.2083333333 | G141: =DATA!$C$9 -> 0.89 | H141: =DATA!$C$10 -> 64 | I141: 1 | J141: 281.25 | K141: 407.8125 | L141: 0.09375 | M141: 126.5625 | N141: 0.3103448276 | O141: 0 | R141: 362.6666667 | S141: 317 | T141: 317 | X141: =X142 -> 7 | Y141: =Y138+1 -> 2018-02-15 | Z141: =TEXT(Y141,"ddd") -> do | AA141: DD | AB141: =IFERROR(HLOOKUP(Y141,[1]DATA!$A$1:$NB$5,3,0),"") -> D1 | AC141: 135 | AE141: 23 | AF141: 340 | AG141: 0 | AH141: 7.625 | AI141: 0.7271684588 | AJ141: 1
A142: 7doMD | B142: =VLOOKUP($AA142,DATA!$B$3:$E142,2,0) -> 14:30:00 | C142: =VLOOKUP($AA142,DATA!$B$3:$E142,3,0) -> 22:30:00 | D142: =VLOOKUP($AA142,DATA!$B$3:$E142,4,0) -> 0.03125 | E142: 0.3020833333 | F142: 0.2090277778 | G142: =DATA!$C$9 -> 0.89 | H142: =DATA!$C$10 -> 64 | I142: 1 | J142: 282.1875 | K142: 407.8125 | L142: 0.09305555556 | M142: 125.625 | N142: 0.308045977 | O142: 0 | R142: 350.9333333 | S142: 300 | V142: 300 | X142: =WEEKNUM($Y132) -> 7 | Z142: =TEXT(Y141,"ddd") -> do | AA142: MD | AB142: =IFERROR(HLOOKUP(Y141,[1]DATA!$A$1:$NB$5,4,0),"") -> D3 | AC142: 134 | AE142: 29 | AF142: 329 | AG142: 38 | AH142: -10.3125 | AI142: 0.688172043 | AJ142: 0.9022968804
A143: 7doND | B143: =VLOOKUP($AA143,DATA!$B$3:$E143,2,0) -> 22:30:00 | C143: =VLOOKUP($AA143,DATA!$B$3:$E143,3,0) -> 06:30:00 | D143: =VLOOKUP($AA143,DATA!$B$3:$E143,4,0) -> 0.03125 | E143: 0.3020833333 | F143: 0.3020833333 | G143: =DATA!$C$9 -> 0.89 | H143: =DATA!$C$10 -> 64 | I143: 1 | J143: 407.8125 | K143: 407.8125 | L143: 0 | O143: 0 | R143: 0 | X143: =X142 -> 7 | Z143: =TEXT(Y141,"ddd") -> do | AA143: ND | AB143: =IFERROR(HLOOKUP(Y141,[1]DATA!$A$1:$NB$5,5,0),"") -> D2 | AG143: 0
A144: 7vrDD | B144: =VLOOKUP($AA144,DATA!$B$3:$E144,2,0) -> 06:30:00 | C144: =VLOOKUP($AA144,DATA!$B$3:$E144,3,0) -> 14:30:00 | D144: =VLOOKUP($AA144,DATA!$B$3:$E144,4,0) -> 0.03125 | E144: 0.3020833333 | F144: 0.1756944444 | G144: =DATA!$C$9 -> 0.89 | H144: =DATA!$C$10 -> 64 | I144: 1 | J144: 237.1875 | K144: 407.8125 | L144: 0.1020833333 | M144: 137.8125 | N144: 0.3379310345 | O144: 0.02430555556 | P144: 32.8125 | Q144: 0.08045977011 | R144: 296.5333333 | S144: 270 | T144: 270 | X144: =X142 -> 7 | Y144: =Y141+1 -> 2018-02-16 | Z144: =TEXT(Y144,"ddd") -> vr | AA144: DD | AB144: =IFERROR(HLOOKUP(Y144,[1]DATA!$A$1:$NB$5,3,0),"") -> D1 | AC144: 147 | AD144: 35 | AE144: 8 | AF144: 278 | AG144: 0 | AH144: 4.6875 | AI144: 0.6193548387 | AJ144: 1
A145: 7vrMD | B145: =VLOOKUP($AA145,DATA!$B$3:$E145,2,0) -> 14:30:00 | C145: =VLOOKUP($AA145,DATA!$B$3:$E145,3,0) -> 22:30:00 | D145: =VLOOKUP($AA145,DATA!$B$3:$E145,4,0) -> 0.03125 | E145: 0.3020833333 | F145: 0.2625 | G145: =DATA!$C$9 -> 0.89 | H145: =DATA!$C$10 -> 64 | I145: 1 | J145: 354.375 | K145: 407.8125 | L145: 0.03958333333 | M145: 53.4375 | N145: 0.1310344828 | O145: 0 | R145: 306.1333333 | S145: 266 | V145: 266 | X145: =X142 -> 7 | Z145: =TEXT(Y144,"ddd") -> vr | AA145: MD | AB145: =IFERROR(HLOOKUP(Y144,[1]DATA!$A$1:$NB$5,4,0),"") -> D3 | AC145: 57 | AE145: 21 | AF145: 287 | AG145: 35 | AH145: -116.5 | AI145: 0.6101792115 | AJ145: 0.8974008208
A146: 7vrND | B146: =VLOOKUP($AA146,DATA!$B$3:$E146,2,0) -> 22:30:00 | C146: =VLOOKUP($AA146,DATA!$B$3:$E146,3,0) -> 06:30:00 | D146: =VLOOKUP($AA146,DATA!$B$3:$E146,4,0) -> 0.03125 | E146: 0.3020833333 | F146: 0.3020833333 | G146: =DATA!$C$9 -> 0.89 | H146: =DATA!$C$10 -> 64 | I146: 1 | J146: 407.8125 | K146: 407.8125 | L146: 0 | O146: 0 | R146: 0 | X146: =X142 -> 7 | Z146: =TEXT(Y144,"ddd") -> vr | AA146: ND | AB146: =IFERROR(HLOOKUP(Y144,[1]DATA!$A$1:$NB$5,5,0),"") -> - | AG146: 0
A147: 7zaDD | B147: =VLOOKUP($AA147,DATA!$B$3:$E147,2,0) -> 06:30:00 | C147: =VLOOKUP($AA147,DATA!$B$3:$E147,3,0) -> 14:30:00 | D147: =VLOOKUP($AA147,DATA!$B$3:$E147,4,0) -> 0.03125 | E147: 0.3020833333 | F147: 0.3020833333 | G147: =DATA!$C$9 -> 0.89 | H147: =DATA!$C$10 -> 64 | I147: 1 | J147: 407.8125 | K147: 407.8125 | L147: 0 | O147: 0 | R147: 0 | X147: =X142 -> 7 | Y147: =Y144+1 -> 2018-02-17 | Z147: =TEXT(Y147,"ddd") -> za | AA147: DD | AB147: =IFERROR(HLOOKUP(Y147,[1]DATA!$A$1:$NB$5,3,0),"") -> - | AG147: 0
A148: 7zaMD | B148: =VLOOKUP($AA148,DATA!$B$3:$E148,2,0) -> 14:30:00 | C148: =VLOOKUP($AA148,DATA!$B$3:$E148,3,0) -> 22:30:00 | D148: =VLOOKUP($AA148,DATA!$B$3:$E148,4,0) -> 0.03125 | E148: 0.3020833333 | F148: 0.3020833333 | G148: =DATA!$C$9 -> 0.89 | H148: =DATA!$C$10 -> 64 | I148: 1 | J148: 407.8125 | K148: 407.8125 | L148: 0 | O148: 0 | R148: 0 | X148: =X142 -> 7 | Z148: =TEXT(Y147,"ddd") -> za | AA148: MD | AB148: =IFERROR(HLOOKUP(Y147,[1]DATA!$A$1:$NB$5,4,0),"") -> - | AG148: 0
A149: 7zaND | B149: =VLOOKUP($AA149,DATA!$B$3:$E149,2,0) -> 22:30:00 | C149: =VLOOKUP($AA149,DATA!$B$3:$E149,3,0) -> 06:30:00 | D149: =VLOOKUP($AA149,DATA!$B$3:$E149,4,0) -> 0.03125 | E149: 0.3020833333 | F149: 0.3020833333 | G149: =DATA!$C$9 -> 0.89 | H149: =DATA!$C$10 -> 64 | I149: 1 | J149: 407.8125 | K149: 407.8125 | L149: 0 | O149: 0 | R149: 0 | X149: =X142 -> 7 | Z149: =TEXT(Y147,"ddd") -> za | AA149: ND | AB149: =IFERROR(HLOOKUP(Y147,[1]DATA!$A$1:$NB$5,5,0),"") -> - | AG149: 0
A150: 7zoDD | B150: =VLOOKUP($AA150,DATA!$B$3:$E150,2,0) -> 06:30:00 | C150: =VLOOKUP($AA150,DATA!$B$3:$E150,3,0) -> 14:30:00 | D150: =VLOOKUP($AA150,DATA!$B$3:$E150,4,0) -> 0.03125 | E150: 0.3020833333 | F150: 0.3020833333 | G150: =DATA!$C$9 -> 0.89 | H150: =DATA!$C$10 -> 64 | I150: 1 | J150: 407.8125 | K150: 407.8125 | L150: 0 | O150: 0 | R150: 0 | X150: =X142 -> 7 | Y150: =Y147+1 -> 2018-02-18 | Z150: =TEXT(Y150,"ddd") -> zo | AA150: DD | AB150: =IFERROR(HLOOKUP(Y150,[1]DATA!$A$1:$NB$5,3,0),"") -> - | AG150: 0
A151: 7zoMD | B151: =VLOOKUP($AA151,DATA!$B$3:$E151,2,0) -> 14:30:00 | C151: =VLOOKUP($AA151,DATA!$B$3:$E151,3,0) -> 22:30:00 | D151: =VLOOKUP($AA151,DATA!$B$3:$E151,4,0) -> 0.03125 | E151: 0.3020833333 | F151: 0.3020833333 | G151: =DATA!$C$9 -> 0.89 | H151: =DATA!$C$10 -> 64 | I151: 1 | J151: 407.8125 | K151: 407.8125 | L151: 0 | O151: 0 | R151: 0 | X151: =X142 -> 7 | Z151: =TEXT(Y150,"ddd") -> zo | AA151: MD | AB151: =IFERROR(HLOOKUP(Y150,[1]DATA!$A$1:$NB$5,4,0),"") -> - | AG151: 0
A152: 7zoZND | B152: =VLOOKUP($AA152,DATA!$B$3:$E152,2,0) -> 00:00:00 | C152: =VLOOKUP($AA152,DATA!$B$3:$E152,3,0) -> 00:00:00 | D152: =VLOOKUP($AA152,DATA!$B$3:$E152,4,0) -> 0 | E152: 0 | F152: 0 | G152: =DATA!$C$9 -> 0.89 | H152: =DATA!$C$10 -> 64 | I152: 1 | J152: 0 | K152: 0 | L152: 0 | O152: 0 | R152: 0 | X152: =X142 -> 7 | Z152: =TEXT(Y150,"ddd") -> zo | AA152: ZND | AB152: =IFERROR(HLOOKUP(Y150,[1]DATA!$A$1:$NB$5,5,0),"") -> D1 | AG152: 0
A153: 8maDD | B153: =VLOOKUP($AA153,DATA!$B$3:$E153,2,0) -> 06:30:00 | C153: =VLOOKUP($AA153,DATA!$B$3:$E153,3,0) -> 14:30:00 | D153: =VLOOKUP($AA153,DATA!$B$3:$E153,4,0) -> 0.03125 | E153: 0.3020833333 | F153: 0.2305555556 | G153: =DATA!$C$9 -> 0.89 | H153: =DATA!$C$10 -> 64 | I153: 1 | J153: 311.25 | K153: 407.8125 | L153: 0.07152777778 | M153: 96.5625 | N153: 0.2367816092 | O153: =TIME(INT($AD153/60),INT(MOD($AD153,60)/1),0) -> 0 | R153: 397.8666667 | S153: 347 | V153: 347 | X153: =X163 -> 8 | Y153: =Y150+1 -> 2018-02-19 | Z153: =TEXT(Y153,"ddd") -> ma | AA153: DD | AB153: =IFERROR(HLOOKUP(Y153,[1]DATA!$A$1:$NB$5,3,0),"") -> D3 | AC153: 103 | AE153: 26 | AF153: 373 | AG153: 73 | AH153: 7.625 | AI153: 0.7959856631 | AJ153: 0.844966728 | AK153: 3923.4375 | AL153: 2879 | AM153: 0.7337953007 | AN153: 608.4375 | AO153: 0.1550776583 | AP153: 0 | AQ153: 0 | AR153: 0.9051784715 | AT153: 0.9527268919 | AU153: 0.8457429459 | AV153: 436 | AW153: 0.111127041 | AX153: 465.0666667 | AY153: 354
A154: 8maMD | B154: =VLOOKUP($AA154,DATA!$B$3:$E154,2,0) -> 14:30:00 | C154: =VLOOKUP($AA154,DATA!$B$3:$E154,3,0) -> 22:30:00 | D154: =VLOOKUP($AA154,DATA!$B$3:$E154,4,0) -> 0.03125 | E154: 0.3020833333 | F154: 0.2548611111 | G154: =DATA!$C$9 -> 0.89 | H154: =DATA!$C$10 -> 64 | I154: 1 | J154: 344.0625 | K154: 407.8125 | L154: 0.04722222222 | M154: 63.75 | N154: 0.1563218391 | O154: =TIME(INT(AD154/60),INT(MOD(AD154,60)/1),0) -> 0 | R154: 400 | S154: 355 | U154: 355 | X154: =X163 -> 8 | Z154: =TEXT(Y153,"ddd") -> ma | AA154: MD | AB154: =IFERROR(HLOOKUP(Y153,[1]DATA!$A$1:$NB$5,4,0),"") -> D2 | AC154: 68 | AE154: 20 | AF154: 375 | AG154: 17 | AH154: -17.1875 | AI154: 0.8143369176 | AJ154: 0.9592326139
A155: 8maND | B155: =VLOOKUP($AA155,DATA!$B$3:$E155,2,0) -> 22:30:00 | C155: =VLOOKUP($AA155,DATA!$B$3:$E155,3,0) -> 06:30:00 | D155: =VLOOKUP($AA155,DATA!$B$3:$E155,4,0) -> 0.03125 | E155: 0.3020833333 | F155: 0.3020833333 | G155: =DATA!$C$9 -> 0.89 | H155: =DATA!$C$10 -> 64 | I155: 1 | J155: 407.8125 | K155: 407.8125 | L155: 0 | O155: 0 | R155: 0 | X155: =X163 -> 8 | Z155: =TEXT(Y153,"ddd") -> ma | AA155: ND | AB155: =IFERROR(HLOOKUP(Y153,[1]DATA!$A$1:$NB$5,5,0),"") -> D1 | AG155: 0
A156: 8diDD | B156: =VLOOKUP($AA156,DATA!$B$3:$E156,2,0) -> 06:30:00 | C156: =VLOOKUP($AA156,DATA!$B$3:$E156,3,0) -> 14:30:00 | D156: =VLOOKUP($AA156,DATA!$B$3:$E156,4,0) -> 0.03125 | E156: =(C156-B156+(B156>C156))-D156 -> 0.3020833333 | F156: =E156-O156-L156 -> 0.2013888889 | G156: =DATA!$C$9 -> 0.89 | H156: =DATA!$C$10 -> 64 | I156: 1 | J156: =F156*86400/H156*I156 -> 271.875 | K156: =E156*86400/H156 -> 407.8125 | L156: 0.1006944444 | M156: 135.9375 | N156: 0.3333333333 | O156: 0 | R156: =AF156*AG$2 -> 217.6 | S156: =IF(AF156-AE156=0,"",AF156-AE156) -> 196 | V156: 196 | X156: =X163 -> 8 | Y156: =Y153+1 -> 2018-02-20 | Z156: =TEXT(Y156,"ddd") -> di | AA156: DD | AB156: =IFERROR(HLOOKUP(Y156,[1]DATA!$A$1:$NB$5,3,0),"") -> D3 | AC156: 145 | AE156: 8 | AF156: 204 | AG156: 34 | AH156: -104 | AI156: 0.4496057348 | AJ156: 0.8648648649
A157: 8diMD | B157: =VLOOKUP($AA157,DATA!$B$3:$E157,2,0) -> 14:30:00 | C157: =VLOOKUP($AA157,DATA!$B$3:$E157,3,0) -> 22:30:00 | D157: =VLOOKUP($AA157,DATA!$B$3:$E157,4,0) -> 0.03125 | E157: 0.3020833333 | F157: 0.2576388889 | G157: =DATA!$C$9 -> 0.89 | H157: =DATA!$C$10 -> 64 | I157: 1 | J157: 347.8125 | K157: 407.8125 | L157: 0.04444444444 | M157: 60 | N157: 0.1471264368 | O157: 0 | R157: 404.2666667 | S157: 344 | U157: 344 | X157: =X163 -> 8 | Z157: =TEXT(Y156,"ddd") -> di | AA157: MD | AB157: =IFERROR(HLOOKUP(Y156,[1]DATA!$A$1:$NB$5,4,0),"") -> D2 | AC157: 64 | AE157: 35 | AF157: 379 | AG157: 24 | AH157: -31.9375 | AI157: 0.7891039427 | AJ157: 0.9439601494
A158: 8diND | B158: =VLOOKUP($AA158,DATA!$B$3:$E158,2,0) -> 22:30:00 | C158: =VLOOKUP($AA158,DATA!$B$3:$E158,3,0) -> 06:30:00 | D158: =VLOOKUP($AA158,DATA!$B$3:$E158,4,0) -> 0.03125 | E158: 0.3020833333 | F158: 0.3020833333 | G158: =DATA!$C$9 -> 0.89 | H158: =DATA!$C$10 -> 64 | I158: 1 | J158: 407.8125 | K158: 407.8125 | L158: 0 | O158: 0 | R158: 0 | X158: =X163 -> 8 | Z158: =TEXT(Y156,"ddd") -> di | AA158: ND | AB158: =IFERROR(HLOOKUP(Y156,[1]DATA!$A$1:$NB$5,5,0),"") -> D1 | AG158: 0
A159: 8woDD | B159: =VLOOKUP($AA159,DATA!$B$3:$E159,2,0) -> 06:30:00 | C159: =VLOOKUP($AA159,DATA!$B$3:$E159,3,0) -> 14:30:00 | D159: =VLOOKUP($AA159,DATA!$B$3:$E159,4,0) -> 0.03125 | E159: 0.3020833333 | F159: 0.2458333333 | G159: =DATA!$C$9 -> 0.89 | H159: =DATA!$C$10 -> 64 | I159: 1 | J159: 331.875 | K159: 407.8125 | L159: 0.05625 | M159: 75.9375 | N159: 0.1862068966 | O159: 0 | R159: 354.1333333 | S159: 298 | V159: 298 | X159: =X163 -> 8 | Y159: =Y156+1 -> 2018-02-21 | Z159: =TEXT(Y159,"ddd") -> wo | AA159: DD | AB159: =IFERROR(HLOOKUP(Y159,[1]DATA!$A$1:$NB$5,3,0),"") -> D3 | AC159: 81 | AE159: 34 | AF159: 332 | AG159: 92 | AH159: -62 | AI159: 0.6835842294 | AJ159: 0.7937836222
A160: 8woMD | B160: =VLOOKUP($AA160,DATA!$B$3:$E160,2,0) -> 14:30:00 | C160: =VLOOKUP($AA160,DATA!$B$3:$E160,3,0) -> 22:30:00 | D160: =VLOOKUP($AA160,DATA!$B$3:$E160,4,0) -> 0.03125 | E160: 0.3020833333 | F160: 0.2916666667 | G160: =DATA!$C$9 -> 0.89 | H160: =DATA!$C$10 -> 64 | I160: 1 | J160: 393.75 | K160: 407.8125 | L160: 0.01041666667 | M160: 14.0625 | N160: 0.03448275862 | O160: 0 | R160: 419.2 | S160: 358 | U160: 358 | X160: =X163 -> 8 | Z160: =TEXT(Y159,"ddd") -> wo | AA160: MD | AB160: =IFERROR(HLOOKUP(Y159,[1]DATA!$A$1:$NB$5,4,0),"") -> D2 | AC160: 15 | AE160: 35 | AF160: 393 | AG160: 18 | AH160: -63.875 | AI160: 0.821218638 | AJ160: 0.9588289113
A161: 8woND | B161: =VLOOKUP($AA161,DATA!$B$3:$E161,2,0) -> 22:30:00 | C161: =VLOOKUP($AA161,DATA!$B$3:$E161,3,0) -> 06:30:00 | D161: =VLOOKUP($AA161,DATA!$B$3:$E161,4,0) -> 0.03125 | E161: 0.3020833333 | F161: 0.3020833333 | G161: =DATA!$C$9 -> 0.89 | H161: =DATA!$C$10 -> 64 | I161: 1 | J161: 407.8125 | K161: 407.8125 | L161: 0 | O161: 0 | R161: 0 | X161: =X163 -> 8 | Z161: =TEXT(Y159,"ddd") -> wo | AA161: ND | AB161: =IFERROR(HLOOKUP(Y159,[1]DATA!$A$1:$NB$5,5,0),"") -> D1 | AG161: 0
A162: 8doDD | B162: =VLOOKUP($AA162,DATA!$B$3:$E162,2,0) -> 06:30:00 | C162: =VLOOKUP($AA162,DATA!$B$3:$E162,3,0) -> 14:30:00 | D162: =VLOOKUP($AA162,DATA!$B$3:$E162,4,0) -> 0.03125 | E162: 0.3020833333 | F162: 0.2604166667 | G162: =DATA!$C$9 -> 0.89 | H162: =DATA!$C$10 -> 64 | I162: 1 | J162: 351.5625 | K162: 407.8125 | L162: 0.04166666667 | M162: 56.25 | N162: 0.1379310345 | O162: 0 | R162: 393.6 | S162: 340 | V162: 340 | X162: =X163 -> 8 | Y162: =Y159+1 -> 2018-02-22 | Z162: =TEXT(Y162,"ddd") -> do | AA162: DD | AB162: =IFERROR(HLOOKUP(Y162,[1]DATA!$A$1:$NB$5,3,0),"") -> D3 | AC162: 60 | AE162: 29 | AF162: 369 | AG162: 54 | AH162: -39.6875 | AI162: 0.7799283154 | AJ162: 0.8793565684
A163: 8doMD | B163: =VLOOKUP($AA163,DATA!$B$3:$E163,2,0) -> 14:30:00 | C163: =VLOOKUP($AA163,DATA!$B$3:$E163,3,0) -> 22:30:00 | D163: =VLOOKUP($AA163,DATA!$B$3:$E163,4,0) -> 0.03125 | E163: 0.3020833333 | F163: 0.2979166667 | G163: =DATA!$C$9 -> 0.89 | H163: =DATA!$C$10 -> 64 | I163: 1 | J163: 402.1875 | K163: 407.8125 | L163: 0.004166666667 | M163: 5.625 | N163: 0.01379310345 | O163: 0 | R163: 437.3333333 | S163: 369 | U163: 369 | X163: =WEEKNUM($Y153) -> 8 | Z163: =TEXT(Y162,"ddd") -> do | AA163: MD | AB163: =IFERROR(HLOOKUP(Y162,[1]DATA!$A$1:$NB$5,4,0),"") -> D2 | AC163: 6 | AE163: 41 | AF163: 410 | AG163: 32 | AH163: -61.3125 | AI163: 0.8464516129 | AJ163: 0.9318181818
A164: 8doND | B164: =VLOOKUP($AA164,DATA!$B$3:$E164,2,0) -> 22:30:00 | C164: =VLOOKUP($AA164,DATA!$B$3:$E164,3,0) -> 06:30:00 | D164: =VLOOKUP($AA164,DATA!$B$3:$E164,4,0) -> 0.03125 | E164: 0.3020833333 | F164: 0.3020833333 | G164: =DATA!$C$9 -> 0.89 | H164: =DATA!$C$10 -> 64 | I164: 1 | J164: 407.8125 | K164: 407.8125 | L164: 0 | O164: 0 | R164: 0 | X164: =X163 -> 8 | Z164: =TEXT(Y162,"ddd") -> do | AA164: ND | AB164: =IFERROR(HLOOKUP(Y162,[1]DATA!$A$1:$NB$5,5,0),"") -> D1 | AG164: 0
A165: 8vrDD | B165: =VLOOKUP($AA165,DATA!$B$3:$E165,2,0) -> 06:30:00 | C165: =VLOOKUP($AA165,DATA!$B$3:$E165,3,0) -> 14:30:00 | D165: =VLOOKUP($AA165,DATA!$B$3:$E165,4,0) -> 0.03125 | E165: 0.3020833333 | F165: 0.3020833333 | G165: =DATA!$C$9 -> 0.89 | H165: =DATA!$C$10 -> 64 | I165: 1 | J165: 407.8125 | K165: 407.8125 | L165: 0 | O165: 0 | R165: 0 | X165: =X163 -> 8 | Y165: =Y162+1 -> 2018-02-23 | Z165: =TEXT(Y165,"ddd") -> vr | AA165: DD | AB165: =IFERROR(HLOOKUP(Y165,[1]DATA!$A$1:$NB$5,3,0),"") -> D3 | AC165: 0 | AE165: 0 | AF165: 0 | AG165: 0
A166: 8vrMD | B166: =VLOOKUP($AA166,DATA!$B$3:$E166,2,0) -> 14:30:00 | C166: =VLOOKUP($AA166,DATA!$B$3:$E166,3,0) -> 22:30:00 | D166: =VLOOKUP($AA166,DATA!$B$3:$E166,4,0) -> 0.03125 | E166: 0.3020833333 | F166: 0.2277777778 | G166: =DATA!$C$9 -> 0.89 | H166: =DATA!$C$10 -> 64 | I166: 1 | J166: 307.5 | K166: 407.8125 | L166: 0.07430555556 | M166: 100.3125 | N166: 0.2459770115 | O166: 0 | R166: 321.0666667 | S166: 272 | U166: 272 | X166: =X163 -> 8 | Z166: =TEXT(Y165,"ddd") -> vr | AA166: MD | AB166: =IFERROR(HLOOKUP(Y165,[1]DATA!$A$1:$NB$5,4,0),"") -> D2 | AC166: 107 | AE166: 29 | AF166: 301 | AG166: 10 | AH166: -63.625 | AI166: 0.6239426523 | AJ166: 0.9697946033
A167: 8vrND | B167: =VLOOKUP($AA167,DATA!$B$3:$E167,2,0) -> 22:30:00 | C167: =VLOOKUP($AA167,DATA!$B$3:$E167,3,0) -> 06:30:00 | D167: =VLOOKUP($AA167,DATA!$B$3:$E167,4,0) -> 0.03125 | E167: 0.3020833333 | F167: 0.3020833333 | G167: =DATA!$C$9 -> 0.89 | H167: =DATA!$C$10 -> 64 | I167: 1 | J167: 407.8125 | K167: 407.8125 | L167: 0 | O167: 0 | R167: 0 | X167: =X163 -> 8 | Z167: =TEXT(Y165,"ddd") -> vr | AA167: ND | AB167: =IFERROR(HLOOKUP(Y165,[1]DATA!$A$1:$NB$5,5,0),"") -> - | AG167: 0
A168: 8zaDD | B168: =VLOOKUP($AA168,DATA!$B$3:$E168,2,0) -> 06:30:00 | C168: =VLOOKUP($AA168,DATA!$B$3:$E168,3,0) -> 14:30:00 | D168: =VLOOKUP($AA168,DATA!$B$3:$E168,4,0) -> 0.03125 | E168: 0.3020833333 | F168: 0.3020833333 | G168: =DATA!$C$9 -> 0.89 | H168: =DATA!$C$10 -> 64 | I168: 1 | J168: 407.8125 | K168: 407.8125 | L168: 0 | O168: 0 | R168: 0 | X168: =X163 -> 8 | Y168: =Y165+1 -> 2018-02-24 | Z168: =TEXT(Y168,"ddd") -> za | AA168: DD | AB168: =IFERROR(HLOOKUP(Y168,[1]DATA!$A$1:$NB$5,3,0),"") -> - | AG168: 0
A169: 8zaMD | B169: =VLOOKUP($AA169,DATA!$B$3:$E169,2,0) -> 14:30:00 | C169: =VLOOKUP($AA169,DATA!$B$3:$E169,3,0) -> 22:30:00 | D169: =VLOOKUP($AA169,DATA!$B$3:$E169,4,0) -> 0.03125 | E169: 0.3020833333 | F169: 0.3020833333 | G169: =DATA!$C$9 -> 0.89 | H169: =DATA!$C$10 -> 64 | I169: 1 | J169: 407.8125 | K169: 407.8125 | L169: 0 | O169: 0 | R169: 0 | X169: =X163 -> 8 | Z169: =TEXT(Y168,"ddd") -> za | AA169: MD | AB169: =IFERROR(HLOOKUP(Y168,[1]DATA!$A$1:$NB$5,4,0),"") -> - | AG169: 0
A170: 8zaND | B170: =VLOOKUP($AA170,DATA!$B$3:$E170,2,0) -> 22:30:00 | C170: =VLOOKUP($AA170,DATA!$B$3:$E170,3,0) -> 06:30:00 | D170: =VLOOKUP($AA170,DATA!$B$3:$E170,4,0) -> 0.03125 | E170: 0.3020833333 | F170: 0.3020833333 | G170: =DATA!$C$9 -> 0.89 | H170: =DATA!$C$10 -> 64 | I170: 1 | J170: 407.8125 | K170: 407.8125 | L170: 0 | O170: 0 | R170: 0 | X170: =X163 -> 8 | Z170: =TEXT(Y168,"ddd") -> za | AA170: ND | AB170: =IFERROR(HLOOKUP(Y168,[1]DATA!$A$1:$NB$5,5,0),"") -> - | AG170: 0
A171: 8zoDD | B171: =VLOOKUP($AA171,DATA!$B$3:$E171,2,0) -> 06:30:00 | C171: =VLOOKUP($AA171,DATA!$B$3:$E171,3,0) -> 14:30:00 | D171: =VLOOKUP($AA171,DATA!$B$3:$E171,4,0) -> 0.03125 | E171: 0.3020833333 | F171: 0.3020833333 | G171: =DATA!$C$9 -> 0.89 | H171: =DATA!$C$10 -> 64 | I171: 1 | J171: 407.8125 | K171: 407.8125 | L171: 0 | O171: 0 | R171: 0 | X171: =X163 -> 8 | Y171: =Y168+1 -> 2018-02-25 | Z171: =TEXT(Y171,"ddd") -> zo | AA171: DD | AB171: =IFERROR(HLOOKUP(Y171,[1]DATA!$A$1:$NB$5,3,0),"") -> - | AG171: 0
A172: 8zoMD | B172: =VLOOKUP($AA172,DATA!$B$3:$E172,2,0) -> 14:30:00 | C172: =VLOOKUP($AA172,DATA!$B$3:$E172,3,0) -> 22:30:00 | D172: =VLOOKUP($AA172,DATA!$B$3:$E172,4,0) -> 0.03125 | E172: 0.3020833333 | F172: 0.3020833333 | G172: =DATA!$C$9 -> 0.89 | H172: =DATA!$C$10 -> 64 | I172: 1 | J172: 407.8125 | K172: 407.8125 | L172: 0 | O172: 0 | R172: 0 | X172: =X163 -> 8 | Z172: =TEXT(Y171,"ddd") -> zo | AA172: MD | AB172: =IFERROR(HLOOKUP(Y171,[1]DATA!$A$1:$NB$5,4,0),"") -> - | AG172: 0
A173: 8zoZND | B173: =VLOOKUP($AA173,DATA!$B$3:$E173,2,0) -> 00:00:00 | C173: =VLOOKUP($AA173,DATA!$B$3:$E173,3,0) -> 00:00:00 | D173: =VLOOKUP($AA173,DATA!$B$3:$E173,4,0) -> 0 | E173: 0 | F173: 0 | G173: =DATA!$C$9 -> 0.89 | H173: =DATA!$C$10 -> 64 | I173: 1 | J173: 0 | K173: 0 | L173: 0 | O173: 0 | R173: 0 | X173: =X163 -> 8 | Z173: =TEXT(Y171,"ddd") -> zo | AA173: ZND | AB173: =IFERROR(HLOOKUP(Y171,[1]DATA!$A$1:$NB$5,5,0),"") -> D3 | AG173: 0
A174: 9maDD | B174: =VLOOKUP($AA174,DATA!$B$3:$E174,2,0) -> 06:30:00 | C174: =VLOOKUP($AA174,DATA!$B$3:$E174,3,0) -> 14:30:00 | D174: =VLOOKUP($AA174,DATA!$B$3:$E174,4,0) -> 0.03125 | E174: 0.3020833333 | F174: 0.3020833333 | G174: =DATA!$C$9 -> 0.89 | H174: =DATA!$C$10 -> 64 | I174: 1 | J174: 407.8125 | K174: 407.8125 | L174: 0 | O174: =TIME(INT($AD174/60),INT(MOD($AD174,60)/1),0) -> 0 | R174: 144 | S174: 121 | U174: 121 | X174: =X184 -> 9 | Y174: =Y171+1 -> 2018-02-26 | Z174: =TEXT(Y174,"ddd") -> ma | AA174: DD | AB174: =IFERROR(HLOOKUP(Y174,[1]DATA!$A$1:$NB$5,3,0),"") -> D2 | AE174: 14 | AF174: 135 | AG174: 0 | AH174: -314.9375 | AI174: 0.277562724 | AJ174: 1 | AK174: 4359.375 | AL174: 3186 | AM174: 0.7308387097 | AN174: 258.75 | AO174: 0.05935483871 | AP174: 0 | AQ174: 0 | AR174: 0.9643536727 | AS174: 0.9793980111 | AT174: 0.9493093343 | AV174: 914.625 | AW174: 0.2098064516 | AX174: 975.6 | AY174: 153
A175: 9maMD | B175: =VLOOKUP($AA175,DATA!$B$3:$E175,2,0) -> 14:30:00 | C175: =VLOOKUP($AA175,DATA!$B$3:$E175,3,0) -> 22:30:00 | D175: =VLOOKUP($AA175,DATA!$B$3:$E175,4,0) -> 0.03125 | E175: 0.3020833333 | F175: 0.3020833333 | G175: =DATA!$C$9 -> 0.89 | H175: =DATA!$C$10 -> 64 | I175: 1 | J175: 407.8125 | K175: 407.8125 | L175: 0 | O175: =TIME(INT(AD175/60),INT(MOD(AD175,60)/1),0) -> 0 | R175: 366.9333333 | S175: 310 | T175: 310 | X175: =X184 -> 9 | Z175: =TEXT(Y174,"ddd") -> ma | AA175: MD | AB175: =IFERROR(HLOOKUP(Y174,[1]DATA!$A$1:$NB$5,4,0),"") -> D1 | AE175: 34 | AF175: 344 | AG175: 2 | AH175: -125.9375 | AI175: 0.7111111111 | AJ175: 0.9945789664
A176: =X176&Z176&AA176 -> 9maND | B176: =VLOOKUP($AA176,DATA!$B$3:$E176,2,0) -> 22:30:00 | C176: =VLOOKUP($AA176,DATA!$B$3:$E176,3,0) -> 06:30:00 | D176: =VLOOKUP($AA176,DATA!$B$3:$E176,4,0) -> 0.03125 | E176: 0.3020833333 | F176: 0.3020833333 | G176: =DATA!$C$9 -> 0.89 | H176: =DATA!$C$10 -> 64 | I176: 1 | J176: 407.8125 | K176: 407.8125 | L176: 0 | O176: 0 | P176: =IF($O176*86400/$H176=0,"",$O176*86400/$H176) ->  | R176: 0 | X176: =X184 -> 9 | Z176: =TEXT(Y174,"ddd") -> ma | AA176: ND | AB176: =IFERROR(HLOOKUP(Y174,[1]DATA!$A$1:$NB$5,5,0),"") -> D3 | AG176: 0
A177: 9diDD | B177: =VLOOKUP($AA177,DATA!$B$3:$E177,2,0) -> 06:30:00 | C177: =VLOOKUP($AA177,DATA!$B$3:$E177,3,0) -> 14:30:00 | D177: =VLOOKUP($AA177,DATA!$B$3:$E177,4,0) -> 0.03125 | E177: 0.3020833333 | F177: 0.3020833333 | G177: =DATA!$C$9 -> 0.89 | H177: =DATA!$C$10 -> 64 | I177: 1 | J177: 407.8125 | K177: 407.8125 | L177: 0 | O177: 0 | R177: 403.2 | S177: 349 | U177: 349 | X177: =X184 -> 9 | Y177: =Y174+1 -> 2018-02-27 | Z177: =TEXT(Y177,"ddd") -> di | AA177: DD | AB177: =IFERROR(HLOOKUP(Y177,[1]DATA!$A$1:$NB$5,3,0),"") -> D2 | AE177: 29 | AF177: 378 | AG177: 22 | AH177: -86.9375 | AI177: 0.8005734767 | AJ177: 0.9482596425
A178: 9diMD | B178: =VLOOKUP($AA178,DATA!$B$3:$E178,2,0) -> 14:30:00 | C178: =VLOOKUP($AA178,DATA!$B$3:$E178,3,0) -> 22:30:00 | D178: =VLOOKUP($AA178,DATA!$B$3:$E178,4,0) -> 0.03125 | E178: 0.3020833333 | F178: 0.3020833333 | G178: =DATA!$C$9 -> 0.89 | H178: =DATA!$C$10 -> 64 | I178: 1 | J178: 407.8125 | K178: 407.8125 | L178: 0 | O178: 0 | R178: 403.2 | S178: 339 | T178: 339 | X178: =X184 -> 9 | Z178: =TEXT(Y177,"ddd") -> di | AA178: MD | AB178: =IFERROR(HLOOKUP(Y177,[1]DATA!$A$1:$NB$5,4,0),"") -> D1 | AE178: 39 | AF178: 378 | AG178: 0 | AH178: -96.9375 | AI178: 0.7776344086 | AJ178: 1
A179: 9diND | B179: =VLOOKUP($AA179,DATA!$B$3:$E179,2,0) -> 22:30:00 | C179: =VLOOKUP($AA179,DATA!$B$3:$E179,3,0) -> 06:30:00 | D179: =VLOOKUP($AA179,DATA!$B$3:$E179,4,0) -> 0.03125 | E179: 0.3020833333 | F179: 0.3020833333 | G179: =DATA!$C$9 -> 0.89 | H179: =DATA!$C$10 -> 64 | I179: 1 | J179: 407.8125 | K179: 407.8125 | L179: 0 | O179: 0 | R179: 0 | X179: =X184 -> 9 | Z179: =TEXT(Y177,"ddd") -> di | AA179: ND | AB179: =IFERROR(HLOOKUP(Y177,[1]DATA!$A$1:$NB$5,5,0),"") -> D3 | AG179: 0
A180: 9woDD | B180: =VLOOKUP($AA180,DATA!$B$3:$E180,2,0) -> 06:30:00 | C180: =VLOOKUP($AA180,DATA!$B$3:$E180,3,0) -> 14:30:00 | D180: =VLOOKUP($AA180,DATA!$B$3:$E180,4,0) -> 0.03125 | E180: 0.3020833333 | F180: 0.3020833333 | G180: =DATA!$C$9 -> 0.89 | H180: =DATA!$C$10 -> 64 | I180: 1 | J180: 407.8125 | K180: 407.8125 | L180: 0 | O180: 0 | R180: 393.6 | S180: 346 | U180: 346 | X180: =X184 -> 9 | Y180: =Y177+1 -> 2018-02-28 | Z180: =TEXT(Y180,"ddd") -> wo | AA180: DD | AB180: =IFERROR(HLOOKUP(Y180,[1]DATA!$A$1:$NB$5,3,0),"") -> D2 | AE180: 23 | AF180: 369 | AG180: 21 | AH180: -89.9375 | AI180: 0.7936917563 | AJ180: 0.9493487699
A181: 9woMD | B181: =VLOOKUP($AA181,DATA!$B$3:$E181,2,0) -> 14:30:00 | C181: =VLOOKUP($AA181,DATA!$B$3:$E181,3,0) -> 22:30:00 | D181: =VLOOKUP($AA181,DATA!$B$3:$E181,4,0) -> 0.03125 | E181: 0.3020833333 | F181: 0.3020833333 | G181: =DATA!$C$9 -> 0.89 | H181: =DATA!$C$10 -> 64 | I181: 1 | J181: 407.8125 | K181: 407.8125 | L181: 0 | O181: 0 | R181: 427.7333333 | S181: 366 | T181: 366 | X181: =X184 -> 9 | Z181: =TEXT(Y180,"ddd") -> wo | AA181: MD | AB181: =IFERROR(HLOOKUP(Y180,[1]DATA!$A$1:$NB$5,4,0),"") -> D1 | AE181: 35 | AF181: 401 | AG181: 38 | AH181: -69.9375 | AI181: 0.8395698925 | AJ181: 0.9184082451
A182: 9woND | B182: =VLOOKUP($AA182,DATA!$B$3:$E182,2,0) -> 22:30:00 | C182: =VLOOKUP($AA182,DATA!$B$3:$E182,3,0) -> 06:30:00 | D182: =VLOOKUP($AA182,DATA!$B$3:$E182,4,0) -> 0.03125 | E182: 0.3020833333 | F182: 0.3020833333 | G182: =DATA!$C$9 -> 0.89 | H182: =DATA!$C$10 -> 64 | I182: 1 | J182: 407.8125 | K182: 407.8125 | L182: 0 | O182: 0 | R182: 0 | X182: =X184 -> 9 | Z182: =TEXT(Y180,"ddd") -> wo | AA182: ND | AB182: =IFERROR(HLOOKUP(Y180,[1]DATA!$A$1:$NB$5,5,0),"") -> D3 | AG182: 0
A183: 9doDD | B183: =VLOOKUP($AA183,DATA!$B$3:$E183,2,0) -> 06:30:00 | C183: =VLOOKUP($AA183,DATA!$B$3:$E183,3,0) -> 14:30:00 | D183: =VLOOKUP($AA183,DATA!$B$3:$E183,4,0) -> 0.03125 | E183: 0.3020833333 | F183: 0.2381944444 | G183: =DATA!$C$9 -> 0.89 | H183: =DATA!$C$10 -> 64 | I183: 1 | J183: 321.5625 | K183: 407.8125 | L183: 0.06388888889 | M183: 86.25 | N183: 0.2114942529 | O183: 0 | R183: 375.4666667 | S183: 323 | U183: 323 | X183: =X184 -> 9 | Y183: =Y180+1 -> 2018-03-01 | Z183: =TEXT(Y183,"ddd") -> do | AA183: DD | AB183: =IFERROR(HLOOKUP(Y183,[1]DATA!$A$1:$NB$5,3,0),"") -> D2 | AC183: 92 | AE183: 29 | AF183: 352 | AG183: 39 | AH183: -26.6875 | AI183: 0.7409318996 | AJ183: 0.9059031687
A184: 9doMD | B184: =VLOOKUP($AA184,DATA!$B$3:$E184,2,0) -> 14:30:00 | C184: =VLOOKUP($AA184,DATA!$B$3:$E184,3,0) -> 22:30:00 | D184: =VLOOKUP($AA184,DATA!$B$3:$E184,4,0) -> 0.03125 | E184: 0.3020833333 | F184: 0.2347222222 | G184: =DATA!$C$9 -> 0.89 | H184: =DATA!$C$10 -> 64 | I184: 1 | J184: 316.875 | K184: 407.8125 | L184: 0.06736111111 | M184: 90.9375 | N184: 0.2229885057 | O184: 0 | R184: 369.0666667 | S184: 325 | T184: 325 | X184: =WEEKNUM($Y174) -> 9 | Z184: =TEXT(Y183,"ddd") -> do | AA184: MD | AB184: =IFERROR(HLOOKUP(Y183,[1]DATA!$A$1:$NB$5,4,0),"") -> D1 | AC184: 97 | AE184: 21 | AF184: 346 | AG184: 6 | AH184: -20 | AI184: 0.7455197133 | AJ184: 0.9840028439
A185: 9doND | B185: =VLOOKUP($AA185,DATA!$B$3:$E185,2,0) -> 22:30:00 | C185: =VLOOKUP($AA185,DATA!$B$3:$E185,3,0) -> 06:30:00 | D185: =VLOOKUP($AA185,DATA!$B$3:$E185,4,0) -> 0.03125 | E185: 0.3020833333 | F185: 0.3020833333 | G185: =DATA!$C$9 -> 0.89 | H185: =DATA!$C$10 -> 64 | I185: 1 | J185: 407.8125 | K185: 407.8125 | L185: 0 | O185: 0 | R185: 0 | X185: =X184 -> 9 | Z185: =TEXT(Y183,"ddd") -> do | AA185: ND | AB185: =IFERROR(HLOOKUP(Y183,[1]DATA!$A$1:$NB$5,5,0),"") -> D3 | AG185: 0
A186: 9vrDD | B186: =VLOOKUP($AA186,DATA!$B$3:$E186,2,0) -> 06:30:00 | C186: =VLOOKUP($AA186,DATA!$B$3:$E186,3,0) -> 14:30:00 | D186: =VLOOKUP($AA186,DATA!$B$3:$E186,4,0) -> 0.03125 | E186: 0.3020833333 | F186: 0.2743055556 | G186: =DATA!$C$9 -> 0.89 | H186: =DATA!$C$10 -> 64 | I186: 1 | J186: 370.3125 | K186: 407.8125 | L186: 0.02777777778 | M186: 37.5 | N186: 0.09195402299 | O186: 0 | R186: 413.8666667 | S186: 354 | U186: 354 | X186: =X184 -> 9 | Y186: =Y183+1 -> 2018-03-02 | Z186: =TEXT(Y186,"ddd") -> vr | AA186: DD | AB186: =IFERROR(HLOOKUP(Y186,[1]DATA!$A$1:$NB$5,3,0),"") -> D2 | AC186: 40 | AE186: 34 | AF186: 388 | AG186: 25 | AH186: -44.4375 | AI186: 0.8120430108 | AJ186: 0.9430350904
A187: 9vrMD | B187: =VLOOKUP($AA187,DATA!$B$3:$E187,2,0) -> 14:30:00 | C187: =VLOOKUP($AA187,DATA!$B$3:$E187,3,0) -> 22:30:00 | D187: =VLOOKUP($AA187,DATA!$B$3:$E187,4,0) -> 0.03125 | E187: 0.3020833333 | F187: 0.2694444444 | G187: =DATA!$C$9 -> 0.89 | H187: =DATA!$C$10 -> 64 | I187: 1 | J187: 363.75 | K187: 407.8125 | L187: 0.03263888889 | M187: 44.0625 | N187: 0.108045977 | O187: 0 | R187: 409.6 | S187: 353 | T187: 353 | X187: =X184 -> 9 | Z187: =TEXT(Y186,"ddd") -> vr | AA187: MD | AB187: =IFERROR(HLOOKUP(Y186,[1]DATA!$A$1:$NB$5,4,0),"") -> D1 | AC187: 47 | AE187: 31 | AF187: 384 | AG187: 0 | AH187: -38.875 | AI187: 0.8097491039 | AJ187: 1
A188: 9vrND | B188: =VLOOKUP($AA188,DATA!$B$3:$E188,2,0) -> 22:30:00 | C188: =VLOOKUP($AA188,DATA!$B$3:$E188,3,0) -> 06:30:00 | D188: =VLOOKUP($AA188,DATA!$B$3:$E188,4,0) -> 0.03125 | E188: 0.3020833333 | F188: 0.3020833333 | G188: =DATA!$C$9 -> 0.89 | H188: =DATA!$C$10 -> 64 | I188: 1 | J188: 407.8125 | K188: 407.8125 | L188: 0 | O188: 0 | R188: 0 | X188: =X184 -> 9 | Z188: =TEXT(Y186,"ddd") -> vr | AA188: ND | AB188: =IFERROR(HLOOKUP(Y186,[1]DATA!$A$1:$NB$5,5,0),"") -> - | AG188: 0
A189: 9zaDD | B189: =VLOOKUP($AA189,DATA!$B$3:$E189,2,0) -> 06:30:00 | C189: =VLOOKUP($AA189,DATA!$B$3:$E189,3,0) -> 14:30:00 | D189: =VLOOKUP($AA189,DATA!$B$3:$E189,4,0) -> 0.03125 | E189: 0.3020833333 | F189: 0.3020833333 | G189: =DATA!$C$9 -> 0.89 | H189: =DATA!$C$10 -> 64 | I189: 1 | J189: 407.8125 | K189: 407.8125 | L189: 0 | O189: 0 | R189: 0 | X189: =X184 -> 9 | Y189: =Y186+1 -> 2018-03-03 | Z189: =TEXT(Y189,"ddd") -> za | AA189: DD | AB189: =IFERROR(HLOOKUP(Y189,[1]DATA!$A$1:$NB$5,3,0),"") -> - | AG189: 0
A190: 9zaMD | B190: =VLOOKUP($AA190,DATA!$B$3:$E190,2,0) -> 14:30:00 | C190: =VLOOKUP($AA190,DATA!$B$3:$E190,3,0) -> 22:30:00 | D190: =VLOOKUP($AA190,DATA!$B$3:$E190,4,0) -> 0.03125 | E190: 0.3020833333 | F190: 0.3020833333 | G190: =DATA!$C$9 -> 0.89 | H190: =DATA!$C$10 -> 64 | I190: 1 | J190: 407.8125 | K190: 407.8125 | L190: 0 | O190: 0 | R190: 0 | X190: =X184 -> 9 | Z190: =TEXT(Y189,"ddd") -> za | AA190: MD | AB190: =IFERROR(HLOOKUP(Y189,[1]DATA!$A$1:$NB$5,4,0),"") -> - | AG190: 0
A191: 9zaND | B191: =VLOOKUP($AA191,DATA!$B$3:$E191,2,0) -> 22:30:00 | C191: =VLOOKUP($AA191,DATA!$B$3:$E191,3,0) -> 06:30:00 | D191: =VLOOKUP($AA191,DATA!$B$3:$E191,4,0) -> 0.03125 | E191: 0.3020833333 | F191: 0.3020833333 | G191: =DATA!$C$9 -> 0.89 | H191: =DATA!$C$10 -> 64 | I191: 1 | J191: 407.8125 | K191: 407.8125 | L191: 0 | O191: 0 | R191: 0 | X191: =X184 -> 9 | Z191: =TEXT(Y189,"ddd") -> za | AA191: ND | AB191: =IFERROR(HLOOKUP(Y189,[1]DATA!$A$1:$NB$5,5,0),"") -> - | AG191: 0
A192: 9zoDD | B192: =VLOOKUP($AA192,DATA!$B$3:$E192,2,0) -> 06:30:00 | C192: =VLOOKUP($AA192,DATA!$B$3:$E192,3,0) -> 14:30:00 | D192: =VLOOKUP($AA192,DATA!$B$3:$E192,4,0) -> 0.03125 | E192: 0.3020833333 | F192: 0.3020833333 | G192: =DATA!$C$9 -> 0.89 | H192: =DATA!$C$10 -> 64 | I192: 1 | J192: 407.8125 | K192: 407.8125 | L192: 0 | O192: 0 | R192: 0 | X192: =X184 -> 9 | Y192: =Y189+1 -> 2018-03-04 | Z192: =TEXT(Y192,"ddd") -> zo | AA192: DD | AB192: =IFERROR(HLOOKUP(Y192,[1]DATA!$A$1:$NB$5,3,0),"") -> - | AG192: 0
A193: 9zoMD | B193: =VLOOKUP($AA193,DATA!$B$3:$E193,2,0) -> 14:30:00 | C193: =VLOOKUP($AA193,DATA!$B$3:$E193,3,0) -> 22:30:00 | D193: =VLOOKUP($AA193,DATA!$B$3:$E193,4,0) -> 0.03125 | E193: 0.3020833333 | F193: 0.3020833333 | G193: =DATA!$C$9 -> 0.89 | H193: =DATA!$C$10 -> 64 | I193: 1 | J193: 407.8125 | K193: 407.8125 | L193: 0 | O193: 0 | R193: 0 | X193: =X184 -> 9 | Z193: =TEXT(Y192,"ddd") -> zo | AA193: MD | AB193: =IFERROR(HLOOKUP(Y192,[1]DATA!$A$1:$NB$5,4,0),"") -> - | AG193: 0
A194: 9zoZND | B194: =VLOOKUP($AA194,DATA!$B$3:$E194,2,0) -> 00:00:00 | C194: =VLOOKUP($AA194,DATA!$B$3:$E194,3,0) -> 00:00:00 | D194: =VLOOKUP($AA194,DATA!$B$3:$E194,4,0) -> 0 | E194: 0 | F194: 0 | G194: =DATA!$C$9 -> 0.89 | H194: =DATA!$C$10 -> 64 | I194: 1 | J194: 0 | K194: 0 | L194: 0 | O194: 0 | R194: 0 | X194: =X184 -> 9 | Z194: =TEXT(Y192,"ddd") -> zo | AA194: ZND | AB194: =IFERROR(HLOOKUP(Y192,[1]DATA!$A$1:$NB$5,5,0),"") -> D2 | AG194: 0
A195: 10maDD | B195: =VLOOKUP($AA195,DATA!$B$3:$E195,2,0) -> 06:30:00 | C195: =VLOOKUP($AA195,DATA!$B$3:$E195,3,0) -> 14:30:00 | D195: =VLOOKUP($AA195,DATA!$B$3:$E195,4,0) -> 0.03125 | E195: 0.3020833333 | F195: 0.2194444444 | G195: =DATA!$C$9 -> 0.89 | H195: =DATA!$C$10 -> 64 | I195: 1 | J195: 296.25 | K195: 407.8125 | L195: 0.08263888889 | M195: 111.5625 | N195: 0.2735632184 | O195: =TIME(INT($AD195/60),INT(MOD($AD195,60)/1),0) -> 0 | R195: 361.6 | S195: 315 | T195: 315 | X195: =X205 -> 10 | Y195: =Y192+1 -> 2018-03-05 | Z195: =TEXT(Y195,"ddd") -> ma | AA195: DD | AB195: =IFERROR(HLOOKUP(Y195,[1]DATA!$A$1:$NB$5,3,0),"") -> D1 | AC195: 119 | AE195: 24 | AF195: 339 | AG195: 0 | AH195: -9.375 | AI195: 0.7225806452 | AJ195: 1 | AK195: 4359.375 | AL195: 2976 | AM195: 0.6826666667 | AN195: 692.8125 | AO195: 0.1589247312 | AP195: 0 | AQ195: 0 | AR195: 0.9374282635 | AS195: 0.9427916093 | AU195: 0.9320649177 | AV195: 690.5625 | AW195: 0.1584086022 | AX195: 736.6 | AY195: 235
A196: 10maMD | B196: =VLOOKUP($AA196,DATA!$B$3:$E196,2,0) -> 14:30:00 | C196: =VLOOKUP($AA196,DATA!$B$3:$E196,3,0) -> 22:30:00 | D196: =VLOOKUP($AA196,DATA!$B$3:$E196,4,0) -> 0.03125 | E196: 0.3020833333 | F196: 0.2125 | G196: =DATA!$C$9 -> 0.89 | H196: =DATA!$C$10 -> 64 | I196: 1 | J196: 286.875 | K196: 407.8125 | L196: 0.08958333333 | M196: 120.9375 | N196: 0.2965517241 | O196: =TIME(INT(AD196/60),INT(MOD(AD196,60)/1),0) -> 0 | R196: 318.9333333 | S196: 285 | V196: 285 | X196: =X205 -> 10 | Z196: =TEXT(Y195,"ddd") -> ma | AA196: MD | AB196: =IFERROR(HLOOKUP(Y195,[1]DATA!$A$1:$NB$5,4,0),"") -> D3 | AC196: 129 | AE196: 14 | AF196: 299 | AG196: 17 | AH196: -30 | AI196: 0.6537634409 | AJ196: 0.9493947212
A197: 10maND | B197: =VLOOKUP($AA197,DATA!$B$3:$E197,2,0) -> 22:30:00 | C197: =VLOOKUP($AA197,DATA!$B$3:$E197,3,0) -> 06:30:00 | D197: =VLOOKUP($AA197,DATA!$B$3:$E197,4,0) -> 0.03125 | E197: 0.3020833333 | F197: 0.3020833333 | G197: =DATA!$C$9 -> 0.89 | H197: =DATA!$C$10 -> 64 | I197: 1 | J197: 407.8125 | K197: 407.8125 | L197: 0 | O197: 0 | R197: 0 | X197: =X205 -> 10 | Z197: =TEXT(Y195,"ddd") -> ma | AA197: ND | AB197: =IFERROR(HLOOKUP(Y195,[1]DATA!$A$1:$NB$5,5,0),"") -> D2 | AG197: 0
A198: 10diDD | B198: =VLOOKUP($AA198,DATA!$B$3:$E198,2,0) -> 06:30:00 | C198: =VLOOKUP($AA198,DATA!$B$3:$E198,3,0) -> 14:30:00 | D198: =VLOOKUP($AA198,DATA!$B$3:$E198,4,0) -> 0.03125 | E198: 0.3020833333 | F198: 0.2354166667 | G198: =DATA!$C$9 -> 0.89 | H198: =DATA!$C$10 -> 64 | I198: 1 | J198: 317.8125 | K198: 407.8125 | L198: 0.06666666667 | M198: 90 | N198: 0.2206896552 | O198: 0 | R198: 353.0666667 | S198: 306 | T198: 306 | X198: =X205 -> 10 | Y198: =Y195+1 -> 2018-03-06 | Z198: =TEXT(Y198,"ddd") -> di | AA198: DD | AB198: =IFERROR(HLOOKUP(Y198,[1]DATA!$A$1:$NB$5,3,0),"") -> D1 | AC198: 96 | AE198: 25 | AF198: 331 | AG198: 13 | AH198: -39.9375 | AI198: 0.7019354839 | AJ198: 0.9644873429
A199: 10diMD | B199: =VLOOKUP($AA199,DATA!$B$3:$E199,2,0) -> 14:30:00 | C199: =VLOOKUP($AA199,DATA!$B$3:$E199,3,0) -> 22:30:00 | D199: =VLOOKUP($AA199,DATA!$B$3:$E199,4,0) -> 0.03125 | E199: 0.3020833333 | F199: 0.2375 | G199: =DATA!$C$9 -> 0.89 | H199: =DATA!$C$10 -> 64 | I199: 1 | J199: 320.625 | K199: 407.8125 | L199: =TIME(INT($AC199/60),INT(MOD($AC199,60)/1),0) -> 0.06458333333 | M199: =IF($L199*86400/$H199=0,"",$L199*86400/$H199) -> 87.1875 | N199: =IFERROR($M199/$K199,"") -> 0.2137931034 | O199: 0 | Q199: =IFERROR($P199/$K199,"") ->  | R199: 325.3333333 | S199: 287 | T199: =IF(IF($AB199="D1",$S199,"")=0,"",IF($AB199="D1",$S199,"")) ->  | U199: =IF(IF($AB199="D2",$S199,"")=0,"",IF($AB199="D2",$S199,"")) ->  | V199: =IF(IF($AB199="D3",$S199,"")=0,"",IF($AB199="D3",$S199,"")) -> 287 | X199: =X205 -> 10 | Z199: =TEXT(Y198,"ddd") -> di | AA199: MD | AB199: =IFERROR(HLOOKUP(Y198,[1]DATA!$A$1:$NB$5,4,0),"") -> D3 | AC199: 93 | AE199: 18 | AF199: 305 | AG199: 40 | AH199: -61.75 | AI199: 0.6583512545 | AJ199: 0.8905109489
A200: 10diND | B200: =VLOOKUP($AA200,DATA!$B$3:$E200,2,0) -> 22:30:00 | C200: =VLOOKUP($AA200,DATA!$B$3:$E200,3,0) -> 06:30:00 | D200: =VLOOKUP($AA200,DATA!$B$3:$E200,4,0) -> 0.03125 | E200: 0.3020833333 | F200: 0.3020833333 | G200: =DATA!$C$9 -> 0.89 | H200: =DATA!$C$10 -> 64 | I200: 1 | J200: 407.8125 | K200: 407.8125 | L200: 0 | O200: 0 | R200: 0 | X200: =X205 -> 10 | Z200: =TEXT(Y198,"ddd") -> di | AA200: ND | AB200: =IFERROR(HLOOKUP(Y198,[1]DATA!$A$1:$NB$5,5,0),"") -> D2 | AG200: 0
... 918 more rows

Sheet Grafieken
P3: 0.89
P4: 0.89
P5: 0.89
P6: 0.89
P7: 0.89
P8: 0.89
P9: 0.89 | AB9: Week
P10: 0.89 | AB10: 39
P11: 0.89
P12: 0.89
P13: 0.89
P14: 0.89
P15: 0.89
P16: 0.89
P17: 0.89
P18: 0.89
P19: 0.89
P20: 0.89

Sheet Data voor grafieken (hidden)
A1: =Grafieken!AB10 -> 39 | B1: 0
B2: Week | E2: Parts Target [TA 100%] | F2: Parts Actual | G2: Availability (Total Time) [%] | H2: Loss due to Blocked/ Starved [Theoretical] | I2: Loss Blocked/ Starved [%] | J2: Loss due to Planned Stop/ Early Finish | K2: Loss Planned Stop/ Early Finish [%] | L2: Technical Availability Total [%] | M2: Technical Availability Shift D1 [%] | N2: Technical Availability Shift D2 [%] | O2: Technical Availability Shift D3 [%] | P2: Downtime [Parts] | Q2: Total Downtime [%] | R2: Target TA [%]
A3: 2017 | B3: =B4-1 -> 33 | E3: =VLOOKUP($B3,'TA SRM LH'!$X$6:$AY$1118,14,FALSE) -> 6525 | F3: =VLOOKUP($B3,'TA SRM LH'!$X$6:$AY$1118,15,FALSE) -> 4175 | G3: =VLOOKUP($B3,'TA SRM LH'!$X$6:$AY$1118,16,FALSE) -> 0.6398467433 | H3: =VLOOKUP($B3,'TA SRM LH'!$X$6:$AY$1118,17,FALSE) -> 707.8125 | I3: =VLOOKUP($B3,'TA SRM LH'!$X$6:$AY$1118,18,FALSE) -> 0.1084770115 | J3: =VLOOKUP($B3,'TA SRM LH'!$X$6:$AY$1118,19,FALSE) -> 0 | K3: =VLOOKUP($B3,'TA SRM LH'!$X$6:$AY$1118,20,FALSE) -> 0 | L3: =VLOOKUP($B3,'TA SRM LH'!$X$6:$AY$1118,21,FALSE) -> 0.9608987297 | M3: =VLOOKUP($B3,'TA SRM LH'!$X$6:$AY$1118,22,FALSE) -> 0.9814112176 | N3: =VLOOKUP($B3,'TA SRM LH'!$X$6:$AY$1118,23,FALSE) -> 0.9173033228 | O3: =VLOOKUP($B3,'TA SRM LH'!$X$6:$AY$1118,24,FALSE) -> 0.9927007299 | P3: =VLOOKUP($B3,'TA SRM LH'!$X$6:$AY$1118,25,FALSE) -> 1642.1875 | Q3: =VLOOKUP($B3,'TA SRM LH'!$X$6:$AY$1118,26,FALSE) -> 0.2516762452 | R3: =DATA!$C$9 -> 0.89 | S3: SRI LH
B4: 34 | E4: =VLOOKUP($B4,'TA SRM LH'!$X$6:$AY$1118,14,FALSE) -> 6117.1875 | F4: =VLOOKUP($B4,'TA SRM LH'!$X$6:$AY$1118,15,FALSE) -> 4335 | G4: =VLOOKUP($B4,'TA SRM LH'!$X$6:$AY$1118,16,FALSE) -> 0.7086590038 | H4: =VLOOKUP($B4,'TA SRM LH'!$X$6:$AY$1118,17,FALSE) -> 604.6875 | I4: =VLOOKUP($B4,'TA SRM LH'!$X$6:$AY$1118,18,FALSE) -> 0.09885057471 | J4: =VLOOKUP($B4,'TA SRM LH'!$X$6:$AY$1118,19,FALSE) -> 0 | K4: =VLOOKUP($B4,'TA SRM LH'!$X$6:$AY$1118,20,FALSE) -> 0 | L4: =VLOOKUP($B4,'TA SRM LH'!$X$6:$AY$1118,21,FALSE) -> 0.9063827405 | M4: =VLOOKUP($B4,'TA SRM LH'!$X$6:$AY$1118,22,FALSE) -> 0.9638694283 | N4: =VLOOKUP($B4,'TA SRM LH'!$X$6:$AY$1118,23,FALSE) -> 0.9156168867 | O4: =VLOOKUP($B4,'TA SRM LH'!$X$6:$AY$1118,24,FALSE) -> 0.8396619066 | P4: =VLOOKUP($B4,'TA SRM LH'!$X$6:$AY$1118,25,FALSE) -> 1177.5 | Q4: =VLOOKUP($B4,'TA SRM LH'!$X$6:$AY$1118,26,FALSE) -> 0.1924904215 | R4: =DATA!$C$9 -> 0.89
B5: 35 | E5: =VLOOKUP($B5,'TA SRM LH'!$X$6:$AY$1118,14,FALSE) -> 6117.1875 | F5: =VLOOKUP($B5,'TA SRM LH'!$X$6:$AY$1118,15,FALSE) -> 4498 | G5: =VLOOKUP($B5,'TA SRM LH'!$X$6:$AY$1118,16,FALSE) -> 0.7353052363 | H5: =VLOOKUP($B5,'TA SRM LH'!$X$6:$AY$1118,17,FALSE) -> 705 | I5: =VLOOKUP($B5,'TA SRM LH'!$X$6:$AY$1118,18,FALSE) -> 0.1152490421 | J5: =VLOOKUP($B5,'TA SRM LH'!$X$6:$AY$1118,19,FALSE) -> 0 | K5: =VLOOKUP($B5,'TA SRM LH'!$X$6:$AY$1118,20,FALSE) -> 0 | L5: =VLOOKUP($B5,'TA SRM LH'!$X$6:$AY$1118,21,FALSE) -> 0.9156000891 | M5: =VLOOKUP($B5,'TA SRM LH'!$X$6:$AY$1118,22,FALSE) -> 0.9626915722 | N5: =VLOOKUP($B5,'TA SRM LH'!$X$6:$AY$1118,23,FALSE) -> 0.9134719596 | O5: =VLOOKUP($B5,'TA SRM LH'!$X$6:$AY$1118,24,FALSE) -> 0.880480658 | P5: =VLOOKUP($B5,'TA SRM LH'!$X$6:$AY$1118,25,FALSE) -> 914.1875 | Q5: =VLOOKUP($B5,'TA SRM LH'!$X$6:$AY$1118,26,FALSE) -> 0.1494457216 | R5: =DATA!$C$9 -> 0.89
B6: =B7-1 -> 36 | E6: =VLOOKUP($B6,'TA SRM LH'!$X$6:$AY$1118,14,FALSE) -> 6525 | F6: =VLOOKUP($B6,'TA SRM LH'!$X$6:$AY$1118,15,FALSE) -> 4201 | G6: =VLOOKUP($B6,'TA SRM LH'!$X$6:$AY$1118,16,FALSE) -> 0.6438314176 | H6: =VLOOKUP($B6,'TA SRM LH'!$X$6:$AY$1118,17,FALSE) -> 535.3125 | I6: =VLOOKUP($B6,'TA SRM LH'!$X$6:$AY$1118,18,FALSE) -> 0.08204022989 | J6: =VLOOKUP($B6,'TA SRM LH'!$X$6:$AY$1118,19,FALSE) -> 0 | K6: =VLOOKUP($B6,'TA SRM LH'!$X$6:$AY$1118,20,FALSE) -> 0 | L6: =VLOOKUP($B6,'TA SRM LH'!$X$6:$AY$1118,21,FALSE) -> 0.8888370822 | M6: =VLOOKUP($B6,'TA SRM LH'!$X$6:$AY$1118,22,FALSE) -> 0.9833988425 | N6: =VLOOKUP($B6,'TA SRM LH'!$X$6:$AY$1118,23,FALSE) -> 0.8971942979 | O6: =VLOOKUP($B6,'TA SRM LH'!$X$6:$AY$1118,24,FALSE) -> 0.7842466631 | P6: =VLOOKUP($B6,'TA SRM LH'!$X$6:$AY$1118,25,FALSE) -> 1788.6875 | Q6: =VLOOKUP($B6,'TA SRM LH'!$X$6:$AY$1118,26,FALSE) -> 0.2741283525 | R6: =DATA!$C$9 -> 0.89
B7: =B8-1 -> 37 | E7: =VLOOKUP($B7,'TA SRM LH'!$X$6:$AY$1118,14,FALSE) -> 6117.1875 | F7: =VLOOKUP($B7,'TA SRM LH'!$X$6:$AY$1118,15,FALSE) -> 4510 | G7: =VLOOKUP($B7,'TA SRM LH'!$X$6:$AY$1118,16,FALSE) -> 0.7372669221 | H7: =VLOOKUP($B7,'TA SRM LH'!$X$6:$AY$1118,17,FALSE) -> 620.625 | I7: =VLOOKUP($B7,'TA SRM LH'!$X$6:$AY$1118,18,FALSE) -> 0.1014559387 | J7: =VLOOKUP($B7,'TA SRM LH'!$X$6:$AY$1118,19,FALSE) -> 0 | K7: =VLOOKUP($B7,'TA SRM LH'!$X$6:$AY$1118,20,FALSE) -> 0 | L7: =VLOOKUP($B7,'TA SRM LH'!$X$6:$AY$1118,21,FALSE) -> 0.9214918007 | M7: =VLOOKUP($B7,'TA SRM LH'!$X$6:$AY$1118,22,FALSE) -> 0.9627075104 | N7: =VLOOKUP($B7,'TA SRM LH'!$X$6:$AY$1118,23,FALSE) -> 0.9386053157 | O7: =VLOOKUP($B7,'TA SRM LH'!$X$6:$AY$1118,24,FALSE) -> 0.863162576 | P7: =VLOOKUP($B7,'TA SRM LH'!$X$6:$AY$1118,25,FALSE) -> 986.5625 | Q7: =VLOOKUP($B7,'TA SRM LH'!$X$6:$AY$1118,26,FALSE) -> 0.1612771392 | R7: =DATA!$C$9 -> 0.89
B8: 38 | E8: =VLOOKUP($B8,'TA SRM LH'!$X$6:$AY$1118,14,FALSE) -> 6117.1875 | F8: =VLOOKUP($B8,'TA SRM LH'!$X$6:$AY$1118,15,FALSE) -> 4258 | G8: =VLOOKUP($B8,'TA SRM LH'!$X$6:$AY$1118,16,FALSE) -> 0.6960715198 | H8: =VLOOKUP($B8,'TA SRM LH'!$X$6:$AY$1118,17,FALSE) -> 715.3125 | I8: =VLOOKUP($B8,'TA SRM LH'!$X$6:$AY$1118,18,FALSE) -> 0.1169348659 | J8: =VLOOKUP($B8,'TA SRM LH'!$X$6:$AY$1118,19,FALSE) -> 0 | K8: =VLOOKUP($B8,'TA SRM LH'!$X$6:$AY$1118,20,FALSE) -> 0 | L8: =VLOOKUP($B8,'TA SRM LH'!$X$6:$AY$1118,21,FALSE) -> 0.899349986 | M8: =VLOOKUP($B8,'TA SRM LH'!$X$6:$AY$1118,22,FALSE) -> 0.963779575 | N8: =VLOOKUP($B8,'TA SRM LH'!$X$6:$AY$1118,23,FALSE) -> 0.8794063082 | O8: =VLOOKUP($B8,'TA SRM LH'!$X$6:$AY$1118,24,FALSE) -> 0.8717387281 | P8: =VLOOKUP($B8,'TA SRM LH'!$X$6:$AY$1118,25,FALSE) -> 1143.875 | Q8: =VLOOKUP($B8,'TA SRM LH'!$X$6:$AY$1118,26,FALSE) -> 0.1869936143 | R8: =DATA!$C$9 -> 0.89
B9: =A1 -> 39 | E9: =VLOOKUP($B9,'TA SRM LH'!$X$6:$AY$1118,14,FALSE) ->  | F9: =VLOOKUP($B9,'TA SRM LH'!$X$6:$AY$1118,15,FALSE) ->  | G9: =VLOOKUP($B9,'TA SRM LH'!$X$6:$AY$1118,16,FALSE) -> - | H9: =VLOOKUP($B9,'TA SRM LH'!$X$6:$AY$1118,17,FALSE) -> 0 | I9: =VLOOKUP($B9,'TA SRM LH'!$X$6:$AY$1118,18,FALSE) -> - | J9: =VLOOKUP($B9,'TA SRM LH'!$X$6:$AY$1118,19,FALSE) -> 0 | K9: =VLOOKUP($B9,'TA SRM LH'!$X$6:$AY$1118,20,FALSE) -> - | L9: =VLOOKUP($B9,'TA SRM LH'!$X$6:$AY$1118,21,FALSE) -> 0 | M9: =VLOOKUP($B9,'TA SRM LH'!$X$6:$AY$1118,22,FALSE) ->  | N9: =VLOOKUP($B9,'TA SRM LH'!$X$6:$AY$1118,23,FALSE) ->  | O9: =VLOOKUP($B9,'TA SRM LH'!$X$6:$AY$1118,24,FALSE) ->  | P9: =VLOOKUP($B9,'TA SRM LH'!$X$6:$AY$1118,25,FALSE) -> - | Q9: =VLOOKUP($B9,'TA SRM LH'!$X$6:$AY$1118,26,FALSE) -> - | R9: =DATA!$C$9 -> 0.89
B10: =B9+1 -> 40 | E10: =VLOOKUP($B10,'TA SRM LH'!$X$6:$AY$1118,14,FALSE) ->  | F10: =VLOOKUP($B10,'TA SRM LH'!$X$6:$AY$1118,15,FALSE) ->  | G10: =VLOOKUP($B10,'TA SRM LH'!$X$6:$AY$1118,16,FALSE) -> - | H10: =VLOOKUP($B10,'TA SRM LH'!$X$6:$AY$1118,17,FALSE) -> 0 | I10: =VLOOKUP($B10,'TA SRM LH'!$X$6:$AY$1118,18,FALSE) -> - | J10: =VLOOKUP($B10,'TA SRM LH'!$X$6:$AY$1118,19,FALSE) -> 0 | K10: =VLOOKUP($B10,'TA SRM LH'!$X$6:$AY$1118,20,FALSE) -> - | L10: =VLOOKUP($B10,'TA SRM LH'!$X$6:$AY$1118,21,FALSE) -> - | M10: =VLOOKUP($B10,'TA SRM LH'!$X$6:$AY$1118,22,FALSE) ->  | N10: =VLOOKUP($B10,'TA SRM LH'!$X$6:$AY$1118,23,FALSE) ->  | O10: =VLOOKUP($B10,'TA SRM LH'!$X$6:$AY$1118,24,FALSE) ->  | P10: =VLOOKUP($B10,'TA SRM LH'!$X$6:$AY$1118,25,FALSE) -> - | Q10: =VLOOKUP($B10,'TA SRM LH'!$X$6:$AY$1118,26,FALSE) -> - | R10: =DATA!$C$9 -> 0.89
B12: =$B$3 -> 33 | E12: =VLOOKUP($B12,'TA SRM RH'!$X$6:$AY$1118,14,FALSE) -> 6117.1875 | F12: =VLOOKUP($B12,'TA SRM RH'!$X$6:$AY$1118,15,FALSE) -> 3850 | G12: =VLOOKUP($B12,'TA SRM RH'!$X$6:$AY$1118,16,FALSE) -> 0.6293742018 | H12: =VLOOKUP($B12,'TA SRM RH'!$X$6:$AY$1118,17,FALSE) -> 781.875 | I12: =VLOOKUP($B12,'TA SRM RH'!$X$6:$AY$1118,18,FALSE) -> 0.127816092 | J12: =VLOOKUP($B12,'TA SRM RH'!$X$6:$AY$1118,19,FALSE) -> 0 | K12: =VLOOKUP($B12,'TA SRM RH'!$X$6:$AY$1118,20,FALSE) -> 0 | L12: =VLOOKUP($B12,'TA SRM RH'!$X$6:$AY$1118,21,FALSE) -> 0.9613701362 | M12: =VLOOKUP($B12,'TA SRM RH'!$X$6:$AY$1118,22,FALSE) -> 0.9609537471 | N12: =VLOOKUP($B12,'TA SRM RH'!$X$6:$AY$1118,23,FALSE) -> 0.9364645859 | O12: =VLOOKUP($B12,'TA SRM RH'!$X$6:$AY$1118,24,FALSE) -> 0.9915899079 | P12: =VLOOKUP($B12,'TA SRM RH'!$X$6:$AY$1118,25,FALSE) -> 1485.3125 | Q12: =VLOOKUP($B12,'TA SRM RH'!$X$6:$AY$1118,26,FALSE) -> 0.2428097063 | R12: =DATA!$C$9 -> 0.89 | S12: SRI RH
B13: =$B$4 -> 34 | E13: =VLOOKUP($B13,'TA SRM RH'!$X$6:$AY$1118,14,FALSE) -> 6117.1875 | F13: =VLOOKUP($B13,'TA SRM RH'!$X$6:$AY$1118,15,FALSE) -> 4695 | G13: =VLOOKUP($B13,'TA SRM RH'!$X$6:$AY$1118,16,FALSE) -> 0.7675095785 | H13: =VLOOKUP($B13,'TA SRM RH'!$X$6:$AY$1118,17,FALSE) -> 555.9375 | I13: =VLOOKUP($B13,'TA SRM RH'!$X$6:$AY$1118,18,FALSE) -> 0.09088122605 | J13: =VLOOKUP($B13,'TA SRM RH'!$X$6:$AY$1118,19,FALSE) -> 0 | K13: =VLOOKUP($B13,'TA SRM RH'!$X$6:$AY$1118,20,FALSE) -> 0 | L13: =VLOOKUP($B13,'TA SRM RH'!$X$6:$AY$1118,21,FALSE) -> 0.9175387132 | M13: =VLOOKUP($B13,'TA SRM RH'!$X$6:$AY$1118,22,FALSE) -> 0.9540633135 | N13: =VLOOKUP($B13,'TA SRM RH'!$X$6:$AY$1118,23,FALSE) -> 0.9260024415 | O13: =VLOOKUP($B13,'TA SRM RH'!$X$6:$AY$1118,24,FALSE) -> 0.8725503846 | P13: =VLOOKUP($B13,'TA SRM RH'!$X$6:$AY$1118,25,FALSE) -> 866.25 | Q13: =VLOOKUP($B13,'TA SRM RH'!$X$6:$AY$1118,26,FALSE) -> 0.1416091954 | R13: =DATA!$C$9 -> 0.89
B14: =$B$5 -> 35 | E14: =VLOOKUP($B14,'TA SRM RH'!$X$6:$AY$1118,14,FALSE) -> 6117.1875 | F14: =VLOOKUP($B14,'TA SRM RH'!$X$6:$AY$1118,15,FALSE) -> 4570 | G14: =VLOOKUP($B14,'TA SRM RH'!$X$6:$AY$1118,16,FALSE) -> 0.7470753512 | H14: =VLOOKUP($B14,'TA SRM RH'!$X$6:$AY$1118,17,FALSE) -> 382.5 | I14: =VLOOKUP($B14,'TA SRM RH'!$X$6:$AY$1118,18,FALSE) -> 0.06252873563 | J14: =VLOOKUP($B14,'TA SRM RH'!$X$6:$AY$1118,19,FALSE) -> 0 | K14: =VLOOKUP($B14,'TA SRM RH'!$X$6:$AY$1118,20,FALSE) -> 0 | L14: =VLOOKUP($B14,'TA SRM RH'!$X$6:$AY$1118,21,FALSE) -> 0.8573909824 | M14: =VLOOKUP($B14,'TA SRM RH'!$X$6:$AY$1118,22,FALSE) -> 0.9743627395 | N14: =VLOOKUP($B14,'TA SRM RH'!$X$6:$AY$1118,23,FALSE) -> 0.8530553372 | O14: =VLOOKUP($B14,'TA SRM RH'!$X$6:$AY$1118,24,FALSE) -> 0.769016351 | P14: =VLOOKUP($B14,'TA SRM RH'!$X$6:$AY$1118,25,FALSE) -> 1164.6875 | Q14: =VLOOKUP($B14,'TA SRM RH'!$X$6:$AY$1118,26,FALSE) -> 0.1903959132 | R14: =DATA!$C$9 -> 0.89
B15: =$B$6 -> 36 | E15: =VLOOKUP($B15,'TA SRM RH'!$X$6:$AY$1118,14,FALSE) -> 6525 | F15: =VLOOKUP($B15,'TA SRM RH'!$X$6:$AY$1118,15,FALSE) -> 4211 | G15: =VLOOKUP($B15,'TA SRM RH'!$X$6:$AY$1118,16,FALSE) -> 0.6453639847 | H15: =VLOOKUP($B15,'TA SRM RH'!$X$6:$AY$1118,17,FALSE) -> 380.625 | I15: =VLOOKUP($B15,'TA SRM RH'!$X$6:$AY$1118,18,FALSE) -> 0.05833333333 | J15: =VLOOKUP($B15,'TA SRM RH'!$X$6:$AY$1118,19,FALSE) -> 0 | K15: =VLOOKUP($B15,'TA SRM RH'!$X$6:$AY$1118,20,FALSE) -> 0 | L15: =VLOOKUP($B15,'TA SRM RH'!$X$6:$AY$1118,21,FALSE) -> 0.9168804792 | M15: =VLOOKUP($B15,'TA SRM RH'!$X$6:$AY$1118,22,FALSE) -> 0.9459913145 | N15: =VLOOKUP($B15,'TA SRM RH'!$X$6:$AY$1118,23,FALSE) -> 0.884768818 | O15: =VLOOKUP($B15,'TA SRM RH'!$X$6:$AY$1118,24,FALSE) -> 0.9263036374 | P15: =VLOOKUP($B15,'TA SRM RH'!$X$6:$AY$1118,25,FALSE) -> 1933.375 | Q15: =VLOOKUP($B15,'TA SRM RH'!$X$6:$AY$1118,26,FALSE) -> 0.296302682 | R15: =DATA!$C$9 -> 0.89
B16: =$B$7 -> 37 | E16: =VLOOKUP($B16,'TA SRM RH'!$X$6:$AY$1118,14,FALSE) -> 6117.1875 | F16: =VLOOKUP($B16,'TA SRM RH'!$X$6:$AY$1118,15,FALSE) -> 4544 | G16: =VLOOKUP($B16,'TA SRM RH'!$X$6:$AY$1118,16,FALSE) -> 0.7428250319 | H16: =VLOOKUP($B16,'TA SRM RH'!$X$6:$AY$1118,17,FALSE) -> 553.125 | I16: =VLOOKUP($B16,'TA SRM RH'!$X$6:$AY$1118,18,FALSE) -> 0.09042145594 | J16: =VLOOKUP($B16,'TA SRM RH'!$X$6:$AY$1118,19,FALSE) -> 0 | K16: =VLOOKUP($B16,'TA SRM RH'!$X$6:$AY$1118,20,FALSE) -> 0 | L16: =VLOOKUP($B16,'TA SRM RH'!$X$6:$AY$1118,21,FALSE) -> 0.9430943287 | M16: =VLOOKUP($B16,'TA SRM RH'!$X$6:$AY$1118,22,FALSE) -> 0.9804680881 | N16: =VLOOKUP($B16,'TA SRM RH'!$X$6:$AY$1118,23,FALSE) -> 0.9385304201 | O16: =VLOOKUP($B16,'TA SRM RH'!$X$6:$AY$1118,24,FALSE) -> 0.9102844778 | P16: =VLOOKUP($B16,'TA SRM RH'!$X$6:$AY$1118,25,FALSE) -> 1020.0625 | Q16: =VLOOKUP($B16,'TA SRM RH'!$X$6:$AY$1118,26,FALSE) -> 0.1667535121 | R16: =DATA!$C$9 -> 0.89
B17: =$B$8 -> 38 | E17: =VLOOKUP($B17,'TA SRM RH'!$X$6:$AY$1118,14,FALSE) -> 6117.1875 | F17: =VLOOKUP($B17,'TA SRM RH'!$X$6:$AY$1118,15,FALSE) -> 4262 | G17: =VLOOKUP($B17,'TA SRM RH'!$X$6:$AY$1118,16,FALSE) -> 0.6967254151 | H17: =VLOOKUP($B17,'TA SRM RH'!$X$6:$AY$1118,17,FALSE) -> 415.3125 | I17: =VLOOKUP($B17,'TA SRM RH'!$X$6:$AY$1118,18,FALSE) -> 0.06789272031 | J17: =VLOOKUP($B17,'TA SRM RH'!$X$6:$AY$1118,19,FALSE) -> 0 | K17: =VLOOKUP($B17,'TA SRM RH'!$X$6:$AY$1118,20,FALSE) -> 0 | L17: =VLOOKUP($B17,'TA SRM RH'!$X$6:$AY$1118,21,FALSE) -> 0.8894770445 | M17: =VLOOKUP($B17,'TA SRM RH'!$X$6:$AY$1118,22,FALSE) -> 0.8747748122 | N17: =VLOOKUP($B17,'TA SRM RH'!$X$6:$AY$1118,23,FALSE) -> 0.9331761981 | O17: =VLOOKUP($B17,'TA SRM RH'!$X$6:$AY$1118,24,FALSE) -> 0.848799846 | P17: =VLOOKUP($B17,'TA SRM RH'!$X$6:$AY$1118,25,FALSE) -> 1439.875 | Q17: =VLOOKUP($B17,'TA SRM RH'!$X$6:$AY$1118,26,FALSE) -> 0.2353818646 | R17: =DATA!$C$9 -> 0.89
B18: =$B$9 -> 39 | E18: =VLOOKUP($B18,'TA SRM RH'!$X$6:$AY$1118,14,FALSE) ->  | F18: =VLOOKUP($B18,'TA SRM RH'!$X$6:$AY$1118,15,FALSE) ->  | G18: =VLOOKUP($B18,'TA SRM RH'!$X$6:$AY$1118,16,FALSE) -> - | H18: =VLOOKUP($B18,'TA SRM RH'!$X$6:$AY$1118,17,FALSE) -> 0 | I18: =VLOOKUP($B18,'TA SRM RH'!$X$6:$AY$1118,18,FALSE) -> - | J18: =VLOOKUP($B18,'TA SRM RH'!$X$6:$AY$1118,19,FALSE) -> 0 | K18: =VLOOKUP($B18,'TA SRM RH'!$X$6:$AY$1118,20,FALSE) -> - | L18: =VLOOKUP($B18,'TA SRM RH'!$X$6:$AY$1118,21,FALSE) -> 0 | M18: =VLOOKUP($B18,'TA SRM RH'!$X$6:$AY$1118,22,FALSE) ->  | N18: =VLOOKUP($B18,'TA SRM RH'!$X$6:$AY$1118,23,FALSE) ->  | O18: =VLOOKUP($B18,'TA SRM RH'!$X$6:$AY$1118,24,FALSE) ->  | P18: =VLOOKUP($B18,'TA SRM RH'!$X$6:$AY$1118,25,FALSE) -> - | Q18: =VLOOKUP($B18,'TA SRM RH'!$X$6:$AY$1118,26,FALSE) -> - | R18: =DATA!$C$9 -> 0.89
B19: =$B$10 -> 40 | E19: =VLOOKUP($B19,'TA SRM RH'!$X$6:$AY$1118,14,FALSE) ->  | F19: =VLOOKUP($B19,'TA SRM RH'!$X$6:$AY$1118,15,FALSE) ->  | G19: =VLOOKUP($B19,'TA SRM RH'!$X$6:$AY$1118,16,FALSE) -> - | H19: =VLOOKUP($B19,'TA SRM RH'!$X$6:$AY$1118,17,FALSE) -> 0 | I19: =VLOOKUP($B19,'TA SRM RH'!$X$6:$AY$1118,18,FALSE) -> - | J19: =VLOOKUP($B19,'TA SRM RH'!$X$6:$AY$1118,19,FALSE) -> 0 | K19: =VLOOKUP($B19,'TA SRM RH'!$X$6:$AY$1118,20,FALSE) -> - | L19: =VLOOKUP($B19,'TA SRM RH'!$X$6:$AY$1118,21,FALSE) -> - | M19: =VLOOKUP($B19,'TA SRM RH'!$X$6:$AY$1118,22,FALSE) ->  | N19: =VLOOKUP($B19,'TA SRM RH'!$X$6:$AY$1118,23,FALSE) ->  | O19: =VLOOKUP($B19,'TA SRM RH'!$X$6:$AY$1118,24,FALSE) ->  | P19: =VLOOKUP($B19,'TA SRM RH'!$X$6:$AY$1118,25,FALSE) -> - | Q19: =VLOOKUP($B19,'TA SRM RH'!$X$6:$AY$1118,26,FALSE) -> - | R19: =DATA!$C$9 -> 0.89
B21: Week | C21: ="Technical Downtime SAP "&DATA!C15 -> Technical Downtime SAP SRM LH | L21: ="Technical Downtime SAP "&DATA!C16 -> Technical Downtime SAP SRM RH
C22: F48 [min] | D22: Freq | E22: Running [min] | F22: Freq | G22: Totaal | H22: Feq | L22: F48 [min] | M22: Freq | N22: Running [min] | O22: Freq | P22: Totaal | Q22: Feq
B23: =$B$3 -> 33 | C23: =VLOOKUP($B23,[1]SRM!$A$4:$P$55,2,0) -> 93 | D23: =VLOOKUP($B23,[1]SRM!$A$4:$P$55,3,0) -> 7 | E23: =VLOOKUP($B23,[1]SRM!$A$4:$P$55,4,0) -> 76 | F23: =VLOOKUP($B23,[1]SRM!$A$4:$P$55,5,0) -> 12 | G23: =VLOOKUP($B23,[1]SRM!$A$4:$P$55,6,0) -> 169 | H23: =VLOOKUP($B23,[1]SRM!$A$4:$P$55,7,0) -> 19 | L23: =VLOOKUP($B23,[1]SRM!$A$4:$P$55,11,0) -> 120 | M23: =VLOOKUP($B23,[1]SRM!$A$4:$P$55,12,0) -> 8 | N23: =VLOOKUP($B23,[1]SRM!$A$4:$P$55,13,0) -> 86 | O23: =VLOOKUP($B23,[1]SRM!$A$4:$P$55,14,0) -> 11 | P23: =VLOOKUP($B23,[1]SRM!$A$4:$P$55,15,0) -> 206 | Q23: =VLOOKUP($B23,[1]SRM!$A$4:$P$55,16,0) -> 19
B24: =$B$4 -> 34 | C24: =VLOOKUP($B24,[1]SRM!$A$4:$P$55,2,0) -> 126 | D24: =VLOOKUP($B24,[1]SRM!$A$4:$P$55,3,0) -> 20 | E24: =VLOOKUP($B24,[1]SRM!$A$4:$P$55,4,0) -> 396 | F24: =VLOOKUP($B24,[1]SRM!$A$4:$P$55,5,0) -> 46 | G24: =VLOOKUP($B24,[1]SRM!$A$4:$P$55,6,0) -> 522 | H24: =VLOOKUP($B24,[1]SRM!$A$4:$P$55,7,0) -> 66 | L24: =VLOOKUP($B24,[1]SRM!$A$4:$P$55,11,0) -> 99 | M24: =VLOOKUP($B24,[1]SRM!$A$4:$P$55,12,0) -> 12 | N24: =VLOOKUP($B24,[1]SRM!$A$4:$P$55,13,0) -> 362 | O24: =VLOOKUP($B24,[1]SRM!$A$4:$P$55,14,0) -> 35 | P24: =VLOOKUP($B24,[1]SRM!$A$4:$P$55,15,0) -> 461 | Q24: =VLOOKUP($B24,[1]SRM!$A$4:$P$55,16,0) -> 47
B25: =$B$5 -> 35 | C25: =VLOOKUP($B25,[1]SRM!$A$4:$P$55,2,0) -> 258 | D25: =VLOOKUP($B25,[1]SRM!$A$4:$P$55,3,0) -> 22 | E25: =VLOOKUP($B25,[1]SRM!$A$4:$P$55,4,0) -> 249 | F25: =VLOOKUP($B25,[1]SRM!$A$4:$P$55,5,0) -> 40 | G25: =VLOOKUP($B25,[1]SRM!$A$4:$P$55,6,0) -> 507 | H25: =VLOOKUP($B25,[1]SRM!$A$4:$P$55,7,0) -> 62 | L25: =VLOOKUP($B25,[1]SRM!$A$4:$P$55,11,0) -> 414 | M25: =VLOOKUP($B25,[1]SRM!$A$4:$P$55,12,0) -> 29 | N25: =VLOOKUP($B25,[1]SRM!$A$4:$P$55,13,0) -> 553 | O25: =VLOOKUP($B25,[1]SRM!$A$4:$P$55,14,0) -> 52 | P25: =VLOOKUP($B25,[1]SRM!$A$4:$P$55,15,0) -> 967 | Q25: =VLOOKUP($B25,[1]SRM!$A$4:$P$55,16,0) -> 81
B26: =$B$6 -> 36 | C26: =VLOOKUP($B26,[1]SRM!$A$4:$P$55,2,0) -> 396 | D26: =VLOOKUP($B26,[1]SRM!$A$4:$P$55,3,0) -> 15 | E26: =VLOOKUP($B26,[1]SRM!$A$4:$P$55,4,0) -> 305 | F26: =VLOOKUP($B26,[1]SRM!$A$4:$P$55,5,0) -> 35 | G26: =VLOOKUP($B26,[1]SRM!$A$4:$P$55,6,0) -> 701 | H26: =VLOOKUP($B26,[1]SRM!$A$4:$P$55,7,0) -> 50 | L26: =VLOOKUP($B26,[1]SRM!$A$4:$P$55,11,0) -> 130 | M26: =VLOOKUP($B26,[1]SRM!$A$4:$P$55,12,0) -> 11 | N26: =VLOOKUP($B26,[1]SRM!$A$4:$P$55,13,0) -> 390 | O26: =VLOOKUP($B26,[1]SRM!$A$4:$P$55,14,0) -> 38 | P26: =VLOOKUP($B26,[1]SRM!$A$4:$P$55,15,0) -> 520 | Q26: =VLOOKUP($B26,[1]SRM!$A$4:$P$55,16,0) -> 49
B27: =$B$7 -> 37 | C27: =VLOOKUP($B27,[1]SRM!$A$4:$P$55,2,0) -> 193 | D27: =VLOOKUP($B27,[1]SRM!$A$4:$P$55,3,0) -> 20 | E27: =VLOOKUP($B27,[1]SRM!$A$4:$P$55,4,0) -> 237 | F27: =VLOOKUP($B27,[1]SRM!$A$4:$P$55,5,0) -> 47 | G27: =VLOOKUP($B27,[1]SRM!$A$4:$P$55,6,0) -> 430 | H27: =VLOOKUP($B27,[1]SRM!$A$4:$P$55,7,0) -> 67 | L27: =VLOOKUP($B27,[1]SRM!$A$4:$P$55,11,0) -> 80 | M27: =VLOOKUP($B27,[1]SRM!$A$4:$P$55,12,0) -> 12 | N27: =VLOOKUP($B27,[1]SRM!$A$4:$P$55,13,0) -> 243 | O27: =VLOOKUP($B27,[1]SRM!$A$4:$P$55,14,0) -> 39 | P27: =VLOOKUP($B27,[1]SRM!$A$4:$P$55,15,0) -> 323 | Q27: =VLOOKUP($B27,[1]SRM!$A$4:$P$55,16,0) -> 51
B28: =$B$8 -> 38 | C28: =VLOOKUP($B28,[1]SRM!$A$4:$P$55,2,0) -> 307 | D28: =VLOOKUP($B28,[1]SRM!$A$4:$P$55,3,0) -> 30 | E28: =VLOOKUP($B28,[1]SRM!$A$4:$P$55,4,0) -> 271 | F28: =VLOOKUP($B28,[1]SRM!$A$4:$P$55,5,0) -> 30 | G28: =VLOOKUP($B28,[1]SRM!$A$4:$P$55,6,0) -> 578 | H28: =VLOOKUP($B28,[1]SRM!$A$4:$P$55,7,0) -> 60 | L28: =VLOOKUP($B28,[1]SRM!$A$4:$P$55,11,0) -> 98 | M28: =VLOOKUP($B28,[1]SRM!$A$4:$P$55,12,0) -> 14 | N28: =VLOOKUP($B28,[1]SRM!$A$4:$P$55,13,0) -> 544 | O28: =VLOOKUP($B28,[1]SRM!$A$4:$P$55,14,0) -> 57 | P28: =VLOOKUP($B28,[1]SRM!$A$4:$P$55,15,0) -> 642 | Q28: =VLOOKUP($B28,[1]SRM!$A$4:$P$55,16,0) -> 71
B29: =$B$9 -> 39 | C29: =VLOOKUP($B29,[1]SRM!$A$4:$P$55,2,0) -> 148 | D29: =VLOOKUP($B29,[1]SRM!$A$4:$P$55,3,0) -> 15 | E29: =VLOOKUP($B29,[1]SRM!$A$4:$P$55,4,0) -> 180 | F29: =VLOOKUP($B29,[1]SRM!$A$4:$P$55,5,0) -> 25 | G29: =VLOOKUP($B29,[1]SRM!$A$4:$P$55,6,0) -> 328 | H29: =VLOOKUP($B29,[1]SRM!$A$4:$P$55,7,0) -> 40 | L29: =VLOOKUP($B29,[1]SRM!$A$4:$P$55,11,0) -> 123 | M29: =VLOOKUP($B29,[1]SRM!$A$4:$P$55,12,0) -> 15 | N29: =VLOOKUP($B29,[1]SRM!$A$4:$P$55,13,0) -> 690 | O29: =VLOOKUP($B29,[1]SRM!$A$4:$P$55,14,0) -> 36 | P29: =VLOOKUP($B29,[1]SRM!$A$4:$P$55,15,0) -> 813 | Q29: =VLOOKUP($B29,[1]SRM!$A$4:$P$55,16,0) -> 51
B30: =$B$10 -> 40 | C30: =VLOOKUP($B30,[1]SRM!$A$4:$P$55,2,0) -> 0 | D30: =VLOOKUP($B30,[1]SRM!$A$4:$P$55,3,0) -> 0 | E30: =VLOOKUP($B30,[1]SRM!$A$4:$P$55,4,0) -> 0 | F30: =VLOOKUP($B30,[1]SRM!$A$4:$P$55,5,0) -> 0 | G30: =VLOOKUP($B30,[1]SRM!$A$4:$P$55,6,0) -> 0 | H30: =VLOOKUP($B30,[1]SRM!$A$4:$P$55,7,0) -> 0 | L30: =VLOOKUP($B30,[1]SRM!$A$4:$P$55,11,0) -> 0 | M30: =VLOOKUP($B30,[1]SRM!$A$4:$P$55,12,0) -> 0 | N30: =VLOOKUP($B30,[1]SRM!$A$4:$P$55,13,0) -> 0 | O30: =VLOOKUP($B30,[1]SRM!$A$4:$P$55,14,0) -> 0 | P30: =VLOOKUP($B30,[1]SRM!$A$4:$P$55,15,0) -> 0 | Q30: =VLOOKUP($B30,[1]SRM!$A$4:$P$55,16,0) -> 0
C33: =$B$36&$C$34&C35 -> 39MaDD | D33: =$B$36&$C$34&D35 -> 39MaMD | E33: =$B$36&$C$34&E35 -> 39MaND | F33: =$B$36&$F$34&F35 -> 39DiDD | G33: =$B$36&$F$34&G35 -> 39DiMD | H33: =$B$36&$F$34&H35 -> 39DiND | I33: =$B$36&$I$34&I35 -> 39WoDD | J33: =$B$36&$I$34&J35 -> 39WoMD | K33: =$B$36&$I$34&K35 -> 39WoND | L33: =$B$36&$L$34&L35 -> 39DoDD | M33: =$B$36&$L$34&M35 -> 39DoMD | N33: =$B$36&$L$34&N35 -> 39DoND | O33: =$B$36&$O$34&O35 -> 39VrDD | P33: =$B$36&$O$34&P35 -> 39VrMD | Q33: =$B$36&$O$34&Q35 -> 39VrND | R33: =$B$36&$R$34&R35 -> 39ZaDD | S33: =$B$36&$R$34&S35 -> 39ZaMD | T33: =$B$36&$R$34&T35 -> 39ZaND | U33: =$B$36&$U$34&U35 -> 39ZaDD | V33: =$B$36&$U$34&V35 -> 39ZaMD | W33: =$B$36&$U$34&W35 -> 39ZaND
B34: Week | C34: Ma | F34: Di | I34: Wo | L34: Do | O34: Vr | R34: Za | U34: Za
C35: DD | D35: MD | E35: ND | F35: DD | G35: MD | H35: ND | I35: DD | J35: MD | K35: ND | L35: DD | M35: MD | N35: ND | O35: DD | P35: MD | Q35: ND | R35: DD | S35: MD | T35: ND | U35: DD | V35: MD | W35: ND
A36: ="TA SRM LH Week "&B36 -> TA SRM LH Week 39 | B36: =Grafieken!AB10 -> 39 | C36: =VLOOKUP(C$33,'TA SRM LH'!$A$6:$AJ$1120,36,0) -> 0 | D36: =VLOOKUP(D$33,'TA SRM LH'!$A$6:$AJ$1120,36,0) -> 0 | E36: =VLOOKUP(E$33,'TA SRM LH'!$A$6:$AJ$1120,36,0) -> 0 | F36: =VLOOKUP(F$33,'TA SRM LH'!$A$6:$AJ$1120,36,0) -> 0 | G36: =VLOOKUP(G$33,'TA SRM LH'!$A$6:$AJ$1120,36,0) -> 0 | H36: =VLOOKUP(H$33,'TA SRM LH'!$A$6:$AJ$1120,36,0) -> 0 | I36: =VLOOKUP(I$33,'TA SRM LH'!$A$6:$AJ$1120,36,0) -> 0 | J36: =VLOOKUP(J$33,'TA SRM LH'!$A$6:$AJ$1120,36,0) -> 0 | K36: =VLOOKUP(K$33,'TA SRM LH'!$A$6:$AJ$1120,36,0) -> 0 | L36: =VLOOKUP(L$33,'TA SRM LH'!$A$6:$AJ$1120,36,0) -> 0 | M36: =VLOOKUP(M$33,'TA SRM LH'!$A$6:$AJ$1120,36,0) ->  | N36: =VLOOKUP(N$33,'TA SRM LH'!$A$6:$AJ$1120,36,0) ->  | O36: =VLOOKUP(O$33,'TA SRM LH'!$A$6:$AJ$1120,36,0) ->  | P36: =VLOOKUP(P$33,'TA SRM LH'!$A$6:$AJ$1120,36,0) ->  | Q36: =VLOOKUP(Q$33,'TA SRM LH'!$A$6:$AJ$1120,36,0) ->  | R36: =VLOOKUP(R$33,'TA SRM LH'!$A$6:$AJ$1120,36,0) ->  | S36: =VLOOKUP(S$33,'TA SRM LH'!$A$6:$AJ$1120,36,0) ->  | T36: =VLOOKUP(T$33,'TA SRM LH'!$A$6:$AJ$1120,36,0) ->  | U36: =VLOOKUP(U$33,'TA SRM LH'!$A$6:$AJ$1120,36,0) ->  | V36: =VLOOKUP(V$33,'TA SRM LH'!$A$6:$AJ$1120,36,0) ->  | W36: =VLOOKUP(W$33,'TA SRM LH'!$A$6:$AJ$1120,36,0) -> 
A37: ="TA SRM RH Week "&B37 -> TA SRM RH Week 39 | B37: =Grafieken!AB10 -> 39 | C37: =VLOOKUP(C$33,'TA SRM RH'!$A$6:$AJ$1120,36,0) -> 0 | D37: =VLOOKUP(D$33,'TA SRM RH'!$A$6:$AJ$1120,36,0) -> 0 | E37: =VLOOKUP(E$33,'TA SRM RH'!$A$6:$AJ$1120,36,0) -> 0 | F37: =VLOOKUP(F$33,'TA SRM RH'!$A$6:$AJ$1120,36,0) -> 0 | G37: =VLOOKUP(G$33,'TA SRM RH'!$A$6:$AJ$1120,36,0) -> 0 | H37: =VLOOKUP(H$33,'TA SRM RH'!$A$6:$AJ$1120,36,0) -> 0 | I37: =VLOOKUP(I$33,'TA SRM RH'!$A$6:$AJ$1120,36,0) -> 0 | J37: =VLOOKUP(J$33,'TA SRM RH'!$A$6:$AJ$1120,36,0) -> 0 | K37: =VLOOKUP(K$33,'TA SRM RH'!$A$6:$AJ$1120,36,0) -> 0 | L37: =VLOOKUP(L$33,'TA SRM RH'!$A$6:$AJ$1120,36,0) -> 0 | M37: =VLOOKUP(M$33,'TA SRM RH'!$A$6:$AJ$1120,36,0) ->  | N37: =VLOOKUP(N$33,'TA SRM RH'!$A$6:$AJ$1120,36,0) ->  | O37: =VLOOKUP(O$33,'TA SRM RH'!$A$6:$AJ$1120,36,0) ->  | P37: =VLOOKUP(P$33,'TA SRM RH'!$A$6:$AJ$1120,36,0) ->  | Q37: =VLOOKUP(Q$33,'TA SRM RH'!$A$6:$AJ$1120,36,0) ->  | R37: =VLOOKUP(R$33,'TA SRM RH'!$A$6:$AJ$1120,36,0) ->  | S37: =VLOOKUP(S$33,'TA SRM RH'!$A$6:$AJ$1120,36,0) ->  | T37: =VLOOKUP(T$33,'TA SRM RH'!$A$6:$AJ$1120,36,0) ->  | U37: =VLOOKUP(U$33,'TA SRM RH'!$A$6:$AJ$1120,36,0) ->  | V37: =VLOOKUP(V$33,'TA SRM RH'!$A$6:$AJ$1120,36,0) ->  | W37: =VLOOKUP(W$33,'TA SRM RH'!$A$6:$AJ$1120,36,0) -> 
A38: Target [%] | C38: =DATA!$C$9 -> 0.89 | D38: =DATA!$C$9 -> 0.89 | E38: =DATA!$C$9 -> 0.89 | F38: =DATA!$C$9 -> 0.89 | G38: =DATA!$C$9 -> 0.89 | H38: =DATA!$C$9 -> 0.89 | I38: =DATA!$C$9 -> 0.89 | J38: =DATA!$C$9 -> 0.89 | K38: =DATA!$C$9 -> 0.89 | L38: =DATA!$C$9 -> 0.89 | M38: =DATA!$C$9 -> 0.89 | N38: =DATA!$C$9 -> 0.89 | O38: =DATA!$C$9 -> 0.89 | P38: =DATA!$C$9 -> 0.89 | Q38: =DATA!$C$9 -> 0.89 | R38: =DATA!$C$9 -> 0.89 | S38: =DATA!$C$9 -> 0.89 | T38: =DATA!$C$9 -> 0.89 | U38: =DATA!$C$9 -> 0.89 | V38: =DATA!$C$9 -> 0.89 | W38: =DATA!$C$9 -> 0.89
E42: ="Major Items "&DATA!$C$15&" Week "&$B36&" "&J63&" min" -> Major Items SRM LH Week 39 130 min | J42: Downtime | N42: ="Major Items "&DATA!$C$16&" Week "&$B36&" "&S63&" min" -> Major Items SRM RH Week 39 570 min | S42: Downtime
C43: =$B$36&"M"&DATA!$C$15&DATA!$C27 -> 39MSRM LH1 | E43: =IFERROR(VLOOKUP($C43,'[1]Downtime SAP'!$V$2:$Z$20000,2,0),"") -> F48: camera B06PP error ML | J43: =IFERROR(VLOOKUP($C43,'[1]Downtime SAP'!$V$2:$Z$20000,3,0),"") -> 30 | L43: =$B$36&"M"&DATA!$C$16&DATA!$C27 -> 39MSRM RH1 | N43: =IFERROR(VLOOKUP($L43,'[1]Downtime SAP'!$V$2:$Z$20000,2,0),"") -> Robot uitgevallen | S43: =IFERROR(VLOOKUP($L43,'[1]Downtime SAP'!$V$2:$Z$20000,3,0),"") -> 160
C44: =$B$36&"M"&DATA!$C$15&DATA!$C28 -> 39MSRM LH2 | E44: =IFERROR(VLOOKUP($C44,'[1]Downtime SAP'!$V$2:$Z$20000,2,0),"") -> 25RO1 zoekfouten 3 x | J44: =IFERROR(VLOOKUP($C44,'[1]Downtime SAP'!$V$2:$Z$20000,3,0),"") -> 20 | L44: =$B$36&"M"&DATA!$C$16&DATA!$C28 -> 39MSRM RH2 | N44: =IFERROR(VLOOKUP($L44,'[1]Downtime SAP'!$V$2:$Z$20000,2,0),"") -> Robot uitgevallen , kabels beschadigd | S44: =IFERROR(VLOOKUP($L44,'[1]Downtime SAP'!$V$2:$Z$20000,3,0),"") -> 130
C45: =$B$36&"M"&DATA!$C$15&DATA!$C29 -> 39MSRM LH3 | E45: =IFERROR(VLOOKUP($C45,'[1]Downtime SAP'!$V$2:$Z$20000,2,0),"") -> B06PP camera error F48 mLH | J45: =IFERROR(VLOOKUP($C45,'[1]Downtime SAP'!$V$2:$Z$20000,3,0),"") -> 20 | L45: =$B$36&"M"&DATA!$C$16&DATA!$C29 -> 39MSRM RH3 | N45: =IFERROR(VLOOKUP($L45,'[1]Downtime SAP'!$V$2:$Z$20000,2,0),"") -> feldpausch blijf hangen 5x | S45: =IFERROR(VLOOKUP($L45,'[1]Downtime SAP'!$V$2:$Z$20000,3,0),"") -> 25
C46: =$B$36&"M"&DATA!$C$15&DATA!$C30 -> 39MSRM LH4 | E46: =IFERROR(VLOOKUP($C46,'[1]Downtime SAP'!$V$2:$Z$20000,2,0),"") -> Dev 6332 swivel error LH | J46: =IFERROR(VLOOKUP($C46,'[1]Downtime SAP'!$V$2:$Z$20000,3,0),"") -> 20 | L46: =$B$36&"M"&DATA!$C$16&DATA!$C30 -> 39MSRM RH4 | N46: =IFERROR(VLOOKUP($L46,'[1]Downtime SAP'!$V$2:$Z$20000,2,0),"") -> B04PP nok feldpausch RH | S46: =IFERROR(VLOOKUP($L46,'[1]Downtime SAP'!$V$2:$Z$20000,3,0),"") -> 15
C47: =$B$36&"M"&DATA!$C$15&DATA!$C31 -> 39MSRM LH5 | E47: =IFERROR(VLOOKUP($C47,'[1]Downtime SAP'!$V$2:$Z$20000,2,0),"") -> F57 Kitfoto Nok 7x | J47: =IFERROR(VLOOKUP($C47,'[1]Downtime SAP'!$V$2:$Z$20000,3,0),"") -> 20 | L47: =$B$36&"M"&DATA!$C$16&DATA!$C31 -> 39MSRM RH5 | N47: =IFERROR(VLOOKUP($L47,'[1]Downtime SAP'!$V$2:$Z$20000,2,0),"") -> F60 Cam B08pp 3x | S47: =IFERROR(VLOOKUP($L47,'[1]Downtime SAP'!$V$2:$Z$20000,3,0),"") -> 15
C48: =$B$36&"M"&DATA!$C$15&DATA!$C32 -> 39MSRM LH6 | E48: =IFERROR(VLOOKUP($C48,'[1]Downtime SAP'!$V$2:$Z$20000,2,0),"") -> Cytec error B01 nok Dev0111 geen adv LH | J48: =IFERROR(VLOOKUP($C48,'[1]Downtime SAP'!$V$2:$Z$20000,3,0),"") -> 20 | L48: =$B$36&"M"&DATA!$C$16&DATA!$C32 -> 39MSRM RH6 | N48: =IFERROR(VLOOKUP($L48,'[1]Downtime SAP'!$V$2:$Z$20000,2,0),"") -> 25R01 Zoekfout | S48: =IFERROR(VLOOKUP($L48,'[1]Downtime SAP'!$V$2:$Z$20000,3,0),"") -> 15
C49: =$B$36&"M"&DATA!$C$15&DATA!$C33 -> 39MSRM LH7 | E49: =IFERROR(VLOOKUP($C49,'[1]Downtime SAP'!$V$2:$Z$20000,2,0),"") ->  | J49: =IFERROR(VLOOKUP($C49,'[1]Downtime SAP'!$V$2:$Z$20000,3,0),"") ->  | L49: =$B$36&"M"&DATA!$C$16&DATA!$C33 -> 39MSRM RH7 | N49: =IFERROR(VLOOKUP($L49,'[1]Downtime SAP'!$V$2:$Z$20000,2,0),"") -> pin package 6715 niet advanced | S49: =IFERROR(VLOOKUP($L49,'[1]Downtime SAP'!$V$2:$Z$20000,3,0),"") -> 40
C50: =$B$36&"M"&DATA!$C$15&DATA!$C34 -> 39MSRM LH8 | E50: =IFERROR(VLOOKUP($C50,'[1]Downtime SAP'!$V$2:$Z$20000,2,0),"") ->  | J50: =IFERROR(VLOOKUP($C50,'[1]Downtime SAP'!$V$2:$Z$20000,3,0),"") ->  | L50: =$B$36&"M"&DATA!$C$16&DATA!$C34 -> 39MSRM RH8 | N50: =IFERROR(VLOOKUP($L50,'[1]Downtime SAP'!$V$2:$Z$20000,2,0),"") -> B06PP camera error F60 mRH | S50: =IFERROR(VLOOKUP($L50,'[1]Downtime SAP'!$V$2:$Z$20000,3,0),"") -> 60
C51: =$B$36&"M"&DATA!$C$15&DATA!$C35 -> 39MSRM LH9 | E51: =IFERROR(VLOOKUP($C51,'[1]Downtime SAP'!$V$2:$Z$20000,2,0),"") ->  | J51: =IFERROR(VLOOKUP($C51,'[1]Downtime SAP'!$V$2:$Z$20000,3,0),"") ->  | L51: =$B$36&"M"&DATA!$C$16&DATA!$C35 -> 39MSRM RH9 | N51: =IFERROR(VLOOKUP($L51,'[1]Downtime SAP'!$V$2:$Z$20000,2,0),"") -> F60 B06PP camera fout onterecht 7x | S51: =IFERROR(VLOOKUP($L51,'[1]Downtime SAP'!$V$2:$Z$20000,3,0),"") -> 35
C52: =$B$36&"M"&DATA!$C$15&DATA!$C36 -> 39MSRM LH10 | E52: =IFERROR(VLOOKUP($C52,'[1]Downtime SAP'!$V$2:$Z$20000,2,0),"") ->  | J52: =IFERROR(VLOOKUP($C52,'[1]Downtime SAP'!$V$2:$Z$20000,3,0),"") ->  | L52: =$B$36&"M"&DATA!$C$16&DATA!$C36 -> 39MSRM RH10 | N52: =IFERROR(VLOOKUP($L52,'[1]Downtime SAP'!$V$2:$Z$20000,2,0),"") -> F60 B08PP camera fout onterecht 15x | S52: =IFERROR(VLOOKUP($L52,'[1]Downtime SAP'!$V$2:$Z$20000,3,0),"") -> 75
C53: =$B$36&"M"&DATA!$C$15&DATA!$C37 -> 39MSRM LH11 | E53: =IFERROR(VLOOKUP($C53,'[1]Downtime SAP'!$V$2:$Z$20000,2,0),"") ->  | J53: =IFERROR(VLOOKUP($C53,'[1]Downtime SAP'!$V$2:$Z$20000,3,0),"") ->  | L53: =$B$36&"M"&DATA!$C$16&DATA!$C37 -> 39MSRM RH11 | N53: =IFERROR(VLOOKUP($L53,'[1]Downtime SAP'!$V$2:$Z$20000,2,0),"") ->  | S53: =IFERROR(VLOOKUP($L53,'[1]Downtime SAP'!$V$2:$Z$20000,3,0),"") -> 
C54: =$B$36&"M"&DATA!$C$15&DATA!$C38 -> 39MSRM LH12 | E54: =IFERROR(VLOOKUP($C54,'[1]Downtime SAP'!$V$2:$Z$20000,2,0),"") ->  | J54: =IFERROR(VLOOKUP($C54,'[1]Downtime SAP'!$V$2:$Z$20000,3,0),"") ->  | L54: =$B$36&"M"&DATA!$C$16&DATA!$C38 -> 39MSRM RH12 | N54: =IFERROR(VLOOKUP($L54,'[1]Downtime SAP'!$V$2:$Z$20000,2,0),"") ->  | S54: =IFERROR(VLOOKUP($L54,'[1]Downtime SAP'!$V$2:$Z$20000,3,0),"") -> 
C55: =$B$36&"M"&DATA!$C$15&DATA!$C39 -> 39MSRM LH13 | E55: =IFERROR(VLOOKUP($C55,'[1]Downtime SAP'!$V$2:$Z$20000,2,0),"") ->  | J55: =IFERROR(VLOOKUP($C55,'[1]Downtime SAP'!$V$2:$Z$20000,3,0),"") ->  | L55: =$B$36&"M"&DATA!$C$16&DATA!$C39 -> 39MSRM RH13 | N55: =IFERROR(VLOOKUP($L55,'[1]Downtime SAP'!$V$2:$Z$20000,2,0),"") ->  | S55: =IFERROR(VLOOKUP($L55,'[1]Downtime SAP'!$V$2:$Z$20000,3,0),"") -> 
C56: =$B$36&"M"&DATA!$C$15&DATA!$C40 -> 39MSRM LH14 | E56: =IFERROR(VLOOKUP($C56,'[1]Downtime SAP'!$V$2:$Z$20000,2,0),"") ->  | J56: =IFERROR(VLOOKUP($C56,'[1]Downtime SAP'!$V$2:$Z$20000,3,0),"") ->  | L56: =$B$36&"M"&DATA!$C$16&DATA!$C40 -> 39MSRM RH14 | N56: =IFERROR(VLOOKUP($L56,'[1]Downtime SAP'!$V$2:$Z$20000,2,0),"") ->  | S56: =IFERROR(VLOOKUP($L56,'[1]Downtime SAP'!$V$2:$Z$20000,3,0),"") -> 
C57: =$B$36&"M"&DATA!$C$15&DATA!$C41 -> 39MSRM LH15 | E57: =IFERROR(VLOOKUP($C57,'[1]Downtime SAP'!$V$2:$Z$20000,2,0),"") ->  | J57: =IFERROR(VLOOKUP($C57,'[1]Downtime SAP'!$V$2:$Z$20000,3,0),"") ->  | L57: =$B$36&"M"&DATA!$C$16&DATA!$C41 -> 39MSRM RH15 | N57: =IFERROR(VLOOKUP($L57,'[1]Downtime SAP'!$V$2:$Z$20000,2,0),"") ->  | S57: =IFERROR(VLOOKUP($L57,'[1]Downtime SAP'!$V$2:$Z$20000,3,0),"") -> 
C58: =$B$36&"M"&DATA!$C$15&DATA!$C42 -> 39MSRM LH16 | E58: =IFERROR(VLOOKUP($C58,'[1]Downtime SAP'!$V$2:$Z$20000,2,0),"") ->  | J58: =IFERROR(VLOOKUP($C58,'[1]Downtime SAP'!$V$2:$Z$20000,3,0),"") ->  | L58: =$B$36&"M"&DATA!$C$16&DATA!$C42 -> 39MSRM RH16 | N58: =IFERROR(VLOOKUP($L58,'[1]Downtime SAP'!$V$2:$Z$20000,2,0),"") ->  | S58: =IFERROR(VLOOKUP($L58,'[1]Downtime SAP'!$V$2:$Z$20000,3,0),"") -> 
C59: =$B$36&"M"&DATA!$C$15&DATA!$C43 -> 39MSRM LH17 | E59: =IFERROR(VLOOKUP($C59,'[1]Downtime SAP'!$V$2:$Z$20000,2,0),"") ->  | J59: =IFERROR(VLOOKUP($C59,'[1]Downtime SAP'!$V$2:$Z$20000,3,0),"") ->  | L59: =$B$36&"M"&DATA!$C$16&DATA!$C43 -> 39MSRM RH17 | N59: =IFERROR(VLOOKUP($L59,'[1]Downtime SAP'!$V$2:$Z$20000,2,0),"") ->  | S59: =IFERROR(VLOOKUP($L59,'[1]Downtime SAP'!$V$2:$Z$20000,3,0),"") -> 
C60: =$B$36&"M"&DATA!$C$15&DATA!$C44 -> 39MSRM LH18 | E60: =IFERROR(VLOOKUP($C60,'[1]Downtime SAP'!$V$2:$Z$20000,2,0),"") ->  | J60: =IFERROR(VLOOKUP($C60,'[1]Downtime SAP'!$V$2:$Z$20000,3,0),"") ->  | L60: =$B$36&"M"&DATA!$C$16&DATA!$C44 -> 39MSRM RH18 | N60: =IFERROR(VLOOKUP($L60,'[1]Downtime SAP'!$V$2:$Z$20000,2,0),"") ->  | S60: =IFERROR(VLOOKUP($L60,'[1]Downtime SAP'!$V$2:$Z$20000,3,0),"") -> 
C61: =$B$36&"M"&DATA!$C$15&DATA!$C45 -> 39MSRM LH19 | E61: =IFERROR(VLOOKUP($C61,'[1]Downtime SAP'!$V$2:$Z$20000,2,0),"") ->  | J61: =IFERROR(VLOOKUP($C61,'[1]Downtime SAP'!$V$2:$Z$20000,3,0),"") ->  | L61: =$B$36&"M"&DATA!$C$16&DATA!$C45 -> 39MSRM RH19 | N61: =IFERROR(VLOOKUP($L61,'[1]Downtime SAP'!$V$2:$Z$20000,2,0),"") ->  | S61: =IFERROR(VLOOKUP($L61,'[1]Downtime SAP'!$V$2:$Z$20000,3,0),"") -> 
C62: =$B$36&"M"&DATA!$C$15&DATA!$C46 -> 39MSRM LH20 | E62: =IFERROR(VLOOKUP($C62,'[1]Downtime SAP'!$V$2:$Z$20000,2,0),"") ->  | J62: =IFERROR(VLOOKUP($C62,'[1]Downtime SAP'!$V$2:$Z$20000,3,0),"") ->  | L62: =$B$36&"M"&DATA!$C$16&DATA!$C46 -> 39MSRM RH20 | N62: =IFERROR(VLOOKUP($L62,'[1]Downtime SAP'!$V$2:$Z$20000,2,0),"") ->  | S62: =IFERROR(VLOOKUP($L62,'[1]Downtime SAP'!$V$2:$Z$20000,3,0),"") -> 
I63: Totaal | J63: =SUM(J43:J62) -> 130 | R63: Totaal | S63: =SUM(S43:S62) -> 570

Sheet DATA (hidden)
B2: Werktijden | E2: Breaktimes
B3: DD | C3: 06:30:00 | D3: 14:30:00 | E3: 00:45:00
B4: MD | C4: 14:30:00 | D4: 22:30:00 | E4: 00:45:00
B5: ND | C5: 22:30:00 | D5: 06:30:00 | E5: 00:45:00
B6: ZND
B9: Target SRI | C9: 0.89
B10: Cycle Time | C10: 64
C12: KS
C13: X
C14: R
C15: SRM LH
C16: SRM RH
C20: ="UPTIME "&C15 -> UPTIME SRM LH
C21: ="UPTIME "&C16 -> UPTIME SRM RH
C22: ="TA "&C15&" TREND" -> TA SRM LH TREND
C23: ="TA "&C16&" TREND" -> TA SRM RH TREND
C24: ="DOWNTIME SAP "&C15 -> DOWNTIME SAP SRM LH
C25: ="DOWNTIME SAP "&C16 -> DOWNTIME SAP SRM RH
C27: 1
C28: 2
C29: 3
C30: 4
C31: 5
C32: 6
C33: 7
C34: 8
C35: 9
C36: 10
C37: 11
C38: 12
C39: 13
C40: 14
C41: 15
C42: 16
C43: 17
C44: 18
C45: 19
C46: 20
